Workbook

Sheet Notices
A1: CMI Exposure adjustment software (1961-2020) v1
A3: Month of publication: March 2022
A5: © Continuous Mortality Investigation Limited
A7: This document is categorised as "CMI Software" as defined in the Terms and Conditions.
A9: TAS compliance:
A10: This spreadsheet is intended to allow users to apply the exposure adjustment method described in Working Paper 106 to the ONS dataset for 1961-2020. Considered together, this spreadsheet and Working Paper 106 comply with the principles in the Financial Reporting Council’s Technical Actuarial Standard “TAS 100: Principles for Technical Actuarial Work”. Any person using this spreadsheet should exercise judgement over its suitability and relevance for their purpose.
A12: Disclaimer:
A13: This document has been prepared by and/or on behalf of Continuous Mortality Investigation Limited (CMI). Use of this document is subject to CMI’s Terms and Conditions (Terms). The CMI does not accept any responsibility and/or liability whatsoever for the content or use of this document by any party that has not agreed to the relevant Terms.
A14: Whilst care has been taken during the development of the document, CMI does not (i) warrant its accuracy; or (ii) guarantee any outcome or result from the application of this document or of any of CMI’s work (whether contained in or arising from the application of this document or otherwise). You assume sole responsibility for your use of this document, and for any and all conclusions drawn from its use. CMI hereby excludes all warranties, representations, conditions and all other terms of any kind whatsoever implied by statute or common law in relation to this document, to the fullest extent permitted by applicable law. If you are in any doubt as to using anything produced by CMI, please seek independent advice.
A16: Copyright:
A17: You may reproduce the contents of the model in accordance with CMI’s: (i) Terms and Conditions for Subscribers; or (ii) Terms and Conditions for Academics and CMI Committee Members, whichever is relevant to you, in any format or medium provided it is: 1. reproduced accurately and is unaltered; 2. not used in a misleading context; and 3. it is correctly referenced and includes both CMI’s Disclaimer notice set out above and CMI’s copyright notice, as follows: © Continuous Mortality Investigation Limited.
A19: Continuous Mortality Investigation Limited (“CMI”) is registered in England & Wales (Company number: 8373631) with its Registered Office at: 7th Floor, Holborn Gate, 326-330 High Holborn, London, WC1V 7PP.
A21: Office for National Statistics data
A22: Worksheets including and to the the right of "Info" are from the Office for National Statistics (ONS)
A23: https://www.ons.gov.uk/peoplepopulationandcommunity/birthsdeathsandmarriages/lifeexpectancies/adhocs/14160deathsandpopulationestimatesforenglandandwales1961to2020bysingleyearofage
A25: Office for National Statistics data licensed under the Open Government Licence which can be found at:
A26: http://www.nationalarchives.gov.uk/doc/open-government-licence/version/3/
A28: Version history
A29: 1 - Initial release - England & Wales only

Sheet Notes
A1: An earlier version of this spreadsheet accompanied Working Paper 106 and implements the exposure adjustment method described in that paper.
A2: This version has been updated to use more recent data, for 1961-20120.
A4: This version only has data for England & Wales, not the United Kingdom. We intend to add data for the United Kingdom once this is available from the ONS.
A6: Details of how to use this spreadsheet are contained in Appendix 2 of Working Paper 106. This can be found at:
A7: https://www.actuaries.org.uk/learn-and-develop/continuous-mortality-investigation/cmi-working-papers/other/cmi-working-paper-106
A9: In order for the software to run, macros must be enabled.

Sheet Contents
A1: Contents
A4: Notices | B4: Notices and description of this spreadsheet
A5: Contents | B5: A list of worksheets int his workbook
A6: Parameters | B6: Parameters used to specify the calculation, and the "Run" button to start the calculation
A7: Lexis_Male | B7: The male Lexis grid, used for males if Parameters!D14 is set to "Grid"
A8: Lexis_Female | B8: The female Lexis grid, used for females if Parameters!D14 is set to "Grid"
A10: The remaining sheets are taken from the Office for National Statistics publication
A11: https://www.ons.gov.uk/peoplepopulationandcommunity/birthsdeathsandmarriages/lifeexpectancies/adhocs/14160deathsandpopulationestimatesforenglandandwales1961to2020bysingleyearofage
A12: and are described on the "Info" worksheet

Sheet Parameters
A1: Parameters
F4: Recommended values
A5: Data to use
A6: Gender | C6: Gender | F6: {either}
A7: Country | C7: Country | D7: EW | F7: {either} | G7: Note: Only E&W data is available in this version
A9: Ages
A10: Join age (x0) | C10: x0 | D10: 85 | F10: 85
A11: Maximum age (w) | C11: w | D11: 125 | F11: 125
A13: Assigning deaths
A14: Lexis method | C14: Lexis | D14: Formula | F14: Formula
A15: Ratio for assigning deaths (age 105) | C15: r_h | F15: 0.5 (Male) or 0.6 (Female)
A16: Ratio for assigning deaths (age w) | C16: r_w | D16: 0.1 | F16: 0.1
A18: Survivor ratio parameters
A19: Number of ages (k) | C19: k | D19: 5 | F19: 5
A20: Number of cohorts (m) | C20: m | D20: 2 | F20: 2
A21: Number of years to assess trend (y) | C21: y | D21: 5 | F21: 5
A23: Smoothing parameters
A24: Half window (n) | C24: n | D24: 2 | F24: 2
A25: Threshold probability (p) | C25: p | D25: 0.01 | F25: 0.01
A26: Minimum age (xMin) | C26: xMin | D26: 20 | F26: 20
A27: Maximum age (xMax) | C27: xMax | D27: 100 | F27: 100

Sheet xContents (hidden)
A1: Contents
A3: Contents | B3: A list of the worksheets in the output workbook
A4: Audit | B4: Description of when the calculations were done, by whom, and the software version used
A5: Input_Parameters | B5: A copy of the parameters used
A6: Input_Lexis | B6: A copy of the Lexis grid used
A7: Input_Deaths | B7: The unadjusted deaths
A8: Input_Population | B8: The unadjusted populations
A9: Deaths_DI | B9: Deaths, after assigning to single years of age (DI)
A10: Population_P | B10: The adjusted populations (P)
A11: Debug_DK | B11: Deaths, after Lexis adjustments (DK)
A12: Debug_PKc1 | B12: Populations, applying survivor ratio method without using the global correction factor (PK with c=1)
A13: Debug_PK | B13: Populations, applying survivor ratio method and using the global correction factor (PK)
A14: Debug_PM | B14: Populations, adjusted to mid-year timing (PM)
A15: Debug_PS | B15: Populations, after applying uniform annual scaling adjustments (PS)
A16: Debug_Adj | B16: Values of the global correction factor (c) and uniform annual scaling adjustments ('lambda')

Sheet Lexis_Male
A1: Lexis grid for males - this is only used if cell D14 on "Parameters" is set to "Grid" and cell D6 is set to "Male"
B3: 1961 | C3: 1962 | D3: 1963 | E3: 1964 | F3: 1965 | G3: 1966 | H3: 1967 | I3: 1968 | J3: 1969 | K3: 1970 | L3: 1971 | M3: 1972 | N3: 1973 | O3: 1974 | P3: 1975 | Q3: 1976 | R3: 1977 | S3: 1978 | T3: 1979 | U3: 1980 | V3: 1981 | W3: 1982 | X3: 1983 | Y3: 1984 | Z3: 1985 | AA3: 1986 | AB3: 1987 | AC3: 1988 | AD3: 1989 | AE3: 1990 | AF3: 1991 | AG3: 1992 | AH3: 1993 | AI3: 1994 | AJ3: 1995 | AK3: 1996 | AL3: 1997 | AM3: 1998 | AN3: 1999 | AO3: 2000 | AP3: 2001 | AQ3: 2002 | AR3: 2003 | AS3: 2004 | AT3: 2005 | AU3: 2006 | AV3: 2007 | AW3: 2008 | AX3: 2009 | AY3: 2010 | AZ3: 2011 | BA3: 2012 | BB3: 2013 | BC3: 2014 | BD3: 2015 | BE3: 2016 | BF3: 2017 | BG3: 2018 | BH3: 2019 | BI3: 2020 | BJ3: 2021
A4: 0 | B4: =0.45+0.06*MIN(105-$A4,25)/25 -> 0.51 | C4: =0.45+0.06*MIN(105-$A4,25)/25 -> 0.51 | D4: 0.51 | E4: 0.51 | F4: 0.51 | G4: 0.51 | H4: 0.51 | I4: 0.51 | J4: 0.51 | K4: 0.51 | L4: 0.51 | M4: 0.51 | N4: 0.51 | O4: 0.51 | P4: 0.51 | Q4: 0.51 | R4: 0.51 | S4: =0.45+0.06*MIN(105-$A4,25)/25 -> 0.51 | T4: 0.51 | U4: 0.51 | V4: 0.51 | W4: 0.51 | X4: 0.51 | Y4: 0.51 | Z4: 0.51 | AA4: 0.51 | AB4: 0.51 | AC4: 0.51 | AD4: 0.51 | AE4: 0.51 | AF4: 0.51 | AG4: 0.51 | AH4: 0.51 | AI4: =0.45+0.06*MIN(105-$A4,25)/25 -> 0.51 | AJ4: 0.51 | AK4: 0.51 | AL4: 0.51 | AM4: 0.51 | AN4: 0.51 | AO4: 0.51 | AP4: 0.51 | AQ4: 0.51 | AR4: 0.51 | AS4: 0.51 | AT4: 0.51 | AU4: 0.51 | AV4: 0.51 | AW4: 0.51 | AX4: 0.51 | AY4: =0.45+0.06*MIN(105-$A4,25)/25 -> 0.51 | AZ4: 0.51 | BA4: 0.51 | BB4: 0.51 | BC4: 0.51 | BD4: 0.51 | BE4: 0.51 | BF4: 0.51 | BG4: 0.51 | BH4: 0.51 | BI4: 0.51 | BJ4: 0.51
A5: 1 | B5: =0.45+0.06*MIN(105-$A5,25)/25 -> 0.51 | C5: 0.51 | D5: 0.51 | E5: 0.51 | F5: 0.51 | G5: 0.51 | H5: 0.51 | I5: 0.51 | J5: 0.51 | K5: 0.51 | L5: 0.51 | M5: 0.51 | N5: 0.51 | O5: 0.51 | P5: 0.51 | Q5: 0.51 | R5: 0.51 | S5: 0.51 | T5: 0.51 | U5: 0.51 | V5: 0.51 | W5: 0.51 | X5: 0.51 | Y5: 0.51 | Z5: 0.51 | AA5: 0.51 | AB5: 0.51 | AC5: 0.51 | AD5: 0.51 | AE5: 0.51 | AF5: 0.51 | AG5: 0.51 | AH5: 0.51 | AI5: 0.51 | AJ5: 0.51 | AK5: 0.51 | AL5: 0.51 | AM5: 0.51 | AN5: 0.51 | AO5: 0.51 | AP5: 0.51 | AQ5: 0.51 | AR5: 0.51 | AS5: 0.51 | AT5: 0.51 | AU5: 0.51 | AV5: 0.51 | AW5: 0.51 | AX5: 0.51 | AY5: 0.51 | AZ5: 0.51 | BA5: 0.51 | BB5: 0.51 | BC5: 0.51 | BD5: 0.51 | BE5: 0.51 | BF5: 0.51 | BG5: 0.51 | BH5: 0.51 | BI5: 0.51 | BJ5: 0.51
A6: 2 | B6: 0.51 | C6: 0.51 | D6: 0.51 | E6: 0.51 | F6: 0.51 | G6: 0.51 | H6: 0.51 | I6: 0.51 | J6: 0.51 | K6: 0.51 | L6: 0.51 | M6: 0.51 | N6: 0.51 | O6: 0.51 | P6: 0.51 | Q6: 0.51 | R6: 0.51 | S6: 0.51 | T6: 0.51 | U6: 0.51 | V6: 0.51 | W6: 0.51 | X6: 0.51 | Y6: 0.51 | Z6: 0.51 | AA6: 0.51 | AB6: 0.51 | AC6: 0.51 | AD6: 0.51 | AE6: 0.51 | AF6: 0.51 | AG6: 0.51 | AH6: 0.51 | AI6: 0.51 | AJ6: 0.51 | AK6: 0.51 | AL6: 0.51 | AM6: 0.51 | AN6: 0.51 | AO6: 0.51 | AP6: 0.51 | AQ6: 0.51 | AR6: 0.51 | AS6: 0.51 | AT6: 0.51 | AU6: 0.51 | AV6: 0.51 | AW6: 0.51 | AX6: 0.51 | AY6: 0.51 | AZ6: 0.51 | BA6: 0.51 | BB6: 0.51 | BC6: 0.51 | BD6: 0.51 | BE6: 0.51 | BF6: 0.51 | BG6: 0.51 | BH6: 0.51 | BI6: 0.51 | BJ6: 0.51
A7: 3 | B7: 0.51 | C7: 0.51 | D7: 0.51 | E7: 0.51 | F7: 0.51 | G7: 0.51 | H7: 0.51 | I7: 0.51 | J7: 0.51 | K7: 0.51 | L7: 0.51 | M7: 0.51 | N7: 0.51 | O7: 0.51 | P7: 0.51 | Q7: 0.51 | R7: 0.51 | S7: 0.51 | T7: 0.51 | U7: 0.51 | V7: 0.51 | W7: 0.51 | X7: 0.51 | Y7: 0.51 | Z7: 0.51 | AA7: 0.51 | AB7: 0.51 | AC7: 0.51 | AD7: 0.51 | AE7: 0.51 | AF7: 0.51 | AG7: 0.51 | AH7: 0.51 | AI7: 0.51 | AJ7: 0.51 | AK7: 0.51 | AL7: 0.51 | AM7: 0.51 | AN7: 0.51 | AO7: 0.51 | AP7: 0.51 | AQ7: 0.51 | AR7: 0.51 | AS7: 0.51 | AT7: 0.51 | AU7: 0.51 | AV7: 0.51 | AW7: 0.51 | AX7: 0.51 | AY7: 0.51 | AZ7: 0.51 | BA7: 0.51 | BB7: 0.51 | BC7: 0.51 | BD7: 0.51 | BE7: 0.51 | BF7: 0.51 | BG7: 0.51 | BH7: 0.51 | BI7: 0.51 | BJ7: 0.51
A8: 4 | B8: 0.51 | C8: 0.51 | D8: 0.51 | E8: 0.51 | F8: 0.51 | G8: 0.51 | H8: 0.51 | I8: 0.51 | J8: 0.51 | K8: 0.51 | L8: 0.51 | M8: 0.51 | N8: 0.51 | O8: 0.51 | P8: 0.51 | Q8: 0.51 | R8: 0.51 | S8: 0.51 | T8: 0.51 | U8: 0.51 | V8: 0.51 | W8: 0.51 | X8: 0.51 | Y8: 0.51 | Z8: 0.51 | AA8: 0.51 | AB8: 0.51 | AC8: 0.51 | AD8: 0.51 | AE8: 0.51 | AF8: 0.51 | AG8: 0.51 | AH8: 0.51 | AI8: 0.51 | AJ8: 0.51 | AK8: 0.51 | AL8: 0.51 | AM8: 0.51 | AN8: 0.51 | AO8: 0.51 | AP8: 0.51 | AQ8: 0.51 | AR8: 0.51 | AS8: 0.51 | AT8: 0.51 | AU8: 0.51 | AV8: 0.51 | AW8: 0.51 | AX8: 0.51 | AY8: 0.51 | AZ8: 0.51 | BA8: 0.51 | BB8: 0.51 | BC8: 0.51 | BD8: 0.51 | BE8: 0.51 | BF8: 0.51 | BG8: 0.51 | BH8: 0.51 | BI8: 0.51 | BJ8: 0.51
A9: 5 | B9: 0.51 | C9: 0.51 | D9: 0.51 | E9: 0.51 | F9: 0.51 | G9: 0.51 | H9: 0.51 | I9: 0.51 | J9: 0.51 | K9: 0.51 | L9: 0.51 | M9: 0.51 | N9: 0.51 | O9: 0.51 | P9: 0.51 | Q9: 0.51 | R9: 0.51 | S9: 0.51 | T9: 0.51 | U9: 0.51 | V9: 0.51 | W9: 0.51 | X9: 0.51 | Y9: 0.51 | Z9: 0.51 | AA9: 0.51 | AB9: 0.51 | AC9: 0.51 | AD9: 0.51 | AE9: 0.51 | AF9: 0.51 | AG9: 0.51 | AH9: 0.51 | AI9: 0.51 | AJ9: 0.51 | AK9: 0.51 | AL9: 0.51 | AM9: 0.51 | AN9: 0.51 | AO9: 0.51 | AP9: 0.51 | AQ9: 0.51 | AR9: 0.51 | AS9: 0.51 | AT9: 0.51 | AU9: 0.51 | AV9: 0.51 | AW9: 0.51 | AX9: 0.51 | AY9: 0.51 | AZ9: 0.51 | BA9: 0.51 | BB9: 0.51 | BC9: 0.51 | BD9: 0.51 | BE9: 0.51 | BF9: 0.51 | BG9: 0.51 | BH9: 0.51 | BI9: 0.51 | BJ9: 0.51
A10: 6 | B10: 0.51 | C10: 0.51 | D10: 0.51 | E10: 0.51 | F10: 0.51 | G10: 0.51 | H10: 0.51 | I10: 0.51 | J10: 0.51 | K10: 0.51 | L10: 0.51 | M10: 0.51 | N10: 0.51 | O10: 0.51 | P10: 0.51 | Q10: 0.51 | R10: 0.51 | S10: 0.51 | T10: 0.51 | U10: 0.51 | V10: 0.51 | W10: 0.51 | X10: 0.51 | Y10: 0.51 | Z10: 0.51 | AA10: 0.51 | AB10: 0.51 | AC10: 0.51 | AD10: 0.51 | AE10: 0.51 | AF10: 0.51 | AG10: 0.51 | AH10: 0.51 | AI10: 0.51 | AJ10: 0.51 | AK10: 0.51 | AL10: 0.51 | AM10: 0.51 | AN10: 0.51 | AO10: 0.51 | AP10: 0.51 | AQ10: 0.51 | AR10: 0.51 | AS10: 0.51 | AT10: 0.51 | AU10: 0.51 | AV10: 0.51 | AW10: 0.51 | AX10: 0.51 | AY10: 0.51 | AZ10: 0.51 | BA10: 0.51 | BB10: 0.51 | BC10: 0.51 | BD10: 0.51 | BE10: 0.51 | BF10: 0.51 | BG10: 0.51 | BH10: 0.51 | BI10: 0.51 | BJ10: 0.51
A11: 7 | B11: 0.51 | C11: 0.51 | D11: 0.51 | E11: 0.51 | F11: 0.51 | G11: 0.51 | H11: 0.51 | I11: 0.51 | J11: 0.51 | K11: 0.51 | L11: 0.51 | M11: 0.51 | N11: 0.51 | O11: 0.51 | P11: 0.51 | Q11: 0.51 | R11: 0.51 | S11: 0.51 | T11: 0.51 | U11: 0.51 | V11: 0.51 | W11: 0.51 | X11: 0.51 | Y11: 0.51 | Z11: 0.51 | AA11: 0.51 | AB11: 0.51 | AC11: 0.51 | AD11: 0.51 | AE11: 0.51 | AF11: 0.51 | AG11: 0.51 | AH11: 0.51 | AI11: 0.51 | AJ11: 0.51 | AK11: 0.51 | AL11: 0.51 | AM11: 0.51 | AN11: 0.51 | AO11: 0.51 | AP11: 0.51 | AQ11: 0.51 | AR11: 0.51 | AS11: 0.51 | AT11: 0.51 | AU11: 0.51 | AV11: 0.51 | AW11: 0.51 | AX11: 0.51 | AY11: 0.51 | AZ11: 0.51 | BA11: 0.51 | BB11: 0.51 | BC11: 0.51 | BD11: 0.51 | BE11: 0.51 | BF11: 0.51 | BG11: 0.51 | BH11: 0.51 | BI11: 0.51 | BJ11: 0.51
A12: 8 | B12: 0.51 | C12: 0.51 | D12: 0.51 | E12: 0.51 | F12: 0.51 | G12: 0.51 | H12: 0.51 | I12: 0.51 | J12: 0.51 | K12: 0.51 | L12: 0.51 | M12: 0.51 | N12: 0.51 | O12: 0.51 | P12: 0.51 | Q12: 0.51 | R12: 0.51 | S12: 0.51 | T12: 0.51 | U12: 0.51 | V12: 0.51 | W12: 0.51 | X12: 0.51 | Y12: 0.51 | Z12: 0.51 | AA12: 0.51 | AB12: 0.51 | AC12: 0.51 | AD12: 0.51 | AE12: 0.51 | AF12: 0.51 | AG12: 0.51 | AH12: 0.51 | AI12: 0.51 | AJ12: 0.51 | AK12: 0.51 | AL12: 0.51 | AM12: 0.51 | AN12: 0.51 | AO12: 0.51 | AP12: 0.51 | AQ12: 0.51 | AR12: 0.51 | AS12: 0.51 | AT12: 0.51 | AU12: 0.51 | AV12: 0.51 | AW12: 0.51 | AX12: 0.51 | AY12: 0.51 | AZ12: 0.51 | BA12: 0.51 | BB12: 0.51 | BC12: 0.51 | BD12: 0.51 | BE12: 0.51 | BF12: 0.51 | BG12: 0.51 | BH12: 0.51 | BI12: 0.51 | BJ12: 0.51
A13: 9 | B13: 0.51 | C13: 0.51 | D13: 0.51 | E13: 0.51 | F13: 0.51 | G13: 0.51 | H13: 0.51 | I13: 0.51 | J13: 0.51 | K13: 0.51 | L13: 0.51 | M13: 0.51 | N13: 0.51 | O13: 0.51 | P13: 0.51 | Q13: 0.51 | R13: 0.51 | S13: 0.51 | T13: 0.51 | U13: 0.51 | V13: 0.51 | W13: 0.51 | X13: 0.51 | Y13: 0.51 | Z13: 0.51 | AA13: 0.51 | AB13: 0.51 | AC13: 0.51 | AD13: 0.51 | AE13: 0.51 | AF13: 0.51 | AG13: 0.51 | AH13: 0.51 | AI13: 0.51 | AJ13: 0.51 | AK13: 0.51 | AL13: 0.51 | AM13: 0.51 | AN13: 0.51 | AO13: 0.51 | AP13: 0.51 | AQ13: 0.51 | AR13: 0.51 | AS13: 0.51 | AT13: 0.51 | AU13: 0.51 | AV13: 0.51 | AW13: 0.51 | AX13: 0.51 | AY13: 0.51 | AZ13: 0.51 | BA13: 0.51 | BB13: 0.51 | BC13: 0.51 | BD13: 0.51 | BE13: 0.51 | BF13: 0.51 | BG13: 0.51 | BH13: 0.51 | BI13: 0.51 | BJ13: 0.51
A14: 10 | B14: 0.51 | C14: 0.51 | D14: 0.51 | E14: 0.51 | F14: 0.51 | G14: 0.51 | H14: 0.51 | I14: 0.51 | J14: 0.51 | K14: 0.51 | L14: 0.51 | M14: 0.51 | N14: 0.51 | O14: 0.51 | P14: 0.51 | Q14: 0.51 | R14: 0.51 | S14: 0.51 | T14: 0.51 | U14: 0.51 | V14: 0.51 | W14: 0.51 | X14: 0.51 | Y14: 0.51 | Z14: 0.51 | AA14: 0.51 | AB14: 0.51 | AC14: 0.51 | AD14: 0.51 | AE14: 0.51 | AF14: 0.51 | AG14: 0.51 | AH14: 0.51 | AI14: 0.51 | AJ14: 0.51 | AK14: 0.51 | AL14: 0.51 | AM14: 0.51 | AN14: 0.51 | AO14: 0.51 | AP14: 0.51 | AQ14: 0.51 | AR14: 0.51 | AS14: 0.51 | AT14: 0.51 | AU14: 0.51 | AV14: 0.51 | AW14: 0.51 | AX14: 0.51 | AY14: 0.51 | AZ14: 0.51 | BA14: 0.51 | BB14: 0.51 | BC14: 0.51 | BD14: 0.51 | BE14: 0.51 | BF14: 0.51 | BG14: 0.51 | BH14: 0.51 | BI14: 0.51 | BJ14: 0.51
A15: 11 | B15: 0.51 | C15: 0.51 | D15: 0.51 | E15: 0.51 | F15: 0.51 | G15: 0.51 | H15: 0.51 | I15: 0.51 | J15: 0.51 | K15: 0.51 | L15: 0.51 | M15: 0.51 | N15: 0.51 | O15: 0.51 | P15: 0.51 | Q15: 0.51 | R15: 0.51 | S15: 0.51 | T15: 0.51 | U15: 0.51 | V15: 0.51 | W15: 0.51 | X15: 0.51 | Y15: 0.51 | Z15: 0.51 | AA15: 0.51 | AB15: 0.51 | AC15: 0.51 | AD15: 0.51 | AE15: 0.51 | AF15: 0.51 | AG15: 0.51 | AH15: 0.51 | AI15: 0.51 | AJ15: 0.51 | AK15: 0.51 | AL15: 0.51 | AM15: 0.51 | AN15: 0.51 | AO15: 0.51 | AP15: 0.51 | AQ15: 0.51 | AR15: 0.51 | AS15: 0.51 | AT15: 0.51 | AU15: 0.51 | AV15: 0.51 | AW15: 0.51 | AX15: 0.51 | AY15: 0.51 | AZ15: 0.51 | BA15: 0.51 | BB15: 0.51 | BC15: 0.51 | BD15: 0.51 | BE15: 0.51 | BF15: 0.51 | BG15: 0.51 | BH15: 0.51 | BI15: 0.51 | BJ15: 0.51
A16: 12 | B16: 0.51 | C16: 0.51 | D16: 0.51 | E16: 0.51 | F16: 0.51 | G16: 0.51 | H16: 0.51 | I16: 0.51 | J16: 0.51 | K16: 0.51 | L16: 0.51 | M16: 0.51 | N16: 0.51 | O16: 0.51 | P16: 0.51 | Q16: 0.51 | R16: 0.51 | S16: 0.51 | T16: 0.51 | U16: 0.51 | V16: 0.51 | W16: 0.51 | X16: 0.51 | Y16: 0.51 | Z16: 0.51 | AA16: 0.51 | AB16: 0.51 | AC16: 0.51 | AD16: 0.51 | AE16: 0.51 | AF16: 0.51 | AG16: 0.51 | AH16: 0.51 | AI16: 0.51 | AJ16: 0.51 | AK16: 0.51 | AL16: 0.51 | AM16: 0.51 | AN16: 0.51 | AO16: 0.51 | AP16: 0.51 | AQ16: 0.51 | AR16: 0.51 | AS16: 0.51 | AT16: 0.51 | AU16: 0.51 | AV16: 0.51 | AW16: 0.51 | AX16: 0.51 | AY16: 0.51 | AZ16: 0.51 | BA16: 0.51 | BB16: 0.51 | BC16: 0.51 | BD16: 0.51 | BE16: 0.51 | BF16: 0.51 | BG16: 0.51 | BH16: 0.51 | BI16: 0.51 | BJ16: 0.51
A17: 13 | B17: 0.51 | C17: 0.51 | D17: 0.51 | E17: 0.51 | F17: 0.51 | G17: 0.51 | H17: 0.51 | I17: 0.51 | J17: 0.51 | K17: 0.51 | L17: 0.51 | M17: 0.51 | N17: 0.51 | O17: 0.51 | P17: 0.51 | Q17: 0.51 | R17: 0.51 | S17: 0.51 | T17: 0.51 | U17: 0.51 | V17: 0.51 | W17: 0.51 | X17: 0.51 | Y17: 0.51 | Z17: 0.51 | AA17: 0.51 | AB17: 0.51 | AC17: 0.51 | AD17: 0.51 | AE17: 0.51 | AF17: 0.51 | AG17: 0.51 | AH17: 0.51 | AI17: 0.51 | AJ17: 0.51 | AK17: 0.51 | AL17: 0.51 | AM17: 0.51 | AN17: 0.51 | AO17: 0.51 | AP17: 0.51 | AQ17: 0.51 | AR17: 0.51 | AS17: 0.51 | AT17: 0.51 | AU17: 0.51 | AV17: 0.51 | AW17: 0.51 | AX17: 0.51 | AY17: 0.51 | AZ17: 0.51 | BA17: 0.51 | BB17: 0.51 | BC17: 0.51 | BD17: 0.51 | BE17: 0.51 | BF17: 0.51 | BG17: 0.51 | BH17: 0.51 | BI17: 0.51 | BJ17: 0.51
A18: 14 | B18: 0.51 | C18: 0.51 | D18: 0.51 | E18: 0.51 | F18: 0.51 | G18: 0.51 | H18: 0.51 | I18: 0.51 | J18: 0.51 | K18: 0.51 | L18: 0.51 | M18: 0.51 | N18: 0.51 | O18: 0.51 | P18: 0.51 | Q18: 0.51 | R18: 0.51 | S18: 0.51 | T18: 0.51 | U18: 0.51 | V18: 0.51 | W18: 0.51 | X18: 0.51 | Y18: 0.51 | Z18: 0.51 | AA18: 0.51 | AB18: 0.51 | AC18: 0.51 | AD18: 0.51 | AE18: 0.51 | AF18: 0.51 | AG18: 0.51 | AH18: 0.51 | AI18: 0.51 | AJ18: 0.51 | AK18: 0.51 | AL18: 0.51 | AM18: 0.51 | AN18: 0.51 | AO18: 0.51 | AP18: 0.51 | AQ18: 0.51 | AR18: 0.51 | AS18: 0.51 | AT18: 0.51 | AU18: 0.51 | AV18: 0.51 | AW18: 0.51 | AX18: 0.51 | AY18: 0.51 | AZ18: 0.51 | BA18: 0.51 | BB18: 0.51 | BC18: 0.51 | BD18: 0.51 | BE18: 0.51 | BF18: 0.51 | BG18: 0.51 | BH18: 0.51 | BI18: 0.51 | BJ18: 0.51
A19: 15 | B19: 0.51 | C19: 0.51 | D19: 0.51 | E19: 0.51 | F19: 0.51 | G19: 0.51 | H19: 0.51 | I19: 0.51 | J19: 0.51 | K19: 0.51 | L19: 0.51 | M19: 0.51 | N19: 0.51 | O19: 0.51 | P19: 0.51 | Q19: 0.51 | R19: =0.45+0.06*MIN(105-$A19,25)/25 -> 0.51 | S19: 0.51 | T19: 0.51 | U19: 0.51 | V19: 0.51 | W19: 0.51 | X19: 0.51 | Y19: 0.51 | Z19: 0.51 | AA19: 0.51 | AB19: 0.51 | AC19: 0.51 | AD19: 0.51 | AE19: 0.51 | AF19: 0.51 | AG19: 0.51 | AH19: =0.45+0.06*MIN(105-$A19,25)/25 -> 0.51 | AI19: 0.51 | AJ19: 0.51 | AK19: 0.51 | AL19: 0.51 | AM19: 0.51 | AN19: 0.51 | AO19: 0.51 | AP19: 0.51 | AQ19: 0.51 | AR19: 0.51 | AS19: 0.51 | AT19: 0.51 | AU19: 0.51 | AV19: 0.51 | AW19: 0.51 | AX19: =0.45+0.06*MIN(105-$A19,25)/25 -> 0.51 | AY19: 0.51 | AZ19: 0.51 | BA19: 0.51 | BB19: 0.51 | BC19: 0.51 | BD19: 0.51 | BE19: 0.51 | BF19: 0.51 | BG19: 0.51 | BH19: 0.51 | BI19: 0.51 | BJ19: 0.51
A20: 16 | B20: 0.51 | C20: 0.51 | D20: 0.51 | E20: 0.51 | F20: 0.51 | G20: 0.51 | H20: 0.51 | I20: 0.51 | J20: 0.51 | K20: 0.51 | L20: 0.51 | M20: 0.51 | N20: 0.51 | O20: 0.51 | P20: 0.51 | Q20: 0.51 | R20: 0.51 | S20: 0.51 | T20: 0.51 | U20: 0.51 | V20: 0.51 | W20: 0.51 | X20: 0.51 | Y20: 0.51 | Z20: 0.51 | AA20: 0.51 | AB20: 0.51 | AC20: 0.51 | AD20: 0.51 | AE20: 0.51 | AF20: 0.51 | AG20: 0.51 | AH20: 0.51 | AI20: 0.51 | AJ20: 0.51 | AK20: 0.51 | AL20: 0.51 | AM20: 0.51 | AN20: 0.51 | AO20: 0.51 | AP20: 0.51 | AQ20: 0.51 | AR20: 0.51 | AS20: 0.51 | AT20: 0.51 | AU20: 0.51 | AV20: 0.51 | AW20: 0.51 | AX20: 0.51 | AY20: 0.51 | AZ20: 0.51 | BA20: 0.51 | BB20: 0.51 | BC20: 0.51 | BD20: 0.51 | BE20: 0.51 | BF20: 0.51 | BG20: 0.51 | BH20: 0.51 | BI20: 0.51 | BJ20: 0.51
A21: 17 | B21: =0.45+0.06*MIN(105-$A21,25)/25 -> 0.51 | C21: 0.51 | D21: 0.51 | E21: 0.51 | F21: 0.51 | G21: 0.51 | H21: 0.51 | I21: 0.51 | J21: 0.51 | K21: 0.51 | L21: 0.51 | M21: 0.51 | N21: 0.51 | O21: 0.51 | P21: 0.51 | Q21: 0.51 | R21: 0.51 | S21: 0.51 | T21: 0.51 | U21: 0.51 | V21: 0.51 | W21: 0.51 | X21: 0.51 | Y21: 0.51 | Z21: 0.51 | AA21: 0.51 | AB21: 0.51 | AC21: 0.51 | AD21: 0.51 | AE21: 0.51 | AF21: 0.51 | AG21: 0.51 | AH21: 0.51 | AI21: 0.51 | AJ21: 0.51 | AK21: 0.51 | AL21: 0.51 | AM21: 0.51 | AN21: 0.51 | AO21: 0.51 | AP21: 0.51 | AQ21: 0.51 | AR21: 0.51 | AS21: 0.51 | AT21: 0.51 | AU21: 0.51 | AV21: 0.51 | AW21: 0.51 | AX21: 0.51 | AY21: 0.51 | AZ21: 0.51 | BA21: 0.51 | BB21: 0.51 | BC21: 0.51 | BD21: 0.51 | BE21: 0.51 | BF21: 0.51 | BG21: 0.51 | BH21: 0.51 | BI21: 0.51 | BJ21: 0.51
A22: 18 | B22: 0.51 | C22: 0.51 | D22: 0.51 | E22: 0.51 | F22: 0.51 | G22: 0.51 | H22: 0.51 | I22: 0.51 | J22: 0.51 | K22: 0.51 | L22: 0.51 | M22: 0.51 | N22: 0.51 | O22: 0.51 | P22: 0.51 | Q22: 0.51 | R22: 0.51 | S22: 0.51 | T22: 0.51 | U22: 0.51 | V22: 0.51 | W22: 0.51 | X22: 0.51 | Y22: 0.51 | Z22: 0.51 | AA22: 0.51 | AB22: 0.51 | AC22: 0.51 | AD22: 0.51 | AE22: 0.51 | AF22: 0.51 | AG22: 0.51 | AH22: 0.51 | AI22: 0.51 | AJ22: 0.51 | AK22: 0.51 | AL22: 0.51 | AM22: 0.51 | AN22: 0.51 | AO22: 0.51 | AP22: 0.51 | AQ22: 0.51 | AR22: 0.51 | AS22: 0.51 | AT22: 0.51 | AU22: 0.51 | AV22: 0.51 | AW22: 0.51 | AX22: 0.51 | AY22: 0.51 | AZ22: 0.51 | BA22: 0.51 | BB22: 0.51 | BC22: 0.51 | BD22: 0.51 | BE22: 0.51 | BF22: 0.51 | BG22: 0.51 | BH22: 0.51 | BI22: 0.51 | BJ22: 0.51
A23: 19 | B23: 0.51 | C23: 0.51 | D23: 0.51 | E23: 0.51 | F23: 0.51 | G23: 0.51 | H23: 0.51 | I23: 0.51 | J23: 0.51 | K23: 0.51 | L23: 0.51 | M23: 0.51 | N23: 0.51 | O23: 0.51 | P23: 0.51 | Q23: 0.51 | R23: 0.51 | S23: 0.51 | T23: 0.51 | U23: 0.51 | V23: 0.51 | W23: 0.51 | X23: 0.51 | Y23: 0.51 | Z23: 0.51 | AA23: 0.51 | AB23: 0.51 | AC23: 0.51 | AD23: 0.51 | AE23: 0.51 | AF23: 0.51 | AG23: 0.51 | AH23: 0.51 | AI23: 0.51 | AJ23: 0.51 | AK23: 0.51 | AL23: 0.51 | AM23: 0.51 | AN23: 0.51 | AO23: 0.51 | AP23: 0.51 | AQ23: 0.51 | AR23: 0.51 | AS23: 0.51 | AT23: 0.51 | AU23: 0.51 | AV23: 0.51 | AW23: 0.51 | AX23: 0.51 | AY23: 0.51 | AZ23: 0.51 | BA23: 0.51 | BB23: 0.51 | BC23: 0.51 | BD23: 0.51 | BE23: 0.51 | BF23: 0.51 | BG23: 0.51 | BH23: 0.51 | BI23: 0.51 | BJ23: 0.51
A24: 20 | B24: 0.51 | C24: 0.51 | D24: 0.51 | E24: 0.51 | F24: 0.51 | G24: 0.51 | H24: 0.51 | I24: 0.51 | J24: 0.51 | K24: 0.51 | L24: 0.51 | M24: 0.51 | N24: 0.51 | O24: 0.51 | P24: 0.51 | Q24: 0.51 | R24: 0.51 | S24: 0.51 | T24: 0.51 | U24: 0.51 | V24: 0.51 | W24: 0.51 | X24: 0.51 | Y24: 0.51 | Z24: 0.51 | AA24: 0.51 | AB24: 0.51 | AC24: 0.51 | AD24: 0.51 | AE24: 0.51 | AF24: 0.51 | AG24: 0.51 | AH24: 0.51 | AI24: 0.51 | AJ24: 0.51 | AK24: 0.51 | AL24: 0.51 | AM24: 0.51 | AN24: 0.51 | AO24: 0.51 | AP24: 0.51 | AQ24: 0.51 | AR24: 0.51 | AS24: 0.51 | AT24: 0.51 | AU24: 0.51 | AV24: 0.51 | AW24: 0.51 | AX24: 0.51 | AY24: 0.51 | AZ24: 0.51 | BA24: 0.51 | BB24: 0.51 | BC24: 0.51 | BD24: 0.51 | BE24: 0.51 | BF24: 0.51 | BG24: 0.51 | BH24: 0.51 | BI24: 0.51 | BJ24: 0.51
A25: 21 | B25: 0.51 | C25: 0.51 | D25: 0.51 | E25: 0.51 | F25: 0.51 | G25: 0.51 | H25: 0.51 | I25: 0.51 | J25: 0.51 | K25: 0.51 | L25: 0.51 | M25: 0.51 | N25: 0.51 | O25: 0.51 | P25: 0.51 | Q25: 0.51 | R25: 0.51 | S25: 0.51 | T25: 0.51 | U25: 0.51 | V25: 0.51 | W25: 0.51 | X25: 0.51 | Y25: 0.51 | Z25: 0.51 | AA25: 0.51 | AB25: 0.51 | AC25: 0.51 | AD25: 0.51 | AE25: 0.51 | AF25: 0.51 | AG25: 0.51 | AH25: 0.51 | AI25: 0.51 | AJ25: 0.51 | AK25: 0.51 | AL25: 0.51 | AM25: 0.51 | AN25: 0.51 | AO25: 0.51 | AP25: 0.51 | AQ25: 0.51 | AR25: 0.51 | AS25: 0.51 | AT25: 0.51 | AU25: 0.51 | AV25: 0.51 | AW25: 0.51 | AX25: 0.51 | AY25: 0.51 | AZ25: 0.51 | BA25: 0.51 | BB25: 0.51 | BC25: 0.51 | BD25: 0.51 | BE25: 0.51 | BF25: 0.51 | BG25: 0.51 | BH25: 0.51 | BI25: 0.51 | BJ25: 0.51
A26: 22 | B26: 0.51 | C26: 0.51 | D26: 0.51 | E26: 0.51 | F26: 0.51 | G26: 0.51 | H26: 0.51 | I26: 0.51 | J26: 0.51 | K26: 0.51 | L26: 0.51 | M26: 0.51 | N26: 0.51 | O26: 0.51 | P26: 0.51 | Q26: 0.51 | R26: 0.51 | S26: 0.51 | T26: 0.51 | U26: 0.51 | V26: 0.51 | W26: 0.51 | X26: 0.51 | Y26: 0.51 | Z26: 0.51 | AA26: 0.51 | AB26: 0.51 | AC26: 0.51 | AD26: 0.51 | AE26: 0.51 | AF26: 0.51 | AG26: 0.51 | AH26: 0.51 | AI26: 0.51 | AJ26: 0.51 | AK26: 0.51 | AL26: 0.51 | AM26: 0.51 | AN26: 0.51 | AO26: 0.51 | AP26: 0.51 | AQ26: 0.51 | AR26: 0.51 | AS26: 0.51 | AT26: 0.51 | AU26: 0.51 | AV26: 0.51 | AW26: 0.51 | AX26: 0.51 | AY26: 0.51 | AZ26: 0.51 | BA26: 0.51 | BB26: 0.51 | BC26: 0.51 | BD26: 0.51 | BE26: 0.51 | BF26: 0.51 | BG26: 0.51 | BH26: 0.51 | BI26: 0.51 | BJ26: 0.51
A27: 23 | B27: 0.51 | C27: 0.51 | D27: 0.51 | E27: 0.51 | F27: 0.51 | G27: 0.51 | H27: 0.51 | I27: 0.51 | J27: 0.51 | K27: 0.51 | L27: 0.51 | M27: 0.51 | N27: 0.51 | O27: 0.51 | P27: 0.51 | Q27: 0.51 | R27: 0.51 | S27: 0.51 | T27: 0.51 | U27: 0.51 | V27: 0.51 | W27: 0.51 | X27: 0.51 | Y27: 0.51 | Z27: 0.51 | AA27: 0.51 | AB27: 0.51 | AC27: 0.51 | AD27: 0.51 | AE27: 0.51 | AF27: 0.51 | AG27: 0.51 | AH27: 0.51 | AI27: 0.51 | AJ27: 0.51 | AK27: 0.51 | AL27: 0.51 | AM27: 0.51 | AN27: 0.51 | AO27: 0.51 | AP27: 0.51 | AQ27: 0.51 | AR27: 0.51 | AS27: 0.51 | AT27: 0.51 | AU27: 0.51 | AV27: 0.51 | AW27: 0.51 | AX27: 0.51 | AY27: 0.51 | AZ27: 0.51 | BA27: 0.51 | BB27: 0.51 | BC27: 0.51 | BD27: 0.51 | BE27: 0.51 | BF27: 0.51 | BG27: 0.51 | BH27: 0.51 | BI27: 0.51 | BJ27: 0.51
A28: 24 | B28: 0.51 | C28: 0.51 | D28: 0.51 | E28: 0.51 | F28: 0.51 | G28: 0.51 | H28: 0.51 | I28: 0.51 | J28: 0.51 | K28: 0.51 | L28: 0.51 | M28: 0.51 | N28: 0.51 | O28: 0.51 | P28: 0.51 | Q28: 0.51 | R28: 0.51 | S28: 0.51 | T28: 0.51 | U28: 0.51 | V28: 0.51 | W28: 0.51 | X28: 0.51 | Y28: 0.51 | Z28: 0.51 | AA28: 0.51 | AB28: 0.51 | AC28: 0.51 | AD28: 0.51 | AE28: 0.51 | AF28: 0.51 | AG28: 0.51 | AH28: 0.51 | AI28: 0.51 | AJ28: 0.51 | AK28: 0.51 | AL28: 0.51 | AM28: 0.51 | AN28: 0.51 | AO28: 0.51 | AP28: 0.51 | AQ28: 0.51 | AR28: 0.51 | AS28: 0.51 | AT28: 0.51 | AU28: 0.51 | AV28: 0.51 | AW28: 0.51 | AX28: 0.51 | AY28: 0.51 | AZ28: 0.51 | BA28: 0.51 | BB28: 0.51 | BC28: 0.51 | BD28: 0.51 | BE28: 0.51 | BF28: 0.51 | BG28: 0.51 | BH28: 0.51 | BI28: 0.51 | BJ28: 0.51
A29: 25 | B29: 0.51 | C29: 0.51 | D29: 0.51 | E29: 0.51 | F29: 0.51 | G29: 0.51 | H29: 0.51 | I29: 0.51 | J29: 0.51 | K29: 0.51 | L29: 0.51 | M29: 0.51 | N29: 0.51 | O29: 0.51 | P29: 0.51 | Q29: 0.51 | R29: 0.51 | S29: 0.51 | T29: 0.51 | U29: 0.51 | V29: 0.51 | W29: 0.51 | X29: 0.51 | Y29: 0.51 | Z29: 0.51 | AA29: 0.51 | AB29: 0.51 | AC29: 0.51 | AD29: 0.51 | AE29: 0.51 | AF29: 0.51 | AG29: 0.51 | AH29: 0.51 | AI29: 0.51 | AJ29: 0.51 | AK29: 0.51 | AL29: 0.51 | AM29: 0.51 | AN29: 0.51 | AO29: 0.51 | AP29: 0.51 | AQ29: 0.51 | AR29: 0.51 | AS29: 0.51 | AT29: 0.51 | AU29: 0.51 | AV29: 0.51 | AW29: 0.51 | AX29: 0.51 | AY29: 0.51 | AZ29: 0.51 | BA29: 0.51 | BB29: 0.51 | BC29: 0.51 | BD29: 0.51 | BE29: 0.51 | BF29: 0.51 | BG29: 0.51 | BH29: 0.51 | BI29: 0.51 | BJ29: 0.51
A30: 26 | B30: 0.51 | C30: 0.51 | D30: 0.51 | E30: 0.51 | F30: 0.51 | G30: 0.51 | H30: 0.51 | I30: 0.51 | J30: 0.51 | K30: 0.51 | L30: 0.51 | M30: 0.51 | N30: 0.51 | O30: 0.51 | P30: 0.51 | Q30: 0.51 | R30: 0.51 | S30: 0.51 | T30: 0.51 | U30: 0.51 | V30: 0.51 | W30: 0.51 | X30: 0.51 | Y30: 0.51 | Z30: 0.51 | AA30: 0.51 | AB30: 0.51 | AC30: 0.51 | AD30: 0.51 | AE30: 0.51 | AF30: 0.51 | AG30: 0.51 | AH30: 0.51 | AI30: 0.51 | AJ30: 0.51 | AK30: 0.51 | AL30: 0.51 | AM30: 0.51 | AN30: 0.51 | AO30: 0.51 | AP30: 0.51 | AQ30: 0.51 | AR30: 0.51 | AS30: 0.51 | AT30: 0.51 | AU30: 0.51 | AV30: 0.51 | AW30: 0.51 | AX30: 0.51 | AY30: 0.51 | AZ30: 0.51 | BA30: 0.51 | BB30: 0.51 | BC30: 0.51 | BD30: 0.51 | BE30: 0.51 | BF30: 0.51 | BG30: 0.51 | BH30: 0.51 | BI30: 0.51 | BJ30: 0.51
A31: 27 | B31: 0.51 | C31: 0.51 | D31: 0.51 | E31: 0.51 | F31: 0.51 | G31: 0.51 | H31: 0.51 | I31: 0.51 | J31: 0.51 | K31: 0.51 | L31: 0.51 | M31: 0.51 | N31: 0.51 | O31: 0.51 | P31: 0.51 | Q31: 0.51 | R31: 0.51 | S31: 0.51 | T31: 0.51 | U31: 0.51 | V31: 0.51 | W31: 0.51 | X31: 0.51 | Y31: 0.51 | Z31: 0.51 | AA31: 0.51 | AB31: 0.51 | AC31: 0.51 | AD31: 0.51 | AE31: 0.51 | AF31: 0.51 | AG31: 0.51 | AH31: 0.51 | AI31: 0.51 | AJ31: 0.51 | AK31: 0.51 | AL31: 0.51 | AM31: 0.51 | AN31: 0.51 | AO31: 0.51 | AP31: 0.51 | AQ31: 0.51 | AR31: 0.51 | AS31: 0.51 | AT31: 0.51 | AU31: 0.51 | AV31: 0.51 | AW31: 0.51 | AX31: 0.51 | AY31: 0.51 | AZ31: 0.51 | BA31: 0.51 | BB31: 0.51 | BC31: 0.51 | BD31: 0.51 | BE31: 0.51 | BF31: 0.51 | BG31: 0.51 | BH31: 0.51 | BI31: 0.51 | BJ31: 0.51
A32: 28 | B32: 0.51 | C32: 0.51 | D32: 0.51 | E32: 0.51 | F32: 0.51 | G32: 0.51 | H32: 0.51 | I32: 0.51 | J32: 0.51 | K32: 0.51 | L32: 0.51 | M32: 0.51 | N32: 0.51 | O32: 0.51 | P32: 0.51 | Q32: 0.51 | R32: 0.51 | S32: 0.51 | T32: 0.51 | U32: 0.51 | V32: 0.51 | W32: 0.51 | X32: 0.51 | Y32: 0.51 | Z32: 0.51 | AA32: 0.51 | AB32: 0.51 | AC32: 0.51 | AD32: 0.51 | AE32: 0.51 | AF32: 0.51 | AG32: 0.51 | AH32: 0.51 | AI32: 0.51 | AJ32: 0.51 | AK32: 0.51 | AL32: 0.51 | AM32: 0.51 | AN32: 0.51 | AO32: 0.51 | AP32: 0.51 | AQ32: 0.51 | AR32: 0.51 | AS32: 0.51 | AT32: 0.51 | AU32: 0.51 | AV32: 0.51 | AW32: 0.51 | AX32: 0.51 | AY32: 0.51 | AZ32: 0.51 | BA32: 0.51 | BB32: 0.51 | BC32: 0.51 | BD32: 0.51 | BE32: 0.51 | BF32: 0.51 | BG32: 0.51 | BH32: 0.51 | BI32: 0.51 | BJ32: 0.51
A33: 29 | B33: 0.51 | C33: 0.51 | D33: 0.51 | E33: 0.51 | F33: 0.51 | G33: 0.51 | H33: 0.51 | I33: 0.51 | J33: 0.51 | K33: 0.51 | L33: 0.51 | M33: 0.51 | N33: 0.51 | O33: 0.51 | P33: 0.51 | Q33: 0.51 | R33: 0.51 | S33: 0.51 | T33: 0.51 | U33: 0.51 | V33: 0.51 | W33: 0.51 | X33: 0.51 | Y33: 0.51 | Z33: 0.51 | AA33: 0.51 | AB33: 0.51 | AC33: 0.51 | AD33: 0.51 | AE33: 0.51 | AF33: 0.51 | AG33: 0.51 | AH33: 0.51 | AI33: 0.51 | AJ33: 0.51 | AK33: 0.51 | AL33: 0.51 | AM33: 0.51 | AN33: 0.51 | AO33: 0.51 | AP33: 0.51 | AQ33: 0.51 | AR33: 0.51 | AS33: 0.51 | AT33: 0.51 | AU33: 0.51 | AV33: 0.51 | AW33: 0.51 | AX33: 0.51 | AY33: 0.51 | AZ33: 0.51 | BA33: 0.51 | BB33: 0.51 | BC33: 0.51 | BD33: 0.51 | BE33: 0.51 | BF33: 0.51 | BG33: 0.51 | BH33: 0.51 | BI33: 0.51 | BJ33: 0.51
A34: 30 | B34: 0.51 | C34: 0.51 | D34: 0.51 | E34: 0.51 | F34: 0.51 | G34: 0.51 | H34: 0.51 | I34: 0.51 | J34: 0.51 | K34: 0.51 | L34: 0.51 | M34: 0.51 | N34: 0.51 | O34: 0.51 | P34: 0.51 | Q34: 0.51 | R34: 0.51 | S34: 0.51 | T34: 0.51 | U34: 0.51 | V34: 0.51 | W34: 0.51 | X34: 0.51 | Y34: 0.51 | Z34: 0.51 | AA34: 0.51 | AB34: 0.51 | AC34: 0.51 | AD34: 0.51 | AE34: 0.51 | AF34: 0.51 | AG34: 0.51 | AH34: 0.51 | AI34: 0.51 | AJ34: 0.51 | AK34: 0.51 | AL34: 0.51 | AM34: 0.51 | AN34: 0.51 | AO34: 0.51 | AP34: 0.51 | AQ34: 0.51 | AR34: 0.51 | AS34: 0.51 | AT34: 0.51 | AU34: 0.51 | AV34: 0.51 | AW34: 0.51 | AX34: 0.51 | AY34: 0.51 | AZ34: 0.51 | BA34: 0.51 | BB34: 0.51 | BC34: 0.51 | BD34: 0.51 | BE34: 0.51 | BF34: 0.51 | BG34: 0.51 | BH34: 0.51 | BI34: 0.51 | BJ34: 0.51
A35: 31 | B35: 0.51 | C35: 0.51 | D35: 0.51 | E35: 0.51 | F35: 0.51 | G35: 0.51 | H35: 0.51 | I35: 0.51 | J35: 0.51 | K35: 0.51 | L35: 0.51 | M35: 0.51 | N35: 0.51 | O35: 0.51 | P35: 0.51 | Q35: 0.51 | R35: =0.45+0.06*MIN(105-$A35,25)/25 -> 0.51 | S35: 0.51 | T35: 0.51 | U35: 0.51 | V35: 0.51 | W35: 0.51 | X35: 0.51 | Y35: 0.51 | Z35: 0.51 | AA35: 0.51 | AB35: 0.51 | AC35: 0.51 | AD35: 0.51 | AE35: 0.51 | AF35: 0.51 | AG35: 0.51 | AH35: =0.45+0.06*MIN(105-$A35,25)/25 -> 0.51 | AI35: 0.51 | AJ35: 0.51 | AK35: 0.51 | AL35: 0.51 | AM35: 0.51 | AN35: 0.51 | AO35: 0.51 | AP35: 0.51 | AQ35: 0.51 | AR35: 0.51 | AS35: 0.51 | AT35: 0.51 | AU35: 0.51 | AV35: 0.51 | AW35: 0.51 | AX35: =0.45+0.06*MIN(105-$A35,25)/25 -> 0.51 | AY35: 0.51 | AZ35: 0.51 | BA35: 0.51 | BB35: 0.51 | BC35: 0.51 | BD35: 0.51 | BE35: 0.51 | BF35: 0.51 | BG35: 0.51 | BH35: 0.51 | BI35: 0.51 | BJ35: 0.51
A36: 32 | B36: 0.51 | C36: 0.51 | D36: 0.51 | E36: 0.51 | F36: 0.51 | G36: 0.51 | H36: 0.51 | I36: 0.51 | J36: 0.51 | K36: 0.51 | L36: 0.51 | M36: 0.51 | N36: 0.51 | O36: 0.51 | P36: 0.51 | Q36: =0.45+0.06*MIN(105-$A36,25)/25 -> 0.51 | R36: 0.51 | S36: 0.51 | T36: 0.51 | U36: 0.51 | V36: 0.51 | W36: 0.51 | X36: 0.51 | Y36: 0.51 | Z36: 0.51 | AA36: 0.51 | AB36: 0.51 | AC36: 0.51 | AD36: 0.51 | AE36: 0.51 | AF36: 0.51 | AG36: 0.51 | AH36: 0.51 | AI36: 0.51 | AJ36: 0.51 | AK36: 0.51 | AL36: 0.51 | AM36: 0.51 | AN36: 0.51 | AO36: 0.51 | AP36: 0.51 | AQ36: 0.51 | AR36: 0.51 | AS36: 0.51 | AT36: 0.51 | AU36: 0.51 | AV36: 0.51 | AW36: 0.51 | AX36: 0.51 | AY36: 0.51 | AZ36: 0.51 | BA36: 0.51 | BB36: 0.51 | BC36: 0.51 | BD36: 0.51 | BE36: 0.51 | BF36: 0.51 | BG36: 0.51 | BH36: 0.51 | BI36: 0.51 | BJ36: 0.51
A37: 33 | B37: =0.45+0.06*MIN(105-$A37,25)/25 -> 0.51 | C37: 0.51 | D37: 0.51 | E37: 0.51 | F37: 0.51 | G37: 0.51 | H37: 0.51 | I37: 0.51 | J37: 0.51 | K37: 0.51 | L37: 0.51 | M37: 0.51 | N37: 0.51 | O37: 0.51 | P37: 0.51 | Q37: 0.51 | R37: 0.51 | S37: 0.51 | T37: 0.51 | U37: 0.51 | V37: 0.51 | W37: 0.51 | X37: 0.51 | Y37: 0.51 | Z37: 0.51 | AA37: 0.51 | AB37: 0.51 | AC37: 0.51 | AD37: 0.51 | AE37: 0.51 | AF37: 0.51 | AG37: 0.51 | AH37: 0.51 | AI37: 0.51 | AJ37: 0.51 | AK37: 0.51 | AL37: 0.51 | AM37: 0.51 | AN37: 0.51 | AO37: 0.51 | AP37: 0.51 | AQ37: 0.51 | AR37: 0.51 | AS37: 0.51 | AT37: 0.51 | AU37: 0.51 | AV37: 0.51 | AW37: 0.51 | AX37: 0.51 | AY37: 0.51 | AZ37: 0.51 | BA37: 0.51 | BB37: 0.51 | BC37: 0.51 | BD37: 0.51 | BE37: 0.51 | BF37: 0.51 | BG37: 0.51 | BH37: 0.51 | BI37: 0.51 | BJ37: 0.51
A38: 34 | B38: 0.51 | C38: 0.51 | D38: 0.51 | E38: 0.51 | F38: 0.51 | G38: 0.51 | H38: 0.51 | I38: 0.51 | J38: 0.51 | K38: 0.51 | L38: 0.51 | M38: 0.51 | N38: 0.51 | O38: 0.51 | P38: 0.51 | Q38: 0.51 | R38: 0.51 | S38: 0.51 | T38: 0.51 | U38: 0.51 | V38: 0.51 | W38: 0.51 | X38: 0.51 | Y38: 0.51 | Z38: 0.51 | AA38: 0.51 | AB38: 0.51 | AC38: 0.51 | AD38: 0.51 | AE38: 0.51 | AF38: 0.51 | AG38: 0.51 | AH38: 0.51 | AI38: 0.51 | AJ38: 0.51 | AK38: 0.51 | AL38: 0.51 | AM38: 0.51 | AN38: 0.51 | AO38: 0.51 | AP38: 0.51 | AQ38: 0.51 | AR38: 0.51 | AS38: 0.51 | AT38: 0.51 | AU38: 0.51 | AV38: 0.51 | AW38: 0.51 | AX38: 0.51 | AY38: 0.51 | AZ38: 0.51 | BA38: 0.51 | BB38: 0.51 | BC38: 0.51 | BD38: 0.51 | BE38: 0.51 | BF38: 0.51 | BG38: 0.51 | BH38: 0.51 | BI38: 0.51 | BJ38: 0.51
A39: 35 | B39: 0.51 | C39: 0.51 | D39: 0.51 | E39: 0.51 | F39: 0.51 | G39: 0.51 | H39: 0.51 | I39: 0.51 | J39: 0.51 | K39: 0.51 | L39: 0.51 | M39: 0.51 | N39: 0.51 | O39: 0.51 | P39: 0.51 | Q39: 0.51 | R39: 0.51 | S39: 0.51 | T39: 0.51 | U39: 0.51 | V39: 0.51 | W39: 0.51 | X39: 0.51 | Y39: 0.51 | Z39: 0.51 | AA39: 0.51 | AB39: 0.51 | AC39: 0.51 | AD39: 0.51 | AE39: 0.51 | AF39: 0.51 | AG39: 0.51 | AH39: 0.51 | AI39: 0.51 | AJ39: 0.51 | AK39: 0.51 | AL39: 0.51 | AM39: 0.51 | AN39: 0.51 | AO39: 0.51 | AP39: 0.51 | AQ39: 0.51 | AR39: 0.51 | AS39: 0.51 | AT39: 0.51 | AU39: 0.51 | AV39: 0.51 | AW39: 0.51 | AX39: 0.51 | AY39: 0.51 | AZ39: 0.51 | BA39: 0.51 | BB39: 0.51 | BC39: 0.51 | BD39: 0.51 | BE39: 0.51 | BF39: 0.51 | BG39: 0.51 | BH39: 0.51 | BI39: 0.51 | BJ39: 0.51
A40: 36 | B40: 0.51 | C40: 0.51 | D40: 0.51 | E40: 0.51 | F40: 0.51 | G40: 0.51 | H40: 0.51 | I40: 0.51 | J40: 0.51 | K40: 0.51 | L40: 0.51 | M40: 0.51 | N40: 0.51 | O40: 0.51 | P40: 0.51 | Q40: 0.51 | R40: 0.51 | S40: 0.51 | T40: 0.51 | U40: 0.51 | V40: 0.51 | W40: 0.51 | X40: 0.51 | Y40: 0.51 | Z40: 0.51 | AA40: 0.51 | AB40: 0.51 | AC40: 0.51 | AD40: 0.51 | AE40: 0.51 | AF40: 0.51 | AG40: 0.51 | AH40: 0.51 | AI40: 0.51 | AJ40: 0.51 | AK40: 0.51 | AL40: 0.51 | AM40: 0.51 | AN40: 0.51 | AO40: 0.51 | AP40: 0.51 | AQ40: 0.51 | AR40: 0.51 | AS40: 0.51 | AT40: 0.51 | AU40: 0.51 | AV40: 0.51 | AW40: 0.51 | AX40: 0.51 | AY40: 0.51 | AZ40: 0.51 | BA40: 0.51 | BB40: 0.51 | BC40: 0.51 | BD40: 0.51 | BE40: 0.51 | BF40: 0.51 | BG40: 0.51 | BH40: 0.51 | BI40: 0.51 | BJ40: 0.51
A41: 37 | B41: 0.51 | C41: 0.51 | D41: 0.51 | E41: 0.51 | F41: 0.51 | G41: 0.51 | H41: 0.51 | I41: 0.51 | J41: 0.51 | K41: 0.51 | L41: 0.51 | M41: 0.51 | N41: 0.51 | O41: 0.51 | P41: 0.51 | Q41: 0.51 | R41: 0.51 | S41: 0.51 | T41: 0.51 | U41: 0.51 | V41: 0.51 | W41: 0.51 | X41: 0.51 | Y41: 0.51 | Z41: 0.51 | AA41: 0.51 | AB41: 0.51 | AC41: 0.51 | AD41: 0.51 | AE41: 0.51 | AF41: 0.51 | AG41: 0.51 | AH41: 0.51 | AI41: 0.51 | AJ41: 0.51 | AK41: 0.51 | AL41: 0.51 | AM41: 0.51 | AN41: 0.51 | AO41: 0.51 | AP41: 0.51 | AQ41: 0.51 | AR41: 0.51 | AS41: 0.51 | AT41: 0.51 | AU41: 0.51 | AV41: 0.51 | AW41: 0.51 | AX41: 0.51 | AY41: 0.51 | AZ41: 0.51 | BA41: 0.51 | BB41: 0.51 | BC41: 0.51 | BD41: 0.51 | BE41: 0.51 | BF41: 0.51 | BG41: 0.51 | BH41: 0.51 | BI41: 0.51 | BJ41: 0.51
A42: 38 | B42: 0.51 | C42: 0.51 | D42: 0.51 | E42: 0.51 | F42: 0.51 | G42: 0.51 | H42: 0.51 | I42: 0.51 | J42: 0.51 | K42: 0.51 | L42: 0.51 | M42: 0.51 | N42: 0.51 | O42: 0.51 | P42: 0.51 | Q42: 0.51 | R42: 0.51 | S42: 0.51 | T42: 0.51 | U42: 0.51 | V42: 0.51 | W42: 0.51 | X42: 0.51 | Y42: 0.51 | Z42: 0.51 | AA42: 0.51 | AB42: 0.51 | AC42: 0.51 | AD42: 0.51 | AE42: 0.51 | AF42: 0.51 | AG42: 0.51 | AH42: 0.51 | AI42: 0.51 | AJ42: 0.51 | AK42: 0.51 | AL42: 0.51 | AM42: 0.51 | AN42: 0.51 | AO42: 0.51 | AP42: 0.51 | AQ42: 0.51 | AR42: 0.51 | AS42: 0.51 | AT42: 0.51 | AU42: 0.51 | AV42: 0.51 | AW42: 0.51 | AX42: 0.51 | AY42: 0.51 | AZ42: 0.51 | BA42: 0.51 | BB42: 0.51 | BC42: 0.51 | BD42: 0.51 | BE42: 0.51 | BF42: 0.51 | BG42: 0.51 | BH42: 0.51 | BI42: 0.51 | BJ42: 0.51
A43: 39 | B43: 0.51 | C43: 0.51 | D43: 0.51 | E43: 0.51 | F43: 0.51 | G43: 0.51 | H43: 0.51 | I43: 0.51 | J43: 0.51 | K43: 0.51 | L43: 0.51 | M43: 0.51 | N43: 0.51 | O43: 0.51 | P43: 0.51 | Q43: 0.51 | R43: 0.51 | S43: 0.51 | T43: 0.51 | U43: 0.51 | V43: 0.51 | W43: 0.51 | X43: 0.51 | Y43: 0.51 | Z43: 0.51 | AA43: 0.51 | AB43: 0.51 | AC43: 0.51 | AD43: 0.51 | AE43: 0.51 | AF43: 0.51 | AG43: 0.51 | AH43: 0.51 | AI43: 0.51 | AJ43: 0.51 | AK43: 0.51 | AL43: 0.51 | AM43: 0.51 | AN43: 0.51 | AO43: 0.51 | AP43: 0.51 | AQ43: 0.51 | AR43: 0.51 | AS43: 0.51 | AT43: 0.51 | AU43: 0.51 | AV43: 0.51 | AW43: 0.51 | AX43: 0.51 | AY43: 0.51 | AZ43: 0.51 | BA43: 0.51 | BB43: 0.51 | BC43: 0.51 | BD43: 0.51 | BE43: 0.51 | BF43: 0.51 | BG43: 0.51 | BH43: 0.51 | BI43: 0.51 | BJ43: 0.51
A44: 40 | B44: 0.51 | C44: 0.51 | D44: 0.51 | E44: 0.51 | F44: 0.51 | G44: 0.51 | H44: 0.51 | I44: 0.51 | J44: 0.51 | K44: 0.51 | L44: 0.51 | M44: 0.51 | N44: 0.51 | O44: 0.51 | P44: 0.51 | Q44: 0.51 | R44: 0.51 | S44: 0.51 | T44: 0.51 | U44: 0.51 | V44: 0.51 | W44: 0.51 | X44: 0.51 | Y44: 0.51 | Z44: 0.51 | AA44: 0.51 | AB44: 0.51 | AC44: 0.51 | AD44: 0.51 | AE44: 0.51 | AF44: 0.51 | AG44: 0.51 | AH44: 0.51 | AI44: 0.51 | AJ44: 0.51 | AK44: 0.51 | AL44: 0.51 | AM44: 0.51 | AN44: 0.51 | AO44: 0.51 | AP44: 0.51 | AQ44: 0.51 | AR44: 0.51 | AS44: 0.51 | AT44: 0.51 | AU44: 0.51 | AV44: 0.51 | AW44: 0.51 | AX44: 0.51 | AY44: 0.51 | AZ44: 0.51 | BA44: 0.51 | BB44: 0.51 | BC44: 0.51 | BD44: 0.51 | BE44: 0.51 | BF44: 0.51 | BG44: 0.51 | BH44: 0.51 | BI44: 0.51 | BJ44: 0.51
A45: 41 | B45: 0.51 | C45: 0.51 | D45: 0.51 | E45: 0.51 | F45: 0.51 | G45: 0.51 | H45: 0.51 | I45: 0.51 | J45: 0.51 | K45: 0.51 | L45: 0.51 | M45: 0.51 | N45: 0.51 | O45: 0.51 | P45: 0.51 | Q45: 0.51 | R45: 0.51 | S45: 0.51 | T45: 0.51 | U45: 0.51 | V45: 0.51 | W45: 0.51 | X45: 0.51 | Y45: 0.51 | Z45: 0.51 | AA45: 0.51 | AB45: 0.51 | AC45: 0.51 | AD45: 0.51 | AE45: 0.51 | AF45: 0.51 | AG45: 0.51 | AH45: 0.51 | AI45: 0.51 | AJ45: 0.51 | AK45: 0.51 | AL45: 0.51 | AM45: 0.51 | AN45: 0.51 | AO45: 0.51 | AP45: 0.51 | AQ45: 0.51 | AR45: 0.51 | AS45: 0.51 | AT45: 0.51 | AU45: 0.51 | AV45: 0.51 | AW45: 0.51 | AX45: 0.51 | AY45: 0.51 | AZ45: 0.51 | BA45: 0.51 | BB45: 0.51 | BC45: 0.51 | BD45: 0.51 | BE45: 0.51 | BF45: 0.51 | BG45: 0.51 | BH45: 0.51 | BI45: 0.51 | BJ45: 0.51
A46: 42 | B46: 0.51 | C46: 0.51 | D46: 0.51 | E46: 0.51 | F46: 0.51 | G46: 0.51 | H46: 0.51 | I46: 0.51 | J46: 0.51 | K46: 0.51 | L46: 0.51 | M46: 0.51 | N46: 0.51 | O46: 0.51 | P46: 0.51 | Q46: 0.51 | R46: 0.51 | S46: 0.51 | T46: 0.51 | U46: 0.51 | V46: 0.51 | W46: 0.51 | X46: 0.51 | Y46: 0.51 | Z46: 0.51 | AA46: 0.51 | AB46: 0.51 | AC46: 0.51 | AD46: 0.51 | AE46: 0.51 | AF46: 0.51 | AG46: 0.51 | AH46: 0.51 | AI46: 0.51 | AJ46: 0.51 | AK46: 0.51 | AL46: 0.51 | AM46: 0.51 | AN46: 0.51 | AO46: 0.51 | AP46: 0.51 | AQ46: 0.51 | AR46: 0.51 | AS46: 0.51 | AT46: 0.51 | AU46: 0.51 | AV46: 0.51 | AW46: 0.51 | AX46: 0.51 | AY46: 0.51 | AZ46: 0.51 | BA46: 0.51 | BB46: 0.51 | BC46: 0.51 | BD46: 0.51 | BE46: 0.51 | BF46: 0.51 | BG46: 0.51 | BH46: 0.51 | BI46: 0.51 | BJ46: 0.51
A47: 43 | B47: 0.51 | C47: 0.51 | D47: 0.51 | E47: 0.51 | F47: 0.51 | G47: 0.51 | H47: 0.51 | I47: 0.51 | J47: 0.51 | K47: 0.51 | L47: 0.51 | M47: 0.51 | N47: 0.51 | O47: 0.51 | P47: 0.51 | Q47: 0.51 | R47: 0.51 | S47: 0.51 | T47: 0.51 | U47: 0.51 | V47: 0.51 | W47: 0.51 | X47: 0.51 | Y47: 0.51 | Z47: 0.51 | AA47: 0.51 | AB47: 0.51 | AC47: 0.51 | AD47: 0.51 | AE47: 0.51 | AF47: 0.51 | AG47: 0.51 | AH47: 0.51 | AI47: 0.51 | AJ47: 0.51 | AK47: 0.51 | AL47: 0.51 | AM47: 0.51 | AN47: 0.51 | AO47: 0.51 | AP47: 0.51 | AQ47: 0.51 | AR47: 0.51 | AS47: 0.51 | AT47: 0.51 | AU47: 0.51 | AV47: 0.51 | AW47: 0.51 | AX47: 0.51 | AY47: 0.51 | AZ47: 0.51 | BA47: 0.51 | BB47: 0.51 | BC47: 0.51 | BD47: 0.51 | BE47: 0.51 | BF47: 0.51 | BG47: 0.51 | BH47: 0.51 | BI47: 0.51 | BJ47: 0.51
A48: 44 | B48: 0.51 | C48: 0.51 | D48: 0.51 | E48: 0.51 | F48: 0.51 | G48: 0.51 | H48: 0.51 | I48: 0.51 | J48: 0.51 | K48: 0.51 | L48: 0.51 | M48: 0.51 | N48: 0.51 | O48: 0.51 | P48: 0.51 | Q48: 0.51 | R48: 0.51 | S48: 0.51 | T48: 0.51 | U48: 0.51 | V48: 0.51 | W48: 0.51 | X48: 0.51 | Y48: 0.51 | Z48: 0.51 | AA48: 0.51 | AB48: 0.51 | AC48: 0.51 | AD48: 0.51 | AE48: 0.51 | AF48: 0.51 | AG48: 0.51 | AH48: 0.51 | AI48: 0.51 | AJ48: 0.51 | AK48: 0.51 | AL48: 0.51 | AM48: 0.51 | AN48: 0.51 | AO48: 0.51 | AP48: 0.51 | AQ48: 0.51 | AR48: 0.51 | AS48: 0.51 | AT48: 0.51 | AU48: 0.51 | AV48: 0.51 | AW48: 0.51 | AX48: 0.51 | AY48: 0.51 | AZ48: 0.51 | BA48: 0.51 | BB48: 0.51 | BC48: 0.51 | BD48: 0.51 | BE48: 0.51 | BF48: 0.51 | BG48: 0.51 | BH48: 0.51 | BI48: 0.51 | BJ48: 0.51
A49: 45 | B49: 0.51 | C49: 0.51 | D49: 0.51 | E49: 0.51 | F49: 0.51 | G49: 0.51 | H49: 0.51 | I49: 0.51 | J49: 0.51 | K49: 0.51 | L49: 0.51 | M49: 0.51 | N49: 0.51 | O49: 0.51 | P49: 0.51 | Q49: 0.51 | R49: 0.51 | S49: 0.51 | T49: 0.51 | U49: 0.51 | V49: 0.51 | W49: 0.51 | X49: 0.51 | Y49: 0.51 | Z49: 0.51 | AA49: 0.51 | AB49: 0.51 | AC49: 0.51 | AD49: 0.51 | AE49: 0.51 | AF49: 0.51 | AG49: 0.51 | AH49: 0.51 | AI49: 0.51 | AJ49: 0.51 | AK49: 0.51 | AL49: 0.51 | AM49: 0.51 | AN49: 0.51 | AO49: 0.51 | AP49: 0.51 | AQ49: 0.51 | AR49: 0.51 | AS49: 0.51 | AT49: 0.51 | AU49: 0.51 | AV49: 0.51 | AW49: 0.51 | AX49: 0.51 | AY49: 0.51 | AZ49: 0.51 | BA49: 0.51 | BB49: 0.51 | BC49: 0.51 | BD49: 0.51 | BE49: 0.51 | BF49: 0.51 | BG49: 0.51 | BH49: 0.51 | BI49: 0.51 | BJ49: 0.51
A50: 46 | B50: 0.51 | C50: 0.51 | D50: 0.51 | E50: 0.51 | F50: 0.51 | G50: 0.51 | H50: 0.51 | I50: 0.51 | J50: 0.51 | K50: 0.51 | L50: 0.51 | M50: 0.51 | N50: 0.51 | O50: 0.51 | P50: 0.51 | Q50: 0.51 | R50: 0.51 | S50: 0.51 | T50: 0.51 | U50: 0.51 | V50: 0.51 | W50: 0.51 | X50: 0.51 | Y50: 0.51 | Z50: 0.51 | AA50: 0.51 | AB50: 0.51 | AC50: 0.51 | AD50: 0.51 | AE50: 0.51 | AF50: 0.51 | AG50: =0.45+0.06*MIN(105-$A50,25)/25 -> 0.51 | AH50: 0.51 | AI50: 0.51 | AJ50: 0.51 | AK50: 0.51 | AL50: 0.51 | AM50: 0.51 | AN50: 0.51 | AO50: 0.51 | AP50: 0.51 | AQ50: 0.51 | AR50: 0.51 | AS50: 0.51 | AT50: 0.51 | AU50: 0.51 | AV50: 0.51 | AW50: =0.45+0.06*MIN(105-$A50,25)/25 -> 0.51 | AX50: 0.51 | AY50: 0.51 | AZ50: 0.51 | BA50: 0.51 | BB50: 0.51 | BC50: 0.51 | BD50: 0.51 | BE50: 0.51 | BF50: 0.51 | BG50: 0.51 | BH50: 0.51 | BI50: 0.51 | BJ50: 0.51
A51: 47 | B51: 0.51 | C51: 0.51 | D51: 0.51 | E51: 0.51 | F51: 0.51 | G51: 0.51 | H51: 0.51 | I51: 0.51 | J51: 0.51 | K51: 0.51 | L51: 0.51 | M51: 0.51 | N51: 0.51 | O51: 0.51 | P51: 0.51 | Q51: 0.51 | R51: 0.51 | S51: 0.51 | T51: 0.51 | U51: 0.51 | V51: 0.51 | W51: 0.51 | X51: 0.51 | Y51: 0.51 | Z51: 0.51 | AA51: 0.51 | AB51: 0.51 | AC51: 0.51 | AD51: 0.51 | AE51: 0.51 | AF51: 0.51 | AG51: 0.51 | AH51: 0.51 | AI51: 0.51 | AJ51: 0.51 | AK51: 0.51 | AL51: 0.51 | AM51: 0.51 | AN51: 0.51 | AO51: 0.51 | AP51: 0.51 | AQ51: 0.51 | AR51: 0.51 | AS51: 0.51 | AT51: 0.51 | AU51: 0.51 | AV51: 0.51 | AW51: 0.51 | AX51: 0.51 | AY51: 0.51 | AZ51: 0.51 | BA51: 0.51 | BB51: 0.51 | BC51: 0.51 | BD51: 0.51 | BE51: 0.51 | BF51: 0.51 | BG51: 0.51 | BH51: 0.51 | BI51: 0.51 | BJ51: 0.51
A52: 48 | B52: 0.51 | C52: 0.51 | D52: 0.51 | E52: 0.51 | F52: 0.51 | G52: 0.51 | H52: 0.51 | I52: 0.51 | J52: 0.51 | K52: 0.51 | L52: 0.51 | M52: 0.51 | N52: 0.51 | O52: 0.51 | P52: 0.51 | Q52: 0.51 | R52: =0.45+0.06*MIN(105-$A52,25)/25 -> 0.51 | S52: 0.51 | T52: 0.51 | U52: 0.51 | V52: 0.51 | W52: 0.51 | X52: 0.51 | Y52: 0.51 | Z52: 0.51 | AA52: 0.51 | AB52: 0.51 | AC52: 0.51 | AD52: 0.51 | AE52: 0.51 | AF52: 0.51 | AG52: 0.51 | AH52: 0.51 | AI52: 0.51 | AJ52: 0.51 | AK52: 0.51 | AL52: 0.51 | AM52: 0.51 | AN52: 0.51 | AO52: 0.51 | AP52: 0.51 | AQ52: 0.51 | AR52: 0.51 | AS52: 0.51 | AT52: 0.51 | AU52: 0.51 | AV52: 0.51 | AW52: 0.51 | AX52: 0.51 | AY52: 0.51 | AZ52: 0.51 | BA52: 0.51 | BB52: 0.51 | BC52: 0.51 | BD52: 0.51 | BE52: 0.51 | BF52: 0.51 | BG52: 0.51 | BH52: 0.51 | BI52: 0.51 | BJ52: 0.51
A53: 49 | B53: =0.45+0.06*MIN(105-$A53,25)/25 -> 0.51 | C53: 0.51 | D53: 0.51 | E53: 0.51 | F53: 0.51 | G53: 0.51 | H53: 0.51 | I53: 0.51 | J53: 0.51 | K53: 0.51 | L53: 0.51 | M53: 0.51 | N53: 0.51 | O53: 0.51 | P53: 0.51 | Q53: 0.51 | R53: 0.51 | S53: 0.51 | T53: 0.51 | U53: 0.51 | V53: 0.51 | W53: 0.51 | X53: 0.51 | Y53: 0.51 | Z53: 0.51 | AA53: 0.51 | AB53: 0.51 | AC53: 0.51 | AD53: 0.51 | AE53: 0.51 | AF53: 0.51 | AG53: 0.51 | AH53: 0.51 | AI53: 0.51 | AJ53: 0.51 | AK53: 0.51 | AL53: 0.51 | AM53: 0.51 | AN53: 0.51 | AO53: 0.51 | AP53: 0.51 | AQ53: 0.51 | AR53: 0.51 | AS53: 0.51 | AT53: 0.51 | AU53: 0.51 | AV53: 0.51 | AW53: 0.51 | AX53: 0.51 | AY53: 0.51 | AZ53: 0.51 | BA53: 0.51 | BB53: 0.51 | BC53: 0.51 | BD53: 0.51 | BE53: 0.51 | BF53: 0.51 | BG53: 0.51 | BH53: 0.51 | BI53: 0.51 | BJ53: 0.51
A54: 50 | B54: 0.51 | C54: 0.51 | D54: 0.51 | E54: 0.51 | F54: 0.51 | G54: 0.51 | H54: 0.51 | I54: 0.51 | J54: 0.51 | K54: 0.51 | L54: 0.51 | M54: 0.51 | N54: 0.51 | O54: 0.51 | P54: 0.51 | Q54: 0.51 | R54: 0.51 | S54: 0.51 | T54: 0.51 | U54: 0.51 | V54: 0.51 | W54: 0.51 | X54: 0.51 | Y54: 0.51 | Z54: 0.51 | AA54: 0.51 | AB54: 0.51 | AC54: 0.51 | AD54: 0.51 | AE54: 0.51 | AF54: 0.51 | AG54: 0.51 | AH54: 0.51 | AI54: 0.51 | AJ54: 0.51 | AK54: 0.51 | AL54: 0.51 | AM54: 0.51 | AN54: 0.51 | AO54: 0.51 | AP54: 0.51 | AQ54: 0.51 | AR54: 0.51 | AS54: 0.51 | AT54: 0.51 | AU54: 0.51 | AV54: 0.51 | AW54: 0.51 | AX54: 0.51 | AY54: 0.51 | AZ54: 0.51 | BA54: 0.51 | BB54: 0.51 | BC54: 0.51 | BD54: 0.51 | BE54: 0.51 | BF54: 0.51 | BG54: 0.51 | BH54: 0.51 | BI54: 0.51 | BJ54: 0.51
A55: 51 | B55: 0.51 | C55: 0.51 | D55: 0.51 | E55: 0.51 | F55: 0.51 | G55: 0.51 | H55: 0.51 | I55: 0.51 | J55: 0.51 | K55: 0.51 | L55: 0.51 | M55: 0.51 | N55: 0.51 | O55: 0.51 | P55: 0.51 | Q55: 0.51 | R55: 0.51 | S55: 0.51 | T55: 0.51 | U55: 0.51 | V55: 0.51 | W55: 0.51 | X55: 0.51 | Y55: 0.51 | Z55: 0.51 | AA55: 0.51 | AB55: 0.51 | AC55: 0.51 | AD55: 0.51 | AE55: 0.51 | AF55: 0.51 | AG55: 0.51 | AH55: 0.51 | AI55: 0.51 | AJ55: 0.51 | AK55: 0.51 | AL55: 0.51 | AM55: 0.51 | AN55: 0.51 | AO55: 0.51 | AP55: 0.51 | AQ55: 0.51 | AR55: 0.51 | AS55: 0.51 | AT55: 0.51 | AU55: 0.51 | AV55: 0.51 | AW55: 0.51 | AX55: 0.51 | AY55: 0.51 | AZ55: 0.51 | BA55: 0.51 | BB55: 0.51 | BC55: 0.51 | BD55: 0.51 | BE55: 0.51 | BF55: 0.51 | BG55: 0.51 | BH55: 0.51 | BI55: 0.51 | BJ55: 0.51
A56: 52 | B56: 0.51 | C56: 0.51 | D56: 0.51 | E56: 0.51 | F56: 0.51 | G56: 0.51 | H56: 0.51 | I56: 0.51 | J56: 0.51 | K56: 0.51 | L56: 0.51 | M56: 0.51 | N56: 0.51 | O56: 0.51 | P56: 0.51 | Q56: 0.51 | R56: 0.51 | S56: 0.51 | T56: 0.51 | U56: 0.51 | V56: 0.51 | W56: 0.51 | X56: 0.51 | Y56: 0.51 | Z56: 0.51 | AA56: 0.51 | AB56: 0.51 | AC56: 0.51 | AD56: 0.51 | AE56: 0.51 | AF56: 0.51 | AG56: 0.51 | AH56: 0.51 | AI56: 0.51 | AJ56: 0.51 | AK56: 0.51 | AL56: 0.51 | AM56: 0.51 | AN56: 0.51 | AO56: 0.51 | AP56: 0.51 | AQ56: 0.51 | AR56: 0.51 | AS56: 0.51 | AT56: 0.51 | AU56: 0.51 | AV56: 0.51 | AW56: 0.51 | AX56: 0.51 | AY56: 0.51 | AZ56: 0.51 | BA56: 0.51 | BB56: 0.51 | BC56: 0.51 | BD56: 0.51 | BE56: 0.51 | BF56: 0.51 | BG56: 0.51 | BH56: 0.51 | BI56: 0.51 | BJ56: 0.51
A57: 53 | B57: 0.51 | C57: 0.51 | D57: 0.51 | E57: 0.51 | F57: 0.51 | G57: 0.51 | H57: 0.51 | I57: 0.51 | J57: 0.51 | K57: 0.51 | L57: 0.51 | M57: 0.51 | N57: 0.51 | O57: 0.51 | P57: 0.51 | Q57: 0.51 | R57: 0.51 | S57: 0.51 | T57: 0.51 | U57: 0.51 | V57: 0.51 | W57: 0.51 | X57: 0.51 | Y57: 0.51 | Z57: 0.51 | AA57: 0.51 | AB57: 0.51 | AC57: 0.51 | AD57: 0.51 | AE57: 0.51 | AF57: 0.51 | AG57: 0.51 | AH57: 0.51 | AI57: 0.51 | AJ57: 0.51 | AK57: 0.51 | AL57: 0.51 | AM57: 0.51 | AN57: 0.51 | AO57: 0.51 | AP57: 0.51 | AQ57: 0.51 | AR57: 0.51 | AS57: 0.51 | AT57: 0.51 | AU57: 0.51 | AV57: 0.51 | AW57: 0.51 | AX57: 0.51 | AY57: 0.51 | AZ57: 0.51 | BA57: 0.51 | BB57: 0.51 | BC57: 0.51 | BD57: 0.51 | BE57: 0.51 | BF57: 0.51 | BG57: 0.51 | BH57: 0.51 | BI57: 0.51 | BJ57: 0.51
A58: 54 | B58: 0.51 | C58: 0.51 | D58: 0.51 | E58: 0.51 | F58: 0.51 | G58: 0.51 | H58: 0.51 | I58: 0.51 | J58: 0.51 | K58: 0.51 | L58: 0.51 | M58: 0.51 | N58: 0.51 | O58: 0.51 | P58: 0.51 | Q58: 0.51 | R58: 0.51 | S58: 0.51 | T58: 0.51 | U58: 0.51 | V58: 0.51 | W58: 0.51 | X58: 0.51 | Y58: 0.51 | Z58: 0.51 | AA58: 0.51 | AB58: 0.51 | AC58: 0.51 | AD58: 0.51 | AE58: 0.51 | AF58: 0.51 | AG58: 0.51 | AH58: 0.51 | AI58: 0.51 | AJ58: 0.51 | AK58: 0.51 | AL58: 0.51 | AM58: 0.51 | AN58: 0.51 | AO58: 0.51 | AP58: 0.51 | AQ58: 0.51 | AR58: 0.51 | AS58: 0.51 | AT58: 0.51 | AU58: 0.51 | AV58: 0.51 | AW58: 0.51 | AX58: 0.51 | AY58: 0.51 | AZ58: 0.51 | BA58: 0.51 | BB58: 0.51 | BC58: 0.51 | BD58: 0.51 | BE58: 0.51 | BF58: 0.51 | BG58: 0.51 | BH58: 0.51 | BI58: 0.51 | BJ58: 0.51
A59: 55 | B59: 0.51 | C59: 0.51 | D59: 0.51 | E59: 0.51 | F59: 0.51 | G59: 0.51 | H59: 0.51 | I59: 0.51 | J59: 0.51 | K59: 0.51 | L59: 0.51 | M59: 0.51 | N59: 0.51 | O59: 0.51 | P59: 0.51 | Q59: 0.51 | R59: 0.51 | S59: 0.51 | T59: 0.51 | U59: 0.51 | V59: 0.51 | W59: 0.51 | X59: 0.51 | Y59: 0.51 | Z59: 0.51 | AA59: 0.51 | AB59: 0.51 | AC59: 0.51 | AD59: 0.51 | AE59: 0.51 | AF59: 0.51 | AG59: 0.51 | AH59: 0.51 | AI59: 0.51 | AJ59: 0.51 | AK59: 0.51 | AL59: 0.51 | AM59: 0.51 | AN59: 0.51 | AO59: 0.51 | AP59: 0.51 | AQ59: 0.51 | AR59: 0.51 | AS59: 0.51 | AT59: 0.51 | AU59: 0.51 | AV59: 0.51 | AW59: 0.51 | AX59: 0.51 | AY59: 0.51 | AZ59: 0.51 | BA59: 0.51 | BB59: 0.51 | BC59: 0.51 | BD59: 0.51 | BE59: 0.51 | BF59: 0.51 | BG59: 0.51 | BH59: 0.51 | BI59: 0.51 | BJ59: 0.51
A60: 56 | B60: 0.51 | C60: 0.51 | D60: 0.51 | E60: 0.51 | F60: 0.51 | G60: 0.51 | H60: 0.51 | I60: 0.51 | J60: 0.51 | K60: 0.51 | L60: 0.51 | M60: 0.51 | N60: 0.51 | O60: 0.51 | P60: 0.51 | Q60: 0.51 | R60: 0.51 | S60: 0.51 | T60: 0.51 | U60: 0.51 | V60: 0.51 | W60: 0.51 | X60: 0.51 | Y60: 0.51 | Z60: 0.51 | AA60: 0.51 | AB60: 0.51 | AC60: 0.51 | AD60: 0.51 | AE60: 0.51 | AF60: 0.51 | AG60: 0.51 | AH60: 0.51 | AI60: 0.51 | AJ60: 0.51 | AK60: 0.51 | AL60: 0.51 | AM60: 0.51 | AN60: 0.51 | AO60: 0.51 | AP60: 0.51 | AQ60: 0.51 | AR60: 0.51 | AS60: 0.51 | AT60: 0.51 | AU60: 0.51 | AV60: 0.51 | AW60: 0.51 | AX60: 0.51 | AY60: 0.51 | AZ60: 0.51 | BA60: 0.51 | BB60: 0.51 | BC60: 0.51 | BD60: 0.51 | BE60: 0.51 | BF60: 0.51 | BG60: 0.51 | BH60: 0.51 | BI60: 0.51 | BJ60: 0.51
A61: 57 | B61: 0.51 | C61: 0.51 | D61: 0.51 | E61: 0.51 | F61: 0.51 | G61: 0.51 | H61: 0.51 | I61: 0.51 | J61: 0.51 | K61: 0.51 | L61: 0.51 | M61: 0.51 | N61: 0.51 | O61: 0.51 | P61: 0.51 | Q61: 0.51 | R61: 0.51 | S61: 0.51 | T61: 0.51 | U61: 0.51 | V61: 0.51 | W61: 0.51 | X61: 0.51 | Y61: 0.51 | Z61: 0.51 | AA61: 0.51 | AB61: 0.51 | AC61: 0.51 | AD61: 0.51 | AE61: 0.51 | AF61: 0.51 | AG61: 0.51 | AH61: 0.51 | AI61: 0.51 | AJ61: 0.51 | AK61: 0.51 | AL61: 0.51 | AM61: 0.51 | AN61: 0.51 | AO61: 0.51 | AP61: 0.51 | AQ61: 0.51 | AR61: 0.51 | AS61: 0.51 | AT61: 0.51 | AU61: 0.51 | AV61: 0.51 | AW61: 0.51 | AX61: 0.51 | AY61: 0.51 | AZ61: 0.51 | BA61: 0.51 | BB61: 0.51 | BC61: 0.51 | BD61: 0.51 | BE61: 0.51 | BF61: 0.51 | BG61: 0.51 | BH61: 0.51 | BI61: 0.51 | BJ61: 0.51
A62: 58 | B62: 0.51 | C62: 0.51 | D62: 0.51 | E62: 0.51 | F62: 0.51 | G62: 0.51 | H62: 0.51 | I62: 0.51 | J62: 0.51 | K62: 0.51 | L62: 0.51 | M62: 0.51 | N62: 0.51 | O62: 0.51 | P62: 0.51 | Q62: 0.51 | R62: 0.51 | S62: 0.51 | T62: 0.51 | U62: 0.51 | V62: 0.51 | W62: 0.51 | X62: 0.51 | Y62: 0.51 | Z62: 0.51 | AA62: 0.51 | AB62: 0.51 | AC62: 0.51 | AD62: 0.51 | AE62: 0.51 | AF62: 0.51 | AG62: 0.51 | AH62: 0.51 | AI62: 0.51 | AJ62: 0.51 | AK62: 0.51 | AL62: 0.51 | AM62: 0.51 | AN62: 0.51 | AO62: 0.51 | AP62: 0.51 | AQ62: 0.51 | AR62: 0.51 | AS62: 0.51 | AT62: 0.51 | AU62: 0.51 | AV62: 0.51 | AW62: 0.51 | AX62: 0.51 | AY62: 0.51 | AZ62: 0.51 | BA62: 0.51 | BB62: 0.51 | BC62: 0.51 | BD62: 0.51 | BE62: 0.51 | BF62: 0.51 | BG62: 0.51 | BH62: 0.51 | BI62: 0.51 | BJ62: 0.51
A63: 59 | B63: 0.51 | C63: 0.51 | D63: 0.51 | E63: 0.51 | F63: 0.51 | G63: 0.51 | H63: 0.51 | I63: 0.51 | J63: 0.51 | K63: 0.51 | L63: 0.51 | M63: 0.51 | N63: 0.51 | O63: 0.51 | P63: 0.51 | Q63: 0.51 | R63: 0.51 | S63: 0.51 | T63: 0.51 | U63: 0.51 | V63: 0.51 | W63: 0.51 | X63: 0.51 | Y63: 0.51 | Z63: 0.51 | AA63: 0.51 | AB63: 0.51 | AC63: 0.51 | AD63: 0.51 | AE63: 0.51 | AF63: 0.51 | AG63: 0.51 | AH63: 0.51 | AI63: 0.51 | AJ63: 0.51 | AK63: 0.51 | AL63: 0.51 | AM63: 0.51 | AN63: 0.51 | AO63: 0.51 | AP63: 0.51 | AQ63: 0.51 | AR63: 0.51 | AS63: 0.51 | AT63: 0.51 | AU63: 0.51 | AV63: 0.51 | AW63: 0.51 | AX63: 0.51 | AY63: 0.51 | AZ63: 0.51 | BA63: 0.51 | BB63: 0.51 | BC63: 0.51 | BD63: 0.51 | BE63: 0.51 | BF63: 0.51 | BG63: 0.51 | BH63: 0.51 | BI63: 0.51 | BJ63: 0.51
A64: 60 | B64: 0.51 | C64: 0.51 | D64: 0.51 | E64: 0.51 | F64: 0.51 | G64: 0.51 | H64: 0.51 | I64: 0.51 | J64: 0.51 | K64: 0.51 | L64: 0.51 | M64: 0.51 | N64: 0.51 | O64: 0.51 | P64: 0.51 | Q64: 0.51 | R64: 0.51 | S64: 0.51 | T64: 0.51 | U64: 0.51 | V64: 0.51 | W64: 0.51 | X64: 0.51 | Y64: 0.51 | Z64: 0.51 | AA64: 0.51 | AB64: 0.51 | AC64: 0.51 | AD64: 0.51 | AE64: 0.51 | AF64: 0.51 | AG64: 0.51 | AH64: 0.51 | AI64: 0.51 | AJ64: 0.51 | AK64: 0.51 | AL64: 0.51 | AM64: 0.51 | AN64: 0.51 | AO64: 0.51 | AP64: 0.51 | AQ64: 0.51 | AR64: 0.51 | AS64: 0.51 | AT64: 0.51 | AU64: 0.51 | AV64: 0.51 | AW64: 0.51 | AX64: 0.51 | AY64: 0.51 | AZ64: 0.51 | BA64: 0.51 | BB64: 0.51 | BC64: 0.51 | BD64: 0.51 | BE64: 0.51 | BF64: 0.51 | BG64: 0.51 | BH64: 0.51 | BI64: 0.51 | BJ64: 0.51
A65: 61 | B65: 0.51 | C65: 0.51 | D65: 0.51 | E65: 0.51 | F65: 0.51 | G65: 0.51 | H65: 0.51 | I65: 0.51 | J65: 0.51 | K65: 0.51 | L65: 0.51 | M65: 0.51 | N65: 0.51 | O65: 0.51 | P65: 0.51 | Q65: 0.51 | R65: 0.51 | S65: 0.51 | T65: 0.51 | U65: 0.51 | V65: 0.51 | W65: 0.51 | X65: 0.51 | Y65: 0.51 | Z65: 0.51 | AA65: 0.51 | AB65: 0.51 | AC65: 0.51 | AD65: 0.51 | AE65: 0.51 | AF65: 0.51 | AG65: 0.51 | AH65: 0.51 | AI65: 0.51 | AJ65: 0.51 | AK65: 0.51 | AL65: 0.51 | AM65: 0.51 | AN65: 0.51 | AO65: 0.51 | AP65: 0.51 | AQ65: 0.51 | AR65: 0.51 | AS65: 0.51 | AT65: 0.51 | AU65: 0.51 | AV65: 0.51 | AW65: 0.51 | AX65: 0.51 | AY65: 0.51 | AZ65: 0.51 | BA65: 0.51 | BB65: 0.51 | BC65: 0.51 | BD65: 0.51 | BE65: 0.51 | BF65: 0.51 | BG65: 0.51 | BH65: 0.51 | BI65: 0.51 | BJ65: 0.51
A66: 62 | B66: 0.51 | C66: 0.51 | D66: 0.51 | E66: 0.51 | F66: 0.51 | G66: 0.51 | H66: 0.51 | I66: 0.51 | J66: 0.51 | K66: 0.51 | L66: 0.51 | M66: 0.51 | N66: 0.51 | O66: 0.51 | P66: 0.51 | Q66: 0.51 | R66: 0.51 | S66: 0.51 | T66: 0.51 | U66: 0.51 | V66: 0.51 | W66: 0.51 | X66: 0.51 | Y66: 0.51 | Z66: 0.51 | AA66: 0.51 | AB66: 0.51 | AC66: 0.51 | AD66: 0.51 | AE66: 0.51 | AF66: 0.51 | AG66: 0.51 | AH66: =0.45+0.06*MIN(105-$A66,25)/25 -> 0.51 | AI66: 0.51 | AJ66: 0.51 | AK66: 0.51 | AL66: 0.51 | AM66: 0.51 | AN66: 0.51 | AO66: 0.51 | AP66: 0.51 | AQ66: 0.51 | AR66: 0.51 | AS66: 0.51 | AT66: 0.51 | AU66: 0.51 | AV66: 0.51 | AW66: 0.51 | AX66: =0.45+0.06*MIN(105-$A66,25)/25 -> 0.51 | AY66: 0.51 | AZ66: 0.51 | BA66: 0.51 | BB66: 0.51 | BC66: 0.51 | BD66: 0.51 | BE66: 0.51 | BF66: 0.51 | BG66: 0.51 | BH66: 0.51 | BI66: 0.51 | BJ66: 0.51
A67: 63 | B67: 0.51 | C67: 0.51 | D67: 0.51 | E67: 0.51 | F67: 0.51 | G67: 0.51 | H67: 0.51 | I67: 0.51 | J67: 0.51 | K67: 0.51 | L67: 0.51 | M67: 0.51 | N67: 0.51 | O67: 0.51 | P67: 0.51 | Q67: 0.51 | R67: 0.51 | S67: 0.51 | T67: 0.51 | U67: 0.51 | V67: 0.51 | W67: 0.51 | X67: 0.51 | Y67: 0.51 | Z67: 0.51 | AA67: 0.51 | AB67: 0.51 | AC67: 0.51 | AD67: 0.51 | AE67: 0.51 | AF67: 0.51 | AG67: 0.51 | AH67: 0.51 | AI67: 0.51 | AJ67: 0.51 | AK67: 0.51 | AL67: 0.51 | AM67: 0.51 | AN67: 0.51 | AO67: 0.51 | AP67: 0.51 | AQ67: 0.51 | AR67: 0.51 | AS67: 0.51 | AT67: 0.51 | AU67: 0.51 | AV67: 0.51 | AW67: 0.51 | AX67: 0.51 | AY67: 0.51 | AZ67: 0.51 | BA67: 0.51 | BB67: 0.51 | BC67: 0.51 | BD67: 0.51 | BE67: 0.51 | BF67: 0.51 | BG67: 0.51 | BH67: 0.51 | BI67: 0.51 | BJ67: 0.51
A68: 64 | B68: 0.51 | C68: 0.51 | D68: 0.51 | E68: 0.51 | F68: 0.51 | G68: 0.51 | H68: 0.51 | I68: 0.51 | J68: 0.51 | K68: 0.51 | L68: 0.51 | M68: 0.51 | N68: 0.51 | O68: 0.51 | P68: 0.51 | Q68: =0.45+0.06*MIN(105-$A68,25)/25 -> 0.51 | R68: 0.51 | S68: 0.51 | T68: 0.51 | U68: 0.51 | V68: 0.51 | W68: 0.51 | X68: 0.51 | Y68: 0.51 | Z68: 0.51 | AA68: 0.51 | AB68: 0.51 | AC68: 0.51 | AD68: 0.51 | AE68: 0.51 | AF68: 0.51 | AG68: =0.45+0.06*MIN(105-$A68,25)/25 -> 0.51 | AH68: 0.51 | AI68: 0.51 | AJ68: 0.51 | AK68: 0.51 | AL68: 0.51 | AM68: 0.51 | AN68: 0.51 | AO68: 0.51 | AP68: 0.51 | AQ68: 0.51 | AR68: 0.51 | AS68: 0.51 | AT68: 0.51 | AU68: 0.51 | AV68: 0.51 | AW68: 0.51 | AX68: 0.51 | AY68: 0.51 | AZ68: 0.51 | BA68: 0.51 | BB68: 0.51 | BC68: 0.51 | BD68: 0.51 | BE68: 0.51 | BF68: 0.51 | BG68: 0.51 | BH68: 0.51 | BI68: 0.51 | BJ68: 0.51
A69: 65 | B69: =0.45+0.06*MIN(105-$A69,25)/25 -> 0.51 | C69: 0.51 | D69: 0.51 | E69: 0.51 | F69: 0.51 | G69: 0.51 | H69: 0.51 | I69: 0.51 | J69: 0.51 | K69: 0.51 | L69: 0.51 | M69: 0.51 | N69: 0.51 | O69: 0.51 | P69: 0.51 | Q69: 0.51 | R69: 0.51 | S69: 0.51 | T69: 0.51 | U69: 0.51 | V69: 0.51 | W69: 0.51 | X69: 0.51 | Y69: 0.51 | Z69: 0.51 | AA69: 0.51 | AB69: 0.51 | AC69: 0.51 | AD69: 0.51 | AE69: 0.51 | AF69: 0.51 | AG69: 0.51 | AH69: 0.51 | AI69: 0.51 | AJ69: 0.51 | AK69: 0.51 | AL69: 0.51 | AM69: 0.51 | AN69: 0.51 | AO69: 0.51 | AP69: 0.51 | AQ69: 0.51 | AR69: 0.51 | AS69: 0.51 | AT69: 0.51 | AU69: 0.51 | AV69: 0.51 | AW69: 0.51 | AX69: 0.51 | AY69: 0.51 | AZ69: 0.51 | BA69: 0.51 | BB69: 0.51 | BC69: 0.51 | BD69: 0.51 | BE69: 0.51 | BF69: 0.51 | BG69: 0.51 | BH69: 0.51 | BI69: 0.51 | BJ69: 0.51
A70: 66 | B70: 0.51 | C70: 0.51 | D70: 0.51 | E70: 0.51 | F70: 0.51 | G70: 0.51 | H70: 0.51 | I70: 0.51 | J70: 0.51 | K70: 0.51 | L70: 0.51 | M70: 0.51 | N70: 0.51 | O70: 0.51 | P70: 0.51 | Q70: 0.51 | R70: 0.51 | S70: 0.51 | T70: 0.51 | U70: 0.51 | V70: 0.51 | W70: 0.51 | X70: 0.51 | Y70: 0.51 | Z70: 0.51 | AA70: 0.51 | AB70: 0.51 | AC70: 0.51 | AD70: 0.51 | AE70: 0.51 | AF70: 0.51 | AG70: 0.51 | AH70: 0.51 | AI70: 0.51 | AJ70: 0.51 | AK70: 0.51 | AL70: 0.51 | AM70: 0.51 | AN70: 0.51 | AO70: 0.51 | AP70: 0.51 | AQ70: 0.51 | AR70: 0.51 | AS70: 0.51 | AT70: 0.51 | AU70: 0.51 | AV70: 0.51 | AW70: 0.51 | AX70: 0.51 | AY70: 0.51 | AZ70: 0.51 | BA70: 0.51 | BB70: 0.51 | BC70: 0.51 | BD70: 0.51 | BE70: 0.51 | BF70: 0.51 | BG70: 0.51 | BH70: 0.51 | BI70: 0.51 | BJ70: 0.51
A71: 67 | B71: 0.51 | C71: 0.51 | D71: 0.51 | E71: 0.51 | F71: 0.51 | G71: 0.51 | H71: 0.51 | I71: 0.51 | J71: 0.51 | K71: 0.51 | L71: 0.51 | M71: 0.51 | N71: 0.51 | O71: 0.51 | P71: 0.51 | Q71: 0.51 | R71: 0.51 | S71: 0.51 | T71: 0.51 | U71: 0.51 | V71: 0.51 | W71: 0.51 | X71: 0.51 | Y71: 0.51 | Z71: 0.51 | AA71: 0.51 | AB71: 0.51 | AC71: 0.51 | AD71: 0.51 | AE71: 0.51 | AF71: 0.51 | AG71: 0.51 | AH71: 0.51 | AI71: 0.51 | AJ71: 0.51 | AK71: 0.51 | AL71: 0.51 | AM71: 0.51 | AN71: 0.51 | AO71: 0.51 | AP71: 0.51 | AQ71: 0.51 | AR71: 0.51 | AS71: 0.51 | AT71: 0.51 | AU71: 0.51 | AV71: 0.51 | AW71: 0.51 | AX71: 0.51 | AY71: 0.51 | AZ71: 0.51 | BA71: 0.51 | BB71: 0.51 | BC71: 0.51 | BD71: 0.51 | BE71: 0.51 | BF71: 0.51 | BG71: 0.51 | BH71: 0.51 | BI71: 0.51 | BJ71: 0.51
A72: 68 | B72: 0.51 | C72: 0.51 | D72: 0.51 | E72: 0.51 | F72: 0.51 | G72: 0.51 | H72: 0.51 | I72: 0.51 | J72: 0.51 | K72: 0.51 | L72: 0.51 | M72: 0.51 | N72: 0.51 | O72: 0.51 | P72: 0.51 | Q72: 0.51 | R72: 0.51 | S72: 0.51 | T72: 0.51 | U72: 0.51 | V72: 0.51 | W72: 0.51 | X72: 0.51 | Y72: 0.51 | Z72: 0.51 | AA72: 0.51 | AB72: 0.51 | AC72: 0.51 | AD72: 0.51 | AE72: 0.51 | AF72: 0.51 | AG72: 0.51 | AH72: 0.51 | AI72: 0.51 | AJ72: 0.51 | AK72: 0.51 | AL72: 0.51 | AM72: 0.51 | AN72: 0.51 | AO72: 0.51 | AP72: 0.51 | AQ72: 0.51 | AR72: 0.51 | AS72: 0.51 | AT72: 0.51 | AU72: 0.51 | AV72: 0.51 | AW72: 0.51 | AX72: 0.51 | AY72: 0.51 | AZ72: 0.51 | BA72: 0.51 | BB72: 0.51 | BC72: 0.51 | BD72: 0.51 | BE72: 0.51 | BF72: 0.51 | BG72: 0.51 | BH72: 0.51 | BI72: 0.51 | BJ72: 0.51
A73: 69 | B73: 0.51 | C73: 0.51 | D73: 0.51 | E73: 0.51 | F73: 0.51 | G73: 0.51 | H73: 0.51 | I73: 0.51 | J73: 0.51 | K73: 0.51 | L73: 0.51 | M73: 0.51 | N73: 0.51 | O73: 0.51 | P73: 0.51 | Q73: 0.51 | R73: 0.51 | S73: 0.51 | T73: 0.51 | U73: 0.51 | V73: 0.51 | W73: 0.51 | X73: 0.51 | Y73: 0.51 | Z73: 0.51 | AA73: 0.51 | AB73: 0.51 | AC73: 0.51 | AD73: 0.51 | AE73: 0.51 | AF73: 0.51 | AG73: 0.51 | AH73: 0.51 | AI73: 0.51 | AJ73: 0.51 | AK73: 0.51 | AL73: 0.51 | AM73: 0.51 | AN73: 0.51 | AO73: 0.51 | AP73: 0.51 | AQ73: 0.51 | AR73: 0.51 | AS73: 0.51 | AT73: 0.51 | AU73: 0.51 | AV73: 0.51 | AW73: 0.51 | AX73: 0.51 | AY73: 0.51 | AZ73: 0.51 | BA73: 0.51 | BB73: 0.51 | BC73: 0.51 | BD73: 0.51 | BE73: 0.51 | BF73: 0.51 | BG73: 0.51 | BH73: 0.51 | BI73: 0.51 | BJ73: 0.51
A74: 70 | B74: 0.51 | C74: 0.51 | D74: 0.51 | E74: 0.51 | F74: 0.51 | G74: 0.51 | H74: 0.51 | I74: 0.51 | J74: 0.51 | K74: 0.51 | L74: 0.51 | M74: 0.51 | N74: 0.51 | O74: 0.51 | P74: 0.51 | Q74: 0.51 | R74: 0.51 | S74: 0.51 | T74: 0.51 | U74: 0.51 | V74: 0.51 | W74: 0.51 | X74: 0.51 | Y74: 0.51 | Z74: 0.51 | AA74: 0.51 | AB74: 0.51 | AC74: 0.51 | AD74: 0.51 | AE74: 0.51 | AF74: 0.51 | AG74: 0.51 | AH74: 0.51 | AI74: 0.51 | AJ74: 0.51 | AK74: 0.51 | AL74: 0.51 | AM74: 0.51 | AN74: 0.51 | AO74: 0.51 | AP74: 0.51 | AQ74: 0.51 | AR74: 0.51 | AS74: 0.51 | AT74: 0.51 | AU74: 0.51 | AV74: 0.51 | AW74: 0.51 | AX74: 0.51 | AY74: 0.51 | AZ74: 0.51 | BA74: 0.51 | BB74: 0.51 | BC74: 0.51 | BD74: 0.51 | BE74: 0.51 | BF74: 0.51 | BG74: 0.51 | BH74: 0.51 | BI74: 0.51 | BJ74: 0.51
A75: 71 | B75: 0.51 | C75: 0.51 | D75: 0.51 | E75: 0.51 | F75: 0.51 | G75: 0.51 | H75: 0.51 | I75: 0.51 | J75: 0.51 | K75: 0.51 | L75: 0.51 | M75: 0.51 | N75: 0.51 | O75: 0.51 | P75: 0.51 | Q75: 0.51 | R75: 0.51 | S75: 0.51 | T75: 0.51 | U75: 0.51 | V75: 0.51 | W75: 0.51 | X75: 0.51 | Y75: 0.51 | Z75: 0.51 | AA75: 0.51 | AB75: 0.51 | AC75: 0.51 | AD75: 0.51 | AE75: 0.51 | AF75: 0.51 | AG75: 0.51 | AH75: 0.51 | AI75: 0.51 | AJ75: 0.51 | AK75: 0.51 | AL75: 0.51 | AM75: 0.51 | AN75: 0.51 | AO75: 0.51 | AP75: 0.51 | AQ75: 0.51 | AR75: 0.51 | AS75: 0.51 | AT75: 0.51 | AU75: 0.51 | AV75: 0.51 | AW75: 0.51 | AX75: 0.51 | AY75: 0.51 | AZ75: 0.51 | BA75: 0.51 | BB75: 0.51 | BC75: 0.51 | BD75: 0.51 | BE75: 0.51 | BF75: 0.51 | BG75: 0.51 | BH75: 0.51 | BI75: 0.51 | BJ75: 0.51
A76: 72 | B76: 0.51 | C76: 0.51 | D76: 0.51 | E76: 0.51 | F76: 0.51 | G76: 0.51 | H76: 0.51 | I76: 0.51 | J76: 0.51 | K76: 0.51 | L76: 0.51 | M76: 0.51 | N76: 0.51 | O76: 0.51 | P76: 0.51 | Q76: 0.51 | R76: 0.51 | S76: 0.51 | T76: 0.51 | U76: 0.51 | V76: 0.51 | W76: 0.51 | X76: 0.51 | Y76: 0.51 | Z76: 0.51 | AA76: 0.51 | AB76: 0.51 | AC76: 0.51 | AD76: 0.51 | AE76: 0.51 | AF76: 0.51 | AG76: 0.51 | AH76: 0.51 | AI76: 0.51 | AJ76: 0.51 | AK76: 0.51 | AL76: 0.51 | AM76: 0.51 | AN76: 0.51 | AO76: 0.51 | AP76: 0.51 | AQ76: 0.51 | AR76: 0.51 | AS76: 0.51 | AT76: 0.51 | AU76: 0.51 | AV76: 0.51 | AW76: 0.51 | AX76: 0.51 | AY76: 0.51 | AZ76: 0.51 | BA76: 0.51 | BB76: 0.51 | BC76: 0.51 | BD76: 0.51 | BE76: 0.51 | BF76: 0.51 | BG76: 0.51 | BH76: 0.51 | BI76: 0.51 | BJ76: 0.51
A77: 73 | B77: 0.51 | C77: 0.51 | D77: 0.51 | E77: 0.51 | F77: 0.51 | G77: 0.51 | H77: 0.51 | I77: 0.51 | J77: 0.51 | K77: 0.51 | L77: 0.51 | M77: 0.51 | N77: 0.51 | O77: 0.51 | P77: 0.51 | Q77: 0.51 | R77: 0.51 | S77: 0.51 | T77: 0.51 | U77: 0.51 | V77: 0.51 | W77: 0.51 | X77: 0.51 | Y77: 0.51 | Z77: 0.51 | AA77: 0.51 | AB77: 0.51 | AC77: 0.51 | AD77: 0.51 | AE77: 0.51 | AF77: 0.51 | AG77: 0.51 | AH77: 0.51 | AI77: 0.51 | AJ77: 0.51 | AK77: 0.51 | AL77: 0.51 | AM77: 0.51 | AN77: 0.51 | AO77: 0.51 | AP77: 0.51 | AQ77: 0.51 | AR77: 0.51 | AS77: 0.51 | AT77: 0.51 | AU77: 0.51 | AV77: 0.51 | AW77: 0.51 | AX77: 0.51 | AY77: 0.51 | AZ77: 0.51 | BA77: 0.51 | BB77: 0.51 | BC77: 0.51 | BD77: 0.51 | BE77: 0.51 | BF77: 0.51 | BG77: 0.51 | BH77: 0.51 | BI77: 0.51 | BJ77: 0.51
A78: 74 | B78: 0.51 | C78: 0.51 | D78: 0.51 | E78: 0.51 | F78: 0.51 | G78: 0.51 | H78: 0.51 | I78: 0.51 | J78: 0.51 | K78: 0.51 | L78: 0.51 | M78: 0.51 | N78: 0.51 | O78: 0.51 | P78: 0.51 | Q78: 0.51 | R78: 0.51 | S78: 0.51 | T78: 0.51 | U78: 0.51 | V78: 0.51 | W78: 0.51 | X78: 0.51 | Y78: 0.51 | Z78: 0.51 | AA78: 0.51 | AB78: 0.51 | AC78: 0.51 | AD78: 0.51 | AE78: 0.51 | AF78: 0.51 | AG78: 0.51 | AH78: 0.51 | AI78: 0.51 | AJ78: 0.51 | AK78: 0.51 | AL78: 0.51 | AM78: 0.51 | AN78: 0.51 | AO78: 0.51 | AP78: 0.51 | AQ78: 0.51 | AR78: 0.51 | AS78: 0.51 | AT78: 0.51 | AU78: 0.51 | AV78: 0.51 | AW78: 0.51 | AX78: 0.51 | AY78: 0.51 | AZ78: 0.51 | BA78: 0.51 | BB78: 0.51 | BC78: 0.51 | BD78: 0.51 | BE78: 0.51 | BF78: 0.51 | BG78: 0.51 | BH78: 0.51 | BI78: 0.51 | BJ78: 0.51
A79: 75 | B79: 0.51 | C79: 0.51 | D79: 0.51 | E79: 0.51 | F79: 0.51 | G79: 0.51 | H79: 0.51 | I79: 0.51 | J79: 0.51 | K79: 0.51 | L79: 0.51 | M79: 0.51 | N79: 0.51 | O79: 0.51 | P79: 0.51 | Q79: 0.51 | R79: 0.51 | S79: 0.51 | T79: 0.51 | U79: 0.51 | V79: 0.51 | W79: 0.51 | X79: 0.51 | Y79: 0.51 | Z79: 0.51 | AA79: 0.51 | AB79: 0.51 | AC79: 0.51 | AD79: 0.51 | AE79: 0.51 | AF79: 0.51 | AG79: 0.51 | AH79: 0.51 | AI79: 0.51 | AJ79: 0.51 | AK79: 0.51 | AL79: 0.51 | AM79: 0.51 | AN79: 0.51 | AO79: 0.51 | AP79: 0.51 | AQ79: 0.51 | AR79: 0.51 | AS79: 0.51 | AT79: 0.51 | AU79: 0.51 | AV79: 0.51 | AW79: 0.51 | AX79: 0.51 | AY79: 0.51 | AZ79: 0.51 | BA79: 0.51 | BB79: 0.51 | BC79: 0.51 | BD79: 0.51 | BE79: 0.51 | BF79: 0.51 | BG79: 0.51 | BH79: 0.51 | BI79: 0.51 | BJ79: 0.51
A80: 76 | B80: 0.51 | C80: 0.51 | D80: 0.51 | E80: 0.51 | F80: 0.51 | G80: 0.51 | H80: 0.51 | I80: 0.51 | J80: 0.51 | K80: 0.51 | L80: 0.51 | M80: 0.51 | N80: 0.51 | O80: 0.51 | P80: 0.51 | Q80: 0.51 | R80: 0.51 | S80: 0.51 | T80: 0.51 | U80: 0.51 | V80: 0.51 | W80: 0.51 | X80: 0.51 | Y80: 0.51 | Z80: 0.51 | AA80: 0.51 | AB80: 0.51 | AC80: 0.51 | AD80: 0.51 | AE80: 0.51 | AF80: 0.51 | AG80: 0.51 | AH80: 0.51 | AI80: 0.51 | AJ80: 0.51 | AK80: 0.51 | AL80: 0.51 | AM80: 0.51 | AN80: 0.51 | AO80: 0.51 | AP80: 0.51 | AQ80: 0.51 | AR80: 0.51 | AS80: 0.51 | AT80: 0.51 | AU80: 0.51 | AV80: 0.51 | AW80: 0.51 | AX80: 0.51 | AY80: 0.51 | AZ80: 0.51 | BA80: 0.51 | BB80: 0.51 | BC80: 0.51 | BD80: 0.51 | BE80: 0.51 | BF80: 0.51 | BG80: 0.51 | BH80: 0.51 | BI80: 0.51 | BJ80: 0.51
A81: 77 | B81: 0.51 | C81: 0.51 | D81: 0.51 | E81: 0.51 | F81: 0.51 | G81: 0.51 | H81: 0.51 | I81: 0.51 | J81: 0.51 | K81: 0.51 | L81: 0.51 | M81: 0.51 | N81: 0.51 | O81: 0.51 | P81: 0.51 | Q81: 0.51 | R81: 0.51 | S81: 0.51 | T81: 0.51 | U81: 0.51 | V81: 0.51 | W81: 0.51 | X81: 0.51 | Y81: 0.51 | Z81: 0.51 | AA81: 0.51 | AB81: 0.51 | AC81: 0.51 | AD81: 0.51 | AE81: 0.51 | AF81: 0.51 | AG81: 0.51 | AH81: 0.51 | AI81: 0.51 | AJ81: 0.51 | AK81: 0.51 | AL81: 0.51 | AM81: 0.51 | AN81: 0.51 | AO81: 0.51 | AP81: 0.51 | AQ81: 0.51 | AR81: 0.51 | AS81: 0.51 | AT81: 0.51 | AU81: 0.51 | AV81: 0.51 | AW81: =0.45+0.06*MIN(105-$A81,25)/25 -> 0.51 | AX81: 0.51 | AY81: 0.51 | AZ81: 0.51 | BA81: 0.51 | BB81: 0.51 | BC81: 0.51 | BD81: 0.51 | BE81: 0.51 | BF81: 0.51 | BG81: 0.51 | BH81: 0.51 | BI81: 0.51 | BJ81: 0.51
A82: 78 | B82: 0.51 | C82: 0.51 | D82: 0.51 | E82: 0.51 | F82: 0.51 | G82: 0.51 | H82: 0.51 | I82: 0.51 | J82: 0.51 | K82: 0.51 | L82: 0.51 | M82: 0.51 | N82: 0.51 | O82: 0.51 | P82: 0.51 | Q82: 0.51 | R82: 0.51 | S82: 0.51 | T82: 0.51 | U82: 0.51 | V82: 0.51 | W82: 0.51 | X82: 0.51 | Y82: 0.51 | Z82: 0.51 | AA82: 0.51 | AB82: 0.51 | AC82: 0.51 | AD82: 0.51 | AE82: 0.51 | AF82: 0.51 | AG82: 0.51 | AH82: 0.51 | AI82: 0.51 | AJ82: 0.51 | AK82: 0.51 | AL82: 0.51 | AM82: 0.51 | AN82: 0.51 | AO82: 0.51 | AP82: 0.51 | AQ82: 0.51 | AR82: 0.51 | AS82: 0.51 | AT82: 0.51 | AU82: 0.51 | AV82: 0.51 | AW82: 0.51 | AX82: 0.51 | AY82: 0.51 | AZ82: 0.51 | BA82: 0.51 | BB82: 0.51 | BC82: 0.51 | BD82: 0.51 | BE82: 0.51 | BF82: 0.51 | BG82: 0.51 | BH82: 0.51 | BI82: 0.51 | BJ82: 0.51
A83: 79 | B83: 0.51 | C83: 0.51 | D83: 0.51 | E83: 0.51 | F83: 0.51 | G83: 0.51 | H83: 0.51 | I83: 0.51 | J83: 0.51 | K83: 0.51 | L83: 0.51 | M83: 0.51 | N83: 0.51 | O83: 0.51 | P83: 0.51 | Q83: 0.51 | R83: 0.51 | S83: 0.51 | T83: 0.51 | U83: 0.51 | V83: 0.51 | W83: 0.51 | X83: 0.51 | Y83: 0.51 | Z83: 0.51 | AA83: 0.51 | AB83: 0.51 | AC83: 0.51 | AD83: 0.51 | AE83: 0.51 | AF83: =0.45+0.06*MIN(105-$A83,25)/25 -> 0.51 | AG83: 0.51 | AH83: 0.51 | AI83: 0.51 | AJ83: 0.51 | AK83: 0.51 | AL83: 0.51 | AM83: 0.51 | AN83: 0.51 | AO83: 0.51 | AP83: 0.51 | AQ83: 0.51 | AR83: 0.51 | AS83: 0.51 | AT83: 0.51 | AU83: 0.51 | AV83: 0.51 | AW83: 0.51 | AX83: 0.51 | AY83: 0.51 | AZ83: 0.51 | BA83: 0.51 | BB83: 0.51 | BC83: 0.51 | BD83: 0.51 | BE83: 0.51 | BF83: 0.51 | BG83: 0.51 | BH83: 0.51 | BI83: 0.51 | BJ83: 0.51
A84: 80 | B84: 0.51 | C84: 0.51 | D84: 0.51 | E84: 0.51 | F84: 0.51 | G84: 0.51 | H84: 0.51 | I84: 0.51 | J84: 0.51 | K84: 0.51 | L84: 0.51 | M84: 0.51 | N84: 0.51 | O84: 0.51 | P84: 0.51 | Q84: 0.51 | R84: =0.45+0.06*MIN(105-$A84,25)/25 -> 0.51 | S84: 0.51 | T84: 0.51 | U84: 0.51 | V84: 0.51 | W84: 0.51 | X84: 0.51 | Y84: 0.51 | Z84: 0.51 | AA84: 0.51 | AB84: 0.51 | AC84: 0.51 | AD84: 0.51 | AE84: 0.51 | AF84: 0.51 | AG84: 0.51 | AH84: 0.51 | AI84: 0.51 | AJ84: 0.51 | AK84: 0.51 | AL84: 0.51 | AM84: 0.51 | AN84: 0.51 | AO84: 0.51 | AP84: 0.51 | AQ84: 0.51 | AR84: 0.51 | AS84: 0.51 | AT84: 0.51 | AU84: 0.51 | AV84: =0.45+0.06*MIN(105-$A84,25)/25 -> 0.51 | AW84: 0.51 | AX84: 0.51 | AY84: 0.51 | AZ84: 0.51 | BA84: 0.51 | BB84: 0.51 | BC84: 0.51 | BD84: 0.51 | BE84: 0.51 | BF84: 0.51 | BG84: 0.51 | BH84: 0.51 | BI84: 0.51 | BJ84: 0.51
A85: 81 | B85: =0.45+0.06*MIN(105-$A85,25)/25 -> 0.5076 | C85: 0.5076 | D85: 0.5076 | E85: 0.5076 | F85: 0.5076 | G85: 0.5076 | H85: 0.5076 | I85: 0.5076 | J85: 0.5076 | K85: 0.5076 | L85: 0.5076 | M85: 0.5076 | N85: 0.5076 | O85: 0.5076 | P85: 0.5076 | Q85: 0.5076 | R85: 0.5076 | S85: 0.5076 | T85: 0.5076 | U85: 0.5076 | V85: 0.5076 | W85: 0.5076 | X85: 0.5076 | Y85: 0.5076 | Z85: 0.5076 | AA85: 0.5076 | AB85: 0.5076 | AC85: 0.5076 | AD85: 0.5076 | AE85: 0.5076 | AF85: 0.5076 | AG85: 0.5076 | AH85: 0.5076 | AI85: 0.5076 | AJ85: 0.5076 | AK85: 0.5076 | AL85: 0.5076 | AM85: 0.5076 | AN85: 0.5076 | AO85: 0.5076 | AP85: 0.5076 | AQ85: 0.5076 | AR85: 0.5076 | AS85: 0.5076 | AT85: 0.5076 | AU85: 0.5076 | AV85: 0.5076 | AW85: 0.5076 | AX85: 0.5076 | AY85: 0.5076 | AZ85: 0.5076 | BA85: 0.5076 | BB85: 0.5076 | BC85: 0.5076 | BD85: 0.5076 | BE85: 0.5076 | BF85: 0.5076 | BG85: 0.5076 | BH85: 0.5076 | BI85: 0.5076 | BJ85: 0.5076
A86: 82 | B86: 0.5052 | C86: 0.5052 | D86: 0.5052 | E86: 0.5052 | F86: 0.5052 | G86: 0.5052 | H86: 0.5052 | I86: 0.5052 | J86: 0.5052 | K86: 0.5052 | L86: 0.5052 | M86: 0.5052 | N86: 0.5052 | O86: 0.5052 | P86: 0.5052 | Q86: 0.5052 | R86: 0.5052 | S86: 0.5052 | T86: 0.5052 | U86: 0.5052 | V86: 0.5052 | W86: 0.5052 | X86: 0.5052 | Y86: 0.5052 | Z86: 0.5052 | AA86: 0.5052 | AB86: 0.5052 | AC86: 0.5052 | AD86: 0.5052 | AE86: 0.5052 | AF86: 0.5052 | AG86: 0.5052 | AH86: 0.5052 | AI86: 0.5052 | AJ86: 0.5052 | AK86: 0.5052 | AL86: 0.5052 | AM86: 0.5052 | AN86: 0.5052 | AO86: 0.5052 | AP86: 0.5052 | AQ86: 0.5052 | AR86: 0.5052 | AS86: 0.5052 | AT86: 0.5052 | AU86: 0.5052 | AV86: 0.5052 | AW86: 0.5052 | AX86: 0.5052 | AY86: 0.5052 | AZ86: 0.5052 | BA86: 0.5052 | BB86: 0.5052 | BC86: 0.5052 | BD86: 0.5052 | BE86: 0.5052 | BF86: 0.5052 | BG86: 0.5052 | BH86: 0.5052 | BI86: 0.5052 | BJ86: 0.5052
A87: 83 | B87: 0.5028 | C87: 0.5028 | D87: 0.5028 | E87: 0.5028 | F87: 0.5028 | G87: 0.5028 | H87: 0.5028 | I87: 0.5028 | J87: 0.5028 | K87: 0.5028 | L87: 0.5028 | M87: 0.5028 | N87: 0.5028 | O87: 0.5028 | P87: 0.5028 | Q87: 0.5028 | R87: 0.5028 | S87: 0.5028 | T87: 0.5028 | U87: 0.5028 | V87: 0.5028 | W87: 0.5028 | X87: 0.5028 | Y87: 0.5028 | Z87: 0.5028 | AA87: 0.5028 | AB87: 0.5028 | AC87: 0.5028 | AD87: 0.5028 | AE87: 0.5028 | AF87: 0.5028 | AG87: 0.5028 | AH87: 0.5028 | AI87: 0.5028 | AJ87: 0.5028 | AK87: 0.5028 | AL87: 0.5028 | AM87: 0.5028 | AN87: 0.5028 | AO87: 0.5028 | AP87: 0.5028 | AQ87: 0.5028 | AR87: 0.5028 | AS87: 0.5028 | AT87: 0.5028 | AU87: 0.5028 | AV87: 0.5028 | AW87: 0.5028 | AX87: 0.5028 | AY87: 0.5028 | AZ87: 0.5028 | BA87: 0.5028 | BB87: 0.5028 | BC87: 0.5028 | BD87: 0.5028 | BE87: 0.5028 | BF87: 0.5028 | BG87: 0.5028 | BH87: 0.5028 | BI87: 0.5028 | BJ87: 0.5028
A88: 84 | B88: 0.5004 | C88: 0.5004 | D88: 0.5004 | E88: 0.5004 | F88: 0.5004 | G88: 0.5004 | H88: 0.5004 | I88: 0.5004 | J88: 0.5004 | K88: 0.5004 | L88: 0.5004 | M88: 0.5004 | N88: 0.5004 | O88: 0.5004 | P88: 0.5004 | Q88: 0.5004 | R88: 0.5004 | S88: 0.5004 | T88: 0.5004 | U88: 0.5004 | V88: 0.5004 | W88: 0.5004 | X88: 0.5004 | Y88: 0.5004 | Z88: 0.5004 | AA88: 0.5004 | AB88: 0.5004 | AC88: 0.5004 | AD88: 0.5004 | AE88: 0.5004 | AF88: 0.5004 | AG88: 0.5004 | AH88: 0.5004 | AI88: 0.5004 | AJ88: 0.5004 | AK88: 0.5004 | AL88: 0.5004 | AM88: 0.5004 | AN88: 0.5004 | AO88: 0.5004 | AP88: 0.5004 | AQ88: 0.5004 | AR88: 0.5004 | AS88: 0.5004 | AT88: 0.5004 | AU88: 0.5004 | AV88: 0.5004 | AW88: 0.5004 | AX88: 0.5004 | AY88: 0.5004 | AZ88: 0.5004 | BA88: 0.5004 | BB88: 0.5004 | BC88: 0.5004 | BD88: 0.5004 | BE88: 0.5004 | BF88: 0.5004 | BG88: 0.5004 | BH88: 0.5004 | BI88: 0.5004 | BJ88: 0.5004
A89: 85 | B89: 0.498 | C89: 0.498 | D89: 0.498 | E89: 0.498 | F89: 0.498 | G89: 0.498 | H89: 0.498 | I89: 0.498 | J89: 0.498 | K89: 0.498 | L89: 0.498 | M89: 0.498 | N89: 0.498 | O89: 0.498 | P89: 0.498 | Q89: 0.498 | R89: 0.498 | S89: 0.498 | T89: 0.498 | U89: 0.498 | V89: 0.498 | W89: 0.498 | X89: 0.498 | Y89: 0.498 | Z89: 0.498 | AA89: 0.498 | AB89: 0.498 | AC89: 0.498 | AD89: 0.498 | AE89: 0.498 | AF89: 0.498 | AG89: 0.498 | AH89: 0.498 | AI89: 0.498 | AJ89: 0.498 | AK89: 0.498 | AL89: 0.498 | AM89: 0.498 | AN89: 0.498 | AO89: 0.498 | AP89: 0.498 | AQ89: 0.498 | AR89: 0.498 | AS89: 0.498 | AT89: 0.498 | AU89: 0.498 | AV89: 0.498 | AW89: 0.498 | AX89: 0.498 | AY89: 0.498 | AZ89: 0.498 | BA89: 0.498 | BB89: 0.498 | BC89: 0.498 | BD89: 0.498 | BE89: 0.498 | BF89: 0.498 | BG89: 0.498 | BH89: 0.498 | BI89: 0.498 | BJ89: 0.498
A90: 86 | B90: 0.4956 | C90: 0.4956 | D90: 0.4956 | E90: 0.4956 | F90: 0.4956 | G90: 0.4956 | H90: 0.4956 | I90: 0.4956 | J90: 0.4956 | K90: 0.4956 | L90: 0.4956 | M90: 0.4956 | N90: 0.4956 | O90: 0.4956 | P90: 0.4956 | Q90: 0.4956 | R90: 0.4956 | S90: 0.4956 | T90: 0.4956 | U90: 0.4956 | V90: 0.4956 | W90: 0.4956 | X90: 0.4956 | Y90: 0.4956 | Z90: 0.4956 | AA90: 0.4956 | AB90: 0.4956 | AC90: 0.4956 | AD90: 0.4956 | AE90: 0.4956 | AF90: 0.4956 | AG90: 0.4956 | AH90: 0.4956 | AI90: 0.4956 | AJ90: 0.4956 | AK90: 0.4956 | AL90: 0.4956 | AM90: 0.4956 | AN90: 0.4956 | AO90: 0.4956 | AP90: 0.4956 | AQ90: 0.4956 | AR90: 0.4956 | AS90: 0.4956 | AT90: 0.4956 | AU90: 0.4956 | AV90: 0.4956 | AW90: 0.4956 | AX90: 0.4956 | AY90: 0.4956 | AZ90: 0.4956 | BA90: 0.4956 | BB90: 0.4956 | BC90: 0.4956 | BD90: 0.4956 | BE90: 0.4956 | BF90: 0.4956 | BG90: 0.4956 | BH90: 0.4956 | BI90: 0.4956 | BJ90: 0.4956
A91: 87 | B91: 0.4932 | C91: 0.4932 | D91: 0.4932 | E91: 0.4932 | F91: 0.4932 | G91: 0.4932 | H91: 0.4932 | I91: 0.4932 | J91: 0.4932 | K91: 0.4932 | L91: 0.4932 | M91: 0.4932 | N91: 0.4932 | O91: 0.4932 | P91: 0.4932 | Q91: 0.4932 | R91: 0.4932 | S91: 0.4932 | T91: 0.4932 | U91: 0.4932 | V91: 0.4932 | W91: 0.4932 | X91: 0.4932 | Y91: 0.4932 | Z91: 0.4932 | AA91: 0.4932 | AB91: 0.4932 | AC91: 0.4932 | AD91: 0.4932 | AE91: 0.4932 | AF91: 0.4932 | AG91: 0.4932 | AH91: 0.4932 | AI91: 0.4932 | AJ91: 0.4932 | AK91: 0.4932 | AL91: 0.4932 | AM91: 0.4932 | AN91: 0.4932 | AO91: 0.4932 | AP91: 0.4932 | AQ91: 0.4932 | AR91: 0.4932 | AS91: 0.4932 | AT91: 0.4932 | AU91: 0.4932 | AV91: 0.4932 | AW91: 0.4932 | AX91: 0.4932 | AY91: 0.4932 | AZ91: 0.4932 | BA91: 0.4932 | BB91: 0.4932 | BC91: 0.4932 | BD91: 0.4932 | BE91: 0.4932 | BF91: 0.4932 | BG91: 0.4932 | BH91: 0.4932 | BI91: 0.4932 | BJ91: 0.4932
A92: 88 | B92: 0.4908 | C92: 0.4908 | D92: 0.4908 | E92: 0.4908 | F92: 0.4908 | G92: 0.4908 | H92: 0.4908 | I92: 0.4908 | J92: 0.4908 | K92: 0.4908 | L92: 0.4908 | M92: 0.4908 | N92: 0.4908 | O92: 0.4908 | P92: 0.4908 | Q92: 0.4908 | R92: 0.4908 | S92: 0.4908 | T92: 0.4908 | U92: 0.4908 | V92: 0.4908 | W92: 0.4908 | X92: 0.4908 | Y92: 0.4908 | Z92: 0.4908 | AA92: 0.4908 | AB92: 0.4908 | AC92: 0.4908 | AD92: 0.4908 | AE92: 0.4908 | AF92: 0.4908 | AG92: 0.4908 | AH92: 0.4908 | AI92: 0.4908 | AJ92: 0.4908 | AK92: 0.4908 | AL92: 0.4908 | AM92: 0.4908 | AN92: 0.4908 | AO92: 0.4908 | AP92: 0.4908 | AQ92: 0.4908 | AR92: 0.4908 | AS92: 0.4908 | AT92: 0.4908 | AU92: 0.4908 | AV92: 0.4908 | AW92: 0.4908 | AX92: 0.4908 | AY92: 0.4908 | AZ92: 0.4908 | BA92: 0.4908 | BB92: 0.4908 | BC92: 0.4908 | BD92: 0.4908 | BE92: 0.4908 | BF92: 0.4908 | BG92: 0.4908 | BH92: 0.4908 | BI92: 0.4908 | BJ92: 0.4908
A93: 89 | B93: 0.4884 | C93: 0.4884 | D93: 0.4884 | E93: 0.4884 | F93: 0.4884 | G93: 0.4884 | H93: 0.4884 | I93: 0.4884 | J93: 0.4884 | K93: 0.4884 | L93: 0.4884 | M93: 0.4884 | N93: 0.4884 | O93: 0.4884 | P93: 0.4884 | Q93: 0.4884 | R93: 0.4884 | S93: 0.4884 | T93: 0.4884 | U93: 0.4884 | V93: 0.4884 | W93: 0.4884 | X93: 0.4884 | Y93: 0.4884 | Z93: 0.4884 | AA93: 0.4884 | AB93: 0.4884 | AC93: 0.4884 | AD93: 0.4884 | AE93: 0.4884 | AF93: 0.4884 | AG93: 0.4884 | AH93: 0.4884 | AI93: 0.4884 | AJ93: 0.4884 | AK93: 0.4884 | AL93: 0.4884 | AM93: 0.4884 | AN93: 0.4884 | AO93: 0.4884 | AP93: 0.4884 | AQ93: 0.4884 | AR93: 0.4884 | AS93: 0.4884 | AT93: 0.4884 | AU93: 0.4884 | AV93: 0.4884 | AW93: 0.4884 | AX93: 0.4884 | AY93: 0.4884 | AZ93: 0.4884 | BA93: 0.4884 | BB93: 0.4884 | BC93: 0.4884 | BD93: 0.4884 | BE93: 0.4884 | BF93: 0.4884 | BG93: 0.4884 | BH93: 0.4884 | BI93: 0.4884 | BJ93: 0.4884
A94: 90 | B94: 0.486 | C94: 0.486 | D94: 0.486 | E94: 0.486 | F94: 0.486 | G94: 0.486 | H94: 0.486 | I94: 0.486 | J94: 0.486 | K94: 0.486 | L94: 0.486 | M94: 0.486 | N94: 0.486 | O94: 0.486 | P94: 0.486 | Q94: 0.486 | R94: 0.486 | S94: 0.486 | T94: 0.486 | U94: 0.486 | V94: 0.486 | W94: 0.486 | X94: 0.486 | Y94: 0.486 | Z94: 0.486 | AA94: 0.486 | AB94: 0.486 | AC94: 0.486 | AD94: 0.486 | AE94: 0.486 | AF94: 0.486 | AG94: 0.486 | AH94: 0.486 | AI94: 0.486 | AJ94: 0.486 | AK94: 0.486 | AL94: 0.486 | AM94: 0.486 | AN94: 0.486 | AO94: 0.486 | AP94: 0.486 | AQ94: 0.486 | AR94: 0.486 | AS94: 0.486 | AT94: 0.486 | AU94: 0.486 | AV94: 0.486 | AW94: 0.486 | AX94: 0.486 | AY94: 0.486 | AZ94: 0.486 | BA94: 0.486 | BB94: 0.486 | BC94: 0.486 | BD94: 0.486 | BE94: 0.486 | BF94: 0.486 | BG94: 0.486 | BH94: 0.486 | BI94: 0.486 | BJ94: 0.486
A95: 91 | B95: 0.4836 | C95: 0.4836 | D95: 0.4836 | E95: 0.4836 | F95: 0.4836 | G95: 0.4836 | H95: 0.4836 | I95: 0.4836 | J95: 0.4836 | K95: 0.4836 | L95: 0.4836 | M95: 0.4836 | N95: 0.4836 | O95: 0.4836 | P95: 0.4836 | Q95: 0.4836 | R95: 0.4836 | S95: 0.4836 | T95: 0.4836 | U95: 0.4836 | V95: 0.4836 | W95: 0.4836 | X95: 0.4836 | Y95: 0.4836 | Z95: 0.4836 | AA95: 0.4836 | AB95: 0.4836 | AC95: 0.4836 | AD95: 0.4836 | AE95: 0.4836 | AF95: 0.4836 | AG95: 0.4836 | AH95: 0.4836 | AI95: 0.4836 | AJ95: 0.4836 | AK95: 0.4836 | AL95: 0.4836 | AM95: 0.4836 | AN95: 0.4836 | AO95: 0.4836 | AP95: 0.4836 | AQ95: 0.4836 | AR95: 0.4836 | AS95: 0.4836 | AT95: 0.4836 | AU95: 0.4836 | AV95: 0.4836 | AW95: 0.4836 | AX95: 0.4836 | AY95: 0.4836 | AZ95: 0.4836 | BA95: 0.4836 | BB95: 0.4836 | BC95: 0.4836 | BD95: 0.4836 | BE95: 0.4836 | BF95: 0.4836 | BG95: 0.4836 | BH95: 0.4836 | BI95: 0.4836 | BJ95: 0.4836
A96: 92 | B96: 0.4812 | C96: 0.4812 | D96: 0.4812 | E96: 0.4812 | F96: 0.4812 | G96: 0.4812 | H96: 0.4812 | I96: 0.4812 | J96: 0.4812 | K96: 0.4812 | L96: 0.4812 | M96: 0.4812 | N96: 0.4812 | O96: 0.4812 | P96: 0.4812 | Q96: 0.4812 | R96: 0.4812 | S96: 0.4812 | T96: 0.4812 | U96: 0.4812 | V96: 0.4812 | W96: 0.4812 | X96: 0.4812 | Y96: 0.4812 | Z96: 0.4812 | AA96: 0.4812 | AB96: 0.4812 | AC96: 0.4812 | AD96: 0.4812 | AE96: 0.4812 | AF96: 0.4812 | AG96: 0.4812 | AH96: 0.4812 | AI96: 0.4812 | AJ96: 0.4812 | AK96: 0.4812 | AL96: 0.4812 | AM96: 0.4812 | AN96: 0.4812 | AO96: 0.4812 | AP96: 0.4812 | AQ96: 0.4812 | AR96: 0.4812 | AS96: 0.4812 | AT96: 0.4812 | AU96: 0.4812 | AV96: 0.4812 | AW96: 0.4812 | AX96: 0.4812 | AY96: 0.4812 | AZ96: 0.4812 | BA96: 0.4812 | BB96: 0.4812 | BC96: 0.4812 | BD96: 0.4812 | BE96: 0.4812 | BF96: 0.4812 | BG96: 0.4812 | BH96: 0.4812 | BI96: 0.4812 | BJ96: 0.4812
A97: 93 | B97: 0.4788 | C97: 0.4788 | D97: 0.4788 | E97: 0.4788 | F97: 0.4788 | G97: 0.4788 | H97: 0.4788 | I97: 0.4788 | J97: 0.4788 | K97: 0.4788 | L97: 0.4788 | M97: 0.4788 | N97: 0.4788 | O97: 0.4788 | P97: 0.4788 | Q97: 0.4788 | R97: 0.4788 | S97: 0.4788 | T97: 0.4788 | U97: 0.4788 | V97: 0.4788 | W97: 0.4788 | X97: 0.4788 | Y97: 0.4788 | Z97: 0.4788 | AA97: 0.4788 | AB97: 0.4788 | AC97: 0.4788 | AD97: 0.4788 | AE97: 0.4788 | AF97: 0.4788 | AG97: 0.4788 | AH97: 0.4788 | AI97: 0.4788 | AJ97: 0.4788 | AK97: 0.4788 | AL97: 0.4788 | AM97: 0.4788 | AN97: 0.4788 | AO97: 0.4788 | AP97: 0.4788 | AQ97: 0.4788 | AR97: 0.4788 | AS97: 0.4788 | AT97: 0.4788 | AU97: 0.4788 | AV97: 0.4788 | AW97: 0.4788 | AX97: 0.4788 | AY97: 0.4788 | AZ97: 0.4788 | BA97: 0.4788 | BB97: 0.4788 | BC97: 0.4788 | BD97: 0.4788 | BE97: 0.4788 | BF97: 0.4788 | BG97: 0.4788 | BH97: 0.4788 | BI97: 0.4788 | BJ97: 0.4788
A98: 94 | B98: 0.4764 | C98: 0.4764 | D98: 0.4764 | E98: 0.4764 | F98: 0.4764 | G98: 0.4764 | H98: 0.4764 | I98: 0.4764 | J98: 0.4764 | K98: 0.4764 | L98: 0.4764 | M98: 0.4764 | N98: 0.4764 | O98: 0.4764 | P98: 0.4764 | Q98: 0.4764 | R98: 0.4764 | S98: 0.4764 | T98: 0.4764 | U98: 0.4764 | V98: 0.4764 | W98: 0.4764 | X98: 0.4764 | Y98: 0.4764 | Z98: 0.4764 | AA98: 0.4764 | AB98: 0.4764 | AC98: 0.4764 | AD98: 0.4764 | AE98: 0.4764 | AF98: 0.4764 | AG98: 0.4764 | AH98: 0.4764 | AI98: 0.4764 | AJ98: 0.4764 | AK98: 0.4764 | AL98: 0.4764 | AM98: 0.4764 | AN98: 0.4764 | AO98: 0.4764 | AP98: 0.4764 | AQ98: 0.4764 | AR98: 0.4764 | AS98: 0.4764 | AT98: 0.4764 | AU98: 0.4764 | AV98: 0.4764 | AW98: 0.4764 | AX98: 0.4764 | AY98: 0.4764 | AZ98: 0.4764 | BA98: 0.4764 | BB98: 0.4764 | BC98: 0.4764 | BD98: 0.4764 | BE98: 0.4764 | BF98: 0.4764 | BG98: 0.4764 | BH98: 0.4764 | BI98: 0.4764 | BJ98: 0.4764
A99: 95 | B99: 0.474 | C99: 0.474 | D99: 0.474 | E99: 0.474 | F99: 0.474 | G99: 0.474 | H99: 0.474 | I99: 0.474 | J99: 0.474 | K99: 0.474 | L99: 0.474 | M99: 0.474 | N99: 0.474 | O99: 0.474 | P99: 0.474 | Q99: 0.474 | R99: 0.474 | S99: 0.474 | T99: 0.474 | U99: 0.474 | V99: 0.474 | W99: 0.474 | X99: 0.474 | Y99: 0.474 | Z99: 0.474 | AA99: 0.474 | AB99: 0.474 | AC99: 0.474 | AD99: 0.474 | AE99: 0.474 | AF99: 0.474 | AG99: 0.474 | AH99: =0.45+0.06*MIN(105-$A99,25)/25 -> 0.474 | AI99: 0.474 | AJ99: 0.474 | AK99: 0.474 | AL99: 0.474 | AM99: 0.474 | AN99: 0.474 | AO99: 0.474 | AP99: 0.474 | AQ99: 0.474 | AR99: 0.474 | AS99: 0.474 | AT99: 0.474 | AU99: 0.474 | AV99: 0.474 | AW99: 0.474 | AX99: 0.474 | AY99: 0.474 | AZ99: 0.474 | BA99: 0.474 | BB99: 0.474 | BC99: 0.474 | BD99: 0.474 | BE99: 0.474 | BF99: 0.474 | BG99: 0.474 | BH99: 0.474 | BI99: 0.474 | BJ99: 0.474
A100: 96 | B100: 0.4716 | C100: 0.4716 | D100: 0.4716 | E100: 0.4716 | F100: 0.4716 | G100: 0.4716 | H100: 0.4716 | I100: 0.4716 | J100: 0.4716 | K100: 0.4716 | L100: 0.4716 | M100: 0.4716 | N100: 0.4716 | O100: 0.4716 | P100: 0.4716 | Q100: =0.45+0.06*MIN(105-$A100,25)/25 -> 0.4716 | R100: 0.4716 | S100: 0.4716 | T100: 0.4716 | U100: 0.4716 | V100: 0.4716 | W100: 0.4716 | X100: 0.4716 | Y100: 0.4716 | Z100: 0.4716 | AA100: 0.4716 | AB100: 0.4716 | AC100: 0.4716 | AD100: 0.4716 | AE100: 0.4716 | AF100: 0.4716 | AG100: =0.45+0.06*MIN(105-$A100,25)/25 -> 0.4716 | AH100: 0.4716 | AI100: 0.4716 | AJ100: 0.4716 | AK100: 0.4716 | AL100: 0.4716 | AM100: 0.4716 | AN100: 0.4716 | AO100: 0.4716 | AP100: 0.4716 | AQ100: 0.4716 | AR100: 0.4716 | AS100: 0.4716 | AT100: 0.4716 | AU100: 0.4716 | AV100: 0.4716 | AW100: 0.4716 | AX100: =0.45+0.06*MIN(105-$A100,25)/25 -> 0.4716 | AY100: 0.4716 | AZ100: 0.4716 | BA100: 0.4716 | BB100: 0.4716 | BC100: 0.4716 | BD100: 0.4716 | BE100: 0.4716 | BF100: 0.4716 | BG100: 0.4716 | BH100: 0.4716 | BI100: 0.4716 | BJ100: 0.4716
A101: 97 | B101: =0.45+0.06*MIN(105-$A101,25)/25 -> 0.4692 | C101: 0.4692 | D101: 0.4692 | E101: 0.4692 | F101: 0.4692 | G101: 0.4692 | H101: 0.4692 | I101: 0.4692 | J101: 0.4692 | K101: 0.4692 | L101: 0.4692 | M101: 0.4692 | N101: 0.4692 | O101: 0.4692 | P101: 0.4692 | Q101: 0.4692 | R101: 0.4692 | S101: 0.4692 | T101: 0.4692 | U101: 0.4692 | V101: 0.4692 | W101: 0.4692 | X101: 0.4692 | Y101: 0.4692 | Z101: 0.4692 | AA101: 0.4692 | AB101: 0.4692 | AC101: 0.4692 | AD101: 0.4692 | AE101: 0.4692 | AF101: 0.4692 | AG101: 0.4692 | AH101: 0.4692 | AI101: 0.4692 | AJ101: 0.4692 | AK101: 0.4692 | AL101: 0.4692 | AM101: 0.4692 | AN101: 0.4692 | AO101: 0.4692 | AP101: 0.4692 | AQ101: 0.4692 | AR101: 0.4692 | AS101: 0.4692 | AT101: 0.4692 | AU101: 0.4692 | AV101: 0.4692 | AW101: 0.4692 | AX101: 0.4692 | AY101: 0.4692 | AZ101: 0.4692 | BA101: 0.4692 | BB101: 0.4692 | BC101: 0.4692 | BD101: 0.4692 | BE101: 0.4692 | BF101: 0.4692 | BG101: 0.4692 | BH101: 0.4692 | BI101: 0.4692 | BJ101: 0.4692
A102: 98 | B102: 0.4668 | C102: 0.4668 | D102: 0.4668 | E102: 0.4668 | F102: 0.4668 | G102: 0.4668 | H102: 0.4668 | I102: 0.4668 | J102: 0.4668 | K102: 0.4668 | L102: 0.4668 | M102: 0.4668 | N102: 0.4668 | O102: 0.4668 | P102: 0.4668 | Q102: 0.4668 | R102: 0.4668 | S102: 0.4668 | T102: 0.4668 | U102: 0.4668 | V102: 0.4668 | W102: 0.4668 | X102: 0.4668 | Y102: 0.4668 | Z102: 0.4668 | AA102: 0.4668 | AB102: 0.4668 | AC102: 0.4668 | AD102: 0.4668 | AE102: 0.4668 | AF102: 0.4668 | AG102: 0.4668 | AH102: 0.4668 | AI102: 0.4668 | AJ102: 0.4668 | AK102: 0.4668 | AL102: 0.4668 | AM102: 0.4668 | AN102: 0.4668 | AO102: 0.4668 | AP102: 0.4668 | AQ102: 0.4668 | AR102: 0.4668 | AS102: 0.4668 | AT102: 0.4668 | AU102: 0.4668 | AV102: 0.4668 | AW102: 0.4668 | AX102: 0.4668 | AY102: 0.4668 | AZ102: 0.4668 | BA102: 0.4668 | BB102: 0.4668 | BC102: 0.4668 | BD102: 0.4668 | BE102: 0.4668 | BF102: 0.4668 | BG102: 0.4668 | BH102: 0.4668 | BI102: 0.4668 | BJ102: 0.4668
A103: 99 | B103: 0.4644 | C103: 0.4644 | D103: 0.4644 | E103: 0.4644 | F103: 0.4644 | G103: 0.4644 | H103: 0.4644 | I103: 0.4644 | J103: 0.4644 | K103: 0.4644 | L103: 0.4644 | M103: 0.4644 | N103: 0.4644 | O103: 0.4644 | P103: 0.4644 | Q103: 0.4644 | R103: 0.4644 | S103: 0.4644 | T103: 0.4644 | U103: 0.4644 | V103: 0.4644 | W103: 0.4644 | X103: 0.4644 | Y103: 0.4644 | Z103: 0.4644 | AA103: 0.4644 | AB103: 0.4644 | AC103: 0.4644 | AD103: 0.4644 | AE103: 0.4644 | AF103: 0.4644 | AG103: 0.4644 | AH103: 0.4644 | AI103: 0.4644 | AJ103: 0.4644 | AK103: 0.4644 | AL103: 0.4644 | AM103: 0.4644 | AN103: 0.4644 | AO103: 0.4644 | AP103: 0.4644 | AQ103: 0.4644 | AR103: 0.4644 | AS103: 0.4644 | AT103: 0.4644 | AU103: 0.4644 | AV103: 0.4644 | AW103: 0.4644 | AX103: 0.4644 | AY103: 0.4644 | AZ103: 0.4644 | BA103: 0.4644 | BB103: 0.4644 | BC103: 0.4644 | BD103: 0.4644 | BE103: 0.4644 | BF103: 0.4644 | BG103: 0.4644 | BH103: 0.4644 | BI103: 0.4644 | BJ103: 0.4644
A104: 100 | B104: 0.462 | C104: 0.462 | D104: 0.462 | E104: 0.462 | F104: 0.462 | G104: 0.462 | H104: 0.462 | I104: 0.462 | J104: 0.462 | K104: 0.462 | L104: 0.462 | M104: 0.462 | N104: 0.462 | O104: 0.462 | P104: 0.462 | Q104: 0.462 | R104: 0.462 | S104: 0.462 | T104: 0.462 | U104: 0.462 | V104: 0.462 | W104: 0.462 | X104: 0.462 | Y104: 0.462 | Z104: 0.462 | AA104: 0.462 | AB104: 0.462 | AC104: 0.462 | AD104: 0.462 | AE104: 0.462 | AF104: 0.462 | AG104: 0.462 | AH104: 0.462 | AI104: 0.462 | AJ104: 0.462 | AK104: 0.462 | AL104: 0.462 | AM104: 0.462 | AN104: 0.462 | AO104: 0.462 | AP104: 0.462 | AQ104: 0.462 | AR104: 0.462 | AS104: 0.462 | AT104: 0.462 | AU104: 0.462 | AV104: 0.462 | AW104: 0.462 | AX104: 0.462 | AY104: 0.462 | AZ104: 0.462 | BA104: 0.462 | BB104: 0.462 | BC104: 0.462 | BD104: 0.462 | BE104: 0.462 | BF104: 0.462 | BG104: 0.462 | BH104: 0.462 | BI104: 0.462 | BJ104: 0.462
A105: 101 | B105: 0.4596 | C105: 0.4596 | D105: 0.4596 | E105: 0.4596 | F105: 0.4596 | G105: 0.4596 | H105: 0.4596 | I105: 0.4596 | J105: 0.4596 | K105: 0.4596 | L105: 0.4596 | M105: 0.4596 | N105: 0.4596 | O105: 0.4596 | P105: 0.4596 | Q105: 0.4596 | R105: 0.4596 | S105: 0.4596 | T105: 0.4596 | U105: 0.4596 | V105: 0.4596 | W105: 0.4596 | X105: 0.4596 | Y105: 0.4596 | Z105: 0.4596 | AA105: 0.4596 | AB105: 0.4596 | AC105: 0.4596 | AD105: 0.4596 | AE105: 0.4596 | AF105: 0.4596 | AG105: 0.4596 | AH105: 0.4596 | AI105: 0.4596 | AJ105: 0.4596 | AK105: 0.4596 | AL105: 0.4596 | AM105: 0.4596 | AN105: 0.4596 | AO105: 0.4596 | AP105: 0.4596 | AQ105: 0.4596 | AR105: 0.4596 | AS105: 0.4596 | AT105: 0.4596 | AU105: 0.4596 | AV105: 0.4596 | AW105: 0.4596 | AX105: 0.4596 | AY105: 0.4596 | AZ105: 0.4596 | BA105: 0.4596 | BB105: 0.4596 | BC105: 0.4596 | BD105: 0.4596 | BE105: 0.4596 | BF105: 0.4596 | BG105: 0.4596 | BH105: 0.4596 | BI105: 0.4596 | BJ105: 0.4596
A106: 102 | B106: 0.4572 | C106: 0.4572 | D106: 0.4572 | E106: 0.4572 | F106: 0.4572 | G106: 0.4572 | H106: 0.4572 | I106: 0.4572 | J106: 0.4572 | K106: 0.4572 | L106: 0.4572 | M106: 0.4572 | N106: 0.4572 | O106: 0.4572 | P106: 0.4572 | Q106: 0.4572 | R106: 0.4572 | S106: 0.4572 | T106: 0.4572 | U106: 0.4572 | V106: 0.4572 | W106: 0.4572 | X106: 0.4572 | Y106: 0.4572 | Z106: 0.4572 | AA106: 0.4572 | AB106: 0.4572 | AC106: 0.4572 | AD106: 0.4572 | AE106: 0.4572 | AF106: 0.4572 | AG106: 0.4572 | AH106: 0.4572 | AI106: 0.4572 | AJ106: 0.4572 | AK106: 0.4572 | AL106: 0.4572 | AM106: 0.4572 | AN106: 0.4572 | AO106: 0.4572 | AP106: 0.4572 | AQ106: 0.4572 | AR106: 0.4572 | AS106: 0.4572 | AT106: 0.4572 | AU106: 0.4572 | AV106: 0.4572 | AW106: 0.4572 | AX106: 0.4572 | AY106: 0.4572 | AZ106: 0.4572 | BA106: 0.4572 | BB106: 0.4572 | BC106: 0.4572 | BD106: 0.4572 | BE106: 0.4572 | BF106: 0.4572 | BG106: 0.4572 | BH106: 0.4572 | BI106: 0.4572 | BJ106: 0.4572
A107: 103 | B107: 0.4548 | C107: 0.4548 | D107: 0.4548 | E107: 0.4548 | F107: 0.4548 | G107: 0.4548 | H107: 0.4548 | I107: 0.4548 | J107: 0.4548 | K107: 0.4548 | L107: 0.4548 | M107: 0.4548 | N107: 0.4548 | O107: 0.4548 | P107: 0.4548 | Q107: 0.4548 | R107: 0.4548 | S107: 0.4548 | T107: 0.4548 | U107: 0.4548 | V107: 0.4548 | W107: 0.4548 | X107: 0.4548 | Y107: 0.4548 | Z107: 0.4548 | AA107: 0.4548 | AB107: 0.4548 | AC107: 0.4548 | AD107: 0.4548 | AE107: 0.4548 | AF107: 0.4548 | AG107: 0.4548 | AH107: 0.4548 | AI107: 0.4548 | AJ107: 0.4548 | AK107: 0.4548 | AL107: 0.4548 | AM107: 0.4548 | AN107: 0.4548 | AO107: 0.4548 | AP107: 0.4548 | AQ107: 0.4548 | AR107: 0.4548 | AS107: 0.4548 | AT107: 0.4548 | AU107: 0.4548 | AV107: 0.4548 | AW107: 0.4548 | AX107: 0.4548 | AY107: 0.4548 | AZ107: 0.4548 | BA107: 0.4548 | BB107: 0.4548 | BC107: 0.4548 | BD107: 0.4548 | BE107: 0.4548 | BF107: 0.4548 | BG107: 0.4548 | BH107: 0.4548 | BI107: 0.4548 | BJ107: 0.4548
A108: 104 | B108: 0.4524 | C108: 0.4524 | D108: 0.4524 | E108: 0.4524 | F108: 0.4524 | G108: 0.4524 | H108: 0.4524 | I108: 0.4524 | J108: 0.4524 | K108: 0.4524 | L108: 0.4524 | M108: 0.4524 | N108: 0.4524 | O108: 0.4524 | P108: 0.4524 | Q108: 0.4524 | R108: 0.4524 | S108: 0.4524 | T108: 0.4524 | U108: 0.4524 | V108: 0.4524 | W108: 0.4524 | X108: 0.4524 | Y108: 0.4524 | Z108: 0.4524 | AA108: 0.4524 | AB108: 0.4524 | AC108: 0.4524 | AD108: 0.4524 | AE108: 0.4524 | AF108: 0.4524 | AG108: 0.4524 | AH108: 0.4524 | AI108: 0.4524 | AJ108: 0.4524 | AK108: 0.4524 | AL108: 0.4524 | AM108: 0.4524 | AN108: 0.4524 | AO108: 0.4524 | AP108: 0.4524 | AQ108: 0.4524 | AR108: 0.4524 | AS108: 0.4524 | AT108: 0.4524 | AU108: 0.4524 | AV108: 0.4524 | AW108: 0.4524 | AX108: 0.4524 | AY108: 0.4524 | AZ108: 0.4524 | BA108: 0.4524 | BB108: 0.4524 | BC108: 0.4524 | BD108: 0.4524 | BE108: 0.4524 | BF108: 0.4524 | BG108: 0.4524 | BH108: 0.4524 | BI108: 0.4524 | BJ108: 0.4524
A109: 105 | B109: 0.45 | C109: 0.45 | D109: 0.45 | E109: 0.45 | F109: 0.45 | G109: 0.45 | H109: 0.45 | I109: 0.45 | J109: 0.45 | K109: 0.45 | L109: 0.45 | M109: 0.45 | N109: 0.45 | O109: 0.45 | P109: 0.45 | Q109: 0.45 | R109: 0.45 | S109: 0.45 | T109: 0.45 | U109: 0.45 | V109: 0.45 | W109: 0.45 | X109: 0.45 | Y109: 0.45 | Z109: 0.45 | AA109: 0.45 | AB109: 0.45 | AC109: 0.45 | AD109: 0.45 | AE109: 0.45 | AF109: 0.45 | AG109: 0.45 | AH109: 0.45 | AI109: 0.45 | AJ109: 0.45 | AK109: 0.45 | AL109: 0.45 | AM109: 0.45 | AN109: 0.45 | AO109: 0.45 | AP109: 0.45 | AQ109: 0.45 | AR109: 0.45 | AS109: 0.45 | AT109: 0.45 | AU109: 0.45 | AV109: 0.45 | AW109: 0.45 | AX109: 0.45 | AY109: 0.45 | AZ109: 0.45 | BA109: 0.45 | BB109: 0.45 | BC109: 0.45 | BD109: 0.45 | BE109: 0.45 | BF109: 0.45 | BG109: 0.45 | BH109: 0.45 | BI109: 0.45 | BJ109: 0.45
A110: 106 | B110: 0.4476 | C110: 0.4476 | D110: 0.4476 | E110: 0.4476 | F110: 0.4476 | G110: 0.4476 | H110: 0.4476 | I110: 0.4476 | J110: 0.4476 | K110: 0.4476 | L110: 0.4476 | M110: 0.4476 | N110: 0.4476 | O110: 0.4476 | P110: 0.4476 | Q110: 0.4476 | R110: 0.4476 | S110: 0.4476 | T110: 0.4476 | U110: 0.4476 | V110: 0.4476 | W110: 0.4476 | X110: 0.4476 | Y110: 0.4476 | Z110: 0.4476 | AA110: 0.4476 | AB110: 0.4476 | AC110: 0.4476 | AD110: 0.4476 | AE110: 0.4476 | AF110: 0.4476 | AG110: 0.4476 | AH110: 0.4476 | AI110: 0.4476 | AJ110: 0.4476 | AK110: 0.4476 | AL110: 0.4476 | AM110: 0.4476 | AN110: 0.4476 | AO110: 0.4476 | AP110: 0.4476 | AQ110: 0.4476 | AR110: 0.4476 | AS110: 0.4476 | AT110: 0.4476 | AU110: 0.4476 | AV110: 0.4476 | AW110: 0.4476 | AX110: 0.4476 | AY110: 0.4476 | AZ110: 0.4476 | BA110: 0.4476 | BB110: 0.4476 | BC110: 0.4476 | BD110: 0.4476 | BE110: 0.4476 | BF110: 0.4476 | BG110: 0.4476 | BH110: 0.4476 | BI110: 0.4476 | BJ110: 0.4476
A111: 107 | B111: 0.4452 | C111: 0.4452 | D111: 0.4452 | E111: 0.4452 | F111: 0.4452 | G111: 0.4452 | H111: 0.4452 | I111: 0.4452 | J111: 0.4452 | K111: 0.4452 | L111: 0.4452 | M111: 0.4452 | N111: 0.4452 | O111: 0.4452 | P111: 0.4452 | Q111: 0.4452 | R111: 0.4452 | S111: 0.4452 | T111: 0.4452 | U111: 0.4452 | V111: 0.4452 | W111: 0.4452 | X111: 0.4452 | Y111: 0.4452 | Z111: 0.4452 | AA111: 0.4452 | AB111: 0.4452 | AC111: 0.4452 | AD111: 0.4452 | AE111: 0.4452 | AF111: 0.4452 | AG111: 0.4452 | AH111: 0.4452 | AI111: 0.4452 | AJ111: 0.4452 | AK111: 0.4452 | AL111: 0.4452 | AM111: 0.4452 | AN111: 0.4452 | AO111: 0.4452 | AP111: 0.4452 | AQ111: 0.4452 | AR111: 0.4452 | AS111: 0.4452 | AT111: 0.4452 | AU111: 0.4452 | AV111: 0.4452 | AW111: 0.4452 | AX111: 0.4452 | AY111: 0.4452 | AZ111: 0.4452 | BA111: 0.4452 | BB111: 0.4452 | BC111: 0.4452 | BD111: 0.4452 | BE111: 0.4452 | BF111: 0.4452 | BG111: 0.4452 | BH111: 0.4452 | BI111: 0.4452 | BJ111: 0.4452
A112: 108 | B112: 0.4428 | C112: 0.4428 | D112: 0.4428 | E112: 0.4428 | F112: 0.4428 | G112: 0.4428 | H112: 0.4428 | I112: 0.4428 | J112: 0.4428 | K112: 0.4428 | L112: 0.4428 | M112: 0.4428 | N112: 0.4428 | O112: 0.4428 | P112: 0.4428 | Q112: 0.4428 | R112: 0.4428 | S112: 0.4428 | T112: 0.4428 | U112: 0.4428 | V112: 0.4428 | W112: 0.4428 | X112: 0.4428 | Y112: 0.4428 | Z112: 0.4428 | AA112: 0.4428 | AB112: 0.4428 | AC112: 0.4428 | AD112: 0.4428 | AE112: 0.4428 | AF112: 0.4428 | AG112: 0.4428 | AH112: 0.4428 | AI112: 0.4428 | AJ112: 0.4428 | AK112: 0.4428 | AL112: 0.4428 | AM112: 0.4428 | AN112: 0.4428 | AO112: 0.4428 | AP112: 0.4428 | AQ112: 0.4428 | AR112: 0.4428 | AS112: 0.4428 | AT112: 0.4428 | AU112: 0.4428 | AV112: 0.4428 | AW112: 0.4428 | AX112: 0.4428 | AY112: 0.4428 | AZ112: 0.4428 | BA112: 0.4428 | BB112: 0.4428 | BC112: 0.4428 | BD112: 0.4428 | BE112: 0.4428 | BF112: 0.4428 | BG112: 0.4428 | BH112: 0.4428 | BI112: 0.4428 | BJ112: 0.4428
A113: 109 | B113: 0.4404 | C113: 0.4404 | D113: 0.4404 | E113: 0.4404 | F113: 0.4404 | G113: 0.4404 | H113: 0.4404 | I113: 0.4404 | J113: 0.4404 | K113: 0.4404 | L113: 0.4404 | M113: 0.4404 | N113: 0.4404 | O113: 0.4404 | P113: 0.4404 | Q113: 0.4404 | R113: 0.4404 | S113: 0.4404 | T113: 0.4404 | U113: 0.4404 | V113: 0.4404 | W113: 0.4404 | X113: 0.4404 | Y113: 0.4404 | Z113: 0.4404 | AA113: 0.4404 | AB113: 0.4404 | AC113: 0.4404 | AD113: 0.4404 | AE113: 0.4404 | AF113: 0.4404 | AG113: 0.4404 | AH113: 0.4404 | AI113: 0.4404 | AJ113: 0.4404 | AK113: 0.4404 | AL113: 0.4404 | AM113: 0.4404 | AN113: 0.4404 | AO113: 0.4404 | AP113: 0.4404 | AQ113: 0.4404 | AR113: 0.4404 | AS113: 0.4404 | AT113: 0.4404 | AU113: 0.4404 | AV113: 0.4404 | AW113: 0.4404 | AX113: 0.4404 | AY113: 0.4404 | AZ113: 0.4404 | BA113: 0.4404 | BB113: 0.4404 | BC113: 0.4404 | BD113: 0.4404 | BE113: 0.4404 | BF113: 0.4404 | BG113: 0.4404 | BH113: 0.4404 | BI113: 0.4404 | BJ113: 0.4404
A114: 110 | B114: 0.438 | C114: 0.438 | D114: 0.438 | E114: 0.438 | F114: 0.438 | G114: 0.438 | H114: 0.438 | I114: 0.438 | J114: 0.438 | K114: 0.438 | L114: 0.438 | M114: 0.438 | N114: 0.438 | O114: 0.438 | P114: 0.438 | Q114: 0.438 | R114: 0.438 | S114: 0.438 | T114: 0.438 | U114: 0.438 | V114: 0.438 | W114: 0.438 | X114: 0.438 | Y114: 0.438 | Z114: 0.438 | AA114: 0.438 | AB114: 0.438 | AC114: 0.438 | AD114: 0.438 | AE114: 0.438 | AF114: 0.438 | AG114: 0.438 | AH114: 0.438 | AI114: 0.438 | AJ114: 0.438 | AK114: 0.438 | AL114: 0.438 | AM114: 0.438 | AN114: 0.438 | AO114: 0.438 | AP114: 0.438 | AQ114: 0.438 | AR114: 0.438 | AS114: 0.438 | AT114: 0.438 | AU114: 0.438 | AV114: 0.438 | AW114: 0.438 | AX114: 0.438 | AY114: 0.438 | AZ114: 0.438 | BA114: 0.438 | BB114: 0.438 | BC114: 0.438 | BD114: 0.438 | BE114: 0.438 | BF114: 0.438 | BG114: 0.438 | BH114: 0.438 | BI114: 0.438 | BJ114: 0.438
A115: 111 | B115: 0.4356 | C115: 0.4356 | D115: 0.4356 | E115: 0.4356 | F115: 0.4356 | G115: 0.4356 | H115: 0.4356 | I115: 0.4356 | J115: 0.4356 | K115: 0.4356 | L115: 0.4356 | M115: 0.4356 | N115: 0.4356 | O115: 0.4356 | P115: 0.4356 | Q115: 0.4356 | R115: 0.4356 | S115: 0.4356 | T115: 0.4356 | U115: 0.4356 | V115: 0.4356 | W115: 0.4356 | X115: 0.4356 | Y115: 0.4356 | Z115: 0.4356 | AA115: 0.4356 | AB115: 0.4356 | AC115: 0.4356 | AD115: 0.4356 | AE115: 0.4356 | AF115: =0.45+0.06*MIN(105-$A115,25)/25 -> 0.4356 | AG115: 0.4356 | AH115: 0.4356 | AI115: 0.4356 | AJ115: 0.4356 | AK115: 0.4356 | AL115: 0.4356 | AM115: 0.4356 | AN115: 0.4356 | AO115: 0.4356 | AP115: 0.4356 | AQ115: 0.4356 | AR115: 0.4356 | AS115: 0.4356 | AT115: 0.4356 | AU115: 0.4356 | AV115: 0.4356 | AW115: =0.45+0.06*MIN(105-$A115,25)/25 -> 0.4356 | AX115: 0.4356 | AY115: 0.4356 | AZ115: 0.4356 | BA115: 0.4356 | BB115: 0.4356 | BC115: 0.4356 | BD115: 0.4356 | BE115: 0.4356 | BF115: 0.4356 | BG115: 0.4356 | BH115: 0.4356 | BI115: 0.4356 | BJ115: 0.4356
A116: 112 | B116: 0.4332 | C116: 0.4332 | D116: 0.4332 | E116: 0.4332 | F116: 0.4332 | G116: 0.4332 | H116: 0.4332 | I116: 0.4332 | J116: 0.4332 | K116: 0.4332 | L116: 0.4332 | M116: 0.4332 | N116: 0.4332 | O116: 0.4332 | P116: 0.4332 | Q116: 0.4332 | R116: =0.45+0.06*MIN(105-$A116,25)/25 -> 0.4332 | S116: 0.4332 | T116: 0.4332 | U116: 0.4332 | V116: 0.4332 | W116: 0.4332 | X116: 0.4332 | Y116: 0.4332 | Z116: 0.4332 | AA116: 0.4332 | AB116: 0.4332 | AC116: 0.4332 | AD116: 0.4332 | AE116: 0.4332 | AF116: 0.4332 | AG116: 0.4332 | AH116: 0.4332 | AI116: 0.4332 | AJ116: 0.4332 | AK116: 0.4332 | AL116: 0.4332 | AM116: 0.4332 | AN116: 0.4332 | AO116: 0.4332 | AP116: 0.4332 | AQ116: 0.4332 | AR116: 0.4332 | AS116: 0.4332 | AT116: 0.4332 | AU116: 0.4332 | AV116: =0.45+0.06*MIN(105-$A116,25)/25 -> 0.4332 | AW116: 0.4332 | AX116: 0.4332 | AY116: 0.4332 | AZ116: 0.4332 | BA116: 0.4332 | BB116: 0.4332 | BC116: 0.4332 | BD116: 0.4332 | BE116: 0.4332 | BF116: 0.4332 | BG116: 0.4332 | BH116: 0.4332 | BI116: 0.4332 | BJ116: 0.4332
A117: 113 | B117: =0.45+0.06*MIN(105-$A117,25)/25 -> 0.4308 | C117: 0.4308 | D117: 0.4308 | E117: 0.4308 | F117: 0.4308 | G117: 0.4308 | H117: 0.4308 | I117: 0.4308 | J117: 0.4308 | K117: 0.4308 | L117: 0.4308 | M117: 0.4308 | N117: 0.4308 | O117: 0.4308 | P117: 0.4308 | Q117: 0.4308 | R117: 0.4308 | S117: 0.4308 | T117: 0.4308 | U117: 0.4308 | V117: 0.4308 | W117: 0.4308 | X117: 0.4308 | Y117: 0.4308 | Z117: 0.4308 | AA117: 0.4308 | AB117: 0.4308 | AC117: 0.4308 | AD117: 0.4308 | AE117: 0.4308 | AF117: 0.4308 | AG117: 0.4308 | AH117: 0.4308 | AI117: 0.4308 | AJ117: 0.4308 | AK117: 0.4308 | AL117: 0.4308 | AM117: 0.4308 | AN117: 0.4308 | AO117: 0.4308 | AP117: 0.4308 | AQ117: 0.4308 | AR117: 0.4308 | AS117: 0.4308 | AT117: 0.4308 | AU117: 0.4308 | AV117: 0.4308 | AW117: 0.4308 | AX117: 0.4308 | AY117: 0.4308 | AZ117: 0.4308 | BA117: 0.4308 | BB117: 0.4308 | BC117: 0.4308 | BD117: 0.4308 | BE117: 0.4308 | BF117: 0.4308 | BG117: 0.4308 | BH117: 0.4308 | BI117: 0.4308 | BJ117: 0.4308
A118: 114 | B118: 0.4284 | C118: 0.4284 | D118: 0.4284 | E118: 0.4284 | F118: 0.4284 | G118: 0.4284 | H118: 0.4284 | I118: 0.4284 | J118: 0.4284 | K118: 0.4284 | L118: 0.4284 | M118: 0.4284 | N118: 0.4284 | O118: 0.4284 | P118: 0.4284 | Q118: 0.4284 | R118: 0.4284 | S118: 0.4284 | T118: 0.4284 | U118: 0.4284 | V118: 0.4284 | W118: 0.4284 | X118: 0.4284 | Y118: 0.4284 | Z118: 0.4284 | AA118: 0.4284 | AB118: 0.4284 | AC118: 0.4284 | AD118: 0.4284 | AE118: 0.4284 | AF118: 0.4284 | AG118: 0.4284 | AH118: 0.4284 | AI118: 0.4284 | AJ118: 0.4284 | AK118: 0.4284 | AL118: 0.4284 | AM118: 0.4284 | AN118: 0.4284 | AO118: 0.4284 | AP118: 0.4284 | AQ118: 0.4284 | AR118: 0.4284 | AS118: 0.4284 | AT118: 0.4284 | AU118: 0.4284 | AV118: 0.4284 | AW118: 0.4284 | AX118: 0.4284 | AY118: 0.4284 | AZ118: 0.4284 | BA118: 0.4284 | BB118: 0.4284 | BC118: 0.4284 | BD118: 0.4284 | BE118: 0.4284 | BF118: 0.4284 | BG118: 0.4284 | BH118: 0.4284 | BI118: 0.4284 | BJ118: 0.4284
A119: 115 | B119: 0.426 | C119: 0.426 | D119: 0.426 | E119: 0.426 | F119: 0.426 | G119: 0.426 | H119: 0.426 | I119: 0.426 | J119: 0.426 | K119: 0.426 | L119: 0.426 | M119: 0.426 | N119: 0.426 | O119: 0.426 | P119: 0.426 | Q119: 0.426 | R119: 0.426 | S119: 0.426 | T119: 0.426 | U119: 0.426 | V119: 0.426 | W119: 0.426 | X119: 0.426 | Y119: 0.426 | Z119: 0.426 | AA119: 0.426 | AB119: 0.426 | AC119: 0.426 | AD119: 0.426 | AE119: 0.426 | AF119: 0.426 | AG119: 0.426 | AH119: 0.426 | AI119: 0.426 | AJ119: 0.426 | AK119: 0.426 | AL119: 0.426 | AM119: 0.426 | AN119: 0.426 | AO119: 0.426 | AP119: 0.426 | AQ119: 0.426 | AR119: 0.426 | AS119: 0.426 | AT119: 0.426 | AU119: 0.426 | AV119: 0.426 | AW119: 0.426 | AX119: 0.426 | AY119: 0.426 | AZ119: 0.426 | BA119: 0.426 | BB119: 0.426 | BC119: 0.426 | BD119: 0.426 | BE119: 0.426 | BF119: 0.426 | BG119: 0.426 | BH119: 0.426 | BI119: 0.426 | BJ119: 0.426
A120: 116 | B120: 0.4236 | C120: 0.4236 | D120: 0.4236 | E120: 0.4236 | F120: 0.4236 | G120: 0.4236 | H120: 0.4236 | I120: 0.4236 | J120: 0.4236 | K120: 0.4236 | L120: 0.4236 | M120: 0.4236 | N120: 0.4236 | O120: 0.4236 | P120: 0.4236 | Q120: 0.4236 | R120: 0.4236 | S120: 0.4236 | T120: 0.4236 | U120: 0.4236 | V120: 0.4236 | W120: 0.4236 | X120: 0.4236 | Y120: 0.4236 | Z120: 0.4236 | AA120: 0.4236 | AB120: 0.4236 | AC120: 0.4236 | AD120: 0.4236 | AE120: 0.4236 | AF120: 0.4236 | AG120: 0.4236 | AH120: 0.4236 | AI120: 0.4236 | AJ120: 0.4236 | AK120: 0.4236 | AL120: 0.4236 | AM120: 0.4236 | AN120: 0.4236 | AO120: 0.4236 | AP120: 0.4236 | AQ120: 0.4236 | AR120: 0.4236 | AS120: 0.4236 | AT120: 0.4236 | AU120: 0.4236 | AV120: 0.4236 | AW120: 0.4236 | AX120: 0.4236 | AY120: 0.4236 | AZ120: 0.4236 | BA120: 0.4236 | BB120: 0.4236 | BC120: 0.4236 | BD120: 0.4236 | BE120: 0.4236 | BF120: 0.4236 | BG120: 0.4236 | BH120: 0.4236 | BI120: 0.4236 | BJ120: 0.4236
A121: 117 | B121: 0.4212 | C121: 0.4212 | D121: 0.4212 | E121: 0.4212 | F121: 0.4212 | G121: 0.4212 | H121: 0.4212 | I121: 0.4212 | J121: 0.4212 | K121: 0.4212 | L121: 0.4212 | M121: 0.4212 | N121: 0.4212 | O121: 0.4212 | P121: 0.4212 | Q121: 0.4212 | R121: 0.4212 | S121: 0.4212 | T121: 0.4212 | U121: 0.4212 | V121: 0.4212 | W121: 0.4212 | X121: 0.4212 | Y121: 0.4212 | Z121: 0.4212 | AA121: 0.4212 | AB121: 0.4212 | AC121: 0.4212 | AD121: 0.4212 | AE121: 0.4212 | AF121: 0.4212 | AG121: 0.4212 | AH121: 0.4212 | AI121: 0.4212 | AJ121: 0.4212 | AK121: 0.4212 | AL121: 0.4212 | AM121: 0.4212 | AN121: 0.4212 | AO121: 0.4212 | AP121: 0.4212 | AQ121: 0.4212 | AR121: 0.4212 | AS121: 0.4212 | AT121: 0.4212 | AU121: 0.4212 | AV121: 0.4212 | AW121: 0.4212 | AX121: 0.4212 | AY121: 0.4212 | AZ121: 0.4212 | BA121: 0.4212 | BB121: 0.4212 | BC121: 0.4212 | BD121: 0.4212 | BE121: 0.4212 | BF121: 0.4212 | BG121: 0.4212 | BH121: 0.4212 | BI121: 0.4212 | BJ121: 0.4212
A122: 118 | B122: 0.4188 | C122: 0.4188 | D122: 0.4188 | E122: 0.4188 | F122: 0.4188 | G122: 0.4188 | H122: 0.4188 | I122: 0.4188 | J122: 0.4188 | K122: 0.4188 | L122: 0.4188 | M122: 0.4188 | N122: 0.4188 | O122: 0.4188 | P122: 0.4188 | Q122: 0.4188 | R122: 0.4188 | S122: 0.4188 | T122: 0.4188 | U122: 0.4188 | V122: 0.4188 | W122: 0.4188 | X122: 0.4188 | Y122: 0.4188 | Z122: 0.4188 | AA122: 0.4188 | AB122: 0.4188 | AC122: 0.4188 | AD122: 0.4188 | AE122: 0.4188 | AF122: 0.4188 | AG122: 0.4188 | AH122: 0.4188 | AI122: 0.4188 | AJ122: 0.4188 | AK122: 0.4188 | AL122: 0.4188 | AM122: 0.4188 | AN122: 0.4188 | AO122: 0.4188 | AP122: 0.4188 | AQ122: 0.4188 | AR122: 0.4188 | AS122: 0.4188 | AT122: 0.4188 | AU122: 0.4188 | AV122: 0.4188 | AW122: 0.4188 | AX122: 0.4188 | AY122: 0.4188 | AZ122: 0.4188 | BA122: 0.4188 | BB122: 0.4188 | BC122: 0.4188 | BD122: 0.4188 | BE122: 0.4188 | BF122: 0.4188 | BG122: 0.4188 | BH122: 0.4188 | BI122: 0.4188 | BJ122: 0.4188
A123: 119 | B123: 0.4164 | C123: 0.4164 | D123: 0.4164 | E123: 0.4164 | F123: 0.4164 | G123: 0.4164 | H123: 0.4164 | I123: 0.4164 | J123: 0.4164 | K123: 0.4164 | L123: 0.4164 | M123: 0.4164 | N123: 0.4164 | O123: 0.4164 | P123: 0.4164 | Q123: 0.4164 | R123: 0.4164 | S123: 0.4164 | T123: 0.4164 | U123: 0.4164 | V123: 0.4164 | W123: 0.4164 | X123: 0.4164 | Y123: 0.4164 | Z123: 0.4164 | AA123: 0.4164 | AB123: 0.4164 | AC123: 0.4164 | AD123: 0.4164 | AE123: 0.4164 | AF123: 0.4164 | AG123: 0.4164 | AH123: 0.4164 | AI123: 0.4164 | AJ123: 0.4164 | AK123: 0.4164 | AL123: 0.4164 | AM123: 0.4164 | AN123: 0.4164 | AO123: 0.4164 | AP123: 0.4164 | AQ123: 0.4164 | AR123: 0.4164 | AS123: 0.4164 | AT123: 0.4164 | AU123: 0.4164 | AV123: 0.4164 | AW123: 0.4164 | AX123: 0.4164 | AY123: 0.4164 | AZ123: 0.4164 | BA123: 0.4164 | BB123: 0.4164 | BC123: 0.4164 | BD123: 0.4164 | BE123: 0.4164 | BF123: 0.4164 | BG123: 0.4164 | BH123: 0.4164 | BI123: 0.4164 | BJ123: 0.4164
A124: 120 | B124: 0.414 | C124: 0.414 | D124: 0.414 | E124: 0.414 | F124: 0.414 | G124: 0.414 | H124: 0.414 | I124: 0.414 | J124: 0.414 | K124: 0.414 | L124: 0.414 | M124: 0.414 | N124: 0.414 | O124: 0.414 | P124: 0.414 | Q124: 0.414 | R124: 0.414 | S124: 0.414 | T124: 0.414 | U124: 0.414 | V124: 0.414 | W124: 0.414 | X124: 0.414 | Y124: 0.414 | Z124: 0.414 | AA124: 0.414 | AB124: 0.414 | AC124: 0.414 | AD124: 0.414 | AE124: 0.414 | AF124: 0.414 | AG124: 0.414 | AH124: 0.414 | AI124: 0.414 | AJ124: 0.414 | AK124: 0.414 | AL124: 0.414 | AM124: 0.414 | AN124: 0.414 | AO124: 0.414 | AP124: 0.414 | AQ124: 0.414 | AR124: 0.414 | AS124: 0.414 | AT124: 0.414 | AU124: 0.414 | AV124: 0.414 | AW124: 0.414 | AX124: 0.414 | AY124: 0.414 | AZ124: 0.414 | BA124: 0.414 | BB124: 0.414 | BC124: 0.414 | BD124: 0.414 | BE124: 0.414 | BF124: 0.414 | BG124: 0.414 | BH124: 0.414 | BI124: 0.414 | BJ124: 0.414
A125: 121 | B125: 0.4116 | C125: 0.4116 | D125: 0.4116 | E125: 0.4116 | F125: 0.4116 | G125: 0.4116 | H125: 0.4116 | I125: 0.4116 | J125: 0.4116 | K125: 0.4116 | L125: 0.4116 | M125: 0.4116 | N125: 0.4116 | O125: 0.4116 | P125: 0.4116 | Q125: 0.4116 | R125: 0.4116 | S125: 0.4116 | T125: 0.4116 | U125: 0.4116 | V125: 0.4116 | W125: 0.4116 | X125: 0.4116 | Y125: 0.4116 | Z125: 0.4116 | AA125: 0.4116 | AB125: 0.4116 | AC125: 0.4116 | AD125: 0.4116 | AE125: 0.4116 | AF125: 0.4116 | AG125: 0.4116 | AH125: 0.4116 | AI125: 0.4116 | AJ125: 0.4116 | AK125: 0.4116 | AL125: 0.4116 | AM125: 0.4116 | AN125: 0.4116 | AO125: 0.4116 | AP125: 0.4116 | AQ125: 0.4116 | AR125: 0.4116 | AS125: 0.4116 | AT125: 0.4116 | AU125: 0.4116 | AV125: 0.4116 | AW125: 0.4116 | AX125: 0.4116 | AY125: 0.4116 | AZ125: 0.4116 | BA125: 0.4116 | BB125: 0.4116 | BC125: 0.4116 | BD125: 0.4116 | BE125: 0.4116 | BF125: 0.4116 | BG125: 0.4116 | BH125: 0.4116 | BI125: 0.4116 | BJ125: 0.4116
A126: 122 | B126: 0.4092 | C126: 0.4092 | D126: 0.4092 | E126: 0.4092 | F126: 0.4092 | G126: 0.4092 | H126: 0.4092 | I126: 0.4092 | J126: 0.4092 | K126: 0.4092 | L126: 0.4092 | M126: 0.4092 | N126: 0.4092 | O126: 0.4092 | P126: 0.4092 | Q126: 0.4092 | R126: 0.4092 | S126: 0.4092 | T126: 0.4092 | U126: 0.4092 | V126: 0.4092 | W126: 0.4092 | X126: 0.4092 | Y126: 0.4092 | Z126: 0.4092 | AA126: 0.4092 | AB126: 0.4092 | AC126: 0.4092 | AD126: 0.4092 | AE126: 0.4092 | AF126: 0.4092 | AG126: 0.4092 | AH126: 0.4092 | AI126: 0.4092 | AJ126: 0.4092 | AK126: 0.4092 | AL126: 0.4092 | AM126: 0.4092 | AN126: 0.4092 | AO126: 0.4092 | AP126: 0.4092 | AQ126: 0.4092 | AR126: 0.4092 | AS126: 0.4092 | AT126: 0.4092 | AU126: 0.4092 | AV126: 0.4092 | AW126: 0.4092 | AX126: 0.4092 | AY126: 0.4092 | AZ126: 0.4092 | BA126: 0.4092 | BB126: 0.4092 | BC126: 0.4092 | BD126: 0.4092 | BE126: 0.4092 | BF126: 0.4092 | BG126: 0.4092 | BH126: 0.4092 | BI126: 0.4092 | BJ126: 0.4092
A127: 123 | B127: 0.4068 | C127: 0.4068 | D127: 0.4068 | E127: 0.4068 | F127: 0.4068 | G127: 0.4068 | H127: 0.4068 | I127: 0.4068 | J127: 0.4068 | K127: 0.4068 | L127: 0.4068 | M127: 0.4068 | N127: 0.4068 | O127: 0.4068 | P127: 0.4068 | Q127: 0.4068 | R127: 0.4068 | S127: 0.4068 | T127: 0.4068 | U127: 0.4068 | V127: 0.4068 | W127: 0.4068 | X127: 0.4068 | Y127: 0.4068 | Z127: 0.4068 | AA127: 0.4068 | AB127: 0.4068 | AC127: 0.4068 | AD127: 0.4068 | AE127: 0.4068 | AF127: 0.4068 | AG127: 0.4068 | AH127: 0.4068 | AI127: 0.4068 | AJ127: 0.4068 | AK127: 0.4068 | AL127: 0.4068 | AM127: 0.4068 | AN127: 0.4068 | AO127: 0.4068 | AP127: 0.4068 | AQ127: 0.4068 | AR127: 0.4068 | AS127: 0.4068 | AT127: 0.4068 | AU127: 0.4068 | AV127: 0.4068 | AW127: 0.4068 | AX127: 0.4068 | AY127: 0.4068 | AZ127: 0.4068 | BA127: 0.4068 | BB127: 0.4068 | BC127: 0.4068 | BD127: 0.4068 | BE127: 0.4068 | BF127: 0.4068 | BG127: 0.4068 | BH127: 0.4068 | BI127: 0.4068 | BJ127: 0.4068
A128: 124 | B128: 0.4044 | C128: 0.4044 | D128: 0.4044 | E128: 0.4044 | F128: 0.4044 | G128: 0.4044 | H128: 0.4044 | I128: 0.4044 | J128: 0.4044 | K128: 0.4044 | L128: 0.4044 | M128: 0.4044 | N128: 0.4044 | O128: 0.4044 | P128: 0.4044 | Q128: 0.4044 | R128: 0.4044 | S128: 0.4044 | T128: 0.4044 | U128: 0.4044 | V128: 0.4044 | W128: 0.4044 | X128: 0.4044 | Y128: 0.4044 | Z128: 0.4044 | AA128: 0.4044 | AB128: 0.4044 | AC128: 0.4044 | AD128: 0.4044 | AE128: 0.4044 | AF128: 0.4044 | AG128: 0.4044 | AH128: 0.4044 | AI128: 0.4044 | AJ128: 0.4044 | AK128: 0.4044 | AL128: 0.4044 | AM128: 0.4044 | AN128: 0.4044 | AO128: 0.4044 | AP128: 0.4044 | AQ128: 0.4044 | AR128: 0.4044 | AS128: 0.4044 | AT128: 0.4044 | AU128: 0.4044 | AV128: 0.4044 | AW128: 0.4044 | AX128: 0.4044 | AY128: 0.4044 | AZ128: 0.4044 | BA128: 0.4044 | BB128: 0.4044 | BC128: 0.4044 | BD128: 0.4044 | BE128: 0.4044 | BF128: 0.4044 | BG128: 0.4044 | BH128: 0.4044 | BI128: 0.4044 | BJ128: 0.4044
A129: 125 | B129: 0.402 | C129: 0.402 | D129: 0.402 | E129: 0.402 | F129: 0.402 | G129: 0.402 | H129: 0.402 | I129: 0.402 | J129: 0.402 | K129: 0.402 | L129: 0.402 | M129: 0.402 | N129: 0.402 | O129: 0.402 | P129: 0.402 | Q129: 0.402 | R129: 0.402 | S129: 0.402 | T129: 0.402 | U129: 0.402 | V129: 0.402 | W129: 0.402 | X129: 0.402 | Y129: 0.402 | Z129: 0.402 | AA129: 0.402 | AB129: 0.402 | AC129: 0.402 | AD129: 0.402 | AE129: 0.402 | AF129: 0.402 | AG129: 0.402 | AH129: 0.402 | AI129: 0.402 | AJ129: 0.402 | AK129: 0.402 | AL129: 0.402 | AM129: 0.402 | AN129: 0.402 | AO129: 0.402 | AP129: 0.402 | AQ129: 0.402 | AR129: 0.402 | AS129: 0.402 | AT129: 0.402 | AU129: 0.402 | AV129: 0.402 | AW129: 0.402 | AX129: 0.402 | AY129: 0.402 | AZ129: 0.402 | BA129: 0.402 | BB129: 0.402 | BC129: 0.402 | BD129: 0.402 | BE129: 0.402 | BF129: 0.402 | BG129: 0.402 | BH129: 0.402 | BI129: 0.402 | BJ129: 0.402
A130: 126 | B130: 0.3996 | C130: 0.3996 | D130: 0.3996 | E130: 0.3996 | F130: 0.3996 | G130: 0.3996 | H130: 0.3996 | I130: 0.3996 | J130: 0.3996 | K130: 0.3996 | L130: 0.3996 | M130: 0.3996 | N130: 0.3996 | O130: 0.3996 | P130: 0.3996 | Q130: 0.3996 | R130: 0.3996 | S130: 0.3996 | T130: 0.3996 | U130: 0.3996 | V130: 0.3996 | W130: 0.3996 | X130: 0.3996 | Y130: 0.3996 | Z130: 0.3996 | AA130: 0.3996 | AB130: 0.3996 | AC130: 0.3996 | AD130: 0.3996 | AE130: 0.3996 | AF130: 0.3996 | AG130: 0.3996 | AH130: 0.3996 | AI130: 0.3996 | AJ130: 0.3996 | AK130: 0.3996 | AL130: 0.3996 | AM130: 0.3996 | AN130: 0.3996 | AO130: 0.3996 | AP130: 0.3996 | AQ130: 0.3996 | AR130: 0.3996 | AS130: 0.3996 | AT130: 0.3996 | AU130: 0.3996 | AV130: 0.3996 | AW130: 0.3996 | AX130: 0.3996 | AY130: 0.3996 | AZ130: 0.3996 | BA130: 0.3996 | BB130: 0.3996 | BC130: 0.3996 | BD130: 0.3996 | BE130: 0.3996 | BF130: 0.3996 | BG130: 0.3996 | BH130: 0.3996 | BI130: 0.3996 | BJ130: 0.3996
A131: 127 | B131: 0.3972 | C131: 0.3972 | D131: 0.3972 | E131: 0.3972 | F131: 0.3972 | G131: 0.3972 | H131: 0.3972 | I131: 0.3972 | J131: 0.3972 | K131: 0.3972 | L131: 0.3972 | M131: 0.3972 | N131: 0.3972 | O131: 0.3972 | P131: 0.3972 | Q131: 0.3972 | R131: 0.3972 | S131: 0.3972 | T131: 0.3972 | U131: 0.3972 | V131: 0.3972 | W131: 0.3972 | X131: 0.3972 | Y131: 0.3972 | Z131: 0.3972 | AA131: 0.3972 | AB131: 0.3972 | AC131: 0.3972 | AD131: 0.3972 | AE131: 0.3972 | AF131: 0.3972 | AG131: 0.3972 | AH131: =0.45+0.06*MIN(105-$A131,25)/25 -> 0.3972 | AI131: 0.3972 | AJ131: 0.3972 | AK131: 0.3972 | AL131: 0.3972 | AM131: 0.3972 | AN131: 0.3972 | AO131: 0.3972 | AP131: 0.3972 | AQ131: 0.3972 | AR131: 0.3972 | AS131: 0.3972 | AT131: 0.3972 | AU131: 0.3972 | AV131: 0.3972 | AW131: 0.3972 | AX131: 0.3972 | AY131: 0.3972 | AZ131: 0.3972 | BA131: 0.3972 | BB131: 0.3972 | BC131: 0.3972 | BD131: 0.3972 | BE131: 0.3972 | BF131: 0.3972 | BG131: 0.3972 | BH131: 0.3972 | BI131: 0.3972 | BJ131: 0.3972
A132: 128 | B132: 0.3948 | C132: 0.3948 | D132: 0.3948 | E132: 0.3948 | F132: 0.3948 | G132: 0.3948 | H132: 0.3948 | I132: 0.3948 | J132: 0.3948 | K132: 0.3948 | L132: 0.3948 | M132: 0.3948 | N132: 0.3948 | O132: 0.3948 | P132: 0.3948 | Q132: =0.45+0.06*MIN(105-$A132,25)/25 -> 0.3948 | R132: 0.3948 | S132: 0.3948 | T132: 0.3948 | U132: 0.3948 | V132: 0.3948 | W132: 0.3948 | X132: 0.3948 | Y132: 0.3948 | Z132: 0.3948 | AA132: 0.3948 | AB132: 0.3948 | AC132: 0.3948 | AD132: 0.3948 | AE132: 0.3948 | AF132: 0.3948 | AG132: =0.45+0.06*MIN(105-$A132,25)/25 -> 0.3948 | AH132: 0.3948 | AI132: 0.3948 | AJ132: 0.3948 | AK132: 0.3948 | AL132: 0.3948 | AM132: 0.3948 | AN132: 0.3948 | AO132: 0.3948 | AP132: 0.3948 | AQ132: 0.3948 | AR132: 0.3948 | AS132: 0.3948 | AT132: 0.3948 | AU132: 0.3948 | AV132: 0.3948 | AW132: 0.3948 | AX132: =0.45+0.06*MIN(105-$A132,25)/25 -> 0.3948 | AY132: 0.3948 | AZ132: 0.3948 | BA132: 0.3948 | BB132: 0.3948 | BC132: 0.3948 | BD132: 0.3948 | BE132: 0.3948 | BF132: 0.3948 | BG132: 0.3948 | BH132: 0.3948 | BI132: 0.3948 | BJ132: 0.3948
A133: 129 | B133: =0.45+0.06*MIN(105-$A133,25)/25 -> 0.3924 | C133: 0.3924 | D133: 0.3924 | E133: 0.3924 | F133: 0.3924 | G133: 0.3924 | H133: 0.3924 | I133: 0.3924 | J133: 0.3924 | K133: 0.3924 | L133: 0.3924 | M133: 0.3924 | N133: 0.3924 | O133: 0.3924 | P133: 0.3924 | Q133: 0.3924 | R133: 0.3924 | S133: 0.3924 | T133: 0.3924 | U133: 0.3924 | V133: 0.3924 | W133: 0.3924 | X133: 0.3924 | Y133: 0.3924 | Z133: 0.3924 | AA133: 0.3924 | AB133: 0.3924 | AC133: 0.3924 | AD133: 0.3924 | AE133: 0.3924 | AF133: 0.3924 | AG133: 0.3924 | AH133: 0.3924 | AI133: 0.3924 | AJ133: 0.3924 | AK133: 0.3924 | AL133: 0.3924 | AM133: 0.3924 | AN133: 0.3924 | AO133: 0.3924 | AP133: 0.3924 | AQ133: 0.3924 | AR133: 0.3924 | AS133: 0.3924 | AT133: 0.3924 | AU133: 0.3924 | AV133: 0.3924 | AW133: 0.3924 | AX133: 0.3924 | AY133: 0.3924 | AZ133: 0.3924 | BA133: 0.3924 | BB133: 0.3924 | BC133: 0.3924 | BD133: 0.3924 | BE133: 0.3924 | BF133: 0.3924 | BG133: 0.3924 | BH133: 0.3924 | BI133: 0.3924 | BJ133: 0.3924
A134: 130 | B134: 0.39 | C134: 0.39 | D134: 0.39 | E134: 0.39 | F134: 0.39 | G134: 0.39 | H134: 0.39 | I134: 0.39 | J134: 0.39 | K134: 0.39 | L134: 0.39 | M134: 0.39 | N134: 0.39 | O134: 0.39 | P134: 0.39 | Q134: 0.39 | R134: 0.39 | S134: 0.39 | T134: 0.39 | U134: 0.39 | V134: 0.39 | W134: 0.39 | X134: 0.39 | Y134: 0.39 | Z134: 0.39 | AA134: 0.39 | AB134: 0.39 | AC134: 0.39 | AD134: 0.39 | AE134: 0.39 | AF134: 0.39 | AG134: 0.39 | AH134: 0.39 | AI134: 0.39 | AJ134: 0.39 | AK134: 0.39 | AL134: 0.39 | AM134: 0.39 | AN134: 0.39 | AO134: 0.39 | AP134: 0.39 | AQ134: 0.39 | AR134: 0.39 | AS134: 0.39 | AT134: 0.39 | AU134: 0.39 | AV134: 0.39 | AW134: 0.39 | AX134: 0.39 | AY134: 0.39 | AZ134: 0.39 | BA134: 0.39 | BB134: 0.39 | BC134: 0.39 | BD134: 0.39 | BE134: 0.39 | BF134: 0.39 | BG134: 0.39 | BH134: 0.39 | BI134: 0.39 | BJ134: 0.39
A135: 131 | B135: 0.3876 | C135: 0.3876 | D135: 0.3876 | E135: 0.3876 | F135: 0.3876 | G135: 0.3876 | H135: 0.3876 | I135: 0.3876 | J135: 0.3876 | K135: 0.3876 | L135: 0.3876 | M135: 0.3876 | N135: 0.3876 | O135: 0.3876 | P135: 0.3876 | Q135: 0.3876 | R135: 0.3876 | S135: 0.3876 | T135: 0.3876 | U135: 0.3876 | V135: 0.3876 | W135: 0.3876 | X135: 0.3876 | Y135: 0.3876 | Z135: 0.3876 | AA135: 0.3876 | AB135: 0.3876 | AC135: 0.3876 | AD135: 0.3876 | AE135: 0.3876 | AF135: 0.3876 | AG135: 0.3876 | AH135: 0.3876 | AI135: 0.3876 | AJ135: 0.3876 | AK135: 0.3876 | AL135: 0.3876 | AM135: 0.3876 | AN135: 0.3876 | AO135: 0.3876 | AP135: 0.3876 | AQ135: 0.3876 | AR135: 0.3876 | AS135: 0.3876 | AT135: 0.3876 | AU135: 0.3876 | AV135: 0.3876 | AW135: 0.3876 | AX135: 0.3876 | AY135: 0.3876 | AZ135: 0.3876 | BA135: 0.3876 | BB135: 0.3876 | BC135: 0.3876 | BD135: 0.3876 | BE135: 0.3876 | BF135: 0.3876 | BG135: 0.3876 | BH135: 0.3876 | BI135: 0.3876 | BJ135: 0.3876
A136: 132 | B136: 0.3852 | C136: 0.3852 | D136: 0.3852 | E136: 0.3852 | F136: 0.3852 | G136: 0.3852 | H136: 0.3852 | I136: 0.3852 | J136: 0.3852 | K136: 0.3852 | L136: 0.3852 | M136: 0.3852 | N136: 0.3852 | O136: 0.3852 | P136: 0.3852 | Q136: 0.3852 | R136: 0.3852 | S136: 0.3852 | T136: 0.3852 | U136: 0.3852 | V136: 0.3852 | W136: 0.3852 | X136: 0.3852 | Y136: 0.3852 | Z136: 0.3852 | AA136: 0.3852 | AB136: 0.3852 | AC136: 0.3852 | AD136: 0.3852 | AE136: 0.3852 | AF136: 0.3852 | AG136: 0.3852 | AH136: 0.3852 | AI136: 0.3852 | AJ136: 0.3852 | AK136: 0.3852 | AL136: 0.3852 | AM136: 0.3852 | AN136: 0.3852 | AO136: 0.3852 | AP136: 0.3852 | AQ136: 0.3852 | AR136: 0.3852 | AS136: 0.3852 | AT136: 0.3852 | AU136: 0.3852 | AV136: 0.3852 | AW136: 0.3852 | AX136: 0.3852 | AY136: 0.3852 | AZ136: 0.3852 | BA136: 0.3852 | BB136: 0.3852 | BC136: 0.3852 | BD136: 0.3852 | BE136: 0.3852 | BF136: 0.3852 | BG136: 0.3852 | BH136: 0.3852 | BI136: 0.3852 | BJ136: 0.3852
A137: 133 | B137: 0.3828 | C137: 0.3828 | D137: 0.3828 | E137: 0.3828 | F137: 0.3828 | G137: 0.3828 | H137: 0.3828 | I137: 0.3828 | J137: 0.3828 | K137: 0.3828 | L137: 0.3828 | M137: 0.3828 | N137: 0.3828 | O137: 0.3828 | P137: 0.3828 | Q137: 0.3828 | R137: 0.3828 | S137: 0.3828 | T137: 0.3828 | U137: 0.3828 | V137: 0.3828 | W137: 0.3828 | X137: 0.3828 | Y137: 0.3828 | Z137: 0.3828 | AA137: 0.3828 | AB137: 0.3828 | AC137: 0.3828 | AD137: 0.3828 | AE137: 0.3828 | AF137: 0.3828 | AG137: 0.3828 | AH137: 0.3828 | AI137: 0.3828 | AJ137: 0.3828 | AK137: 0.3828 | AL137: 0.3828 | AM137: 0.3828 | AN137: 0.3828 | AO137: 0.3828 | AP137: 0.3828 | AQ137: 0.3828 | AR137: 0.3828 | AS137: 0.3828 | AT137: 0.3828 | AU137: 0.3828 | AV137: 0.3828 | AW137: 0.3828 | AX137: 0.3828 | AY137: 0.3828 | AZ137: 0.3828 | BA137: 0.3828 | BB137: 0.3828 | BC137: 0.3828 | BD137: 0.3828 | BE137: 0.3828 | BF137: 0.3828 | BG137: 0.3828 | BH137: 0.3828 | BI137: 0.3828 | BJ137: 0.3828
A138: 134 | B138: 0.3804 | C138: 0.3804 | D138: 0.3804 | E138: 0.3804 | F138: 0.3804 | G138: 0.3804 | H138: 0.3804 | I138: 0.3804 | J138: 0.3804 | K138: 0.3804 | L138: 0.3804 | M138: 0.3804 | N138: 0.3804 | O138: 0.3804 | P138: 0.3804 | Q138: 0.3804 | R138: 0.3804 | S138: 0.3804 | T138: 0.3804 | U138: 0.3804 | V138: 0.3804 | W138: 0.3804 | X138: 0.3804 | Y138: 0.3804 | Z138: 0.3804 | AA138: 0.3804 | AB138: 0.3804 | AC138: 0.3804 | AD138: 0.3804 | AE138: 0.3804 | AF138: 0.3804 | AG138: 0.3804 | AH138: 0.3804 | AI138: 0.3804 | AJ138: 0.3804 | AK138: 0.3804 | AL138: 0.3804 | AM138: 0.3804 | AN138: 0.3804 | AO138: 0.3804 | AP138: 0.3804 | AQ138: 0.3804 | AR138: 0.3804 | AS138: 0.3804 | AT138: 0.3804 | AU138: 0.3804 | AV138: 0.3804 | AW138: 0.3804 | AX138: 0.3804 | AY138: 0.3804 | AZ138: 0.3804 | BA138: 0.3804 | BB138: 0.3804 | BC138: 0.3804 | BD138: 0.3804 | BE138: 0.3804 | BF138: 0.3804 | BG138: 0.3804 | BH138: 0.3804 | BI138: 0.3804 | BJ138: 0.3804
A139: 135 | B139: 0.378 | C139: 0.378 | D139: 0.378 | E139: 0.378 | F139: 0.378 | G139: 0.378 | H139: 0.378 | I139: 0.378 | J139: 0.378 | K139: 0.378 | L139: 0.378 | M139: 0.378 | N139: 0.378 | O139: 0.378 | P139: 0.378 | Q139: 0.378 | R139: 0.378 | S139: 0.378 | T139: 0.378 | U139: 0.378 | V139: 0.378 | W139: 0.378 | X139: 0.378 | Y139: 0.378 | Z139: 0.378 | AA139: 0.378 | AB139: 0.378 | AC139: 0.378 | AD139: 0.378 | AE139: 0.378 | AF139: 0.378 | AG139: 0.378 | AH139: 0.378 | AI139: 0.378 | AJ139: 0.378 | AK139: 0.378 | AL139: 0.378 | AM139: 0.378 | AN139: 0.378 | AO139: 0.378 | AP139: 0.378 | AQ139: 0.378 | AR139: 0.378 | AS139: 0.378 | AT139: 0.378 | AU139: 0.378 | AV139: 0.378 | AW139: 0.378 | AX139: 0.378 | AY139: 0.378 | AZ139: 0.378 | BA139: 0.378 | BB139: 0.378 | BC139: 0.378 | BD139: 0.378 | BE139: 0.378 | BF139: 0.378 | BG139: 0.378 | BH139: 0.378 | BI139: 0.378 | BJ139: 0.378
A140: 136 | B140: 0.3756 | C140: 0.3756 | D140: 0.3756 | E140: 0.3756 | F140: 0.3756 | G140: 0.3756 | H140: 0.3756 | I140: 0.3756 | J140: 0.3756 | K140: 0.3756 | L140: 0.3756 | M140: 0.3756 | N140: 0.3756 | O140: 0.3756 | P140: 0.3756 | Q140: 0.3756 | R140: 0.3756 | S140: 0.3756 | T140: 0.3756 | U140: 0.3756 | V140: 0.3756 | W140: 0.3756 | X140: 0.3756 | Y140: 0.3756 | Z140: 0.3756 | AA140: 0.3756 | AB140: 0.3756 | AC140: 0.3756 | AD140: 0.3756 | AE140: 0.3756 | AF140: 0.3756 | AG140: 0.3756 | AH140: 0.3756 | AI140: 0.3756 | AJ140: 0.3756 | AK140: 0.3756 | AL140: 0.3756 | AM140: 0.3756 | AN140: 0.3756 | AO140: 0.3756 | AP140: 0.3756 | AQ140: 0.3756 | AR140: 0.3756 | AS140: 0.3756 | AT140: 0.3756 | AU140: 0.3756 | AV140: 0.3756 | AW140: 0.3756 | AX140: 0.3756 | AY140: 0.3756 | AZ140: 0.3756 | BA140: 0.3756 | BB140: 0.3756 | BC140: 0.3756 | BD140: 0.3756 | BE140: 0.3756 | BF140: 0.3756 | BG140: 0.3756 | BH140: 0.3756 | BI140: 0.3756 | BJ140: 0.3756
A141: 137 | B141: 0.3732 | C141: 0.3732 | D141: 0.3732 | E141: 0.3732 | F141: 0.3732 | G141: 0.3732 | H141: 0.3732 | I141: 0.3732 | J141: 0.3732 | K141: 0.3732 | L141: 0.3732 | M141: 0.3732 | N141: 0.3732 | O141: 0.3732 | P141: 0.3732 | Q141: 0.3732 | R141: 0.3732 | S141: 0.3732 | T141: 0.3732 | U141: 0.3732 | V141: 0.3732 | W141: 0.3732 | X141: 0.3732 | Y141: 0.3732 | Z141: 0.3732 | AA141: 0.3732 | AB141: 0.3732 | AC141: 0.3732 | AD141: 0.3732 | AE141: 0.3732 | AF141: 0.3732 | AG141: 0.3732 | AH141: 0.3732 | AI141: 0.3732 | AJ141: 0.3732 | AK141: 0.3732 | AL141: 0.3732 | AM141: 0.3732 | AN141: 0.3732 | AO141: 0.3732 | AP141: 0.3732 | AQ141: 0.3732 | AR141: 0.3732 | AS141: 0.3732 | AT141: 0.3732 | AU141: 0.3732 | AV141: 0.3732 | AW141: 0.3732 | AX141: 0.3732 | AY141: 0.3732 | AZ141: 0.3732 | BA141: 0.3732 | BB141: 0.3732 | BC141: 0.3732 | BD141: 0.3732 | BE141: 0.3732 | BF141: 0.3732 | BG141: 0.3732 | BH141: 0.3732 | BI141: 0.3732 | BJ141: 0.3732
A142: 138 | B142: 0.3708 | C142: 0.3708 | D142: 0.3708 | E142: 0.3708 | F142: 0.3708 | G142: 0.3708 | H142: 0.3708 | I142: 0.3708 | J142: 0.3708 | K142: 0.3708 | L142: 0.3708 | M142: 0.3708 | N142: 0.3708 | O142: 0.3708 | P142: 0.3708 | Q142: 0.3708 | R142: 0.3708 | S142: 0.3708 | T142: 0.3708 | U142: 0.3708 | V142: 0.3708 | W142: 0.3708 | X142: 0.3708 | Y142: 0.3708 | Z142: 0.3708 | AA142: 0.3708 | AB142: 0.3708 | AC142: 0.3708 | AD142: 0.3708 | AE142: 0.3708 | AF142: 0.3708 | AG142: 0.3708 | AH142: 0.3708 | AI142: 0.3708 | AJ142: 0.3708 | AK142: 0.3708 | AL142: 0.3708 | AM142: 0.3708 | AN142: 0.3708 | AO142: 0.3708 | AP142: 0.3708 | AQ142: 0.3708 | AR142: 0.3708 | AS142: 0.3708 | AT142: 0.3708 | AU142: 0.3708 | AV142: 0.3708 | AW142: 0.3708 | AX142: 0.3708 | AY142: 0.3708 | AZ142: 0.3708 | BA142: 0.3708 | BB142: 0.3708 | BC142: 0.3708 | BD142: 0.3708 | BE142: 0.3708 | BF142: 0.3708 | BG142: 0.3708 | BH142: 0.3708 | BI142: 0.3708 | BJ142: 0.3708
A143: 139 | B143: 0.3684 | C143: 0.3684 | D143: 0.3684 | E143: 0.3684 | F143: 0.3684 | G143: 0.3684 | H143: 0.3684 | I143: 0.3684 | J143: 0.3684 | K143: 0.3684 | L143: 0.3684 | M143: 0.3684 | N143: 0.3684 | O143: 0.3684 | P143: 0.3684 | Q143: 0.3684 | R143: 0.3684 | S143: 0.3684 | T143: 0.3684 | U143: 0.3684 | V143: 0.3684 | W143: 0.3684 | X143: 0.3684 | Y143: 0.3684 | Z143: 0.3684 | AA143: 0.3684 | AB143: 0.3684 | AC143: 0.3684 | AD143: 0.3684 | AE143: 0.3684 | AF143: 0.3684 | AG143: 0.3684 | AH143: 0.3684 | AI143: 0.3684 | AJ143: 0.3684 | AK143: 0.3684 | AL143: 0.3684 | AM143: 0.3684 | AN143: 0.3684 | AO143: 0.3684 | AP143: 0.3684 | AQ143: 0.3684 | AR143: 0.3684 | AS143: 0.3684 | AT143: 0.3684 | AU143: 0.3684 | AV143: 0.3684 | AW143: 0.3684 | AX143: 0.3684 | AY143: 0.3684 | AZ143: 0.3684 | BA143: 0.3684 | BB143: 0.3684 | BC143: 0.3684 | BD143: 0.3684 | BE143: 0.3684 | BF143: 0.3684 | BG143: 0.3684 | BH143: 0.3684 | BI143: 0.3684 | BJ143: 0.3684
A144: 140 | B144: 0.366 | C144: 0.366 | D144: 0.366 | E144: 0.366 | F144: 0.366 | G144: 0.366 | H144: 0.366 | I144: 0.366 | J144: 0.366 | K144: 0.366 | L144: 0.366 | M144: 0.366 | N144: 0.366 | O144: 0.366 | P144: 0.366 | Q144: 0.366 | R144: 0.366 | S144: 0.366 | T144: 0.366 | U144: 0.366 | V144: 0.366 | W144: 0.366 | X144: 0.366 | Y144: 0.366 | Z144: 0.366 | AA144: 0.366 | AB144: 0.366 | AC144: 0.366 | AD144: 0.366 | AE144: 0.366 | AF144: 0.366 | AG144: 0.366 | AH144: 0.366 | AI144: 0.366 | AJ144: 0.366 | AK144: 0.366 | AL144: 0.366 | AM144: 0.366 | AN144: 0.366 | AO144: 0.366 | AP144: 0.366 | AQ144: 0.366 | AR144: 0.366 | AS144: 0.366 | AT144: 0.366 | AU144: 0.366 | AV144: 0.366 | AW144: 0.366 | AX144: 0.366 | AY144: 0.366 | AZ144: 0.366 | BA144: 0.366 | BB144: 0.366 | BC144: 0.366 | BD144: 0.366 | BE144: 0.366 | BF144: 0.366 | BG144: 0.366 | BH144: 0.366 | BI144: 0.366 | BJ144: 0.366
A145: 141 | B145: 0.3636 | C145: 0.3636 | D145: 0.3636 | E145: 0.3636 | F145: 0.3636 | G145: 0.3636 | H145: 0.3636 | I145: 0.3636 | J145: 0.3636 | K145: 0.3636 | L145: 0.3636 | M145: 0.3636 | N145: 0.3636 | O145: 0.3636 | P145: 0.3636 | Q145: 0.3636 | R145: 0.3636 | S145: 0.3636 | T145: 0.3636 | U145: 0.3636 | V145: 0.3636 | W145: 0.3636 | X145: 0.3636 | Y145: 0.3636 | Z145: 0.3636 | AA145: 0.3636 | AB145: 0.3636 | AC145: 0.3636 | AD145: 0.3636 | AE145: 0.3636 | AF145: 0.3636 | AG145: 0.3636 | AH145: 0.3636 | AI145: 0.3636 | AJ145: 0.3636 | AK145: 0.3636 | AL145: 0.3636 | AM145: 0.3636 | AN145: 0.3636 | AO145: 0.3636 | AP145: 0.3636 | AQ145: 0.3636 | AR145: 0.3636 | AS145: 0.3636 | AT145: 0.3636 | AU145: 0.3636 | AV145: 0.3636 | AW145: 0.3636 | AX145: 0.3636 | AY145: 0.3636 | AZ145: 0.3636 | BA145: 0.3636 | BB145: 0.3636 | BC145: 0.3636 | BD145: 0.3636 | BE145: 0.3636 | BF145: 0.3636 | BG145: 0.3636 | BH145: 0.3636 | BI145: 0.3636 | BJ145: 0.3636
A146: 142 | B146: 0.3612 | C146: 0.3612 | D146: 0.3612 | E146: 0.3612 | F146: 0.3612 | G146: 0.3612 | H146: 0.3612 | I146: 0.3612 | J146: 0.3612 | K146: 0.3612 | L146: 0.3612 | M146: 0.3612 | N146: 0.3612 | O146: 0.3612 | P146: 0.3612 | Q146: 0.3612 | R146: 0.3612 | S146: 0.3612 | T146: 0.3612 | U146: 0.3612 | V146: 0.3612 | W146: 0.3612 | X146: 0.3612 | Y146: 0.3612 | Z146: 0.3612 | AA146: 0.3612 | AB146: 0.3612 | AC146: 0.3612 | AD146: 0.3612 | AE146: 0.3612 | AF146: 0.3612 | AG146: 0.3612 | AH146: 0.3612 | AI146: 0.3612 | AJ146: 0.3612 | AK146: 0.3612 | AL146: 0.3612 | AM146: 0.3612 | AN146: 0.3612 | AO146: 0.3612 | AP146: 0.3612 | AQ146: 0.3612 | AR146: 0.3612 | AS146: 0.3612 | AT146: 0.3612 | AU146: 0.3612 | AV146: 0.3612 | AW146: 0.3612 | AX146: 0.3612 | AY146: 0.3612 | AZ146: 0.3612 | BA146: 0.3612 | BB146: 0.3612 | BC146: 0.3612 | BD146: 0.3612 | BE146: 0.3612 | BF146: 0.3612 | BG146: 0.3612 | BH146: 0.3612 | BI146: 0.3612 | BJ146: 0.3612
A147: 143 | B147: 0.3588 | C147: 0.3588 | D147: 0.3588 | E147: 0.3588 | F147: 0.3588 | G147: 0.3588 | H147: 0.3588 | I147: 0.3588 | J147: 0.3588 | K147: 0.3588 | L147: 0.3588 | M147: 0.3588 | N147: 0.3588 | O147: 0.3588 | P147: 0.3588 | Q147: 0.3588 | R147: 0.3588 | S147: 0.3588 | T147: 0.3588 | U147: 0.3588 | V147: 0.3588 | W147: 0.3588 | X147: 0.3588 | Y147: 0.3588 | Z147: 0.3588 | AA147: 0.3588 | AB147: 0.3588 | AC147: 0.3588 | AD147: 0.3588 | AE147: 0.3588 | AF147: =0.45+0.06*MIN(105-$A147,25)/25 -> 0.3588 | AG147: 0.3588 | AH147: 0.3588 | AI147: 0.3588 | AJ147: 0.3588 | AK147: 0.3588 | AL147: 0.3588 | AM147: 0.3588 | AN147: 0.3588 | AO147: 0.3588 | AP147: 0.3588 | AQ147: 0.3588 | AR147: 0.3588 | AS147: 0.3588 | AT147: 0.3588 | AU147: 0.3588 | AV147: 0.3588 | AW147: =0.45+0.06*MIN(105-$A147,25)/25 -> 0.3588 | AX147: 0.3588 | AY147: 0.3588 | AZ147: 0.3588 | BA147: 0.3588 | BB147: 0.3588 | BC147: 0.3588 | BD147: 0.3588 | BE147: 0.3588 | BF147: 0.3588 | BG147: 0.3588 | BH147: 0.3588 | BI147: 0.3588 | BJ147: 0.3588
A148: 144 | B148: 0.3564 | C148: 0.3564 | D148: 0.3564 | E148: 0.3564 | F148: 0.3564 | G148: 0.3564 | H148: 0.3564 | I148: 0.3564 | J148: 0.3564 | K148: 0.3564 | L148: 0.3564 | M148: 0.3564 | N148: 0.3564 | O148: 0.3564 | P148: 0.3564 | Q148: 0.3564 | R148: =0.45+0.06*MIN(105-$A148,25)/25 -> 0.3564 | S148: 0.3564 | T148: 0.3564 | U148: 0.3564 | V148: 0.3564 | W148: 0.3564 | X148: 0.3564 | Y148: 0.3564 | Z148: 0.3564 | AA148: 0.3564 | AB148: 0.3564 | AC148: 0.3564 | AD148: 0.3564 | AE148: 0.3564 | AF148: 0.3564 | AG148: 0.3564 | AH148: 0.3564 | AI148: 0.3564 | AJ148: 0.3564 | AK148: 0.3564 | AL148: 0.3564 | AM148: 0.3564 | AN148: 0.3564 | AO148: 0.3564 | AP148: 0.3564 | AQ148: 0.3564 | AR148: 0.3564 | AS148: 0.3564 | AT148: 0.3564 | AU148: 0.3564 | AV148: =0.45+0.06*MIN(105-$A148,25)/25 -> 0.3564 | AW148: 0.3564 | AX148: 0.3564 | AY148: 0.3564 | AZ148: 0.3564 | BA148: 0.3564 | BB148: 0.3564 | BC148: 0.3564 | BD148: 0.3564 | BE148: 0.3564 | BF148: 0.3564 | BG148: 0.3564 | BH148: 0.3564 | BI148: 0.3564 | BJ148: 0.3564
A149: 145 | B149: =0.45+0.06*MIN(105-$A149,25)/25 -> 0.354 | C149: 0.354 | D149: 0.354 | E149: 0.354 | F149: 0.354 | G149: 0.354 | H149: 0.354 | I149: 0.354 | J149: 0.354 | K149: 0.354 | L149: 0.354 | M149: 0.354 | N149: 0.354 | O149: 0.354 | P149: 0.354 | Q149: 0.354 | R149: 0.354 | S149: 0.354 | T149: 0.354 | U149: 0.354 | V149: 0.354 | W149: 0.354 | X149: 0.354 | Y149: 0.354 | Z149: 0.354 | AA149: 0.354 | AB149: 0.354 | AC149: 0.354 | AD149: 0.354 | AE149: 0.354 | AF149: 0.354 | AG149: 0.354 | AH149: 0.354 | AI149: 0.354 | AJ149: 0.354 | AK149: 0.354 | AL149: 0.354 | AM149: 0.354 | AN149: 0.354 | AO149: 0.354 | AP149: 0.354 | AQ149: 0.354 | AR149: 0.354 | AS149: 0.354 | AT149: 0.354 | AU149: 0.354 | AV149: 0.354 | AW149: 0.354 | AX149: 0.354 | AY149: 0.354 | AZ149: 0.354 | BA149: 0.354 | BB149: 0.354 | BC149: 0.354 | BD149: 0.354 | BE149: 0.354 | BF149: 0.354 | BG149: 0.354 | BH149: 0.354 | BI149: 0.354 | BJ149: 0.354
A150: 146 | B150: 0.3516 | C150: 0.3516 | D150: 0.3516 | E150: 0.3516 | F150: 0.3516 | G150: 0.3516 | H150: 0.3516 | I150: 0.3516 | J150: 0.3516 | K150: 0.3516 | L150: 0.3516 | M150: 0.3516 | N150: 0.3516 | O150: 0.3516 | P150: 0.3516 | Q150: 0.3516 | R150: 0.3516 | S150: 0.3516 | T150: 0.3516 | U150: 0.3516 | V150: 0.3516 | W150: 0.3516 | X150: 0.3516 | Y150: 0.3516 | Z150: 0.3516 | AA150: 0.3516 | AB150: 0.3516 | AC150: 0.3516 | AD150: 0.3516 | AE150: 0.3516 | AF150: 0.3516 | AG150: 0.3516 | AH150: 0.3516 | AI150: 0.3516 | AJ150: 0.3516 | AK150: 0.3516 | AL150: 0.3516 | AM150: 0.3516 | AN150: 0.3516 | AO150: 0.3516 | AP150: 0.3516 | AQ150: 0.3516 | AR150: 0.3516 | AS150: 0.3516 | AT150: 0.3516 | AU150: 0.3516 | AV150: 0.3516 | AW150: 0.3516 | AX150: 0.3516 | AY150: 0.3516 | AZ150: 0.3516 | BA150: 0.3516 | BB150: 0.3516 | BC150: 0.3516 | BD150: 0.3516 | BE150: 0.3516 | BF150: 0.3516 | BG150: 0.3516 | BH150: 0.3516 | BI150: 0.3516 | BJ150: 0.3516
A151: 147 | B151: 0.3492 | C151: 0.3492 | D151: 0.3492 | E151: 0.3492 | F151: 0.3492 | G151: 0.3492 | H151: 0.3492 | I151: 0.3492 | J151: 0.3492 | K151: 0.3492 | L151: 0.3492 | M151: 0.3492 | N151: 0.3492 | O151: 0.3492 | P151: 0.3492 | Q151: 0.3492 | R151: 0.3492 | S151: 0.3492 | T151: 0.3492 | U151: 0.3492 | V151: 0.3492 | W151: 0.3492 | X151: 0.3492 | Y151: 0.3492 | Z151: 0.3492 | AA151: 0.3492 | AB151: 0.3492 | AC151: 0.3492 | AD151: 0.3492 | AE151: 0.3492 | AF151: 0.3492 | AG151: 0.3492 | AH151: 0.3492 | AI151: 0.3492 | AJ151: 0.3492 | AK151: 0.3492 | AL151: 0.3492 | AM151: 0.3492 | AN151: 0.3492 | AO151: 0.3492 | AP151: 0.3492 | AQ151: 0.3492 | AR151: 0.3492 | AS151: 0.3492 | AT151: 0.3492 | AU151: 0.3492 | AV151: 0.3492 | AW151: 0.3492 | AX151: 0.3492 | AY151: 0.3492 | AZ151: 0.3492 | BA151: 0.3492 | BB151: 0.3492 | BC151: 0.3492 | BD151: 0.3492 | BE151: 0.3492 | BF151: 0.3492 | BG151: 0.3492 | BH151: 0.3492 | BI151: 0.3492 | BJ151: 0.3492
A152: 148 | B152: 0.3468 | C152: 0.3468 | D152: 0.3468 | E152: 0.3468 | F152: 0.3468 | G152: 0.3468 | H152: 0.3468 | I152: 0.3468 | J152: 0.3468 | K152: 0.3468 | L152: 0.3468 | M152: 0.3468 | N152: 0.3468 | O152: 0.3468 | P152: 0.3468 | Q152: 0.3468 | R152: 0.3468 | S152: 0.3468 | T152: 0.3468 | U152: 0.3468 | V152: 0.3468 | W152: 0.3468 | X152: 0.3468 | Y152: 0.3468 | Z152: 0.3468 | AA152: 0.3468 | AB152: 0.3468 | AC152: 0.3468 | AD152: 0.3468 | AE152: 0.3468 | AF152: 0.3468 | AG152: 0.3468 | AH152: 0.3468 | AI152: 0.3468 | AJ152: 0.3468 | AK152: 0.3468 | AL152: 0.3468 | AM152: 0.3468 | AN152: 0.3468 | AO152: 0.3468 | AP152: 0.3468 | AQ152: 0.3468 | AR152: 0.3468 | AS152: 0.3468 | AT152: 0.3468 | AU152: 0.3468 | AV152: 0.3468 | AW152: 0.3468 | AX152: 0.3468 | AY152: 0.3468 | AZ152: 0.3468 | BA152: 0.3468 | BB152: 0.3468 | BC152: 0.3468 | BD152: 0.3468 | BE152: 0.3468 | BF152: 0.3468 | BG152: 0.3468 | BH152: 0.3468 | BI152: 0.3468 | BJ152: 0.3468
A153: 149 | B153: 0.3444 | C153: 0.3444 | D153: 0.3444 | E153: 0.3444 | F153: 0.3444 | G153: 0.3444 | H153: 0.3444 | I153: 0.3444 | J153: 0.3444 | K153: 0.3444 | L153: 0.3444 | M153: 0.3444 | N153: 0.3444 | O153: 0.3444 | P153: 0.3444 | Q153: 0.3444 | R153: 0.3444 | S153: 0.3444 | T153: 0.3444 | U153: 0.3444 | V153: 0.3444 | W153: 0.3444 | X153: 0.3444 | Y153: 0.3444 | Z153: 0.3444 | AA153: 0.3444 | AB153: 0.3444 | AC153: 0.3444 | AD153: 0.3444 | AE153: 0.3444 | AF153: 0.3444 | AG153: 0.3444 | AH153: 0.3444 | AI153: 0.3444 | AJ153: 0.3444 | AK153: 0.3444 | AL153: 0.3444 | AM153: 0.3444 | AN153: 0.3444 | AO153: 0.3444 | AP153: 0.3444 | AQ153: 0.3444 | AR153: 0.3444 | AS153: 0.3444 | AT153: 0.3444 | AU153: 0.3444 | AV153: 0.3444 | AW153: 0.3444 | AX153: 0.3444 | AY153: 0.3444 | AZ153: 0.3444 | BA153: 0.3444 | BB153: 0.3444 | BC153: 0.3444 | BD153: 0.3444 | BE153: 0.3444 | BF153: 0.3444 | BG153: 0.3444 | BH153: 0.3444 | BI153: 0.3444 | BJ153: 0.3444
A154: 150 | B154: 0.342 | C154: 0.342 | D154: 0.342 | E154: 0.342 | F154: 0.342 | G154: 0.342 | H154: 0.342 | I154: 0.342 | J154: 0.342 | K154: 0.342 | L154: 0.342 | M154: 0.342 | N154: 0.342 | O154: 0.342 | P154: 0.342 | Q154: 0.342 | R154: 0.342 | S154: 0.342 | T154: 0.342 | U154: 0.342 | V154: 0.342 | W154: 0.342 | X154: 0.342 | Y154: 0.342 | Z154: 0.342 | AA154: 0.342 | AB154: 0.342 | AC154: 0.342 | AD154: 0.342 | AE154: 0.342 | AF154: 0.342 | AG154: 0.342 | AH154: 0.342 | AI154: 0.342 | AJ154: 0.342 | AK154: 0.342 | AL154: 0.342 | AM154: 0.342 | AN154: 0.342 | AO154: 0.342 | AP154: 0.342 | AQ154: 0.342 | AR154: 0.342 | AS154: 0.342 | AT154: 0.342 | AU154: 0.342 | AV154: 0.342 | AW154: 0.342 | AX154: 0.342 | AY154: 0.342 | AZ154: 0.342 | BA154: 0.342 | BB154: 0.342 | BC154: 0.342 | BD154: 0.342 | BE154: 0.342 | BF154: 0.342 | BG154: 0.342 | BH154: 0.342 | BI154: 0.342 | BJ154: 0.342

Sheet Lexis_Female
A1: Lexis grid for females - this is only used if cell D14 on "Parameters" is set to "Grid" and cell D6 is set to "Female"
B3: 1961 | C3: 1962 | D3: 1963 | E3: 1964 | F3: 1965 | G3: 1966 | H3: 1967 | I3: 1968 | J3: 1969 | K3: 1970 | L3: 1971 | M3: 1972 | N3: 1973 | O3: 1974 | P3: 1975 | Q3: 1976 | R3: 1977 | S3: 1978 | T3: 1979 | U3: 1980 | V3: 1981 | W3: 1982 | X3: 1983 | Y3: 1984 | Z3: 1985 | AA3: 1986 | AB3: 1987 | AC3: 1988 | AD3: 1989 | AE3: 1990 | AF3: 1991 | AG3: 1992 | AH3: 1993 | AI3: 1994 | AJ3: 1995 | AK3: 1996 | AL3: 1997 | AM3: 1998 | AN3: 1999 | AO3: 2000 | AP3: 2001 | AQ3: 2002 | AR3: 2003 | AS3: 2004 | AT3: 2005 | AU3: 2006 | AV3: 2007 | AW3: 2008 | AX3: 2009 | AY3: 2010 | AZ3: 2011 | BA3: 2012 | BB3: 2013 | BC3: 2014 | BD3: 2015 | BE3: 2016 | BF3: 2017 | BG3: 2018 | BH3: 2019 | BI3: 2020 | BJ3: 2021
A4: 0 | B4: =0.46+0.05*MIN(105-$A4,20)/20 -> 0.51 | C4: =0.46+0.05*MIN(105-$A4,20)/20 -> 0.51 | D4: 0.51 | E4: 0.51 | F4: 0.51 | G4: 0.51 | H4: 0.51 | I4: 0.51 | J4: 0.51 | K4: 0.51 | L4: 0.51 | M4: 0.51 | N4: 0.51 | O4: 0.51 | P4: 0.51 | Q4: 0.51 | R4: 0.51 | S4: =0.46+0.05*MIN(105-$A4,20)/20 -> 0.51 | T4: 0.51 | U4: 0.51 | V4: 0.51 | W4: 0.51 | X4: 0.51 | Y4: 0.51 | Z4: 0.51 | AA4: 0.51 | AB4: 0.51 | AC4: 0.51 | AD4: 0.51 | AE4: 0.51 | AF4: 0.51 | AG4: 0.51 | AH4: 0.51 | AI4: =0.46+0.05*MIN(105-$A4,20)/20 -> 0.51 | AJ4: 0.51 | AK4: 0.51 | AL4: 0.51 | AM4: 0.51 | AN4: 0.51 | AO4: 0.51 | AP4: 0.51 | AQ4: 0.51 | AR4: 0.51 | AS4: 0.51 | AT4: 0.51 | AU4: 0.51 | AV4: 0.51 | AW4: 0.51 | AX4: 0.51 | AY4: =0.46+0.05*MIN(105-$A4,20)/20 -> 0.51 | AZ4: 0.51 | BA4: 0.51 | BB4: 0.51 | BC4: 0.51 | BD4: 0.51 | BE4: 0.51 | BF4: 0.51 | BG4: 0.51 | BH4: 0.51 | BI4: 0.51 | BJ4: 0.51
A5: 1 | B5: =0.46+0.05*MIN(105-$A5,20)/20 -> 0.51 | C5: 0.51 | D5: 0.51 | E5: 0.51 | F5: 0.51 | G5: 0.51 | H5: 0.51 | I5: 0.51 | J5: 0.51 | K5: 0.51 | L5: 0.51 | M5: 0.51 | N5: 0.51 | O5: 0.51 | P5: 0.51 | Q5: 0.51 | R5: 0.51 | S5: 0.51 | T5: 0.51 | U5: 0.51 | V5: 0.51 | W5: 0.51 | X5: 0.51 | Y5: 0.51 | Z5: 0.51 | AA5: 0.51 | AB5: 0.51 | AC5: 0.51 | AD5: 0.51 | AE5: 0.51 | AF5: 0.51 | AG5: 0.51 | AH5: 0.51 | AI5: 0.51 | AJ5: 0.51 | AK5: 0.51 | AL5: 0.51 | AM5: 0.51 | AN5: 0.51 | AO5: 0.51 | AP5: 0.51 | AQ5: 0.51 | AR5: 0.51 | AS5: 0.51 | AT5: 0.51 | AU5: 0.51 | AV5: 0.51 | AW5: 0.51 | AX5: 0.51 | AY5: 0.51 | AZ5: 0.51 | BA5: 0.51 | BB5: 0.51 | BC5: 0.51 | BD5: 0.51 | BE5: 0.51 | BF5: 0.51 | BG5: 0.51 | BH5: 0.51 | BI5: 0.51 | BJ5: 0.51
A6: 2 | B6: 0.51 | C6: 0.51 | D6: 0.51 | E6: 0.51 | F6: 0.51 | G6: 0.51 | H6: 0.51 | I6: 0.51 | J6: 0.51 | K6: 0.51 | L6: 0.51 | M6: 0.51 | N6: 0.51 | O6: 0.51 | P6: 0.51 | Q6: 0.51 | R6: 0.51 | S6: 0.51 | T6: 0.51 | U6: 0.51 | V6: 0.51 | W6: 0.51 | X6: 0.51 | Y6: 0.51 | Z6: 0.51 | AA6: 0.51 | AB6: 0.51 | AC6: 0.51 | AD6: 0.51 | AE6: 0.51 | AF6: 0.51 | AG6: 0.51 | AH6: 0.51 | AI6: 0.51 | AJ6: 0.51 | AK6: 0.51 | AL6: 0.51 | AM6: 0.51 | AN6: 0.51 | AO6: 0.51 | AP6: 0.51 | AQ6: 0.51 | AR6: 0.51 | AS6: 0.51 | AT6: 0.51 | AU6: 0.51 | AV6: 0.51 | AW6: 0.51 | AX6: 0.51 | AY6: 0.51 | AZ6: 0.51 | BA6: 0.51 | BB6: 0.51 | BC6: 0.51 | BD6: 0.51 | BE6: 0.51 | BF6: 0.51 | BG6: 0.51 | BH6: 0.51 | BI6: 0.51 | BJ6: 0.51
A7: 3 | B7: 0.51 | C7: 0.51 | D7: 0.51 | E7: 0.51 | F7: 0.51 | G7: 0.51 | H7: 0.51 | I7: 0.51 | J7: 0.51 | K7: 0.51 | L7: 0.51 | M7: 0.51 | N7: 0.51 | O7: 0.51 | P7: 0.51 | Q7: 0.51 | R7: 0.51 | S7: 0.51 | T7: 0.51 | U7: 0.51 | V7: 0.51 | W7: 0.51 | X7: 0.51 | Y7: 0.51 | Z7: 0.51 | AA7: 0.51 | AB7: 0.51 | AC7: 0.51 | AD7: 0.51 | AE7: 0.51 | AF7: 0.51 | AG7: 0.51 | AH7: 0.51 | AI7: 0.51 | AJ7: 0.51 | AK7: 0.51 | AL7: 0.51 | AM7: 0.51 | AN7: 0.51 | AO7: 0.51 | AP7: 0.51 | AQ7: 0.51 | AR7: 0.51 | AS7: 0.51 | AT7: 0.51 | AU7: 0.51 | AV7: 0.51 | AW7: 0.51 | AX7: 0.51 | AY7: 0.51 | AZ7: 0.51 | BA7: 0.51 | BB7: 0.51 | BC7: 0.51 | BD7: 0.51 | BE7: 0.51 | BF7: 0.51 | BG7: 0.51 | BH7: 0.51 | BI7: 0.51 | BJ7: 0.51
A8: 4 | B8: 0.51 | C8: 0.51 | D8: 0.51 | E8: 0.51 | F8: 0.51 | G8: 0.51 | H8: 0.51 | I8: 0.51 | J8: 0.51 | K8: 0.51 | L8: 0.51 | M8: 0.51 | N8: 0.51 | O8: 0.51 | P8: 0.51 | Q8: 0.51 | R8: 0.51 | S8: 0.51 | T8: 0.51 | U8: 0.51 | V8: 0.51 | W8: 0.51 | X8: 0.51 | Y8: 0.51 | Z8: 0.51 | AA8: 0.51 | AB8: 0.51 | AC8: 0.51 | AD8: 0.51 | AE8: 0.51 | AF8: 0.51 | AG8: 0.51 | AH8: 0.51 | AI8: 0.51 | AJ8: 0.51 | AK8: 0.51 | AL8: 0.51 | AM8: 0.51 | AN8: 0.51 | AO8: 0.51 | AP8: 0.51 | AQ8: 0.51 | AR8: 0.51 | AS8: 0.51 | AT8: 0.51 | AU8: 0.51 | AV8: 0.51 | AW8: 0.51 | AX8: 0.51 | AY8: 0.51 | AZ8: 0.51 | BA8: 0.51 | BB8: 0.51 | BC8: 0.51 | BD8: 0.51 | BE8: 0.51 | BF8: 0.51 | BG8: 0.51 | BH8: 0.51 | BI8: 0.51 | BJ8: 0.51
A9: 5 | B9: 0.51 | C9: 0.51 | D9: 0.51 | E9: 0.51 | F9: 0.51 | G9: 0.51 | H9: 0.51 | I9: 0.51 | J9: 0.51 | K9: 0.51 | L9: 0.51 | M9: 0.51 | N9: 0.51 | O9: 0.51 | P9: 0.51 | Q9: 0.51 | R9: 0.51 | S9: 0.51 | T9: 0.51 | U9: 0.51 | V9: 0.51 | W9: 0.51 | X9: 0.51 | Y9: 0.51 | Z9: 0.51 | AA9: 0.51 | AB9: 0.51 | AC9: 0.51 | AD9: 0.51 | AE9: 0.51 | AF9: 0.51 | AG9: 0.51 | AH9: 0.51 | AI9: 0.51 | AJ9: 0.51 | AK9: 0.51 | AL9: 0.51 | AM9: 0.51 | AN9: 0.51 | AO9: 0.51 | AP9: 0.51 | AQ9: 0.51 | AR9: 0.51 | AS9: 0.51 | AT9: 0.51 | AU9: 0.51 | AV9: 0.51 | AW9: 0.51 | AX9: 0.51 | AY9: 0.51 | AZ9: 0.51 | BA9: 0.51 | BB9: 0.51 | BC9: 0.51 | BD9: 0.51 | BE9: 0.51 | BF9: 0.51 | BG9: 0.51 | BH9: 0.51 | BI9: 0.51 | BJ9: 0.51
A10: 6 | B10: 0.51 | C10: 0.51 | D10: 0.51 | E10: 0.51 | F10: 0.51 | G10: 0.51 | H10: 0.51 | I10: 0.51 | J10: 0.51 | K10: 0.51 | L10: 0.51 | M10: 0.51 | N10: 0.51 | O10: 0.51 | P10: 0.51 | Q10: 0.51 | R10: 0.51 | S10: 0.51 | T10: 0.51 | U10: 0.51 | V10: 0.51 | W10: 0.51 | X10: 0.51 | Y10: 0.51 | Z10: 0.51 | AA10: 0.51 | AB10: 0.51 | AC10: 0.51 | AD10: 0.51 | AE10: 0.51 | AF10: 0.51 | AG10: 0.51 | AH10: 0.51 | AI10: 0.51 | AJ10: 0.51 | AK10: 0.51 | AL10: 0.51 | AM10: 0.51 | AN10: 0.51 | AO10: 0.51 | AP10: 0.51 | AQ10: 0.51 | AR10: 0.51 | AS10: 0.51 | AT10: 0.51 | AU10: 0.51 | AV10: 0.51 | AW10: 0.51 | AX10: 0.51 | AY10: 0.51 | AZ10: 0.51 | BA10: 0.51 | BB10: 0.51 | BC10: 0.51 | BD10: 0.51 | BE10: 0.51 | BF10: 0.51 | BG10: 0.51 | BH10: 0.51 | BI10: 0.51 | BJ10: 0.51
A11: 7 | B11: 0.51 | C11: 0.51 | D11: 0.51 | E11: 0.51 | F11: 0.51 | G11: 0.51 | H11: 0.51 | I11: 0.51 | J11: 0.51 | K11: 0.51 | L11: 0.51 | M11: 0.51 | N11: 0.51 | O11: 0.51 | P11: 0.51 | Q11: 0.51 | R11: 0.51 | S11: 0.51 | T11: 0.51 | U11: 0.51 | V11: 0.51 | W11: 0.51 | X11: 0.51 | Y11: 0.51 | Z11: 0.51 | AA11: 0.51 | AB11: 0.51 | AC11: 0.51 | AD11: 0.51 | AE11: 0.51 | AF11: 0.51 | AG11: 0.51 | AH11: 0.51 | AI11: 0.51 | AJ11: 0.51 | AK11: 0.51 | AL11: 0.51 | AM11: 0.51 | AN11: 0.51 | AO11: 0.51 | AP11: 0.51 | AQ11: 0.51 | AR11: 0.51 | AS11: 0.51 | AT11: 0.51 | AU11: 0.51 | AV11: 0.51 | AW11: 0.51 | AX11: 0.51 | AY11: 0.51 | AZ11: 0.51 | BA11: 0.51 | BB11: 0.51 | BC11: 0.51 | BD11: 0.51 | BE11: 0.51 | BF11: 0.51 | BG11: 0.51 | BH11: 0.51 | BI11: 0.51 | BJ11: 0.51
A12: 8 | B12: 0.51 | C12: 0.51 | D12: 0.51 | E12: 0.51 | F12: 0.51 | G12: 0.51 | H12: 0.51 | I12: 0.51 | J12: 0.51 | K12: 0.51 | L12: 0.51 | M12: 0.51 | N12: 0.51 | O12: 0.51 | P12: 0.51 | Q12: 0.51 | R12: 0.51 | S12: 0.51 | T12: 0.51 | U12: 0.51 | V12: 0.51 | W12: 0.51 | X12: 0.51 | Y12: 0.51 | Z12: 0.51 | AA12: 0.51 | AB12: 0.51 | AC12: 0.51 | AD12: 0.51 | AE12: 0.51 | AF12: 0.51 | AG12: 0.51 | AH12: 0.51 | AI12: 0.51 | AJ12: 0.51 | AK12: 0.51 | AL12: 0.51 | AM12: 0.51 | AN12: 0.51 | AO12: 0.51 | AP12: 0.51 | AQ12: 0.51 | AR12: 0.51 | AS12: 0.51 | AT12: 0.51 | AU12: 0.51 | AV12: 0.51 | AW12: 0.51 | AX12: 0.51 | AY12: 0.51 | AZ12: 0.51 | BA12: 0.51 | BB12: 0.51 | BC12: 0.51 | BD12: 0.51 | BE12: 0.51 | BF12: 0.51 | BG12: 0.51 | BH12: 0.51 | BI12: 0.51 | BJ12: 0.51
A13: 9 | B13: 0.51 | C13: 0.51 | D13: 0.51 | E13: 0.51 | F13: 0.51 | G13: 0.51 | H13: 0.51 | I13: 0.51 | J13: 0.51 | K13: 0.51 | L13: 0.51 | M13: 0.51 | N13: 0.51 | O13: 0.51 | P13: 0.51 | Q13: 0.51 | R13: 0.51 | S13: 0.51 | T13: 0.51 | U13: 0.51 | V13: 0.51 | W13: 0.51 | X13: 0.51 | Y13: 0.51 | Z13: 0.51 | AA13: 0.51 | AB13: 0.51 | AC13: 0.51 | AD13: 0.51 | AE13: 0.51 | AF13: 0.51 | AG13: 0.51 | AH13: 0.51 | AI13: 0.51 | AJ13: 0.51 | AK13: 0.51 | AL13: 0.51 | AM13: 0.51 | AN13: 0.51 | AO13: 0.51 | AP13: 0.51 | AQ13: 0.51 | AR13: 0.51 | AS13: 0.51 | AT13: 0.51 | AU13: 0.51 | AV13: 0.51 | AW13: 0.51 | AX13: 0.51 | AY13: 0.51 | AZ13: 0.51 | BA13: 0.51 | BB13: 0.51 | BC13: 0.51 | BD13: 0.51 | BE13: 0.51 | BF13: 0.51 | BG13: 0.51 | BH13: 0.51 | BI13: 0.51 | BJ13: 0.51
A14: 10 | B14: 0.51 | C14: 0.51 | D14: 0.51 | E14: 0.51 | F14: 0.51 | G14: 0.51 | H14: 0.51 | I14: 0.51 | J14: 0.51 | K14: 0.51 | L14: 0.51 | M14: 0.51 | N14: 0.51 | O14: 0.51 | P14: 0.51 | Q14: 0.51 | R14: 0.51 | S14: 0.51 | T14: 0.51 | U14: 0.51 | V14: 0.51 | W14: 0.51 | X14: 0.51 | Y14: 0.51 | Z14: 0.51 | AA14: 0.51 | AB14: 0.51 | AC14: 0.51 | AD14: 0.51 | AE14: 0.51 | AF14: 0.51 | AG14: 0.51 | AH14: 0.51 | AI14: 0.51 | AJ14: 0.51 | AK14: 0.51 | AL14: 0.51 | AM14: 0.51 | AN14: 0.51 | AO14: 0.51 | AP14: 0.51 | AQ14: 0.51 | AR14: 0.51 | AS14: 0.51 | AT14: 0.51 | AU14: 0.51 | AV14: 0.51 | AW14: 0.51 | AX14: 0.51 | AY14: 0.51 | AZ14: 0.51 | BA14: 0.51 | BB14: 0.51 | BC14: 0.51 | BD14: 0.51 | BE14: 0.51 | BF14: 0.51 | BG14: 0.51 | BH14: 0.51 | BI14: 0.51 | BJ14: 0.51
A15: 11 | B15: 0.51 | C15: 0.51 | D15: 0.51 | E15: 0.51 | F15: 0.51 | G15: 0.51 | H15: 0.51 | I15: 0.51 | J15: 0.51 | K15: 0.51 | L15: 0.51 | M15: 0.51 | N15: 0.51 | O15: 0.51 | P15: 0.51 | Q15: 0.51 | R15: 0.51 | S15: 0.51 | T15: 0.51 | U15: 0.51 | V15: 0.51 | W15: 0.51 | X15: 0.51 | Y15: 0.51 | Z15: 0.51 | AA15: 0.51 | AB15: 0.51 | AC15: 0.51 | AD15: 0.51 | AE15: 0.51 | AF15: 0.51 | AG15: 0.51 | AH15: 0.51 | AI15: 0.51 | AJ15: 0.51 | AK15: 0.51 | AL15: 0.51 | AM15: 0.51 | AN15: 0.51 | AO15: 0.51 | AP15: 0.51 | AQ15: 0.51 | AR15: 0.51 | AS15: 0.51 | AT15: 0.51 | AU15: 0.51 | AV15: 0.51 | AW15: 0.51 | AX15: 0.51 | AY15: 0.51 | AZ15: 0.51 | BA15: 0.51 | BB15: 0.51 | BC15: 0.51 | BD15: 0.51 | BE15: 0.51 | BF15: 0.51 | BG15: 0.51 | BH15: 0.51 | BI15: 0.51 | BJ15: 0.51
A16: 12 | B16: 0.51 | C16: 0.51 | D16: 0.51 | E16: 0.51 | F16: 0.51 | G16: 0.51 | H16: 0.51 | I16: 0.51 | J16: 0.51 | K16: 0.51 | L16: 0.51 | M16: 0.51 | N16: 0.51 | O16: 0.51 | P16: 0.51 | Q16: 0.51 | R16: 0.51 | S16: 0.51 | T16: 0.51 | U16: 0.51 | V16: 0.51 | W16: 0.51 | X16: 0.51 | Y16: 0.51 | Z16: 0.51 | AA16: 0.51 | AB16: 0.51 | AC16: 0.51 | AD16: 0.51 | AE16: 0.51 | AF16: 0.51 | AG16: 0.51 | AH16: 0.51 | AI16: 0.51 | AJ16: 0.51 | AK16: 0.51 | AL16: 0.51 | AM16: 0.51 | AN16: 0.51 | AO16: 0.51 | AP16: 0.51 | AQ16: 0.51 | AR16: 0.51 | AS16: 0.51 | AT16: 0.51 | AU16: 0.51 | AV16: 0.51 | AW16: 0.51 | AX16: 0.51 | AY16: 0.51 | AZ16: 0.51 | BA16: 0.51 | BB16: 0.51 | BC16: 0.51 | BD16: 0.51 | BE16: 0.51 | BF16: 0.51 | BG16: 0.51 | BH16: 0.51 | BI16: 0.51 | BJ16: 0.51
A17: 13 | B17: 0.51 | C17: 0.51 | D17: 0.51 | E17: 0.51 | F17: 0.51 | G17: 0.51 | H17: 0.51 | I17: 0.51 | J17: 0.51 | K17: 0.51 | L17: 0.51 | M17: 0.51 | N17: 0.51 | O17: 0.51 | P17: 0.51 | Q17: 0.51 | R17: 0.51 | S17: 0.51 | T17: 0.51 | U17: 0.51 | V17: 0.51 | W17: 0.51 | X17: 0.51 | Y17: 0.51 | Z17: 0.51 | AA17: 0.51 | AB17: 0.51 | AC17: 0.51 | AD17: 0.51 | AE17: 0.51 | AF17: 0.51 | AG17: 0.51 | AH17: 0.51 | AI17: 0.51 | AJ17: 0.51 | AK17: 0.51 | AL17: 0.51 | AM17: 0.51 | AN17: 0.51 | AO17: 0.51 | AP17: 0.51 | AQ17: 0.51 | AR17: 0.51 | AS17: 0.51 | AT17: 0.51 | AU17: 0.51 | AV17: 0.51 | AW17: 0.51 | AX17: 0.51 | AY17: 0.51 | AZ17: 0.51 | BA17: 0.51 | BB17: 0.51 | BC17: 0.51 | BD17: 0.51 | BE17: 0.51 | BF17: 0.51 | BG17: 0.51 | BH17: 0.51 | BI17: 0.51 | BJ17: 0.51
A18: 14 | B18: 0.51 | C18: 0.51 | D18: 0.51 | E18: 0.51 | F18: 0.51 | G18: 0.51 | H18: 0.51 | I18: 0.51 | J18: 0.51 | K18: 0.51 | L18: 0.51 | M18: 0.51 | N18: 0.51 | O18: 0.51 | P18: 0.51 | Q18: 0.51 | R18: 0.51 | S18: 0.51 | T18: 0.51 | U18: 0.51 | V18: 0.51 | W18: 0.51 | X18: 0.51 | Y18: 0.51 | Z18: 0.51 | AA18: 0.51 | AB18: 0.51 | AC18: 0.51 | AD18: 0.51 | AE18: 0.51 | AF18: 0.51 | AG18: 0.51 | AH18: 0.51 | AI18: 0.51 | AJ18: 0.51 | AK18: 0.51 | AL18: 0.51 | AM18: 0.51 | AN18: 0.51 | AO18: 0.51 | AP18: 0.51 | AQ18: 0.51 | AR18: 0.51 | AS18: 0.51 | AT18: 0.51 | AU18: 0.51 | AV18: 0.51 | AW18: 0.51 | AX18: 0.51 | AY18: 0.51 | AZ18: 0.51 | BA18: 0.51 | BB18: 0.51 | BC18: 0.51 | BD18: 0.51 | BE18: 0.51 | BF18: 0.51 | BG18: 0.51 | BH18: 0.51 | BI18: 0.51 | BJ18: 0.51
A19: 15 | B19: 0.51 | C19: 0.51 | D19: 0.51 | E19: 0.51 | F19: 0.51 | G19: 0.51 | H19: 0.51 | I19: 0.51 | J19: 0.51 | K19: 0.51 | L19: 0.51 | M19: 0.51 | N19: 0.51 | O19: 0.51 | P19: 0.51 | Q19: 0.51 | R19: =0.46+0.05*MIN(105-$A19,20)/20 -> 0.51 | S19: 0.51 | T19: 0.51 | U19: 0.51 | V19: 0.51 | W19: 0.51 | X19: 0.51 | Y19: 0.51 | Z19: 0.51 | AA19: 0.51 | AB19: 0.51 | AC19: 0.51 | AD19: 0.51 | AE19: 0.51 | AF19: 0.51 | AG19: 0.51 | AH19: =0.46+0.05*MIN(105-$A19,20)/20 -> 0.51 | AI19: 0.51 | AJ19: 0.51 | AK19: 0.51 | AL19: 0.51 | AM19: 0.51 | AN19: 0.51 | AO19: 0.51 | AP19: 0.51 | AQ19: 0.51 | AR19: 0.51 | AS19: 0.51 | AT19: 0.51 | AU19: 0.51 | AV19: 0.51 | AW19: 0.51 | AX19: =0.46+0.05*MIN(105-$A19,20)/20 -> 0.51 | AY19: 0.51 | AZ19: 0.51 | BA19: 0.51 | BB19: 0.51 | BC19: 0.51 | BD19: 0.51 | BE19: 0.51 | BF19: 0.51 | BG19: 0.51 | BH19: 0.51 | BI19: 0.51 | BJ19: 0.51
A20: 16 | B20: 0.51 | C20: 0.51 | D20: 0.51 | E20: 0.51 | F20: 0.51 | G20: 0.51 | H20: 0.51 | I20: 0.51 | J20: 0.51 | K20: 0.51 | L20: 0.51 | M20: 0.51 | N20: 0.51 | O20: 0.51 | P20: 0.51 | Q20: 0.51 | R20: 0.51 | S20: 0.51 | T20: 0.51 | U20: 0.51 | V20: 0.51 | W20: 0.51 | X20: 0.51 | Y20: 0.51 | Z20: 0.51 | AA20: 0.51 | AB20: 0.51 | AC20: 0.51 | AD20: 0.51 | AE20: 0.51 | AF20: 0.51 | AG20: 0.51 | AH20: 0.51 | AI20: 0.51 | AJ20: 0.51 | AK20: 0.51 | AL20: 0.51 | AM20: 0.51 | AN20: 0.51 | AO20: 0.51 | AP20: 0.51 | AQ20: 0.51 | AR20: 0.51 | AS20: 0.51 | AT20: 0.51 | AU20: 0.51 | AV20: 0.51 | AW20: 0.51 | AX20: 0.51 | AY20: 0.51 | AZ20: 0.51 | BA20: 0.51 | BB20: 0.51 | BC20: 0.51 | BD20: 0.51 | BE20: 0.51 | BF20: 0.51 | BG20: 0.51 | BH20: 0.51 | BI20: 0.51 | BJ20: 0.51
A21: 17 | B21: =0.46+0.05*MIN(105-$A21,20)/20 -> 0.51 | C21: 0.51 | D21: 0.51 | E21: 0.51 | F21: 0.51 | G21: 0.51 | H21: 0.51 | I21: 0.51 | J21: 0.51 | K21: 0.51 | L21: 0.51 | M21: 0.51 | N21: 0.51 | O21: 0.51 | P21: 0.51 | Q21: 0.51 | R21: 0.51 | S21: 0.51 | T21: 0.51 | U21: 0.51 | V21: 0.51 | W21: 0.51 | X21: 0.51 | Y21: 0.51 | Z21: 0.51 | AA21: 0.51 | AB21: 0.51 | AC21: 0.51 | AD21: 0.51 | AE21: 0.51 | AF21: 0.51 | AG21: 0.51 | AH21: 0.51 | AI21: 0.51 | AJ21: 0.51 | AK21: 0.51 | AL21: 0.51 | AM21: 0.51 | AN21: 0.51 | AO21: 0.51 | AP21: 0.51 | AQ21: 0.51 | AR21: 0.51 | AS21: 0.51 | AT21: 0.51 | AU21: 0.51 | AV21: 0.51 | AW21: 0.51 | AX21: 0.51 | AY21: 0.51 | AZ21: 0.51 | BA21: 0.51 | BB21: 0.51 | BC21: 0.51 | BD21: 0.51 | BE21: 0.51 | BF21: 0.51 | BG21: 0.51 | BH21: 0.51 | BI21: 0.51 | BJ21: 0.51
A22: 18 | B22: 0.51 | C22: 0.51 | D22: 0.51 | E22: 0.51 | F22: 0.51 | G22: 0.51 | H22: 0.51 | I22: 0.51 | J22: 0.51 | K22: 0.51 | L22: 0.51 | M22: 0.51 | N22: 0.51 | O22: 0.51 | P22: 0.51 | Q22: 0.51 | R22: 0.51 | S22: 0.51 | T22: 0.51 | U22: 0.51 | V22: 0.51 | W22: 0.51 | X22: 0.51 | Y22: 0.51 | Z22: 0.51 | AA22: 0.51 | AB22: 0.51 | AC22: 0.51 | AD22: 0.51 | AE22: 0.51 | AF22: 0.51 | AG22: 0.51 | AH22: 0.51 | AI22: 0.51 | AJ22: 0.51 | AK22: 0.51 | AL22: 0.51 | AM22: 0.51 | AN22: 0.51 | AO22: 0.51 | AP22: 0.51 | AQ22: 0.51 | AR22: 0.51 | AS22: 0.51 | AT22: 0.51 | AU22: 0.51 | AV22: 0.51 | AW22: 0.51 | AX22: 0.51 | AY22: 0.51 | AZ22: 0.51 | BA22: 0.51 | BB22: 0.51 | BC22: 0.51 | BD22: 0.51 | BE22: 0.51 | BF22: 0.51 | BG22: 0.51 | BH22: 0.51 | BI22: 0.51 | BJ22: 0.51
A23: 19 | B23: 0.51 | C23: 0.51 | D23: 0.51 | E23: 0.51 | F23: 0.51 | G23: 0.51 | H23: 0.51 | I23: 0.51 | J23: 0.51 | K23: 0.51 | L23: 0.51 | M23: 0.51 | N23: 0.51 | O23: 0.51 | P23: 0.51 | Q23: 0.51 | R23: 0.51 | S23: 0.51 | T23: 0.51 | U23: 0.51 | V23: 0.51 | W23: 0.51 | X23: 0.51 | Y23: 0.51 | Z23: 0.51 | AA23: 0.51 | AB23: 0.51 | AC23: 0.51 | AD23: 0.51 | AE23: 0.51 | AF23: 0.51 | AG23: 0.51 | AH23: 0.51 | AI23: 0.51 | AJ23: 0.51 | AK23: 0.51 | AL23: 0.51 | AM23: 0.51 | AN23: 0.51 | AO23: 0.51 | AP23: 0.51 | AQ23: 0.51 | AR23: 0.51 | AS23: 0.51 | AT23: 0.51 | AU23: 0.51 | AV23: 0.51 | AW23: 0.51 | AX23: 0.51 | AY23: 0.51 | AZ23: 0.51 | BA23: 0.51 | BB23: 0.51 | BC23: 0.51 | BD23: 0.51 | BE23: 0.51 | BF23: 0.51 | BG23: 0.51 | BH23: 0.51 | BI23: 0.51 | BJ23: 0.51
A24: 20 | B24: 0.51 | C24: 0.51 | D24: 0.51 | E24: 0.51 | F24: 0.51 | G24: 0.51 | H24: 0.51 | I24: 0.51 | J24: 0.51 | K24: 0.51 | L24: 0.51 | M24: 0.51 | N24: 0.51 | O24: 0.51 | P24: 0.51 | Q24: 0.51 | R24: 0.51 | S24: 0.51 | T24: 0.51 | U24: 0.51 | V24: 0.51 | W24: 0.51 | X24: 0.51 | Y24: 0.51 | Z24: 0.51 | AA24: 0.51 | AB24: 0.51 | AC24: 0.51 | AD24: 0.51 | AE24: 0.51 | AF24: 0.51 | AG24: 0.51 | AH24: 0.51 | AI24: 0.51 | AJ24: 0.51 | AK24: 0.51 | AL24: 0.51 | AM24: 0.51 | AN24: 0.51 | AO24: 0.51 | AP24: 0.51 | AQ24: 0.51 | AR24: 0.51 | AS24: 0.51 | AT24: 0.51 | AU24: 0.51 | AV24: 0.51 | AW24: 0.51 | AX24: 0.51 | AY24: 0.51 | AZ24: 0.51 | BA24: 0.51 | BB24: 0.51 | BC24: 0.51 | BD24: 0.51 | BE24: 0.51 | BF24: 0.51 | BG24: 0.51 | BH24: 0.51 | BI24: 0.51 | BJ24: 0.51
A25: 21 | B25: 0.51 | C25: 0.51 | D25: 0.51 | E25: 0.51 | F25: 0.51 | G25: 0.51 | H25: 0.51 | I25: 0.51 | J25: 0.51 | K25: 0.51 | L25: 0.51 | M25: 0.51 | N25: 0.51 | O25: 0.51 | P25: 0.51 | Q25: 0.51 | R25: 0.51 | S25: 0.51 | T25: 0.51 | U25: 0.51 | V25: 0.51 | W25: 0.51 | X25: 0.51 | Y25: 0.51 | Z25: 0.51 | AA25: 0.51 | AB25: 0.51 | AC25: 0.51 | AD25: 0.51 | AE25: 0.51 | AF25: 0.51 | AG25: 0.51 | AH25: 0.51 | AI25: 0.51 | AJ25: 0.51 | AK25: 0.51 | AL25: 0.51 | AM25: 0.51 | AN25: 0.51 | AO25: 0.51 | AP25: 0.51 | AQ25: 0.51 | AR25: 0.51 | AS25: 0.51 | AT25: 0.51 | AU25: 0.51 | AV25: 0.51 | AW25: 0.51 | AX25: 0.51 | AY25: 0.51 | AZ25: 0.51 | BA25: 0.51 | BB25: 0.51 | BC25: 0.51 | BD25: 0.51 | BE25: 0.51 | BF25: 0.51 | BG25: 0.51 | BH25: 0.51 | BI25: 0.51 | BJ25: 0.51
A26: 22 | B26: 0.51 | C26: 0.51 | D26: 0.51 | E26: 0.51 | F26: 0.51 | G26: 0.51 | H26: 0.51 | I26: 0.51 | J26: 0.51 | K26: 0.51 | L26: 0.51 | M26: 0.51 | N26: 0.51 | O26: 0.51 | P26: 0.51 | Q26: 0.51 | R26: 0.51 | S26: 0.51 | T26: 0.51 | U26: 0.51 | V26: 0.51 | W26: 0.51 | X26: 0.51 | Y26: 0.51 | Z26: 0.51 | AA26: 0.51 | AB26: 0.51 | AC26: 0.51 | AD26: 0.51 | AE26: 0.51 | AF26: 0.51 | AG26: 0.51 | AH26: 0.51 | AI26: 0.51 | AJ26: 0.51 | AK26: 0.51 | AL26: 0.51 | AM26: 0.51 | AN26: 0.51 | AO26: 0.51 | AP26: 0.51 | AQ26: 0.51 | AR26: 0.51 | AS26: 0.51 | AT26: 0.51 | AU26: 0.51 | AV26: 0.51 | AW26: 0.51 | AX26: 0.51 | AY26: 0.51 | AZ26: 0.51 | BA26: 0.51 | BB26: 0.51 | BC26: 0.51 | BD26: 0.51 | BE26: 0.51 | BF26: 0.51 | BG26: 0.51 | BH26: 0.51 | BI26: 0.51 | BJ26: 0.51
A27: 23 | B27: 0.51 | C27: 0.51 | D27: 0.51 | E27: 0.51 | F27: 0.51 | G27: 0.51 | H27: 0.51 | I27: 0.51 | J27: 0.51 | K27: 0.51 | L27: 0.51 | M27: 0.51 | N27: 0.51 | O27: 0.51 | P27: 0.51 | Q27: 0.51 | R27: 0.51 | S27: 0.51 | T27: 0.51 | U27: 0.51 | V27: 0.51 | W27: 0.51 | X27: 0.51 | Y27: 0.51 | Z27: 0.51 | AA27: 0.51 | AB27: 0.51 | AC27: 0.51 | AD27: 0.51 | AE27: 0.51 | AF27: 0.51 | AG27: 0.51 | AH27: 0.51 | AI27: 0.51 | AJ27: 0.51 | AK27: 0.51 | AL27: 0.51 | AM27: 0.51 | AN27: 0.51 | AO27: 0.51 | AP27: 0.51 | AQ27: 0.51 | AR27: 0.51 | AS27: 0.51 | AT27: 0.51 | AU27: 0.51 | AV27: 0.51 | AW27: 0.51 | AX27: 0.51 | AY27: 0.51 | AZ27: 0.51 | BA27: 0.51 | BB27: 0.51 | BC27: 0.51 | BD27: 0.51 | BE27: 0.51 | BF27: 0.51 | BG27: 0.51 | BH27: 0.51 | BI27: 0.51 | BJ27: 0.51
A28: 24 | B28: 0.51 | C28: 0.51 | D28: 0.51 | E28: 0.51 | F28: 0.51 | G28: 0.51 | H28: 0.51 | I28: 0.51 | J28: 0.51 | K28: 0.51 | L28: 0.51 | M28: 0.51 | N28: 0.51 | O28: 0.51 | P28: 0.51 | Q28: 0.51 | R28: 0.51 | S28: 0.51 | T28: 0.51 | U28: 0.51 | V28: 0.51 | W28: 0.51 | X28: 0.51 | Y28: 0.51 | Z28: 0.51 | AA28: 0.51 | AB28: 0.51 | AC28: 0.51 | AD28: 0.51 | AE28: 0.51 | AF28: 0.51 | AG28: 0.51 | AH28: 0.51 | AI28: 0.51 | AJ28: 0.51 | AK28: 0.51 | AL28: 0.51 | AM28: 0.51 | AN28: 0.51 | AO28: 0.51 | AP28: 0.51 | AQ28: 0.51 | AR28: 0.51 | AS28: 0.51 | AT28: 0.51 | AU28: 0.51 | AV28: 0.51 | AW28: 0.51 | AX28: 0.51 | AY28: 0.51 | AZ28: 0.51 | BA28: 0.51 | BB28: 0.51 | BC28: 0.51 | BD28: 0.51 | BE28: 0.51 | BF28: 0.51 | BG28: 0.51 | BH28: 0.51 | BI28: 0.51 | BJ28: 0.51
A29: 25 | B29: 0.51 | C29: 0.51 | D29: 0.51 | E29: 0.51 | F29: 0.51 | G29: 0.51 | H29: 0.51 | I29: 0.51 | J29: 0.51 | K29: 0.51 | L29: 0.51 | M29: 0.51 | N29: 0.51 | O29: 0.51 | P29: 0.51 | Q29: 0.51 | R29: 0.51 | S29: 0.51 | T29: 0.51 | U29: 0.51 | V29: 0.51 | W29: 0.51 | X29: 0.51 | Y29: 0.51 | Z29: 0.51 | AA29: 0.51 | AB29: 0.51 | AC29: 0.51 | AD29: 0.51 | AE29: 0.51 | AF29: 0.51 | AG29: 0.51 | AH29: 0.51 | AI29: 0.51 | AJ29: 0.51 | AK29: 0.51 | AL29: 0.51 | AM29: 0.51 | AN29: 0.51 | AO29: 0.51 | AP29: 0.51 | AQ29: 0.51 | AR29: 0.51 | AS29: 0.51 | AT29: 0.51 | AU29: 0.51 | AV29: 0.51 | AW29: 0.51 | AX29: 0.51 | AY29: 0.51 | AZ29: 0.51 | BA29: 0.51 | BB29: 0.51 | BC29: 0.51 | BD29: 0.51 | BE29: 0.51 | BF29: 0.51 | BG29: 0.51 | BH29: 0.51 | BI29: 0.51 | BJ29: 0.51
A30: 26 | B30: 0.51 | C30: 0.51 | D30: 0.51 | E30: 0.51 | F30: 0.51 | G30: 0.51 | H30: 0.51 | I30: 0.51 | J30: 0.51 | K30: 0.51 | L30: 0.51 | M30: 0.51 | N30: 0.51 | O30: 0.51 | P30: 0.51 | Q30: 0.51 | R30: 0.51 | S30: 0.51 | T30: 0.51 | U30: 0.51 | V30: 0.51 | W30: 0.51 | X30: 0.51 | Y30: 0.51 | Z30: 0.51 | AA30: 0.51 | AB30: 0.51 | AC30: 0.51 | AD30: 0.51 | AE30: 0.51 | AF30: 0.51 | AG30: 0.51 | AH30: 0.51 | AI30: 0.51 | AJ30: 0.51 | AK30: 0.51 | AL30: 0.51 | AM30: 0.51 | AN30: 0.51 | AO30: 0.51 | AP30: 0.51 | AQ30: 0.51 | AR30: 0.51 | AS30: 0.51 | AT30: 0.51 | AU30: 0.51 | AV30: 0.51 | AW30: 0.51 | AX30: 0.51 | AY30: 0.51 | AZ30: 0.51 | BA30: 0.51 | BB30: 0.51 | BC30: 0.51 | BD30: 0.51 | BE30: 0.51 | BF30: 0.51 | BG30: 0.51 | BH30: 0.51 | BI30: 0.51 | BJ30: 0.51
A31: 27 | B31: 0.51 | C31: 0.51 | D31: 0.51 | E31: 0.51 | F31: 0.51 | G31: 0.51 | H31: 0.51 | I31: 0.51 | J31: 0.51 | K31: 0.51 | L31: 0.51 | M31: 0.51 | N31: 0.51 | O31: 0.51 | P31: 0.51 | Q31: 0.51 | R31: 0.51 | S31: 0.51 | T31: 0.51 | U31: 0.51 | V31: 0.51 | W31: 0.51 | X31: 0.51 | Y31: 0.51 | Z31: 0.51 | AA31: 0.51 | AB31: 0.51 | AC31: 0.51 | AD31: 0.51 | AE31: 0.51 | AF31: 0.51 | AG31: 0.51 | AH31: 0.51 | AI31: 0.51 | AJ31: 0.51 | AK31: 0.51 | AL31: 0.51 | AM31: 0.51 | AN31: 0.51 | AO31: 0.51 | AP31: 0.51 | AQ31: 0.51 | AR31: 0.51 | AS31: 0.51 | AT31: 0.51 | AU31: 0.51 | AV31: 0.51 | AW31: 0.51 | AX31: 0.51 | AY31: 0.51 | AZ31: 0.51 | BA31: 0.51 | BB31: 0.51 | BC31: 0.51 | BD31: 0.51 | BE31: 0.51 | BF31: 0.51 | BG31: 0.51 | BH31: 0.51 | BI31: 0.51 | BJ31: 0.51
A32: 28 | B32: 0.51 | C32: 0.51 | D32: 0.51 | E32: 0.51 | F32: 0.51 | G32: 0.51 | H32: 0.51 | I32: 0.51 | J32: 0.51 | K32: 0.51 | L32: 0.51 | M32: 0.51 | N32: 0.51 | O32: 0.51 | P32: 0.51 | Q32: 0.51 | R32: 0.51 | S32: 0.51 | T32: 0.51 | U32: 0.51 | V32: 0.51 | W32: 0.51 | X32: 0.51 | Y32: 0.51 | Z32: 0.51 | AA32: 0.51 | AB32: 0.51 | AC32: 0.51 | AD32: 0.51 | AE32: 0.51 | AF32: 0.51 | AG32: 0.51 | AH32: 0.51 | AI32: 0.51 | AJ32: 0.51 | AK32: 0.51 | AL32: 0.51 | AM32: 0.51 | AN32: 0.51 | AO32: 0.51 | AP32: 0.51 | AQ32: 0.51 | AR32: 0.51 | AS32: 0.51 | AT32: 0.51 | AU32: 0.51 | AV32: 0.51 | AW32: 0.51 | AX32: 0.51 | AY32: 0.51 | AZ32: 0.51 | BA32: 0.51 | BB32: 0.51 | BC32: 0.51 | BD32: 0.51 | BE32: 0.51 | BF32: 0.51 | BG32: 0.51 | BH32: 0.51 | BI32: 0.51 | BJ32: 0.51
A33: 29 | B33: 0.51 | C33: 0.51 | D33: 0.51 | E33: 0.51 | F33: 0.51 | G33: 0.51 | H33: 0.51 | I33: 0.51 | J33: 0.51 | K33: 0.51 | L33: 0.51 | M33: 0.51 | N33: 0.51 | O33: 0.51 | P33: 0.51 | Q33: 0.51 | R33: 0.51 | S33: 0.51 | T33: 0.51 | U33: 0.51 | V33: 0.51 | W33: 0.51 | X33: 0.51 | Y33: 0.51 | Z33: 0.51 | AA33: 0.51 | AB33: 0.51 | AC33: 0.51 | AD33: 0.51 | AE33: 0.51 | AF33: 0.51 | AG33: 0.51 | AH33: 0.51 | AI33: 0.51 | AJ33: 0.51 | AK33: 0.51 | AL33: 0.51 | AM33: 0.51 | AN33: 0.51 | AO33: 0.51 | AP33: 0.51 | AQ33: 0.51 | AR33: 0.51 | AS33: 0.51 | AT33: 0.51 | AU33: 0.51 | AV33: 0.51 | AW33: 0.51 | AX33: 0.51 | AY33: 0.51 | AZ33: 0.51 | BA33: 0.51 | BB33: 0.51 | BC33: 0.51 | BD33: 0.51 | BE33: 0.51 | BF33: 0.51 | BG33: 0.51 | BH33: 0.51 | BI33: 0.51 | BJ33: 0.51
A34: 30 | B34: 0.51 | C34: 0.51 | D34: 0.51 | E34: 0.51 | F34: 0.51 | G34: 0.51 | H34: 0.51 | I34: 0.51 | J34: 0.51 | K34: 0.51 | L34: 0.51 | M34: 0.51 | N34: 0.51 | O34: 0.51 | P34: 0.51 | Q34: 0.51 | R34: 0.51 | S34: 0.51 | T34: 0.51 | U34: 0.51 | V34: 0.51 | W34: 0.51 | X34: 0.51 | Y34: 0.51 | Z34: 0.51 | AA34: 0.51 | AB34: 0.51 | AC34: 0.51 | AD34: 0.51 | AE34: 0.51 | AF34: 0.51 | AG34: 0.51 | AH34: 0.51 | AI34: 0.51 | AJ34: 0.51 | AK34: 0.51 | AL34: 0.51 | AM34: 0.51 | AN34: 0.51 | AO34: 0.51 | AP34: 0.51 | AQ34: 0.51 | AR34: 0.51 | AS34: 0.51 | AT34: 0.51 | AU34: 0.51 | AV34: 0.51 | AW34: 0.51 | AX34: 0.51 | AY34: 0.51 | AZ34: 0.51 | BA34: 0.51 | BB34: 0.51 | BC34: 0.51 | BD34: 0.51 | BE34: 0.51 | BF34: 0.51 | BG34: 0.51 | BH34: 0.51 | BI34: 0.51 | BJ34: 0.51
A35: 31 | B35: 0.51 | C35: 0.51 | D35: 0.51 | E35: 0.51 | F35: 0.51 | G35: 0.51 | H35: 0.51 | I35: 0.51 | J35: 0.51 | K35: 0.51 | L35: 0.51 | M35: 0.51 | N35: 0.51 | O35: 0.51 | P35: 0.51 | Q35: 0.51 | R35: =0.46+0.05*MIN(105-$A35,20)/20 -> 0.51 | S35: 0.51 | T35: 0.51 | U35: 0.51 | V35: 0.51 | W35: 0.51 | X35: 0.51 | Y35: 0.51 | Z35: 0.51 | AA35: 0.51 | AB35: 0.51 | AC35: 0.51 | AD35: 0.51 | AE35: 0.51 | AF35: 0.51 | AG35: 0.51 | AH35: =0.46+0.05*MIN(105-$A35,20)/20 -> 0.51 | AI35: 0.51 | AJ35: 0.51 | AK35: 0.51 | AL35: 0.51 | AM35: 0.51 | AN35: 0.51 | AO35: 0.51 | AP35: 0.51 | AQ35: 0.51 | AR35: 0.51 | AS35: 0.51 | AT35: 0.51 | AU35: 0.51 | AV35: 0.51 | AW35: 0.51 | AX35: =0.46+0.05*MIN(105-$A35,20)/20 -> 0.51 | AY35: 0.51 | AZ35: 0.51 | BA35: 0.51 | BB35: 0.51 | BC35: 0.51 | BD35: 0.51 | BE35: 0.51 | BF35: 0.51 | BG35: 0.51 | BH35: 0.51 | BI35: 0.51 | BJ35: 0.51
A36: 32 | B36: 0.51 | C36: 0.51 | D36: 0.51 | E36: 0.51 | F36: 0.51 | G36: 0.51 | H36: 0.51 | I36: 0.51 | J36: 0.51 | K36: 0.51 | L36: 0.51 | M36: 0.51 | N36: 0.51 | O36: 0.51 | P36: 0.51 | Q36: =0.46+0.05*MIN(105-$A36,20)/20 -> 0.51 | R36: 0.51 | S36: 0.51 | T36: 0.51 | U36: 0.51 | V36: 0.51 | W36: 0.51 | X36: 0.51 | Y36: 0.51 | Z36: 0.51 | AA36: 0.51 | AB36: 0.51 | AC36: 0.51 | AD36: 0.51 | AE36: 0.51 | AF36: 0.51 | AG36: 0.51 | AH36: 0.51 | AI36: 0.51 | AJ36: 0.51 | AK36: 0.51 | AL36: 0.51 | AM36: 0.51 | AN36: 0.51 | AO36: 0.51 | AP36: 0.51 | AQ36: 0.51 | AR36: 0.51 | AS36: 0.51 | AT36: 0.51 | AU36: 0.51 | AV36: 0.51 | AW36: 0.51 | AX36: 0.51 | AY36: 0.51 | AZ36: 0.51 | BA36: 0.51 | BB36: 0.51 | BC36: 0.51 | BD36: 0.51 | BE36: 0.51 | BF36: 0.51 | BG36: 0.51 | BH36: 0.51 | BI36: 0.51 | BJ36: 0.51
A37: 33 | B37: =0.46+0.05*MIN(105-$A37,20)/20 -> 0.51 | C37: 0.51 | D37: 0.51 | E37: 0.51 | F37: 0.51 | G37: 0.51 | H37: 0.51 | I37: 0.51 | J37: 0.51 | K37: 0.51 | L37: 0.51 | M37: 0.51 | N37: 0.51 | O37: 0.51 | P37: 0.51 | Q37: 0.51 | R37: 0.51 | S37: 0.51 | T37: 0.51 | U37: 0.51 | V37: 0.51 | W37: 0.51 | X37: 0.51 | Y37: 0.51 | Z37: 0.51 | AA37: 0.51 | AB37: 0.51 | AC37: 0.51 | AD37: 0.51 | AE37: 0.51 | AF37: 0.51 | AG37: 0.51 | AH37: 0.51 | AI37: 0.51 | AJ37: 0.51 | AK37: 0.51 | AL37: 0.51 | AM37: 0.51 | AN37: 0.51 | AO37: 0.51 | AP37: 0.51 | AQ37: 0.51 | AR37: 0.51 | AS37: 0.51 | AT37: 0.51 | AU37: 0.51 | AV37: 0.51 | AW37: 0.51 | AX37: 0.51 | AY37: 0.51 | AZ37: 0.51 | BA37: 0.51 | BB37: 0.51 | BC37: 0.51 | BD37: 0.51 | BE37: 0.51 | BF37: 0.51 | BG37: 0.51 | BH37: 0.51 | BI37: 0.51 | BJ37: 0.51
A38: 34 | B38: 0.51 | C38: 0.51 | D38: 0.51 | E38: 0.51 | F38: 0.51 | G38: 0.51 | H38: 0.51 | I38: 0.51 | J38: 0.51 | K38: 0.51 | L38: 0.51 | M38: 0.51 | N38: 0.51 | O38: 0.51 | P38: 0.51 | Q38: 0.51 | R38: 0.51 | S38: 0.51 | T38: 0.51 | U38: 0.51 | V38: 0.51 | W38: 0.51 | X38: 0.51 | Y38: 0.51 | Z38: 0.51 | AA38: 0.51 | AB38: 0.51 | AC38: 0.51 | AD38: 0.51 | AE38: 0.51 | AF38: 0.51 | AG38: 0.51 | AH38: 0.51 | AI38: 0.51 | AJ38: 0.51 | AK38: 0.51 | AL38: 0.51 | AM38: 0.51 | AN38: 0.51 | AO38: 0.51 | AP38: 0.51 | AQ38: 0.51 | AR38: 0.51 | AS38: 0.51 | AT38: 0.51 | AU38: 0.51 | AV38: 0.51 | AW38: 0.51 | AX38: 0.51 | AY38: 0.51 | AZ38: 0.51 | BA38: 0.51 | BB38: 0.51 | BC38: 0.51 | BD38: 0.51 | BE38: 0.51 | BF38: 0.51 | BG38: 0.51 | BH38: 0.51 | BI38: 0.51 | BJ38: 0.51
A39: 35 | B39: 0.51 | C39: 0.51 | D39: 0.51 | E39: 0.51 | F39: 0.51 | G39: 0.51 | H39: 0.51 | I39: 0.51 | J39: 0.51 | K39: 0.51 | L39: 0.51 | M39: 0.51 | N39: 0.51 | O39: 0.51 | P39: 0.51 | Q39: 0.51 | R39: 0.51 | S39: 0.51 | T39: 0.51 | U39: 0.51 | V39: 0.51 | W39: 0.51 | X39: 0.51 | Y39: 0.51 | Z39: 0.51 | AA39: 0.51 | AB39: 0.51 | AC39: 0.51 | AD39: 0.51 | AE39: 0.51 | AF39: 0.51 | AG39: 0.51 | AH39: 0.51 | AI39: 0.51 | AJ39: 0.51 | AK39: 0.51 | AL39: 0.51 | AM39: 0.51 | AN39: 0.51 | AO39: 0.51 | AP39: 0.51 | AQ39: 0.51 | AR39: 0.51 | AS39: 0.51 | AT39: 0.51 | AU39: 0.51 | AV39: 0.51 | AW39: 0.51 | AX39: 0.51 | AY39: 0.51 | AZ39: 0.51 | BA39: 0.51 | BB39: 0.51 | BC39: 0.51 | BD39: 0.51 | BE39: 0.51 | BF39: 0.51 | BG39: 0.51 | BH39: 0.51 | BI39: 0.51 | BJ39: 0.51
A40: 36 | B40: 0.51 | C40: 0.51 | D40: 0.51 | E40: 0.51 | F40: 0.51 | G40: 0.51 | H40: 0.51 | I40: 0.51 | J40: 0.51 | K40: 0.51 | L40: 0.51 | M40: 0.51 | N40: 0.51 | O40: 0.51 | P40: 0.51 | Q40: 0.51 | R40: 0.51 | S40: 0.51 | T40: 0.51 | U40: 0.51 | V40: 0.51 | W40: 0.51 | X40: 0.51 | Y40: 0.51 | Z40: 0.51 | AA40: 0.51 | AB40: 0.51 | AC40: 0.51 | AD40: 0.51 | AE40: 0.51 | AF40: 0.51 | AG40: 0.51 | AH40: 0.51 | AI40: 0.51 | AJ40: 0.51 | AK40: 0.51 | AL40: 0.51 | AM40: 0.51 | AN40: 0.51 | AO40: 0.51 | AP40: 0.51 | AQ40: 0.51 | AR40: 0.51 | AS40: 0.51 | AT40: 0.51 | AU40: 0.51 | AV40: 0.51 | AW40: 0.51 | AX40: 0.51 | AY40: 0.51 | AZ40: 0.51 | BA40: 0.51 | BB40: 0.51 | BC40: 0.51 | BD40: 0.51 | BE40: 0.51 | BF40: 0.51 | BG40: 0.51 | BH40: 0.51 | BI40: 0.51 | BJ40: 0.51
A41: 37 | B41: 0.51 | C41: 0.51 | D41: 0.51 | E41: 0.51 | F41: 0.51 | G41: 0.51 | H41: 0.51 | I41: 0.51 | J41: 0.51 | K41: 0.51 | L41: 0.51 | M41: 0.51 | N41: 0.51 | O41: 0.51 | P41: 0.51 | Q41: 0.51 | R41: 0.51 | S41: 0.51 | T41: 0.51 | U41: 0.51 | V41: 0.51 | W41: 0.51 | X41: 0.51 | Y41: 0.51 | Z41: 0.51 | AA41: 0.51 | AB41: 0.51 | AC41: 0.51 | AD41: 0.51 | AE41: 0.51 | AF41: 0.51 | AG41: 0.51 | AH41: 0.51 | AI41: 0.51 | AJ41: 0.51 | AK41: 0.51 | AL41: 0.51 | AM41: 0.51 | AN41: 0.51 | AO41: 0.51 | AP41: 0.51 | AQ41: 0.51 | AR41: 0.51 | AS41: 0.51 | AT41: 0.51 | AU41: 0.51 | AV41: 0.51 | AW41: 0.51 | AX41: 0.51 | AY41: 0.51 | AZ41: 0.51 | BA41: 0.51 | BB41: 0.51 | BC41: 0.51 | BD41: 0.51 | BE41: 0.51 | BF41: 0.51 | BG41: 0.51 | BH41: 0.51 | BI41: 0.51 | BJ41: 0.51
A42: 38 | B42: 0.51 | C42: 0.51 | D42: 0.51 | E42: 0.51 | F42: 0.51 | G42: 0.51 | H42: 0.51 | I42: 0.51 | J42: 0.51 | K42: 0.51 | L42: 0.51 | M42: 0.51 | N42: 0.51 | O42: 0.51 | P42: 0.51 | Q42: 0.51 | R42: 0.51 | S42: 0.51 | T42: 0.51 | U42: 0.51 | V42: 0.51 | W42: 0.51 | X42: 0.51 | Y42: 0.51 | Z42: 0.51 | AA42: 0.51 | AB42: 0.51 | AC42: 0.51 | AD42: 0.51 | AE42: 0.51 | AF42: 0.51 | AG42: 0.51 | AH42: 0.51 | AI42: 0.51 | AJ42: 0.51 | AK42: 0.51 | AL42: 0.51 | AM42: 0.51 | AN42: 0.51 | AO42: 0.51 | AP42: 0.51 | AQ42: 0.51 | AR42: 0.51 | AS42: 0.51 | AT42: 0.51 | AU42: 0.51 | AV42: 0.51 | AW42: 0.51 | AX42: 0.51 | AY42: 0.51 | AZ42: 0.51 | BA42: 0.51 | BB42: 0.51 | BC42: 0.51 | BD42: 0.51 | BE42: 0.51 | BF42: 0.51 | BG42: 0.51 | BH42: 0.51 | BI42: 0.51 | BJ42: 0.51
A43: 39 | B43: 0.51 | C43: 0.51 | D43: 0.51 | E43: 0.51 | F43: 0.51 | G43: 0.51 | H43: 0.51 | I43: 0.51 | J43: 0.51 | K43: 0.51 | L43: 0.51 | M43: 0.51 | N43: 0.51 | O43: 0.51 | P43: 0.51 | Q43: 0.51 | R43: 0.51 | S43: 0.51 | T43: 0.51 | U43: 0.51 | V43: 0.51 | W43: 0.51 | X43: 0.51 | Y43: 0.51 | Z43: 0.51 | AA43: 0.51 | AB43: 0.51 | AC43: 0.51 | AD43: 0.51 | AE43: 0.51 | AF43: 0.51 | AG43: 0.51 | AH43: 0.51 | AI43: 0.51 | AJ43: 0.51 | AK43: 0.51 | AL43: 0.51 | AM43: 0.51 | AN43: 0.51 | AO43: 0.51 | AP43: 0.51 | AQ43: 0.51 | AR43: 0.51 | AS43: 0.51 | AT43: 0.51 | AU43: 0.51 | AV43: 0.51 | AW43: 0.51 | AX43: 0.51 | AY43: 0.51 | AZ43: 0.51 | BA43: 0.51 | BB43: 0.51 | BC43: 0.51 | BD43: 0.51 | BE43: 0.51 | BF43: 0.51 | BG43: 0.51 | BH43: 0.51 | BI43: 0.51 | BJ43: 0.51
A44: 40 | B44: 0.51 | C44: 0.51 | D44: 0.51 | E44: 0.51 | F44: 0.51 | G44: 0.51 | H44: 0.51 | I44: 0.51 | J44: 0.51 | K44: 0.51 | L44: 0.51 | M44: 0.51 | N44: 0.51 | O44: 0.51 | P44: 0.51 | Q44: 0.51 | R44: 0.51 | S44: 0.51 | T44: 0.51 | U44: 0.51 | V44: 0.51 | W44: 0.51 | X44: 0.51 | Y44: 0.51 | Z44: 0.51 | AA44: 0.51 | AB44: 0.51 | AC44: 0.51 | AD44: 0.51 | AE44: 0.51 | AF44: 0.51 | AG44: 0.51 | AH44: 0.51 | AI44: 0.51 | AJ44: 0.51 | AK44: 0.51 | AL44: 0.51 | AM44: 0.51 | AN44: 0.51 | AO44: 0.51 | AP44: 0.51 | AQ44: 0.51 | AR44: 0.51 | AS44: 0.51 | AT44: 0.51 | AU44: 0.51 | AV44: 0.51 | AW44: 0.51 | AX44: 0.51 | AY44: 0.51 | AZ44: 0.51 | BA44: 0.51 | BB44: 0.51 | BC44: 0.51 | BD44: 0.51 | BE44: 0.51 | BF44: 0.51 | BG44: 0.51 | BH44: 0.51 | BI44: 0.51 | BJ44: 0.51
A45: 41 | B45: 0.51 | C45: 0.51 | D45: 0.51 | E45: 0.51 | F45: 0.51 | G45: 0.51 | H45: 0.51 | I45: 0.51 | J45: 0.51 | K45: 0.51 | L45: 0.51 | M45: 0.51 | N45: 0.51 | O45: 0.51 | P45: 0.51 | Q45: 0.51 | R45: 0.51 | S45: 0.51 | T45: 0.51 | U45: 0.51 | V45: 0.51 | W45: 0.51 | X45: 0.51 | Y45: 0.51 | Z45: 0.51 | AA45: 0.51 | AB45: 0.51 | AC45: 0.51 | AD45: 0.51 | AE45: 0.51 | AF45: 0.51 | AG45: 0.51 | AH45: 0.51 | AI45: 0.51 | AJ45: 0.51 | AK45: 0.51 | AL45: 0.51 | AM45: 0.51 | AN45: 0.51 | AO45: 0.51 | AP45: 0.51 | AQ45: 0.51 | AR45: 0.51 | AS45: 0.51 | AT45: 0.51 | AU45: 0.51 | AV45: 0.51 | AW45: 0.51 | AX45: 0.51 | AY45: 0.51 | AZ45: 0.51 | BA45: 0.51 | BB45: 0.51 | BC45: 0.51 | BD45: 0.51 | BE45: 0.51 | BF45: 0.51 | BG45: 0.51 | BH45: 0.51 | BI45: 0.51 | BJ45: 0.51
A46: 42 | B46: 0.51 | C46: 0.51 | D46: 0.51 | E46: 0.51 | F46: 0.51 | G46: 0.51 | H46: 0.51 | I46: 0.51 | J46: 0.51 | K46: 0.51 | L46: 0.51 | M46: 0.51 | N46: 0.51 | O46: 0.51 | P46: 0.51 | Q46: 0.51 | R46: 0.51 | S46: 0.51 | T46: 0.51 | U46: 0.51 | V46: 0.51 | W46: 0.51 | X46: 0.51 | Y46: 0.51 | Z46: 0.51 | AA46: 0.51 | AB46: 0.51 | AC46: 0.51 | AD46: 0.51 | AE46: 0.51 | AF46: 0.51 | AG46: 0.51 | AH46: 0.51 | AI46: 0.51 | AJ46: 0.51 | AK46: 0.51 | AL46: 0.51 | AM46: 0.51 | AN46: 0.51 | AO46: 0.51 | AP46: 0.51 | AQ46: 0.51 | AR46: 0.51 | AS46: 0.51 | AT46: 0.51 | AU46: 0.51 | AV46: 0.51 | AW46: 0.51 | AX46: 0.51 | AY46: 0.51 | AZ46: 0.51 | BA46: 0.51 | BB46: 0.51 | BC46: 0.51 | BD46: 0.51 | BE46: 0.51 | BF46: 0.51 | BG46: 0.51 | BH46: 0.51 | BI46: 0.51 | BJ46: 0.51
A47: 43 | B47: 0.51 | C47: 0.51 | D47: 0.51 | E47: 0.51 | F47: 0.51 | G47: 0.51 | H47: 0.51 | I47: 0.51 | J47: 0.51 | K47: 0.51 | L47: 0.51 | M47: 0.51 | N47: 0.51 | O47: 0.51 | P47: 0.51 | Q47: 0.51 | R47: 0.51 | S47: 0.51 | T47: 0.51 | U47: 0.51 | V47: 0.51 | W47: 0.51 | X47: 0.51 | Y47: 0.51 | Z47: 0.51 | AA47: 0.51 | AB47: 0.51 | AC47: 0.51 | AD47: 0.51 | AE47: 0.51 | AF47: 0.51 | AG47: 0.51 | AH47: 0.51 | AI47: 0.51 | AJ47: 0.51 | AK47: 0.51 | AL47: 0.51 | AM47: 0.51 | AN47: 0.51 | AO47: 0.51 | AP47: 0.51 | AQ47: 0.51 | AR47: 0.51 | AS47: 0.51 | AT47: 0.51 | AU47: 0.51 | AV47: 0.51 | AW47: 0.51 | AX47: 0.51 | AY47: 0.51 | AZ47: 0.51 | BA47: 0.51 | BB47: 0.51 | BC47: 0.51 | BD47: 0.51 | BE47: 0.51 | BF47: 0.51 | BG47: 0.51 | BH47: 0.51 | BI47: 0.51 | BJ47: 0.51
A48: 44 | B48: 0.51 | C48: 0.51 | D48: 0.51 | E48: 0.51 | F48: 0.51 | G48: 0.51 | H48: 0.51 | I48: 0.51 | J48: 0.51 | K48: 0.51 | L48: 0.51 | M48: 0.51 | N48: 0.51 | O48: 0.51 | P48: 0.51 | Q48: 0.51 | R48: 0.51 | S48: 0.51 | T48: 0.51 | U48: 0.51 | V48: 0.51 | W48: 0.51 | X48: 0.51 | Y48: 0.51 | Z48: 0.51 | AA48: 0.51 | AB48: 0.51 | AC48: 0.51 | AD48: 0.51 | AE48: 0.51 | AF48: 0.51 | AG48: 0.51 | AH48: 0.51 | AI48: 0.51 | AJ48: 0.51 | AK48: 0.51 | AL48: 0.51 | AM48: 0.51 | AN48: 0.51 | AO48: 0.51 | AP48: 0.51 | AQ48: 0.51 | AR48: 0.51 | AS48: 0.51 | AT48: 0.51 | AU48: 0.51 | AV48: 0.51 | AW48: 0.51 | AX48: 0.51 | AY48: 0.51 | AZ48: 0.51 | BA48: 0.51 | BB48: 0.51 | BC48: 0.51 | BD48: 0.51 | BE48: 0.51 | BF48: 0.51 | BG48: 0.51 | BH48: 0.51 | BI48: 0.51 | BJ48: 0.51
A49: 45 | B49: 0.51 | C49: 0.51 | D49: 0.51 | E49: 0.51 | F49: 0.51 | G49: 0.51 | H49: 0.51 | I49: 0.51 | J49: 0.51 | K49: 0.51 | L49: 0.51 | M49: 0.51 | N49: 0.51 | O49: 0.51 | P49: 0.51 | Q49: 0.51 | R49: 0.51 | S49: 0.51 | T49: 0.51 | U49: 0.51 | V49: 0.51 | W49: 0.51 | X49: 0.51 | Y49: 0.51 | Z49: 0.51 | AA49: 0.51 | AB49: 0.51 | AC49: 0.51 | AD49: 0.51 | AE49: 0.51 | AF49: 0.51 | AG49: 0.51 | AH49: 0.51 | AI49: 0.51 | AJ49: 0.51 | AK49: 0.51 | AL49: 0.51 | AM49: 0.51 | AN49: 0.51 | AO49: 0.51 | AP49: 0.51 | AQ49: 0.51 | AR49: 0.51 | AS49: 0.51 | AT49: 0.51 | AU49: 0.51 | AV49: 0.51 | AW49: 0.51 | AX49: 0.51 | AY49: 0.51 | AZ49: 0.51 | BA49: 0.51 | BB49: 0.51 | BC49: 0.51 | BD49: 0.51 | BE49: 0.51 | BF49: 0.51 | BG49: 0.51 | BH49: 0.51 | BI49: 0.51 | BJ49: 0.51
A50: 46 | B50: 0.51 | C50: 0.51 | D50: 0.51 | E50: 0.51 | F50: 0.51 | G50: 0.51 | H50: 0.51 | I50: 0.51 | J50: 0.51 | K50: 0.51 | L50: 0.51 | M50: 0.51 | N50: 0.51 | O50: 0.51 | P50: 0.51 | Q50: 0.51 | R50: 0.51 | S50: 0.51 | T50: 0.51 | U50: 0.51 | V50: 0.51 | W50: 0.51 | X50: 0.51 | Y50: 0.51 | Z50: 0.51 | AA50: 0.51 | AB50: 0.51 | AC50: 0.51 | AD50: 0.51 | AE50: 0.51 | AF50: 0.51 | AG50: =0.46+0.05*MIN(105-$A50,20)/20 -> 0.51 | AH50: 0.51 | AI50: 0.51 | AJ50: 0.51 | AK50: 0.51 | AL50: 0.51 | AM50: 0.51 | AN50: 0.51 | AO50: 0.51 | AP50: 0.51 | AQ50: 0.51 | AR50: 0.51 | AS50: 0.51 | AT50: 0.51 | AU50: 0.51 | AV50: 0.51 | AW50: =0.46+0.05*MIN(105-$A50,20)/20 -> 0.51 | AX50: 0.51 | AY50: 0.51 | AZ50: 0.51 | BA50: 0.51 | BB50: 0.51 | BC50: 0.51 | BD50: 0.51 | BE50: 0.51 | BF50: 0.51 | BG50: 0.51 | BH50: 0.51 | BI50: 0.51 | BJ50: 0.51
A51: 47 | B51: 0.51 | C51: 0.51 | D51: 0.51 | E51: 0.51 | F51: 0.51 | G51: 0.51 | H51: 0.51 | I51: 0.51 | J51: 0.51 | K51: 0.51 | L51: 0.51 | M51: 0.51 | N51: 0.51 | O51: 0.51 | P51: 0.51 | Q51: 0.51 | R51: 0.51 | S51: 0.51 | T51: 0.51 | U51: 0.51 | V51: 0.51 | W51: 0.51 | X51: 0.51 | Y51: 0.51 | Z51: 0.51 | AA51: 0.51 | AB51: 0.51 | AC51: 0.51 | AD51: 0.51 | AE51: 0.51 | AF51: 0.51 | AG51: 0.51 | AH51: 0.51 | AI51: 0.51 | AJ51: 0.51 | AK51: 0.51 | AL51: 0.51 | AM51: 0.51 | AN51: 0.51 | AO51: 0.51 | AP51: 0.51 | AQ51: 0.51 | AR51: 0.51 | AS51: 0.51 | AT51: 0.51 | AU51: 0.51 | AV51: 0.51 | AW51: 0.51 | AX51: 0.51 | AY51: 0.51 | AZ51: 0.51 | BA51: 0.51 | BB51: 0.51 | BC51: 0.51 | BD51: 0.51 | BE51: 0.51 | BF51: 0.51 | BG51: 0.51 | BH51: 0.51 | BI51: 0.51 | BJ51: 0.51
A52: 48 | B52: 0.51 | C52: 0.51 | D52: 0.51 | E52: 0.51 | F52: 0.51 | G52: 0.51 | H52: 0.51 | I52: 0.51 | J52: 0.51 | K52: 0.51 | L52: 0.51 | M52: 0.51 | N52: 0.51 | O52: 0.51 | P52: 0.51 | Q52: 0.51 | R52: =0.46+0.05*MIN(105-$A52,20)/20 -> 0.51 | S52: 0.51 | T52: 0.51 | U52: 0.51 | V52: 0.51 | W52: 0.51 | X52: 0.51 | Y52: 0.51 | Z52: 0.51 | AA52: 0.51 | AB52: 0.51 | AC52: 0.51 | AD52: 0.51 | AE52: 0.51 | AF52: 0.51 | AG52: 0.51 | AH52: 0.51 | AI52: 0.51 | AJ52: 0.51 | AK52: 0.51 | AL52: 0.51 | AM52: 0.51 | AN52: 0.51 | AO52: 0.51 | AP52: 0.51 | AQ52: 0.51 | AR52: 0.51 | AS52: 0.51 | AT52: 0.51 | AU52: 0.51 | AV52: 0.51 | AW52: 0.51 | AX52: 0.51 | AY52: 0.51 | AZ52: 0.51 | BA52: 0.51 | BB52: 0.51 | BC52: 0.51 | BD52: 0.51 | BE52: 0.51 | BF52: 0.51 | BG52: 0.51 | BH52: 0.51 | BI52: 0.51 | BJ52: 0.51
A53: 49 | B53: =0.46+0.05*MIN(105-$A53,20)/20 -> 0.51 | C53: 0.51 | D53: 0.51 | E53: 0.51 | F53: 0.51 | G53: 0.51 | H53: 0.51 | I53: 0.51 | J53: 0.51 | K53: 0.51 | L53: 0.51 | M53: 0.51 | N53: 0.51 | O53: 0.51 | P53: 0.51 | Q53: 0.51 | R53: 0.51 | S53: 0.51 | T53: 0.51 | U53: 0.51 | V53: 0.51 | W53: 0.51 | X53: 0.51 | Y53: 0.51 | Z53: 0.51 | AA53: 0.51 | AB53: 0.51 | AC53: 0.51 | AD53: 0.51 | AE53: 0.51 | AF53: 0.51 | AG53: 0.51 | AH53: 0.51 | AI53: 0.51 | AJ53: 0.51 | AK53: 0.51 | AL53: 0.51 | AM53: 0.51 | AN53: 0.51 | AO53: 0.51 | AP53: 0.51 | AQ53: 0.51 | AR53: 0.51 | AS53: 0.51 | AT53: 0.51 | AU53: 0.51 | AV53: 0.51 | AW53: 0.51 | AX53: 0.51 | AY53: 0.51 | AZ53: 0.51 | BA53: 0.51 | BB53: 0.51 | BC53: 0.51 | BD53: 0.51 | BE53: 0.51 | BF53: 0.51 | BG53: 0.51 | BH53: 0.51 | BI53: 0.51 | BJ53: 0.51
A54: 50 | B54: 0.51 | C54: 0.51 | D54: 0.51 | E54: 0.51 | F54: 0.51 | G54: 0.51 | H54: 0.51 | I54: 0.51 | J54: 0.51 | K54: 0.51 | L54: 0.51 | M54: 0.51 | N54: 0.51 | O54: 0.51 | P54: 0.51 | Q54: 0.51 | R54: 0.51 | S54: 0.51 | T54: 0.51 | U54: 0.51 | V54: 0.51 | W54: 0.51 | X54: 0.51 | Y54: 0.51 | Z54: 0.51 | AA54: 0.51 | AB54: 0.51 | AC54: 0.51 | AD54: 0.51 | AE54: 0.51 | AF54: 0.51 | AG54: 0.51 | AH54: 0.51 | AI54: 0.51 | AJ54: 0.51 | AK54: 0.51 | AL54: 0.51 | AM54: 0.51 | AN54: 0.51 | AO54: 0.51 | AP54: 0.51 | AQ54: 0.51 | AR54: 0.51 | AS54: 0.51 | AT54: 0.51 | AU54: 0.51 | AV54: 0.51 | AW54: 0.51 | AX54: 0.51 | AY54: 0.51 | AZ54: 0.51 | BA54: 0.51 | BB54: 0.51 | BC54: 0.51 | BD54: 0.51 | BE54: 0.51 | BF54: 0.51 | BG54: 0.51 | BH54: 0.51 | BI54: 0.51 | BJ54: 0.51
A55: 51 | B55: 0.51 | C55: 0.51 | D55: 0.51 | E55: 0.51 | F55: 0.51 | G55: 0.51 | H55: 0.51 | I55: 0.51 | J55: 0.51 | K55: 0.51 | L55: 0.51 | M55: 0.51 | N55: 0.51 | O55: 0.51 | P55: 0.51 | Q55: 0.51 | R55: 0.51 | S55: 0.51 | T55: 0.51 | U55: 0.51 | V55: 0.51 | W55: 0.51 | X55: 0.51 | Y55: 0.51 | Z55: 0.51 | AA55: 0.51 | AB55: 0.51 | AC55: 0.51 | AD55: 0.51 | AE55: 0.51 | AF55: 0.51 | AG55: 0.51 | AH55: 0.51 | AI55: 0.51 | AJ55: 0.51 | AK55: 0.51 | AL55: 0.51 | AM55: 0.51 | AN55: 0.51 | AO55: 0.51 | AP55: 0.51 | AQ55: 0.51 | AR55: 0.51 | AS55: 0.51 | AT55: 0.51 | AU55: 0.51 | AV55: 0.51 | AW55: 0.51 | AX55: 0.51 | AY55: 0.51 | AZ55: 0.51 | BA55: 0.51 | BB55: 0.51 | BC55: 0.51 | BD55: 0.51 | BE55: 0.51 | BF55: 0.51 | BG55: 0.51 | BH55: 0.51 | BI55: 0.51 | BJ55: 0.51
A56: 52 | B56: 0.51 | C56: 0.51 | D56: 0.51 | E56: 0.51 | F56: 0.51 | G56: 0.51 | H56: 0.51 | I56: 0.51 | J56: 0.51 | K56: 0.51 | L56: 0.51 | M56: 0.51 | N56: 0.51 | O56: 0.51 | P56: 0.51 | Q56: 0.51 | R56: 0.51 | S56: 0.51 | T56: 0.51 | U56: 0.51 | V56: 0.51 | W56: 0.51 | X56: 0.51 | Y56: 0.51 | Z56: 0.51 | AA56: 0.51 | AB56: 0.51 | AC56: 0.51 | AD56: 0.51 | AE56: 0.51 | AF56: 0.51 | AG56: 0.51 | AH56: 0.51 | AI56: 0.51 | AJ56: 0.51 | AK56: 0.51 | AL56: 0.51 | AM56: 0.51 | AN56: 0.51 | AO56: 0.51 | AP56: 0.51 | AQ56: 0.51 | AR56: 0.51 | AS56: 0.51 | AT56: 0.51 | AU56: 0.51 | AV56: 0.51 | AW56: 0.51 | AX56: 0.51 | AY56: 0.51 | AZ56: 0.51 | BA56: 0.51 | BB56: 0.51 | BC56: 0.51 | BD56: 0.51 | BE56: 0.51 | BF56: 0.51 | BG56: 0.51 | BH56: 0.51 | BI56: 0.51 | BJ56: 0.51
A57: 53 | B57: 0.51 | C57: 0.51 | D57: 0.51 | E57: 0.51 | F57: 0.51 | G57: 0.51 | H57: 0.51 | I57: 0.51 | J57: 0.51 | K57: 0.51 | L57: 0.51 | M57: 0.51 | N57: 0.51 | O57: 0.51 | P57: 0.51 | Q57: 0.51 | R57: 0.51 | S57: 0.51 | T57: 0.51 | U57: 0.51 | V57: 0.51 | W57: 0.51 | X57: 0.51 | Y57: 0.51 | Z57: 0.51 | AA57: 0.51 | AB57: 0.51 | AC57: 0.51 | AD57: 0.51 | AE57: 0.51 | AF57: 0.51 | AG57: 0.51 | AH57: 0.51 | AI57: 0.51 | AJ57: 0.51 | AK57: 0.51 | AL57: 0.51 | AM57: 0.51 | AN57: 0.51 | AO57: 0.51 | AP57: 0.51 | AQ57: 0.51 | AR57: 0.51 | AS57: 0.51 | AT57: 0.51 | AU57: 0.51 | AV57: 0.51 | AW57: 0.51 | AX57: 0.51 | AY57: 0.51 | AZ57: 0.51 | BA57: 0.51 | BB57: 0.51 | BC57: 0.51 | BD57: 0.51 | BE57: 0.51 | BF57: 0.51 | BG57: 0.51 | BH57: 0.51 | BI57: 0.51 | BJ57: 0.51
A58: 54 | B58: 0.51 | C58: 0.51 | D58: 0.51 | E58: 0.51 | F58: 0.51 | G58: 0.51 | H58: 0.51 | I58: 0.51 | J58: 0.51 | K58: 0.51 | L58: 0.51 | M58: 0.51 | N58: 0.51 | O58: 0.51 | P58: 0.51 | Q58: 0.51 | R58: 0.51 | S58: 0.51 | T58: 0.51 | U58: 0.51 | V58: 0.51 | W58: 0.51 | X58: 0.51 | Y58: 0.51 | Z58: 0.51 | AA58: 0.51 | AB58: 0.51 | AC58: 0.51 | AD58: 0.51 | AE58: 0.51 | AF58: 0.51 | AG58: 0.51 | AH58: 0.51 | AI58: 0.51 | AJ58: 0.51 | AK58: 0.51 | AL58: 0.51 | AM58: 0.51 | AN58: 0.51 | AO58: 0.51 | AP58: 0.51 | AQ58: 0.51 | AR58: 0.51 | AS58: 0.51 | AT58: 0.51 | AU58: 0.51 | AV58: 0.51 | AW58: 0.51 | AX58: 0.51 | AY58: 0.51 | AZ58: 0.51 | BA58: 0.51 | BB58: 0.51 | BC58: 0.51 | BD58: 0.51 | BE58: 0.51 | BF58: 0.51 | BG58: 0.51 | BH58: 0.51 | BI58: 0.51 | BJ58: 0.51
A59: 55 | B59: 0.51 | C59: 0.51 | D59: 0.51 | E59: 0.51 | F59: 0.51 | G59: 0.51 | H59: 0.51 | I59: 0.51 | J59: 0.51 | K59: 0.51 | L59: 0.51 | M59: 0.51 | N59: 0.51 | O59: 0.51 | P59: 0.51 | Q59: 0.51 | R59: 0.51 | S59: 0.51 | T59: 0.51 | U59: 0.51 | V59: 0.51 | W59: 0.51 | X59: 0.51 | Y59: 0.51 | Z59: 0.51 | AA59: 0.51 | AB59: 0.51 | AC59: 0.51 | AD59: 0.51 | AE59: 0.51 | AF59: 0.51 | AG59: 0.51 | AH59: 0.51 | AI59: 0.51 | AJ59: 0.51 | AK59: 0.51 | AL59: 0.51 | AM59: 0.51 | AN59: 0.51 | AO59: 0.51 | AP59: 0.51 | AQ59: 0.51 | AR59: 0.51 | AS59: 0.51 | AT59: 0.51 | AU59: 0.51 | AV59: 0.51 | AW59: 0.51 | AX59: 0.51 | AY59: 0.51 | AZ59: 0.51 | BA59: 0.51 | BB59: 0.51 | BC59: 0.51 | BD59: 0.51 | BE59: 0.51 | BF59: 0.51 | BG59: 0.51 | BH59: 0.51 | BI59: 0.51 | BJ59: 0.51
A60: 56 | B60: 0.51 | C60: 0.51 | D60: 0.51 | E60: 0.51 | F60: 0.51 | G60: 0.51 | H60: 0.51 | I60: 0.51 | J60: 0.51 | K60: 0.51 | L60: 0.51 | M60: 0.51 | N60: 0.51 | O60: 0.51 | P60: 0.51 | Q60: 0.51 | R60: 0.51 | S60: 0.51 | T60: 0.51 | U60: 0.51 | V60: 0.51 | W60: 0.51 | X60: 0.51 | Y60: 0.51 | Z60: 0.51 | AA60: 0.51 | AB60: 0.51 | AC60: 0.51 | AD60: 0.51 | AE60: 0.51 | AF60: 0.51 | AG60: 0.51 | AH60: 0.51 | AI60: 0.51 | AJ60: 0.51 | AK60: 0.51 | AL60: 0.51 | AM60: 0.51 | AN60: 0.51 | AO60: 0.51 | AP60: 0.51 | AQ60: 0.51 | AR60: 0.51 | AS60: 0.51 | AT60: 0.51 | AU60: 0.51 | AV60: 0.51 | AW60: 0.51 | AX60: 0.51 | AY60: 0.51 | AZ60: 0.51 | BA60: 0.51 | BB60: 0.51 | BC60: 0.51 | BD60: 0.51 | BE60: 0.51 | BF60: 0.51 | BG60: 0.51 | BH60: 0.51 | BI60: 0.51 | BJ60: 0.51
A61: 57 | B61: 0.51 | C61: 0.51 | D61: 0.51 | E61: 0.51 | F61: 0.51 | G61: 0.51 | H61: 0.51 | I61: 0.51 | J61: 0.51 | K61: 0.51 | L61: 0.51 | M61: 0.51 | N61: 0.51 | O61: 0.51 | P61: 0.51 | Q61: 0.51 | R61: 0.51 | S61: 0.51 | T61: 0.51 | U61: 0.51 | V61: 0.51 | W61: 0.51 | X61: 0.51 | Y61: 0.51 | Z61: 0.51 | AA61: 0.51 | AB61: 0.51 | AC61: 0.51 | AD61: 0.51 | AE61: 0.51 | AF61: 0.51 | AG61: 0.51 | AH61: 0.51 | AI61: 0.51 | AJ61: 0.51 | AK61: 0.51 | AL61: 0.51 | AM61: 0.51 | AN61: 0.51 | AO61: 0.51 | AP61: 0.51 | AQ61: 0.51 | AR61: 0.51 | AS61: 0.51 | AT61: 0.51 | AU61: 0.51 | AV61: 0.51 | AW61: 0.51 | AX61: 0.51 | AY61: 0.51 | AZ61: 0.51 | BA61: 0.51 | BB61: 0.51 | BC61: 0.51 | BD61: 0.51 | BE61: 0.51 | BF61: 0.51 | BG61: 0.51 | BH61: 0.51 | BI61: 0.51 | BJ61: 0.51
A62: 58 | B62: 0.51 | C62: 0.51 | D62: 0.51 | E62: 0.51 | F62: 0.51 | G62: 0.51 | H62: 0.51 | I62: 0.51 | J62: 0.51 | K62: 0.51 | L62: 0.51 | M62: 0.51 | N62: 0.51 | O62: 0.51 | P62: 0.51 | Q62: 0.51 | R62: 0.51 | S62: 0.51 | T62: 0.51 | U62: 0.51 | V62: 0.51 | W62: 0.51 | X62: 0.51 | Y62: 0.51 | Z62: 0.51 | AA62: 0.51 | AB62: 0.51 | AC62: 0.51 | AD62: 0.51 | AE62: 0.51 | AF62: 0.51 | AG62: 0.51 | AH62: 0.51 | AI62: 0.51 | AJ62: 0.51 | AK62: 0.51 | AL62: 0.51 | AM62: 0.51 | AN62: 0.51 | AO62: 0.51 | AP62: 0.51 | AQ62: 0.51 | AR62: 0.51 | AS62: 0.51 | AT62: 0.51 | AU62: 0.51 | AV62: 0.51 | AW62: 0.51 | AX62: 0.51 | AY62: 0.51 | AZ62: 0.51 | BA62: 0.51 | BB62: 0.51 | BC62: 0.51 | BD62: 0.51 | BE62: 0.51 | BF62: 0.51 | BG62: 0.51 | BH62: 0.51 | BI62: 0.51 | BJ62: 0.51
A63: 59 | B63: 0.51 | C63: 0.51 | D63: 0.51 | E63: 0.51 | F63: 0.51 | G63: 0.51 | H63: 0.51 | I63: 0.51 | J63: 0.51 | K63: 0.51 | L63: 0.51 | M63: 0.51 | N63: 0.51 | O63: 0.51 | P63: 0.51 | Q63: 0.51 | R63: 0.51 | S63: 0.51 | T63: 0.51 | U63: 0.51 | V63: 0.51 | W63: 0.51 | X63: 0.51 | Y63: 0.51 | Z63: 0.51 | AA63: 0.51 | AB63: 0.51 | AC63: 0.51 | AD63: 0.51 | AE63: 0.51 | AF63: 0.51 | AG63: 0.51 | AH63: 0.51 | AI63: 0.51 | AJ63: 0.51 | AK63: 0.51 | AL63: 0.51 | AM63: 0.51 | AN63: 0.51 | AO63: 0.51 | AP63: 0.51 | AQ63: 0.51 | AR63: 0.51 | AS63: 0.51 | AT63: 0.51 | AU63: 0.51 | AV63: 0.51 | AW63: 0.51 | AX63: 0.51 | AY63: 0.51 | AZ63: 0.51 | BA63: 0.51 | BB63: 0.51 | BC63: 0.51 | BD63: 0.51 | BE63: 0.51 | BF63: 0.51 | BG63: 0.51 | BH63: 0.51 | BI63: 0.51 | BJ63: 0.51
A64: 60 | B64: 0.51 | C64: 0.51 | D64: 0.51 | E64: 0.51 | F64: 0.51 | G64: 0.51 | H64: 0.51 | I64: 0.51 | J64: 0.51 | K64: 0.51 | L64: 0.51 | M64: 0.51 | N64: 0.51 | O64: 0.51 | P64: 0.51 | Q64: 0.51 | R64: 0.51 | S64: 0.51 | T64: 0.51 | U64: 0.51 | V64: 0.51 | W64: 0.51 | X64: 0.51 | Y64: 0.51 | Z64: 0.51 | AA64: 0.51 | AB64: 0.51 | AC64: 0.51 | AD64: 0.51 | AE64: 0.51 | AF64: 0.51 | AG64: 0.51 | AH64: 0.51 | AI64: 0.51 | AJ64: 0.51 | AK64: 0.51 | AL64: 0.51 | AM64: 0.51 | AN64: 0.51 | AO64: 0.51 | AP64: 0.51 | AQ64: 0.51 | AR64: 0.51 | AS64: 0.51 | AT64: 0.51 | AU64: 0.51 | AV64: 0.51 | AW64: 0.51 | AX64: 0.51 | AY64: 0.51 | AZ64: 0.51 | BA64: 0.51 | BB64: 0.51 | BC64: 0.51 | BD64: 0.51 | BE64: 0.51 | BF64: 0.51 | BG64: 0.51 | BH64: 0.51 | BI64: 0.51 | BJ64: 0.51
A65: 61 | B65: 0.51 | C65: 0.51 | D65: 0.51 | E65: 0.51 | F65: 0.51 | G65: 0.51 | H65: 0.51 | I65: 0.51 | J65: 0.51 | K65: 0.51 | L65: 0.51 | M65: 0.51 | N65: 0.51 | O65: 0.51 | P65: 0.51 | Q65: 0.51 | R65: 0.51 | S65: 0.51 | T65: 0.51 | U65: 0.51 | V65: 0.51 | W65: 0.51 | X65: 0.51 | Y65: 0.51 | Z65: 0.51 | AA65: 0.51 | AB65: 0.51 | AC65: 0.51 | AD65: 0.51 | AE65: 0.51 | AF65: 0.51 | AG65: 0.51 | AH65: 0.51 | AI65: 0.51 | AJ65: 0.51 | AK65: 0.51 | AL65: 0.51 | AM65: 0.51 | AN65: 0.51 | AO65: 0.51 | AP65: 0.51 | AQ65: 0.51 | AR65: 0.51 | AS65: 0.51 | AT65: 0.51 | AU65: 0.51 | AV65: 0.51 | AW65: 0.51 | AX65: 0.51 | AY65: 0.51 | AZ65: 0.51 | BA65: 0.51 | BB65: 0.51 | BC65: 0.51 | BD65: 0.51 | BE65: 0.51 | BF65: 0.51 | BG65: 0.51 | BH65: 0.51 | BI65: 0.51 | BJ65: 0.51
A66: 62 | B66: 0.51 | C66: 0.51 | D66: 0.51 | E66: 0.51 | F66: 0.51 | G66: 0.51 | H66: 0.51 | I66: 0.51 | J66: 0.51 | K66: 0.51 | L66: 0.51 | M66: 0.51 | N66: 0.51 | O66: 0.51 | P66: 0.51 | Q66: 0.51 | R66: 0.51 | S66: 0.51 | T66: 0.51 | U66: 0.51 | V66: 0.51 | W66: 0.51 | X66: 0.51 | Y66: 0.51 | Z66: 0.51 | AA66: 0.51 | AB66: 0.51 | AC66: 0.51 | AD66: 0.51 | AE66: 0.51 | AF66: 0.51 | AG66: 0.51 | AH66: =0.46+0.05*MIN(105-$A66,20)/20 -> 0.51 | AI66: 0.51 | AJ66: 0.51 | AK66: 0.51 | AL66: 0.51 | AM66: 0.51 | AN66: 0.51 | AO66: 0.51 | AP66: 0.51 | AQ66: 0.51 | AR66: 0.51 | AS66: 0.51 | AT66: 0.51 | AU66: 0.51 | AV66: 0.51 | AW66: 0.51 | AX66: =0.46+0.05*MIN(105-$A66,20)/20 -> 0.51 | AY66: 0.51 | AZ66: 0.51 | BA66: 0.51 | BB66: 0.51 | BC66: 0.51 | BD66: 0.51 | BE66: 0.51 | BF66: 0.51 | BG66: 0.51 | BH66: 0.51 | BI66: 0.51 | BJ66: 0.51
A67: 63 | B67: 0.51 | C67: 0.51 | D67: 0.51 | E67: 0.51 | F67: 0.51 | G67: 0.51 | H67: 0.51 | I67: 0.51 | J67: 0.51 | K67: 0.51 | L67: 0.51 | M67: 0.51 | N67: 0.51 | O67: 0.51 | P67: 0.51 | Q67: 0.51 | R67: 0.51 | S67: 0.51 | T67: 0.51 | U67: 0.51 | V67: 0.51 | W67: 0.51 | X67: 0.51 | Y67: 0.51 | Z67: 0.51 | AA67: 0.51 | AB67: 0.51 | AC67: 0.51 | AD67: 0.51 | AE67: 0.51 | AF67: 0.51 | AG67: 0.51 | AH67: 0.51 | AI67: 0.51 | AJ67: 0.51 | AK67: 0.51 | AL67: 0.51 | AM67: 0.51 | AN67: 0.51 | AO67: 0.51 | AP67: 0.51 | AQ67: 0.51 | AR67: 0.51 | AS67: 0.51 | AT67: 0.51 | AU67: 0.51 | AV67: 0.51 | AW67: 0.51 | AX67: 0.51 | AY67: 0.51 | AZ67: 0.51 | BA67: 0.51 | BB67: 0.51 | BC67: 0.51 | BD67: 0.51 | BE67: 0.51 | BF67: 0.51 | BG67: 0.51 | BH67: 0.51 | BI67: 0.51 | BJ67: 0.51
A68: 64 | B68: 0.51 | C68: 0.51 | D68: 0.51 | E68: 0.51 | F68: 0.51 | G68: 0.51 | H68: 0.51 | I68: 0.51 | J68: 0.51 | K68: 0.51 | L68: 0.51 | M68: 0.51 | N68: 0.51 | O68: 0.51 | P68: 0.51 | Q68: =0.46+0.05*MIN(105-$A68,20)/20 -> 0.51 | R68: 0.51 | S68: 0.51 | T68: 0.51 | U68: 0.51 | V68: 0.51 | W68: 0.51 | X68: 0.51 | Y68: 0.51 | Z68: 0.51 | AA68: 0.51 | AB68: 0.51 | AC68: 0.51 | AD68: 0.51 | AE68: 0.51 | AF68: 0.51 | AG68: =0.46+0.05*MIN(105-$A68,20)/20 -> 0.51 | AH68: 0.51 | AI68: 0.51 | AJ68: 0.51 | AK68: 0.51 | AL68: 0.51 | AM68: 0.51 | AN68: 0.51 | AO68: 0.51 | AP68: 0.51 | AQ68: 0.51 | AR68: 0.51 | AS68: 0.51 | AT68: 0.51 | AU68: 0.51 | AV68: 0.51 | AW68: 0.51 | AX68: 0.51 | AY68: 0.51 | AZ68: 0.51 | BA68: 0.51 | BB68: 0.51 | BC68: 0.51 | BD68: 0.51 | BE68: 0.51 | BF68: 0.51 | BG68: 0.51 | BH68: 0.51 | BI68: 0.51 | BJ68: 0.51
A69: 65 | B69: =0.46+0.05*MIN(105-$A69,20)/20 -> 0.51 | C69: 0.51 | D69: 0.51 | E69: 0.51 | F69: 0.51 | G69: 0.51 | H69: 0.51 | I69: 0.51 | J69: 0.51 | K69: 0.51 | L69: 0.51 | M69: 0.51 | N69: 0.51 | O69: 0.51 | P69: 0.51 | Q69: 0.51 | R69: 0.51 | S69: 0.51 | T69: 0.51 | U69: 0.51 | V69: 0.51 | W69: 0.51 | X69: 0.51 | Y69: 0.51 | Z69: 0.51 | AA69: 0.51 | AB69: 0.51 | AC69: 0.51 | AD69: 0.51 | AE69: 0.51 | AF69: 0.51 | AG69: 0.51 | AH69: 0.51 | AI69: 0.51 | AJ69: 0.51 | AK69: 0.51 | AL69: 0.51 | AM69: 0.51 | AN69: 0.51 | AO69: 0.51 | AP69: 0.51 | AQ69: 0.51 | AR69: 0.51 | AS69: 0.51 | AT69: 0.51 | AU69: 0.51 | AV69: 0.51 | AW69: 0.51 | AX69: 0.51 | AY69: 0.51 | AZ69: 0.51 | BA69: 0.51 | BB69: 0.51 | BC69: 0.51 | BD69: 0.51 | BE69: 0.51 | BF69: 0.51 | BG69: 0.51 | BH69: 0.51 | BI69: 0.51 | BJ69: 0.51
A70: 66 | B70: 0.51 | C70: 0.51 | D70: 0.51 | E70: 0.51 | F70: 0.51 | G70: 0.51 | H70: 0.51 | I70: 0.51 | J70: 0.51 | K70: 0.51 | L70: 0.51 | M70: 0.51 | N70: 0.51 | O70: 0.51 | P70: 0.51 | Q70: 0.51 | R70: 0.51 | S70: 0.51 | T70: 0.51 | U70: 0.51 | V70: 0.51 | W70: 0.51 | X70: 0.51 | Y70: 0.51 | Z70: 0.51 | AA70: 0.51 | AB70: 0.51 | AC70: 0.51 | AD70: 0.51 | AE70: 0.51 | AF70: 0.51 | AG70: 0.51 | AH70: 0.51 | AI70: 0.51 | AJ70: 0.51 | AK70: 0.51 | AL70: 0.51 | AM70: 0.51 | AN70: 0.51 | AO70: 0.51 | AP70: 0.51 | AQ70: 0.51 | AR70: 0.51 | AS70: 0.51 | AT70: 0.51 | AU70: 0.51 | AV70: 0.51 | AW70: 0.51 | AX70: 0.51 | AY70: 0.51 | AZ70: 0.51 | BA70: 0.51 | BB70: 0.51 | BC70: 0.51 | BD70: 0.51 | BE70: 0.51 | BF70: 0.51 | BG70: 0.51 | BH70: 0.51 | BI70: 0.51 | BJ70: 0.51
A71: 67 | B71: 0.51 | C71: 0.51 | D71: 0.51 | E71: 0.51 | F71: 0.51 | G71: 0.51 | H71: 0.51 | I71: 0.51 | J71: 0.51 | K71: 0.51 | L71: 0.51 | M71: 0.51 | N71: 0.51 | O71: 0.51 | P71: 0.51 | Q71: 0.51 | R71: 0.51 | S71: 0.51 | T71: 0.51 | U71: 0.51 | V71: 0.51 | W71: 0.51 | X71: 0.51 | Y71: 0.51 | Z71: 0.51 | AA71: 0.51 | AB71: 0.51 | AC71: 0.51 | AD71: 0.51 | AE71: 0.51 | AF71: 0.51 | AG71: 0.51 | AH71: 0.51 | AI71: 0.51 | AJ71: 0.51 | AK71: 0.51 | AL71: 0.51 | AM71: 0.51 | AN71: 0.51 | AO71: 0.51 | AP71: 0.51 | AQ71: 0.51 | AR71: 0.51 | AS71: 0.51 | AT71: 0.51 | AU71: 0.51 | AV71: 0.51 | AW71: 0.51 | AX71: 0.51 | AY71: 0.51 | AZ71: 0.51 | BA71: 0.51 | BB71: 0.51 | BC71: 0.51 | BD71: 0.51 | BE71: 0.51 | BF71: 0.51 | BG71: 0.51 | BH71: 0.51 | BI71: 0.51 | BJ71: 0.51
A72: 68 | B72: 0.51 | C72: 0.51 | D72: 0.51 | E72: 0.51 | F72: 0.51 | G72: 0.51 | H72: 0.51 | I72: 0.51 | J72: 0.51 | K72: 0.51 | L72: 0.51 | M72: 0.51 | N72: 0.51 | O72: 0.51 | P72: 0.51 | Q72: 0.51 | R72: 0.51 | S72: 0.51 | T72: 0.51 | U72: 0.51 | V72: 0.51 | W72: 0.51 | X72: 0.51 | Y72: 0.51 | Z72: 0.51 | AA72: 0.51 | AB72: 0.51 | AC72: 0.51 | AD72: 0.51 | AE72: 0.51 | AF72: 0.51 | AG72: 0.51 | AH72: 0.51 | AI72: 0.51 | AJ72: 0.51 | AK72: 0.51 | AL72: 0.51 | AM72: 0.51 | AN72: 0.51 | AO72: 0.51 | AP72: 0.51 | AQ72: 0.51 | AR72: 0.51 | AS72: 0.51 | AT72: 0.51 | AU72: 0.51 | AV72: 0.51 | AW72: 0.51 | AX72: 0.51 | AY72: 0.51 | AZ72: 0.51 | BA72: 0.51 | BB72: 0.51 | BC72: 0.51 | BD72: 0.51 | BE72: 0.51 | BF72: 0.51 | BG72: 0.51 | BH72: 0.51 | BI72: 0.51 | BJ72: 0.51
A73: 69 | B73: 0.51 | C73: 0.51 | D73: 0.51 | E73: 0.51 | F73: 0.51 | G73: 0.51 | H73: 0.51 | I73: 0.51 | J73: 0.51 | K73: 0.51 | L73: 0.51 | M73: 0.51 | N73: 0.51 | O73: 0.51 | P73: 0.51 | Q73: 0.51 | R73: 0.51 | S73: 0.51 | T73: 0.51 | U73: 0.51 | V73: 0.51 | W73: 0.51 | X73: 0.51 | Y73: 0.51 | Z73: 0.51 | AA73: 0.51 | AB73: 0.51 | AC73: 0.51 | AD73: 0.51 | AE73: 0.51 | AF73: 0.51 | AG73: 0.51 | AH73: 0.51 | AI73: 0.51 | AJ73: 0.51 | AK73: 0.51 | AL73: 0.51 | AM73: 0.51 | AN73: 0.51 | AO73: 0.51 | AP73: 0.51 | AQ73: 0.51 | AR73: 0.51 | AS73: 0.51 | AT73: 0.51 | AU73: 0.51 | AV73: 0.51 | AW73: 0.51 | AX73: 0.51 | AY73: 0.51 | AZ73: 0.51 | BA73: 0.51 | BB73: 0.51 | BC73: 0.51 | BD73: 0.51 | BE73: 0.51 | BF73: 0.51 | BG73: 0.51 | BH73: 0.51 | BI73: 0.51 | BJ73: 0.51
A74: 70 | B74: 0.51 | C74: 0.51 | D74: 0.51 | E74: 0.51 | F74: 0.51 | G74: 0.51 | H74: 0.51 | I74: 0.51 | J74: 0.51 | K74: 0.51 | L74: 0.51 | M74: 0.51 | N74: 0.51 | O74: 0.51 | P74: 0.51 | Q74: 0.51 | R74: 0.51 | S74: 0.51 | T74: 0.51 | U74: 0.51 | V74: 0.51 | W74: 0.51 | X74: 0.51 | Y74: 0.51 | Z74: 0.51 | AA74: 0.51 | AB74: 0.51 | AC74: 0.51 | AD74: 0.51 | AE74: 0.51 | AF74: 0.51 | AG74: 0.51 | AH74: 0.51 | AI74: 0.51 | AJ74: 0.51 | AK74: 0.51 | AL74: 0.51 | AM74: 0.51 | AN74: 0.51 | AO74: 0.51 | AP74: 0.51 | AQ74: 0.51 | AR74: 0.51 | AS74: 0.51 | AT74: 0.51 | AU74: 0.51 | AV74: 0.51 | AW74: 0.51 | AX74: 0.51 | AY74: 0.51 | AZ74: 0.51 | BA74: 0.51 | BB74: 0.51 | BC74: 0.51 | BD74: 0.51 | BE74: 0.51 | BF74: 0.51 | BG74: 0.51 | BH74: 0.51 | BI74: 0.51 | BJ74: 0.51
A75: 71 | B75: 0.51 | C75: 0.51 | D75: 0.51 | E75: 0.51 | F75: 0.51 | G75: 0.51 | H75: 0.51 | I75: 0.51 | J75: 0.51 | K75: 0.51 | L75: 0.51 | M75: 0.51 | N75: 0.51 | O75: 0.51 | P75: 0.51 | Q75: 0.51 | R75: 0.51 | S75: 0.51 | T75: 0.51 | U75: 0.51 | V75: 0.51 | W75: 0.51 | X75: 0.51 | Y75: 0.51 | Z75: 0.51 | AA75: 0.51 | AB75: 0.51 | AC75: 0.51 | AD75: 0.51 | AE75: 0.51 | AF75: 0.51 | AG75: 0.51 | AH75: 0.51 | AI75: 0.51 | AJ75: 0.51 | AK75: 0.51 | AL75: 0.51 | AM75: 0.51 | AN75: 0.51 | AO75: 0.51 | AP75: 0.51 | AQ75: 0.51 | AR75: 0.51 | AS75: 0.51 | AT75: 0.51 | AU75: 0.51 | AV75: 0.51 | AW75: 0.51 | AX75: 0.51 | AY75: 0.51 | AZ75: 0.51 | BA75: 0.51 | BB75: 0.51 | BC75: 0.51 | BD75: 0.51 | BE75: 0.51 | BF75: 0.51 | BG75: 0.51 | BH75: 0.51 | BI75: 0.51 | BJ75: 0.51
A76: 72 | B76: 0.51 | C76: 0.51 | D76: 0.51 | E76: 0.51 | F76: 0.51 | G76: 0.51 | H76: 0.51 | I76: 0.51 | J76: 0.51 | K76: 0.51 | L76: 0.51 | M76: 0.51 | N76: 0.51 | O76: 0.51 | P76: 0.51 | Q76: 0.51 | R76: 0.51 | S76: 0.51 | T76: 0.51 | U76: 0.51 | V76: 0.51 | W76: 0.51 | X76: 0.51 | Y76: 0.51 | Z76: 0.51 | AA76: 0.51 | AB76: 0.51 | AC76: 0.51 | AD76: 0.51 | AE76: 0.51 | AF76: 0.51 | AG76: 0.51 | AH76: 0.51 | AI76: 0.51 | AJ76: 0.51 | AK76: 0.51 | AL76: 0.51 | AM76: 0.51 | AN76: 0.51 | AO76: 0.51 | AP76: 0.51 | AQ76: 0.51 | AR76: 0.51 | AS76: 0.51 | AT76: 0.51 | AU76: 0.51 | AV76: 0.51 | AW76: 0.51 | AX76: 0.51 | AY76: 0.51 | AZ76: 0.51 | BA76: 0.51 | BB76: 0.51 | BC76: 0.51 | BD76: 0.51 | BE76: 0.51 | BF76: 0.51 | BG76: 0.51 | BH76: 0.51 | BI76: 0.51 | BJ76: 0.51
A77: 73 | B77: 0.51 | C77: 0.51 | D77: 0.51 | E77: 0.51 | F77: 0.51 | G77: 0.51 | H77: 0.51 | I77: 0.51 | J77: 0.51 | K77: 0.51 | L77: 0.51 | M77: 0.51 | N77: 0.51 | O77: 0.51 | P77: 0.51 | Q77: 0.51 | R77: 0.51 | S77: 0.51 | T77: 0.51 | U77: 0.51 | V77: 0.51 | W77: 0.51 | X77: 0.51 | Y77: 0.51 | Z77: 0.51 | AA77: 0.51 | AB77: 0.51 | AC77: 0.51 | AD77: 0.51 | AE77: 0.51 | AF77: 0.51 | AG77: 0.51 | AH77: 0.51 | AI77: 0.51 | AJ77: 0.51 | AK77: 0.51 | AL77: 0.51 | AM77: 0.51 | AN77: 0.51 | AO77: 0.51 | AP77: 0.51 | AQ77: 0.51 | AR77: 0.51 | AS77: 0.51 | AT77: 0.51 | AU77: 0.51 | AV77: 0.51 | AW77: 0.51 | AX77: 0.51 | AY77: 0.51 | AZ77: 0.51 | BA77: 0.51 | BB77: 0.51 | BC77: 0.51 | BD77: 0.51 | BE77: 0.51 | BF77: 0.51 | BG77: 0.51 | BH77: 0.51 | BI77: 0.51 | BJ77: 0.51
A78: 74 | B78: 0.51 | C78: 0.51 | D78: 0.51 | E78: 0.51 | F78: 0.51 | G78: 0.51 | H78: 0.51 | I78: 0.51 | J78: 0.51 | K78: 0.51 | L78: 0.51 | M78: 0.51 | N78: 0.51 | O78: 0.51 | P78: 0.51 | Q78: 0.51 | R78: 0.51 | S78: 0.51 | T78: 0.51 | U78: 0.51 | V78: 0.51 | W78: 0.51 | X78: 0.51 | Y78: 0.51 | Z78: 0.51 | AA78: 0.51 | AB78: 0.51 | AC78: 0.51 | AD78: 0.51 | AE78: 0.51 | AF78: 0.51 | AG78: 0.51 | AH78: 0.51 | AI78: 0.51 | AJ78: 0.51 | AK78: 0.51 | AL78: 0.51 | AM78: 0.51 | AN78: 0.51 | AO78: 0.51 | AP78: 0.51 | AQ78: 0.51 | AR78: 0.51 | AS78: 0.51 | AT78: 0.51 | AU78: 0.51 | AV78: 0.51 | AW78: 0.51 | AX78: 0.51 | AY78: 0.51 | AZ78: 0.51 | BA78: 0.51 | BB78: 0.51 | BC78: 0.51 | BD78: 0.51 | BE78: 0.51 | BF78: 0.51 | BG78: 0.51 | BH78: 0.51 | BI78: 0.51 | BJ78: 0.51
A79: 75 | B79: 0.51 | C79: 0.51 | D79: 0.51 | E79: 0.51 | F79: 0.51 | G79: 0.51 | H79: 0.51 | I79: 0.51 | J79: 0.51 | K79: 0.51 | L79: 0.51 | M79: 0.51 | N79: 0.51 | O79: 0.51 | P79: 0.51 | Q79: 0.51 | R79: 0.51 | S79: 0.51 | T79: 0.51 | U79: 0.51 | V79: 0.51 | W79: 0.51 | X79: 0.51 | Y79: 0.51 | Z79: 0.51 | AA79: 0.51 | AB79: 0.51 | AC79: 0.51 | AD79: 0.51 | AE79: 0.51 | AF79: 0.51 | AG79: 0.51 | AH79: 0.51 | AI79: 0.51 | AJ79: 0.51 | AK79: 0.51 | AL79: 0.51 | AM79: 0.51 | AN79: 0.51 | AO79: 0.51 | AP79: 0.51 | AQ79: 0.51 | AR79: 0.51 | AS79: 0.51 | AT79: 0.51 | AU79: 0.51 | AV79: 0.51 | AW79: 0.51 | AX79: 0.51 | AY79: 0.51 | AZ79: 0.51 | BA79: 0.51 | BB79: 0.51 | BC79: 0.51 | BD79: 0.51 | BE79: 0.51 | BF79: 0.51 | BG79: 0.51 | BH79: 0.51 | BI79: 0.51 | BJ79: 0.51
A80: 76 | B80: 0.51 | C80: 0.51 | D80: 0.51 | E80: 0.51 | F80: 0.51 | G80: 0.51 | H80: 0.51 | I80: 0.51 | J80: 0.51 | K80: 0.51 | L80: 0.51 | M80: 0.51 | N80: 0.51 | O80: 0.51 | P80: 0.51 | Q80: 0.51 | R80: 0.51 | S80: 0.51 | T80: 0.51 | U80: 0.51 | V80: 0.51 | W80: 0.51 | X80: 0.51 | Y80: 0.51 | Z80: 0.51 | AA80: 0.51 | AB80: 0.51 | AC80: 0.51 | AD80: 0.51 | AE80: 0.51 | AF80: 0.51 | AG80: 0.51 | AH80: 0.51 | AI80: 0.51 | AJ80: 0.51 | AK80: 0.51 | AL80: 0.51 | AM80: 0.51 | AN80: 0.51 | AO80: 0.51 | AP80: 0.51 | AQ80: 0.51 | AR80: 0.51 | AS80: 0.51 | AT80: 0.51 | AU80: 0.51 | AV80: 0.51 | AW80: 0.51 | AX80: 0.51 | AY80: 0.51 | AZ80: 0.51 | BA80: 0.51 | BB80: 0.51 | BC80: 0.51 | BD80: 0.51 | BE80: 0.51 | BF80: 0.51 | BG80: 0.51 | BH80: 0.51 | BI80: 0.51 | BJ80: 0.51
A81: 77 | B81: 0.51 | C81: 0.51 | D81: 0.51 | E81: 0.51 | F81: 0.51 | G81: 0.51 | H81: 0.51 | I81: 0.51 | J81: 0.51 | K81: 0.51 | L81: 0.51 | M81: 0.51 | N81: 0.51 | O81: 0.51 | P81: 0.51 | Q81: 0.51 | R81: 0.51 | S81: 0.51 | T81: 0.51 | U81: 0.51 | V81: 0.51 | W81: 0.51 | X81: 0.51 | Y81: 0.51 | Z81: 0.51 | AA81: 0.51 | AB81: 0.51 | AC81: 0.51 | AD81: 0.51 | AE81: 0.51 | AF81: 0.51 | AG81: 0.51 | AH81: 0.51 | AI81: 0.51 | AJ81: 0.51 | AK81: 0.51 | AL81: 0.51 | AM81: 0.51 | AN81: 0.51 | AO81: 0.51 | AP81: 0.51 | AQ81: 0.51 | AR81: 0.51 | AS81: 0.51 | AT81: 0.51 | AU81: 0.51 | AV81: 0.51 | AW81: =0.46+0.05*MIN(105-$A81,20)/20 -> 0.51 | AX81: 0.51 | AY81: 0.51 | AZ81: 0.51 | BA81: 0.51 | BB81: 0.51 | BC81: 0.51 | BD81: 0.51 | BE81: 0.51 | BF81: 0.51 | BG81: 0.51 | BH81: 0.51 | BI81: 0.51 | BJ81: 0.51
A82: 78 | B82: 0.51 | C82: 0.51 | D82: 0.51 | E82: 0.51 | F82: 0.51 | G82: 0.51 | H82: 0.51 | I82: 0.51 | J82: 0.51 | K82: 0.51 | L82: 0.51 | M82: 0.51 | N82: 0.51 | O82: 0.51 | P82: 0.51 | Q82: 0.51 | R82: 0.51 | S82: 0.51 | T82: 0.51 | U82: 0.51 | V82: 0.51 | W82: 0.51 | X82: 0.51 | Y82: 0.51 | Z82: 0.51 | AA82: 0.51 | AB82: 0.51 | AC82: 0.51 | AD82: 0.51 | AE82: 0.51 | AF82: 0.51 | AG82: 0.51 | AH82: 0.51 | AI82: 0.51 | AJ82: 0.51 | AK82: 0.51 | AL82: 0.51 | AM82: 0.51 | AN82: 0.51 | AO82: 0.51 | AP82: 0.51 | AQ82: 0.51 | AR82: 0.51 | AS82: 0.51 | AT82: 0.51 | AU82: 0.51 | AV82: 0.51 | AW82: 0.51 | AX82: 0.51 | AY82: 0.51 | AZ82: 0.51 | BA82: 0.51 | BB82: 0.51 | BC82: 0.51 | BD82: 0.51 | BE82: 0.51 | BF82: 0.51 | BG82: 0.51 | BH82: 0.51 | BI82: 0.51 | BJ82: 0.51
A83: 79 | B83: 0.51 | C83: 0.51 | D83: 0.51 | E83: 0.51 | F83: 0.51 | G83: 0.51 | H83: 0.51 | I83: 0.51 | J83: 0.51 | K83: 0.51 | L83: 0.51 | M83: 0.51 | N83: 0.51 | O83: 0.51 | P83: 0.51 | Q83: 0.51 | R83: 0.51 | S83: 0.51 | T83: 0.51 | U83: 0.51 | V83: 0.51 | W83: 0.51 | X83: 0.51 | Y83: 0.51 | Z83: 0.51 | AA83: 0.51 | AB83: 0.51 | AC83: 0.51 | AD83: 0.51 | AE83: 0.51 | AF83: =0.46+0.05*MIN(105-$A83,20)/20 -> 0.51 | AG83: 0.51 | AH83: 0.51 | AI83: 0.51 | AJ83: 0.51 | AK83: 0.51 | AL83: 0.51 | AM83: 0.51 | AN83: 0.51 | AO83: 0.51 | AP83: 0.51 | AQ83: 0.51 | AR83: 0.51 | AS83: 0.51 | AT83: 0.51 | AU83: 0.51 | AV83: 0.51 | AW83: 0.51 | AX83: 0.51 | AY83: 0.51 | AZ83: 0.51 | BA83: 0.51 | BB83: 0.51 | BC83: 0.51 | BD83: 0.51 | BE83: 0.51 | BF83: 0.51 | BG83: 0.51 | BH83: 0.51 | BI83: 0.51 | BJ83: 0.51
A84: 80 | B84: 0.51 | C84: 0.51 | D84: 0.51 | E84: 0.51 | F84: 0.51 | G84: 0.51 | H84: 0.51 | I84: 0.51 | J84: 0.51 | K84: 0.51 | L84: 0.51 | M84: 0.51 | N84: 0.51 | O84: 0.51 | P84: 0.51 | Q84: 0.51 | R84: =0.46+0.05*MIN(105-$A84,20)/20 -> 0.51 | S84: 0.51 | T84: 0.51 | U84: 0.51 | V84: 0.51 | W84: 0.51 | X84: 0.51 | Y84: 0.51 | Z84: 0.51 | AA84: 0.51 | AB84: 0.51 | AC84: 0.51 | AD84: 0.51 | AE84: 0.51 | AF84: 0.51 | AG84: 0.51 | AH84: 0.51 | AI84: 0.51 | AJ84: 0.51 | AK84: 0.51 | AL84: 0.51 | AM84: 0.51 | AN84: 0.51 | AO84: 0.51 | AP84: 0.51 | AQ84: 0.51 | AR84: 0.51 | AS84: 0.51 | AT84: 0.51 | AU84: 0.51 | AV84: =0.46+0.05*MIN(105-$A84,20)/20 -> 0.51 | AW84: 0.51 | AX84: 0.51 | AY84: 0.51 | AZ84: 0.51 | BA84: 0.51 | BB84: 0.51 | BC84: 0.51 | BD84: 0.51 | BE84: 0.51 | BF84: 0.51 | BG84: 0.51 | BH84: 0.51 | BI84: 0.51 | BJ84: 0.51
A85: 81 | B85: =0.46+0.05*MIN(105-$A85,20)/20 -> 0.51 | C85: 0.51 | D85: 0.51 | E85: 0.51 | F85: 0.51 | G85: 0.51 | H85: 0.51 | I85: 0.51 | J85: 0.51 | K85: 0.51 | L85: 0.51 | M85: 0.51 | N85: 0.51 | O85: 0.51 | P85: 0.51 | Q85: 0.51 | R85: 0.51 | S85: 0.51 | T85: 0.51 | U85: 0.51 | V85: 0.51 | W85: 0.51 | X85: 0.51 | Y85: 0.51 | Z85: 0.51 | AA85: 0.51 | AB85: 0.51 | AC85: 0.51 | AD85: 0.51 | AE85: 0.51 | AF85: 0.51 | AG85: 0.51 | AH85: 0.51 | AI85: 0.51 | AJ85: 0.51 | AK85: 0.51 | AL85: 0.51 | AM85: 0.51 | AN85: 0.51 | AO85: 0.51 | AP85: 0.51 | AQ85: 0.51 | AR85: 0.51 | AS85: 0.51 | AT85: 0.51 | AU85: 0.51 | AV85: 0.51 | AW85: 0.51 | AX85: 0.51 | AY85: 0.51 | AZ85: 0.51 | BA85: 0.51 | BB85: 0.51 | BC85: 0.51 | BD85: 0.51 | BE85: 0.51 | BF85: 0.51 | BG85: 0.51 | BH85: 0.51 | BI85: 0.51 | BJ85: 0.51
A86: 82 | B86: 0.51 | C86: 0.51 | D86: 0.51 | E86: 0.51 | F86: 0.51 | G86: 0.51 | H86: 0.51 | I86: 0.51 | J86: 0.51 | K86: 0.51 | L86: 0.51 | M86: 0.51 | N86: 0.51 | O86: 0.51 | P86: 0.51 | Q86: 0.51 | R86: 0.51 | S86: 0.51 | T86: 0.51 | U86: 0.51 | V86: 0.51 | W86: 0.51 | X86: 0.51 | Y86: 0.51 | Z86: 0.51 | AA86: 0.51 | AB86: 0.51 | AC86: 0.51 | AD86: 0.51 | AE86: 0.51 | AF86: 0.51 | AG86: 0.51 | AH86: 0.51 | AI86: 0.51 | AJ86: 0.51 | AK86: 0.51 | AL86: 0.51 | AM86: 0.51 | AN86: 0.51 | AO86: 0.51 | AP86: 0.51 | AQ86: 0.51 | AR86: 0.51 | AS86: 0.51 | AT86: 0.51 | AU86: 0.51 | AV86: 0.51 | AW86: 0.51 | AX86: 0.51 | AY86: 0.51 | AZ86: 0.51 | BA86: 0.51 | BB86: 0.51 | BC86: 0.51 | BD86: 0.51 | BE86: 0.51 | BF86: 0.51 | BG86: 0.51 | BH86: 0.51 | BI86: 0.51 | BJ86: 0.51
A87: 83 | B87: 0.51 | C87: 0.51 | D87: 0.51 | E87: 0.51 | F87: 0.51 | G87: 0.51 | H87: 0.51 | I87: 0.51 | J87: 0.51 | K87: 0.51 | L87: 0.51 | M87: 0.51 | N87: 0.51 | O87: 0.51 | P87: 0.51 | Q87: 0.51 | R87: 0.51 | S87: 0.51 | T87: 0.51 | U87: 0.51 | V87: 0.51 | W87: 0.51 | X87: 0.51 | Y87: 0.51 | Z87: 0.51 | AA87: 0.51 | AB87: 0.51 | AC87: 0.51 | AD87: 0.51 | AE87: 0.51 | AF87: 0.51 | AG87: 0.51 | AH87: 0.51 | AI87: 0.51 | AJ87: 0.51 | AK87: 0.51 | AL87: 0.51 | AM87: 0.51 | AN87: 0.51 | AO87: 0.51 | AP87: 0.51 | AQ87: 0.51 | AR87: 0.51 | AS87: 0.51 | AT87: 0.51 | AU87: 0.51 | AV87: 0.51 | AW87: 0.51 | AX87: 0.51 | AY87: 0.51 | AZ87: 0.51 | BA87: 0.51 | BB87: 0.51 | BC87: 0.51 | BD87: 0.51 | BE87: 0.51 | BF87: 0.51 | BG87: 0.51 | BH87: 0.51 | BI87: 0.51 | BJ87: 0.51
A88: 84 | B88: 0.51 | C88: 0.51 | D88: 0.51 | E88: 0.51 | F88: 0.51 | G88: 0.51 | H88: 0.51 | I88: 0.51 | J88: 0.51 | K88: 0.51 | L88: 0.51 | M88: 0.51 | N88: 0.51 | O88: 0.51 | P88: 0.51 | Q88: 0.51 | R88: 0.51 | S88: 0.51 | T88: 0.51 | U88: 0.51 | V88: 0.51 | W88: 0.51 | X88: 0.51 | Y88: 0.51 | Z88: 0.51 | AA88: 0.51 | AB88: 0.51 | AC88: 0.51 | AD88: 0.51 | AE88: 0.51 | AF88: 0.51 | AG88: 0.51 | AH88: 0.51 | AI88: 0.51 | AJ88: 0.51 | AK88: 0.51 | AL88: 0.51 | AM88: 0.51 | AN88: 0.51 | AO88: 0.51 | AP88: 0.51 | AQ88: 0.51 | AR88: 0.51 | AS88: 0.51 | AT88: 0.51 | AU88: 0.51 | AV88: 0.51 | AW88: 0.51 | AX88: 0.51 | AY88: 0.51 | AZ88: 0.51 | BA88: 0.51 | BB88: 0.51 | BC88: 0.51 | BD88: 0.51 | BE88: 0.51 | BF88: 0.51 | BG88: 0.51 | BH88: 0.51 | BI88: 0.51 | BJ88: 0.51
A89: 85 | B89: 0.51 | C89: 0.51 | D89: 0.51 | E89: 0.51 | F89: 0.51 | G89: 0.51 | H89: 0.51 | I89: 0.51 | J89: 0.51 | K89: 0.51 | L89: 0.51 | M89: 0.51 | N89: 0.51 | O89: 0.51 | P89: 0.51 | Q89: 0.51 | R89: 0.51 | S89: 0.51 | T89: 0.51 | U89: 0.51 | V89: 0.51 | W89: 0.51 | X89: 0.51 | Y89: 0.51 | Z89: 0.51 | AA89: 0.51 | AB89: 0.51 | AC89: 0.51 | AD89: 0.51 | AE89: 0.51 | AF89: 0.51 | AG89: 0.51 | AH89: 0.51 | AI89: 0.51 | AJ89: 0.51 | AK89: 0.51 | AL89: 0.51 | AM89: 0.51 | AN89: 0.51 | AO89: 0.51 | AP89: 0.51 | AQ89: 0.51 | AR89: 0.51 | AS89: 0.51 | AT89: 0.51 | AU89: 0.51 | AV89: 0.51 | AW89: 0.51 | AX89: 0.51 | AY89: 0.51 | AZ89: 0.51 | BA89: 0.51 | BB89: 0.51 | BC89: 0.51 | BD89: 0.51 | BE89: 0.51 | BF89: 0.51 | BG89: 0.51 | BH89: 0.51 | BI89: 0.51 | BJ89: 0.51
A90: 86 | B90: 0.5075 | C90: 0.5075 | D90: 0.5075 | E90: 0.5075 | F90: 0.5075 | G90: 0.5075 | H90: 0.5075 | I90: 0.5075 | J90: 0.5075 | K90: 0.5075 | L90: 0.5075 | M90: 0.5075 | N90: 0.5075 | O90: 0.5075 | P90: 0.5075 | Q90: 0.5075 | R90: 0.5075 | S90: 0.5075 | T90: 0.5075 | U90: 0.5075 | V90: 0.5075 | W90: 0.5075 | X90: 0.5075 | Y90: 0.5075 | Z90: 0.5075 | AA90: 0.5075 | AB90: 0.5075 | AC90: 0.5075 | AD90: 0.5075 | AE90: 0.5075 | AF90: 0.5075 | AG90: 0.5075 | AH90: 0.5075 | AI90: 0.5075 | AJ90: 0.5075 | AK90: 0.5075 | AL90: 0.5075 | AM90: 0.5075 | AN90: 0.5075 | AO90: 0.5075 | AP90: 0.5075 | AQ90: 0.5075 | AR90: 0.5075 | AS90: 0.5075 | AT90: 0.5075 | AU90: 0.5075 | AV90: 0.5075 | AW90: 0.5075 | AX90: 0.5075 | AY90: 0.5075 | AZ90: 0.5075 | BA90: 0.5075 | BB90: 0.5075 | BC90: 0.5075 | BD90: 0.5075 | BE90: 0.5075 | BF90: 0.5075 | BG90: 0.5075 | BH90: 0.5075 | BI90: 0.5075 | BJ90: 0.5075
A91: 87 | B91: 0.505 | C91: 0.505 | D91: 0.505 | E91: 0.505 | F91: 0.505 | G91: 0.505 | H91: 0.505 | I91: 0.505 | J91: 0.505 | K91: 0.505 | L91: 0.505 | M91: 0.505 | N91: 0.505 | O91: 0.505 | P91: 0.505 | Q91: 0.505 | R91: 0.505 | S91: 0.505 | T91: 0.505 | U91: 0.505 | V91: 0.505 | W91: 0.505 | X91: 0.505 | Y91: 0.505 | Z91: 0.505 | AA91: 0.505 | AB91: 0.505 | AC91: 0.505 | AD91: 0.505 | AE91: 0.505 | AF91: 0.505 | AG91: 0.505 | AH91: 0.505 | AI91: 0.505 | AJ91: 0.505 | AK91: 0.505 | AL91: 0.505 | AM91: 0.505 | AN91: 0.505 | AO91: 0.505 | AP91: 0.505 | AQ91: 0.505 | AR91: 0.505 | AS91: 0.505 | AT91: 0.505 | AU91: 0.505 | AV91: 0.505 | AW91: 0.505 | AX91: 0.505 | AY91: 0.505 | AZ91: 0.505 | BA91: 0.505 | BB91: 0.505 | BC91: 0.505 | BD91: 0.505 | BE91: 0.505 | BF91: 0.505 | BG91: 0.505 | BH91: 0.505 | BI91: 0.505 | BJ91: 0.505
A92: 88 | B92: 0.5025 | C92: 0.5025 | D92: 0.5025 | E92: 0.5025 | F92: 0.5025 | G92: 0.5025 | H92: 0.5025 | I92: 0.5025 | J92: 0.5025 | K92: 0.5025 | L92: 0.5025 | M92: 0.5025 | N92: 0.5025 | O92: 0.5025 | P92: 0.5025 | Q92: 0.5025 | R92: 0.5025 | S92: 0.5025 | T92: 0.5025 | U92: 0.5025 | V92: 0.5025 | W92: 0.5025 | X92: 0.5025 | Y92: 0.5025 | Z92: 0.5025 | AA92: 0.5025 | AB92: 0.5025 | AC92: 0.5025 | AD92: 0.5025 | AE92: 0.5025 | AF92: 0.5025 | AG92: 0.5025 | AH92: 0.5025 | AI92: 0.5025 | AJ92: 0.5025 | AK92: 0.5025 | AL92: 0.5025 | AM92: 0.5025 | AN92: 0.5025 | AO92: 0.5025 | AP92: 0.5025 | AQ92: 0.5025 | AR92: 0.5025 | AS92: 0.5025 | AT92: 0.5025 | AU92: 0.5025 | AV92: 0.5025 | AW92: 0.5025 | AX92: 0.5025 | AY92: 0.5025 | AZ92: 0.5025 | BA92: 0.5025 | BB92: 0.5025 | BC92: 0.5025 | BD92: 0.5025 | BE92: 0.5025 | BF92: 0.5025 | BG92: 0.5025 | BH92: 0.5025 | BI92: 0.5025 | BJ92: 0.5025
A93: 89 | B93: 0.5 | C93: 0.5 | D93: 0.5 | E93: 0.5 | F93: 0.5 | G93: 0.5 | H93: 0.5 | I93: 0.5 | J93: 0.5 | K93: 0.5 | L93: 0.5 | M93: 0.5 | N93: 0.5 | O93: 0.5 | P93: 0.5 | Q93: 0.5 | R93: 0.5 | S93: 0.5 | T93: 0.5 | U93: 0.5 | V93: 0.5 | W93: 0.5 | X93: 0.5 | Y93: 0.5 | Z93: 0.5 | AA93: 0.5 | AB93: 0.5 | AC93: 0.5 | AD93: 0.5 | AE93: 0.5 | AF93: 0.5 | AG93: 0.5 | AH93: 0.5 | AI93: 0.5 | AJ93: 0.5 | AK93: 0.5 | AL93: 0.5 | AM93: 0.5 | AN93: 0.5 | AO93: 0.5 | AP93: 0.5 | AQ93: 0.5 | AR93: 0.5 | AS93: 0.5 | AT93: 0.5 | AU93: 0.5 | AV93: 0.5 | AW93: 0.5 | AX93: 0.5 | AY93: 0.5 | AZ93: 0.5 | BA93: 0.5 | BB93: 0.5 | BC93: 0.5 | BD93: 0.5 | BE93: 0.5 | BF93: 0.5 | BG93: 0.5 | BH93: 0.5 | BI93: 0.5 | BJ93: 0.5
A94: 90 | B94: 0.4975 | C94: 0.4975 | D94: 0.4975 | E94: 0.4975 | F94: 0.4975 | G94: 0.4975 | H94: 0.4975 | I94: 0.4975 | J94: 0.4975 | K94: 0.4975 | L94: 0.4975 | M94: 0.4975 | N94: 0.4975 | O94: 0.4975 | P94: 0.4975 | Q94: 0.4975 | R94: 0.4975 | S94: 0.4975 | T94: 0.4975 | U94: 0.4975 | V94: 0.4975 | W94: 0.4975 | X94: 0.4975 | Y94: 0.4975 | Z94: 0.4975 | AA94: 0.4975 | AB94: 0.4975 | AC94: 0.4975 | AD94: 0.4975 | AE94: 0.4975 | AF94: 0.4975 | AG94: 0.4975 | AH94: 0.4975 | AI94: 0.4975 | AJ94: 0.4975 | AK94: 0.4975 | AL94: 0.4975 | AM94: 0.4975 | AN94: 0.4975 | AO94: 0.4975 | AP94: 0.4975 | AQ94: 0.4975 | AR94: 0.4975 | AS94: 0.4975 | AT94: 0.4975 | AU94: 0.4975 | AV94: 0.4975 | AW94: 0.4975 | AX94: 0.4975 | AY94: 0.4975 | AZ94: 0.4975 | BA94: 0.4975 | BB94: 0.4975 | BC94: 0.4975 | BD94: 0.4975 | BE94: 0.4975 | BF94: 0.4975 | BG94: 0.4975 | BH94: 0.4975 | BI94: 0.4975 | BJ94: 0.4975
A95: 91 | B95: 0.495 | C95: 0.495 | D95: 0.495 | E95: 0.495 | F95: 0.495 | G95: 0.495 | H95: 0.495 | I95: 0.495 | J95: 0.495 | K95: 0.495 | L95: 0.495 | M95: 0.495 | N95: 0.495 | O95: 0.495 | P95: 0.495 | Q95: 0.495 | R95: 0.495 | S95: 0.495 | T95: 0.495 | U95: 0.495 | V95: 0.495 | W95: 0.495 | X95: 0.495 | Y95: 0.495 | Z95: 0.495 | AA95: 0.495 | AB95: 0.495 | AC95: 0.495 | AD95: 0.495 | AE95: 0.495 | AF95: 0.495 | AG95: 0.495 | AH95: 0.495 | AI95: 0.495 | AJ95: 0.495 | AK95: 0.495 | AL95: 0.495 | AM95: 0.495 | AN95: 0.495 | AO95: 0.495 | AP95: 0.495 | AQ95: 0.495 | AR95: 0.495 | AS95: 0.495 | AT95: 0.495 | AU95: 0.495 | AV95: 0.495 | AW95: 0.495 | AX95: 0.495 | AY95: 0.495 | AZ95: 0.495 | BA95: 0.495 | BB95: 0.495 | BC95: 0.495 | BD95: 0.495 | BE95: 0.495 | BF95: 0.495 | BG95: 0.495 | BH95: 0.495 | BI95: 0.495 | BJ95: 0.495
A96: 92 | B96: 0.4925 | C96: 0.4925 | D96: 0.4925 | E96: 0.4925 | F96: 0.4925 | G96: 0.4925 | H96: 0.4925 | I96: 0.4925 | J96: 0.4925 | K96: 0.4925 | L96: 0.4925 | M96: 0.4925 | N96: 0.4925 | O96: 0.4925 | P96: 0.4925 | Q96: 0.4925 | R96: 0.4925 | S96: 0.4925 | T96: 0.4925 | U96: 0.4925 | V96: 0.4925 | W96: 0.4925 | X96: 0.4925 | Y96: 0.4925 | Z96: 0.4925 | AA96: 0.4925 | AB96: 0.4925 | AC96: 0.4925 | AD96: 0.4925 | AE96: 0.4925 | AF96: 0.4925 | AG96: 0.4925 | AH96: 0.4925 | AI96: 0.4925 | AJ96: 0.4925 | AK96: 0.4925 | AL96: 0.4925 | AM96: 0.4925 | AN96: 0.4925 | AO96: 0.4925 | AP96: 0.4925 | AQ96: 0.4925 | AR96: 0.4925 | AS96: 0.4925 | AT96: 0.4925 | AU96: 0.4925 | AV96: 0.4925 | AW96: 0.4925 | AX96: 0.4925 | AY96: 0.4925 | AZ96: 0.4925 | BA96: 0.4925 | BB96: 0.4925 | BC96: 0.4925 | BD96: 0.4925 | BE96: 0.4925 | BF96: 0.4925 | BG96: 0.4925 | BH96: 0.4925 | BI96: 0.4925 | BJ96: 0.4925
A97: 93 | B97: 0.49 | C97: 0.49 | D97: 0.49 | E97: 0.49 | F97: 0.49 | G97: 0.49 | H97: 0.49 | I97: 0.49 | J97: 0.49 | K97: 0.49 | L97: 0.49 | M97: 0.49 | N97: 0.49 | O97: 0.49 | P97: 0.49 | Q97: 0.49 | R97: 0.49 | S97: 0.49 | T97: 0.49 | U97: 0.49 | V97: 0.49 | W97: 0.49 | X97: 0.49 | Y97: 0.49 | Z97: 0.49 | AA97: 0.49 | AB97: 0.49 | AC97: 0.49 | AD97: 0.49 | AE97: 0.49 | AF97: 0.49 | AG97: 0.49 | AH97: 0.49 | AI97: 0.49 | AJ97: 0.49 | AK97: 0.49 | AL97: 0.49 | AM97: 0.49 | AN97: 0.49 | AO97: 0.49 | AP97: 0.49 | AQ97: 0.49 | AR97: 0.49 | AS97: 0.49 | AT97: 0.49 | AU97: 0.49 | AV97: 0.49 | AW97: 0.49 | AX97: 0.49 | AY97: 0.49 | AZ97: 0.49 | BA97: 0.49 | BB97: 0.49 | BC97: 0.49 | BD97: 0.49 | BE97: 0.49 | BF97: 0.49 | BG97: 0.49 | BH97: 0.49 | BI97: 0.49 | BJ97: 0.49
A98: 94 | B98: 0.4875 | C98: 0.4875 | D98: 0.4875 | E98: 0.4875 | F98: 0.4875 | G98: 0.4875 | H98: 0.4875 | I98: 0.4875 | J98: 0.4875 | K98: 0.4875 | L98: 0.4875 | M98: 0.4875 | N98: 0.4875 | O98: 0.4875 | P98: 0.4875 | Q98: 0.4875 | R98: 0.4875 | S98: 0.4875 | T98: 0.4875 | U98: 0.4875 | V98: 0.4875 | W98: 0.4875 | X98: 0.4875 | Y98: 0.4875 | Z98: 0.4875 | AA98: 0.4875 | AB98: 0.4875 | AC98: 0.4875 | AD98: 0.4875 | AE98: 0.4875 | AF98: 0.4875 | AG98: 0.4875 | AH98: 0.4875 | AI98: 0.4875 | AJ98: 0.4875 | AK98: 0.4875 | AL98: 0.4875 | AM98: 0.4875 | AN98: 0.4875 | AO98: 0.4875 | AP98: 0.4875 | AQ98: 0.4875 | AR98: 0.4875 | AS98: 0.4875 | AT98: 0.4875 | AU98: 0.4875 | AV98: 0.4875 | AW98: 0.4875 | AX98: 0.4875 | AY98: 0.4875 | AZ98: 0.4875 | BA98: 0.4875 | BB98: 0.4875 | BC98: 0.4875 | BD98: 0.4875 | BE98: 0.4875 | BF98: 0.4875 | BG98: 0.4875 | BH98: 0.4875 | BI98: 0.4875 | BJ98: 0.4875
A99: 95 | B99: 0.485 | C99: 0.485 | D99: 0.485 | E99: 0.485 | F99: 0.485 | G99: 0.485 | H99: 0.485 | I99: 0.485 | J99: 0.485 | K99: 0.485 | L99: 0.485 | M99: 0.485 | N99: 0.485 | O99: 0.485 | P99: 0.485 | Q99: 0.485 | R99: 0.485 | S99: 0.485 | T99: 0.485 | U99: 0.485 | V99: 0.485 | W99: 0.485 | X99: 0.485 | Y99: 0.485 | Z99: 0.485 | AA99: 0.485 | AB99: 0.485 | AC99: 0.485 | AD99: 0.485 | AE99: 0.485 | AF99: 0.485 | AG99: 0.485 | AH99: =0.46+0.05*MIN(105-$A99,20)/20 -> 0.485 | AI99: 0.485 | AJ99: 0.485 | AK99: 0.485 | AL99: 0.485 | AM99: 0.485 | AN99: 0.485 | AO99: 0.485 | AP99: 0.485 | AQ99: 0.485 | AR99: 0.485 | AS99: 0.485 | AT99: 0.485 | AU99: 0.485 | AV99: 0.485 | AW99: 0.485 | AX99: 0.485 | AY99: 0.485 | AZ99: 0.485 | BA99: 0.485 | BB99: 0.485 | BC99: 0.485 | BD99: 0.485 | BE99: 0.485 | BF99: 0.485 | BG99: 0.485 | BH99: 0.485 | BI99: 0.485 | BJ99: 0.485
A100: 96 | B100: 0.4825 | C100: 0.4825 | D100: 0.4825 | E100: 0.4825 | F100: 0.4825 | G100: 0.4825 | H100: 0.4825 | I100: 0.4825 | J100: 0.4825 | K100: 0.4825 | L100: 0.4825 | M100: 0.4825 | N100: 0.4825 | O100: 0.4825 | P100: 0.4825 | Q100: =0.46+0.05*MIN(105-$A100,20)/20 -> 0.4825 | R100: 0.4825 | S100: 0.4825 | T100: 0.4825 | U100: 0.4825 | V100: 0.4825 | W100: 0.4825 | X100: 0.4825 | Y100: 0.4825 | Z100: 0.4825 | AA100: 0.4825 | AB100: 0.4825 | AC100: 0.4825 | AD100: 0.4825 | AE100: 0.4825 | AF100: 0.4825 | AG100: =0.46+0.05*MIN(105-$A100,20)/20 -> 0.4825 | AH100: 0.4825 | AI100: 0.4825 | AJ100: 0.4825 | AK100: 0.4825 | AL100: 0.4825 | AM100: 0.4825 | AN100: 0.4825 | AO100: 0.4825 | AP100: 0.4825 | AQ100: 0.4825 | AR100: 0.4825 | AS100: 0.4825 | AT100: 0.4825 | AU100: 0.4825 | AV100: 0.4825 | AW100: 0.4825 | AX100: =0.46+0.05*MIN(105-$A100,20)/20 -> 0.4825 | AY100: 0.4825 | AZ100: 0.4825 | BA100: 0.4825 | BB100: 0.4825 | BC100: 0.4825 | BD100: 0.4825 | BE100: 0.4825 | BF100: 0.4825 | BG100: 0.4825 | BH100: 0.4825 | BI100: 0.4825 | BJ100: 0.4825
A101: 97 | B101: =0.46+0.05*MIN(105-$A101,20)/20 -> 0.48 | C101: 0.48 | D101: 0.48 | E101: 0.48 | F101: 0.48 | G101: 0.48 | H101: 0.48 | I101: 0.48 | J101: 0.48 | K101: 0.48 | L101: 0.48 | M101: 0.48 | N101: 0.48 | O101: 0.48 | P101: 0.48 | Q101: 0.48 | R101: 0.48 | S101: 0.48 | T101: 0.48 | U101: 0.48 | V101: 0.48 | W101: 0.48 | X101: 0.48 | Y101: 0.48 | Z101: 0.48 | AA101: 0.48 | AB101: 0.48 | AC101: 0.48 | AD101: 0.48 | AE101: 0.48 | AF101: 0.48 | AG101: 0.48 | AH101: 0.48 | AI101: 0.48 | AJ101: 0.48 | AK101: 0.48 | AL101: 0.48 | AM101: 0.48 | AN101: 0.48 | AO101: 0.48 | AP101: 0.48 | AQ101: 0.48 | AR101: 0.48 | AS101: 0.48 | AT101: 0.48 | AU101: 0.48 | AV101: 0.48 | AW101: 0.48 | AX101: 0.48 | AY101: 0.48 | AZ101: 0.48 | BA101: 0.48 | BB101: 0.48 | BC101: 0.48 | BD101: 0.48 | BE101: 0.48 | BF101: 0.48 | BG101: 0.48 | BH101: 0.48 | BI101: 0.48 | BJ101: 0.48
A102: 98 | B102: 0.4775 | C102: 0.4775 | D102: 0.4775 | E102: 0.4775 | F102: 0.4775 | G102: 0.4775 | H102: 0.4775 | I102: 0.4775 | J102: 0.4775 | K102: 0.4775 | L102: 0.4775 | M102: 0.4775 | N102: 0.4775 | O102: 0.4775 | P102: 0.4775 | Q102: 0.4775 | R102: 0.4775 | S102: 0.4775 | T102: 0.4775 | U102: 0.4775 | V102: 0.4775 | W102: 0.4775 | X102: 0.4775 | Y102: 0.4775 | Z102: 0.4775 | AA102: 0.4775 | AB102: 0.4775 | AC102: 0.4775 | AD102: 0.4775 | AE102: 0.4775 | AF102: 0.4775 | AG102: 0.4775 | AH102: 0.4775 | AI102: 0.4775 | AJ102: 0.4775 | AK102: 0.4775 | AL102: 0.4775 | AM102: 0.4775 | AN102: 0.4775 | AO102: 0.4775 | AP102: 0.4775 | AQ102: 0.4775 | AR102: 0.4775 | AS102: 0.4775 | AT102: 0.4775 | AU102: 0.4775 | AV102: 0.4775 | AW102: 0.4775 | AX102: 0.4775 | AY102: 0.4775 | AZ102: 0.4775 | BA102: 0.4775 | BB102: 0.4775 | BC102: 0.4775 | BD102: 0.4775 | BE102: 0.4775 | BF102: 0.4775 | BG102: 0.4775 | BH102: 0.4775 | BI102: 0.4775 | BJ102: 0.4775
A103: 99 | B103: 0.475 | C103: 0.475 | D103: 0.475 | E103: 0.475 | F103: 0.475 | G103: 0.475 | H103: 0.475 | I103: 0.475 | J103: 0.475 | K103: 0.475 | L103: 0.475 | M103: 0.475 | N103: 0.475 | O103: 0.475 | P103: 0.475 | Q103: 0.475 | R103: 0.475 | S103: 0.475 | T103: 0.475 | U103: 0.475 | V103: 0.475 | W103: 0.475 | X103: 0.475 | Y103: 0.475 | Z103: 0.475 | AA103: 0.475 | AB103: 0.475 | AC103: 0.475 | AD103: 0.475 | AE103: 0.475 | AF103: 0.475 | AG103: 0.475 | AH103: 0.475 | AI103: 0.475 | AJ103: 0.475 | AK103: 0.475 | AL103: 0.475 | AM103: 0.475 | AN103: 0.475 | AO103: 0.475 | AP103: 0.475 | AQ103: 0.475 | AR103: 0.475 | AS103: 0.475 | AT103: 0.475 | AU103: 0.475 | AV103: 0.475 | AW103: 0.475 | AX103: 0.475 | AY103: 0.475 | AZ103: 0.475 | BA103: 0.475 | BB103: 0.475 | BC103: 0.475 | BD103: 0.475 | BE103: 0.475 | BF103: 0.475 | BG103: 0.475 | BH103: 0.475 | BI103: 0.475 | BJ103: 0.475
A104: 100 | B104: 0.4725 | C104: 0.4725 | D104: 0.4725 | E104: 0.4725 | F104: 0.4725 | G104: 0.4725 | H104: 0.4725 | I104: 0.4725 | J104: 0.4725 | K104: 0.4725 | L104: 0.4725 | M104: 0.4725 | N104: 0.4725 | O104: 0.4725 | P104: 0.4725 | Q104: 0.4725 | R104: 0.4725 | S104: 0.4725 | T104: 0.4725 | U104: 0.4725 | V104: 0.4725 | W104: 0.4725 | X104: 0.4725 | Y104: 0.4725 | Z104: 0.4725 | AA104: 0.4725 | AB104: 0.4725 | AC104: 0.4725 | AD104: 0.4725 | AE104: 0.4725 | AF104: 0.4725 | AG104: 0.4725 | AH104: 0.4725 | AI104: 0.4725 | AJ104: 0.4725 | AK104: 0.4725 | AL104: 0.4725 | AM104: 0.4725 | AN104: 0.4725 | AO104: 0.4725 | AP104: 0.4725 | AQ104: 0.4725 | AR104: 0.4725 | AS104: 0.4725 | AT104: 0.4725 | AU104: 0.4725 | AV104: 0.4725 | AW104: 0.4725 | AX104: 0.4725 | AY104: 0.4725 | AZ104: 0.4725 | BA104: 0.4725 | BB104: 0.4725 | BC104: 0.4725 | BD104: 0.4725 | BE104: 0.4725 | BF104: 0.4725 | BG104: 0.4725 | BH104: 0.4725 | BI104: 0.4725 | BJ104: 0.4725
A105: 101 | B105: 0.47 | C105: 0.47 | D105: 0.47 | E105: 0.47 | F105: 0.47 | G105: 0.47 | H105: 0.47 | I105: 0.47 | J105: 0.47 | K105: 0.47 | L105: 0.47 | M105: 0.47 | N105: 0.47 | O105: 0.47 | P105: 0.47 | Q105: 0.47 | R105: 0.47 | S105: 0.47 | T105: 0.47 | U105: 0.47 | V105: 0.47 | W105: 0.47 | X105: 0.47 | Y105: 0.47 | Z105: 0.47 | AA105: 0.47 | AB105: 0.47 | AC105: 0.47 | AD105: 0.47 | AE105: 0.47 | AF105: 0.47 | AG105: 0.47 | AH105: 0.47 | AI105: 0.47 | AJ105: 0.47 | AK105: 0.47 | AL105: 0.47 | AM105: 0.47 | AN105: 0.47 | AO105: 0.47 | AP105: 0.47 | AQ105: 0.47 | AR105: 0.47 | AS105: 0.47 | AT105: 0.47 | AU105: 0.47 | AV105: 0.47 | AW105: 0.47 | AX105: 0.47 | AY105: 0.47 | AZ105: 0.47 | BA105: 0.47 | BB105: 0.47 | BC105: 0.47 | BD105: 0.47 | BE105: 0.47 | BF105: 0.47 | BG105: 0.47 | BH105: 0.47 | BI105: 0.47 | BJ105: 0.47
A106: 102 | B106: 0.4675 | C106: 0.4675 | D106: 0.4675 | E106: 0.4675 | F106: 0.4675 | G106: 0.4675 | H106: 0.4675 | I106: 0.4675 | J106: 0.4675 | K106: 0.4675 | L106: 0.4675 | M106: 0.4675 | N106: 0.4675 | O106: 0.4675 | P106: 0.4675 | Q106: 0.4675 | R106: 0.4675 | S106: 0.4675 | T106: 0.4675 | U106: 0.4675 | V106: 0.4675 | W106: 0.4675 | X106: 0.4675 | Y106: 0.4675 | Z106: 0.4675 | AA106: 0.4675 | AB106: 0.4675 | AC106: 0.4675 | AD106: 0.4675 | AE106: 0.4675 | AF106: 0.4675 | AG106: 0.4675 | AH106: 0.4675 | AI106: 0.4675 | AJ106: 0.4675 | AK106: 0.4675 | AL106: 0.4675 | AM106: 0.4675 | AN106: 0.4675 | AO106: 0.4675 | AP106: 0.4675 | AQ106: 0.4675 | AR106: 0.4675 | AS106: 0.4675 | AT106: 0.4675 | AU106: 0.4675 | AV106: 0.4675 | AW106: 0.4675 | AX106: 0.4675 | AY106: 0.4675 | AZ106: 0.4675 | BA106: 0.4675 | BB106: 0.4675 | BC106: 0.4675 | BD106: 0.4675 | BE106: 0.4675 | BF106: 0.4675 | BG106: 0.4675 | BH106: 0.4675 | BI106: 0.4675 | BJ106: 0.4675
A107: 103 | B107: 0.465 | C107: 0.465 | D107: 0.465 | E107: 0.465 | F107: 0.465 | G107: 0.465 | H107: 0.465 | I107: 0.465 | J107: 0.465 | K107: 0.465 | L107: 0.465 | M107: 0.465 | N107: 0.465 | O107: 0.465 | P107: 0.465 | Q107: 0.465 | R107: 0.465 | S107: 0.465 | T107: 0.465 | U107: 0.465 | V107: 0.465 | W107: 0.465 | X107: 0.465 | Y107: 0.465 | Z107: 0.465 | AA107: 0.465 | AB107: 0.465 | AC107: 0.465 | AD107: 0.465 | AE107: 0.465 | AF107: 0.465 | AG107: 0.465 | AH107: 0.465 | AI107: 0.465 | AJ107: 0.465 | AK107: 0.465 | AL107: 0.465 | AM107: 0.465 | AN107: 0.465 | AO107: 0.465 | AP107: 0.465 | AQ107: 0.465 | AR107: 0.465 | AS107: 0.465 | AT107: 0.465 | AU107: 0.465 | AV107: 0.465 | AW107: 0.465 | AX107: 0.465 | AY107: 0.465 | AZ107: 0.465 | BA107: 0.465 | BB107: 0.465 | BC107: 0.465 | BD107: 0.465 | BE107: 0.465 | BF107: 0.465 | BG107: 0.465 | BH107: 0.465 | BI107: 0.465 | BJ107: 0.465
A108: 104 | B108: 0.4625 | C108: 0.4625 | D108: 0.4625 | E108: 0.4625 | F108: 0.4625 | G108: 0.4625 | H108: 0.4625 | I108: 0.4625 | J108: 0.4625 | K108: 0.4625 | L108: 0.4625 | M108: 0.4625 | N108: 0.4625 | O108: 0.4625 | P108: 0.4625 | Q108: 0.4625 | R108: 0.4625 | S108: 0.4625 | T108: 0.4625 | U108: 0.4625 | V108: 0.4625 | W108: 0.4625 | X108: 0.4625 | Y108: 0.4625 | Z108: 0.4625 | AA108: 0.4625 | AB108: 0.4625 | AC108: 0.4625 | AD108: 0.4625 | AE108: 0.4625 | AF108: 0.4625 | AG108: 0.4625 | AH108: 0.4625 | AI108: 0.4625 | AJ108: 0.4625 | AK108: 0.4625 | AL108: 0.4625 | AM108: 0.4625 | AN108: 0.4625 | AO108: 0.4625 | AP108: 0.4625 | AQ108: 0.4625 | AR108: 0.4625 | AS108: 0.4625 | AT108: 0.4625 | AU108: 0.4625 | AV108: 0.4625 | AW108: 0.4625 | AX108: 0.4625 | AY108: 0.4625 | AZ108: 0.4625 | BA108: 0.4625 | BB108: 0.4625 | BC108: 0.4625 | BD108: 0.4625 | BE108: 0.4625 | BF108: 0.4625 | BG108: 0.4625 | BH108: 0.4625 | BI108: 0.4625 | BJ108: 0.4625
A109: 105 | B109: 0.46 | C109: 0.46 | D109: 0.46 | E109: 0.46 | F109: 0.46 | G109: 0.46 | H109: 0.46 | I109: 0.46 | J109: 0.46 | K109: 0.46 | L109: 0.46 | M109: 0.46 | N109: 0.46 | O109: 0.46 | P109: 0.46 | Q109: 0.46 | R109: 0.46 | S109: 0.46 | T109: 0.46 | U109: 0.46 | V109: 0.46 | W109: 0.46 | X109: 0.46 | Y109: 0.46 | Z109: 0.46 | AA109: 0.46 | AB109: 0.46 | AC109: 0.46 | AD109: 0.46 | AE109: 0.46 | AF109: 0.46 | AG109: 0.46 | AH109: 0.46 | AI109: 0.46 | AJ109: 0.46 | AK109: 0.46 | AL109: 0.46 | AM109: 0.46 | AN109: 0.46 | AO109: 0.46 | AP109: 0.46 | AQ109: 0.46 | AR109: 0.46 | AS109: 0.46 | AT109: 0.46 | AU109: 0.46 | AV109: 0.46 | AW109: 0.46 | AX109: 0.46 | AY109: 0.46 | AZ109: 0.46 | BA109: 0.46 | BB109: 0.46 | BC109: 0.46 | BD109: 0.46 | BE109: 0.46 | BF109: 0.46 | BG109: 0.46 | BH109: 0.46 | BI109: 0.46 | BJ109: 0.46
A110: 106 | B110: 0.4575 | C110: 0.4575 | D110: 0.4575 | E110: 0.4575 | F110: 0.4575 | G110: 0.4575 | H110: 0.4575 | I110: 0.4575 | J110: 0.4575 | K110: 0.4575 | L110: 0.4575 | M110: 0.4575 | N110: 0.4575 | O110: 0.4575 | P110: 0.4575 | Q110: 0.4575 | R110: 0.4575 | S110: 0.4575 | T110: 0.4575 | U110: 0.4575 | V110: 0.4575 | W110: 0.4575 | X110: 0.4575 | Y110: 0.4575 | Z110: 0.4575 | AA110: 0.4575 | AB110: 0.4575 | AC110: 0.4575 | AD110: 0.4575 | AE110: 0.4575 | AF110: 0.4575 | AG110: 0.4575 | AH110: 0.4575 | AI110: 0.4575 | AJ110: 0.4575 | AK110: 0.4575 | AL110: 0.4575 | AM110: 0.4575 | AN110: 0.4575 | AO110: 0.4575 | AP110: 0.4575 | AQ110: 0.4575 | AR110: 0.4575 | AS110: 0.4575 | AT110: 0.4575 | AU110: 0.4575 | AV110: 0.4575 | AW110: 0.4575 | AX110: 0.4575 | AY110: 0.4575 | AZ110: 0.4575 | BA110: 0.4575 | BB110: 0.4575 | BC110: 0.4575 | BD110: 0.4575 | BE110: 0.4575 | BF110: 0.4575 | BG110: 0.4575 | BH110: 0.4575 | BI110: 0.4575 | BJ110: 0.4575
A111: 107 | B111: 0.455 | C111: 0.455 | D111: 0.455 | E111: 0.455 | F111: 0.455 | G111: 0.455 | H111: 0.455 | I111: 0.455 | J111: 0.455 | K111: 0.455 | L111: 0.455 | M111: 0.455 | N111: 0.455 | O111: 0.455 | P111: 0.455 | Q111: 0.455 | R111: 0.455 | S111: 0.455 | T111: 0.455 | U111: 0.455 | V111: 0.455 | W111: 0.455 | X111: 0.455 | Y111: 0.455 | Z111: 0.455 | AA111: 0.455 | AB111: 0.455 | AC111: 0.455 | AD111: 0.455 | AE111: 0.455 | AF111: 0.455 | AG111: 0.455 | AH111: 0.455 | AI111: 0.455 | AJ111: 0.455 | AK111: 0.455 | AL111: 0.455 | AM111: 0.455 | AN111: 0.455 | AO111: 0.455 | AP111: 0.455 | AQ111: 0.455 | AR111: 0.455 | AS111: 0.455 | AT111: 0.455 | AU111: 0.455 | AV111: 0.455 | AW111: 0.455 | AX111: 0.455 | AY111: 0.455 | AZ111: 0.455 | BA111: 0.455 | BB111: 0.455 | BC111: 0.455 | BD111: 0.455 | BE111: 0.455 | BF111: 0.455 | BG111: 0.455 | BH111: 0.455 | BI111: 0.455 | BJ111: 0.455
A112: 108 | B112: 0.4525 | C112: 0.4525 | D112: 0.4525 | E112: 0.4525 | F112: 0.4525 | G112: 0.4525 | H112: 0.4525 | I112: 0.4525 | J112: 0.4525 | K112: 0.4525 | L112: 0.4525 | M112: 0.4525 | N112: 0.4525 | O112: 0.4525 | P112: 0.4525 | Q112: 0.4525 | R112: 0.4525 | S112: 0.4525 | T112: 0.4525 | U112: 0.4525 | V112: 0.4525 | W112: 0.4525 | X112: 0.4525 | Y112: 0.4525 | Z112: 0.4525 | AA112: 0.4525 | AB112: 0.4525 | AC112: 0.4525 | AD112: 0.4525 | AE112: 0.4525 | AF112: 0.4525 | AG112: 0.4525 | AH112: 0.4525 | AI112: 0.4525 | AJ112: 0.4525 | AK112: 0.4525 | AL112: 0.4525 | AM112: 0.4525 | AN112: 0.4525 | AO112: 0.4525 | AP112: 0.4525 | AQ112: 0.4525 | AR112: 0.4525 | AS112: 0.4525 | AT112: 0.4525 | AU112: 0.4525 | AV112: 0.4525 | AW112: 0.4525 | AX112: 0.4525 | AY112: 0.4525 | AZ112: 0.4525 | BA112: 0.4525 | BB112: 0.4525 | BC112: 0.4525 | BD112: 0.4525 | BE112: 0.4525 | BF112: 0.4525 | BG112: 0.4525 | BH112: 0.4525 | BI112: 0.4525 | BJ112: 0.4525
A113: 109 | B113: 0.45 | C113: 0.45 | D113: 0.45 | E113: 0.45 | F113: 0.45 | G113: 0.45 | H113: 0.45 | I113: 0.45 | J113: 0.45 | K113: 0.45 | L113: 0.45 | M113: 0.45 | N113: 0.45 | O113: 0.45 | P113: 0.45 | Q113: 0.45 | R113: 0.45 | S113: 0.45 | T113: 0.45 | U113: 0.45 | V113: 0.45 | W113: 0.45 | X113: 0.45 | Y113: 0.45 | Z113: 0.45 | AA113: 0.45 | AB113: 0.45 | AC113: 0.45 | AD113: 0.45 | AE113: 0.45 | AF113: 0.45 | AG113: 0.45 | AH113: 0.45 | AI113: 0.45 | AJ113: 0.45 | AK113: 0.45 | AL113: 0.45 | AM113: 0.45 | AN113: 0.45 | AO113: 0.45 | AP113: 0.45 | AQ113: 0.45 | AR113: 0.45 | AS113: 0.45 | AT113: 0.45 | AU113: 0.45 | AV113: 0.45 | AW113: 0.45 | AX113: 0.45 | AY113: 0.45 | AZ113: 0.45 | BA113: 0.45 | BB113: 0.45 | BC113: 0.45 | BD113: 0.45 | BE113: 0.45 | BF113: 0.45 | BG113: 0.45 | BH113: 0.45 | BI113: 0.45 | BJ113: 0.45
A114: 110 | B114: 0.4475 | C114: 0.4475 | D114: 0.4475 | E114: 0.4475 | F114: 0.4475 | G114: 0.4475 | H114: 0.4475 | I114: 0.4475 | J114: 0.4475 | K114: 0.4475 | L114: 0.4475 | M114: 0.4475 | N114: 0.4475 | O114: 0.4475 | P114: 0.4475 | Q114: 0.4475 | R114: 0.4475 | S114: 0.4475 | T114: 0.4475 | U114: 0.4475 | V114: 0.4475 | W114: 0.4475 | X114: 0.4475 | Y114: 0.4475 | Z114: 0.4475 | AA114: 0.4475 | AB114: 0.4475 | AC114: 0.4475 | AD114: 0.4475 | AE114: 0.4475 | AF114: 0.4475 | AG114: 0.4475 | AH114: 0.4475 | AI114: 0.4475 | AJ114: 0.4475 | AK114: 0.4475 | AL114: 0.4475 | AM114: 0.4475 | AN114: 0.4475 | AO114: 0.4475 | AP114: 0.4475 | AQ114: 0.4475 | AR114: 0.4475 | AS114: 0.4475 | AT114: 0.4475 | AU114: 0.4475 | AV114: 0.4475 | AW114: 0.4475 | AX114: 0.4475 | AY114: 0.4475 | AZ114: 0.4475 | BA114: 0.4475 | BB114: 0.4475 | BC114: 0.4475 | BD114: 0.4475 | BE114: 0.4475 | BF114: 0.4475 | BG114: 0.4475 | BH114: 0.4475 | BI114: 0.4475 | BJ114: 0.4475
A115: 111 | B115: 0.445 | C115: 0.445 | D115: 0.445 | E115: 0.445 | F115: 0.445 | G115: 0.445 | H115: 0.445 | I115: 0.445 | J115: 0.445 | K115: 0.445 | L115: 0.445 | M115: 0.445 | N115: 0.445 | O115: 0.445 | P115: 0.445 | Q115: 0.445 | R115: 0.445 | S115: 0.445 | T115: 0.445 | U115: 0.445 | V115: 0.445 | W115: 0.445 | X115: 0.445 | Y115: 0.445 | Z115: 0.445 | AA115: 0.445 | AB115: 0.445 | AC115: 0.445 | AD115: 0.445 | AE115: 0.445 | AF115: =0.46+0.05*MIN(105-$A115,20)/20 -> 0.445 | AG115: 0.445 | AH115: 0.445 | AI115: 0.445 | AJ115: 0.445 | AK115: 0.445 | AL115: 0.445 | AM115: 0.445 | AN115: 0.445 | AO115: 0.445 | AP115: 0.445 | AQ115: 0.445 | AR115: 0.445 | AS115: 0.445 | AT115: 0.445 | AU115: 0.445 | AV115: 0.445 | AW115: =0.46+0.05*MIN(105-$A115,20)/20 -> 0.445 | AX115: 0.445 | AY115: 0.445 | AZ115: 0.445 | BA115: 0.445 | BB115: 0.445 | BC115: 0.445 | BD115: 0.445 | BE115: 0.445 | BF115: 0.445 | BG115: 0.445 | BH115: 0.445 | BI115: 0.445 | BJ115: 0.445
A116: 112 | B116: 0.4425 | C116: 0.4425 | D116: 0.4425 | E116: 0.4425 | F116: 0.4425 | G116: 0.4425 | H116: 0.4425 | I116: 0.4425 | J116: 0.4425 | K116: 0.4425 | L116: 0.4425 | M116: 0.4425 | N116: 0.4425 | O116: 0.4425 | P116: 0.4425 | Q116: 0.4425 | R116: =0.46+0.05*MIN(105-$A116,20)/20 -> 0.4425 | S116: 0.4425 | T116: 0.4425 | U116: 0.4425 | V116: 0.4425 | W116: 0.4425 | X116: 0.4425 | Y116: 0.4425 | Z116: 0.4425 | AA116: 0.4425 | AB116: 0.4425 | AC116: 0.4425 | AD116: 0.4425 | AE116: 0.4425 | AF116: 0.4425 | AG116: 0.4425 | AH116: 0.4425 | AI116: 0.4425 | AJ116: 0.4425 | AK116: 0.4425 | AL116: 0.4425 | AM116: 0.4425 | AN116: 0.4425 | AO116: 0.4425 | AP116: 0.4425 | AQ116: 0.4425 | AR116: 0.4425 | AS116: 0.4425 | AT116: 0.4425 | AU116: 0.4425 | AV116: =0.46+0.05*MIN(105-$A116,20)/20 -> 0.4425 | AW116: 0.4425 | AX116: 0.4425 | AY116: 0.4425 | AZ116: 0.4425 | BA116: 0.4425 | BB116: 0.4425 | BC116: 0.4425 | BD116: 0.4425 | BE116: 0.4425 | BF116: 0.4425 | BG116: 0.4425 | BH116: 0.4425 | BI116: 0.4425 | BJ116: 0.4425
A117: 113 | B117: =0.46+0.05*MIN(105-$A117,20)/20 -> 0.44 | C117: 0.44 | D117: 0.44 | E117: 0.44 | F117: 0.44 | G117: 0.44 | H117: 0.44 | I117: 0.44 | J117: 0.44 | K117: 0.44 | L117: 0.44 | M117: 0.44 | N117: 0.44 | O117: 0.44 | P117: 0.44 | Q117: 0.44 | R117: 0.44 | S117: 0.44 | T117: 0.44 | U117: 0.44 | V117: 0.44 | W117: 0.44 | X117: 0.44 | Y117: 0.44 | Z117: 0.44 | AA117: 0.44 | AB117: 0.44 | AC117: 0.44 | AD117: 0.44 | AE117: 0.44 | AF117: 0.44 | AG117: 0.44 | AH117: 0.44 | AI117: 0.44 | AJ117: 0.44 | AK117: 0.44 | AL117: 0.44 | AM117: 0.44 | AN117: 0.44 | AO117: 0.44 | AP117: 0.44 | AQ117: 0.44 | AR117: 0.44 | AS117: 0.44 | AT117: 0.44 | AU117: 0.44 | AV117: 0.44 | AW117: 0.44 | AX117: 0.44 | AY117: 0.44 | AZ117: 0.44 | BA117: 0.44 | BB117: 0.44 | BC117: 0.44 | BD117: 0.44 | BE117: 0.44 | BF117: 0.44 | BG117: 0.44 | BH117: 0.44 | BI117: 0.44 | BJ117: 0.44
A118: 114 | B118: 0.4375 | C118: 0.4375 | D118: 0.4375 | E118: 0.4375 | F118: 0.4375 | G118: 0.4375 | H118: 0.4375 | I118: 0.4375 | J118: 0.4375 | K118: 0.4375 | L118: 0.4375 | M118: 0.4375 | N118: 0.4375 | O118: 0.4375 | P118: 0.4375 | Q118: 0.4375 | R118: 0.4375 | S118: 0.4375 | T118: 0.4375 | U118: 0.4375 | V118: 0.4375 | W118: 0.4375 | X118: 0.4375 | Y118: 0.4375 | Z118: 0.4375 | AA118: 0.4375 | AB118: 0.4375 | AC118: 0.4375 | AD118: 0.4375 | AE118: 0.4375 | AF118: 0.4375 | AG118: 0.4375 | AH118: 0.4375 | AI118: 0.4375 | AJ118: 0.4375 | AK118: 0.4375 | AL118: 0.4375 | AM118: 0.4375 | AN118: 0.4375 | AO118: 0.4375 | AP118: 0.4375 | AQ118: 0.4375 | AR118: 0.4375 | AS118: 0.4375 | AT118: 0.4375 | AU118: 0.4375 | AV118: 0.4375 | AW118: 0.4375 | AX118: 0.4375 | AY118: 0.4375 | AZ118: 0.4375 | BA118: 0.4375 | BB118: 0.4375 | BC118: 0.4375 | BD118: 0.4375 | BE118: 0.4375 | BF118: 0.4375 | BG118: 0.4375 | BH118: 0.4375 | BI118: 0.4375 | BJ118: 0.4375
A119: 115 | B119: 0.435 | C119: 0.435 | D119: 0.435 | E119: 0.435 | F119: 0.435 | G119: 0.435 | H119: 0.435 | I119: 0.435 | J119: 0.435 | K119: 0.435 | L119: 0.435 | M119: 0.435 | N119: 0.435 | O119: 0.435 | P119: 0.435 | Q119: 0.435 | R119: 0.435 | S119: 0.435 | T119: 0.435 | U119: 0.435 | V119: 0.435 | W119: 0.435 | X119: 0.435 | Y119: 0.435 | Z119: 0.435 | AA119: 0.435 | AB119: 0.435 | AC119: 0.435 | AD119: 0.435 | AE119: 0.435 | AF119: 0.435 | AG119: 0.435 | AH119: 0.435 | AI119: 0.435 | AJ119: 0.435 | AK119: 0.435 | AL119: 0.435 | AM119: 0.435 | AN119: 0.435 | AO119: 0.435 | AP119: 0.435 | AQ119: 0.435 | AR119: 0.435 | AS119: 0.435 | AT119: 0.435 | AU119: 0.435 | AV119: 0.435 | AW119: 0.435 | AX119: 0.435 | AY119: 0.435 | AZ119: 0.435 | BA119: 0.435 | BB119: 0.435 | BC119: 0.435 | BD119: 0.435 | BE119: 0.435 | BF119: 0.435 | BG119: 0.435 | BH119: 0.435 | BI119: 0.435 | BJ119: 0.435
A120: 116 | B120: 0.4325 | C120: 0.4325 | D120: 0.4325 | E120: 0.4325 | F120: 0.4325 | G120: 0.4325 | H120: 0.4325 | I120: 0.4325 | J120: 0.4325 | K120: 0.4325 | L120: 0.4325 | M120: 0.4325 | N120: 0.4325 | O120: 0.4325 | P120: 0.4325 | Q120: 0.4325 | R120: 0.4325 | S120: 0.4325 | T120: 0.4325 | U120: 0.4325 | V120: 0.4325 | W120: 0.4325 | X120: 0.4325 | Y120: 0.4325 | Z120: 0.4325 | AA120: 0.4325 | AB120: 0.4325 | AC120: 0.4325 | AD120: 0.4325 | AE120: 0.4325 | AF120: 0.4325 | AG120: 0.4325 | AH120: 0.4325 | AI120: 0.4325 | AJ120: 0.4325 | AK120: 0.4325 | AL120: 0.4325 | AM120: 0.4325 | AN120: 0.4325 | AO120: 0.4325 | AP120: 0.4325 | AQ120: 0.4325 | AR120: 0.4325 | AS120: 0.4325 | AT120: 0.4325 | AU120: 0.4325 | AV120: 0.4325 | AW120: 0.4325 | AX120: 0.4325 | AY120: 0.4325 | AZ120: 0.4325 | BA120: 0.4325 | BB120: 0.4325 | BC120: 0.4325 | BD120: 0.4325 | BE120: 0.4325 | BF120: 0.4325 | BG120: 0.4325 | BH120: 0.4325 | BI120: 0.4325 | BJ120: 0.4325
A121: 117 | B121: 0.43 | C121: 0.43 | D121: 0.43 | E121: 0.43 | F121: 0.43 | G121: 0.43 | H121: 0.43 | I121: 0.43 | J121: 0.43 | K121: 0.43 | L121: 0.43 | M121: 0.43 | N121: 0.43 | O121: 0.43 | P121: 0.43 | Q121: 0.43 | R121: 0.43 | S121: 0.43 | T121: 0.43 | U121: 0.43 | V121: 0.43 | W121: 0.43 | X121: 0.43 | Y121: 0.43 | Z121: 0.43 | AA121: 0.43 | AB121: 0.43 | AC121: 0.43 | AD121: 0.43 | AE121: 0.43 | AF121: 0.43 | AG121: 0.43 | AH121: 0.43 | AI121: 0.43 | AJ121: 0.43 | AK121: 0.43 | AL121: 0.43 | AM121: 0.43 | AN121: 0.43 | AO121: 0.43 | AP121: 0.43 | AQ121: 0.43 | AR121: 0.43 | AS121: 0.43 | AT121: 0.43 | AU121: 0.43 | AV121: 0.43 | AW121: 0.43 | AX121: 0.43 | AY121: 0.43 | AZ121: 0.43 | BA121: 0.43 | BB121: 0.43 | BC121: 0.43 | BD121: 0.43 | BE121: 0.43 | BF121: 0.43 | BG121: 0.43 | BH121: 0.43 | BI121: 0.43 | BJ121: 0.43
A122: 118 | B122: 0.4275 | C122: 0.4275 | D122: 0.4275 | E122: 0.4275 | F122: 0.4275 | G122: 0.4275 | H122: 0.4275 | I122: 0.4275 | J122: 0.4275 | K122: 0.4275 | L122: 0.4275 | M122: 0.4275 | N122: 0.4275 | O122: 0.4275 | P122: 0.4275 | Q122: 0.4275 | R122: 0.4275 | S122: 0.4275 | T122: 0.4275 | U122: 0.4275 | V122: 0.4275 | W122: 0.4275 | X122: 0.4275 | Y122: 0.4275 | Z122: 0.4275 | AA122: 0.4275 | AB122: 0.4275 | AC122: 0.4275 | AD122: 0.4275 | AE122: 0.4275 | AF122: 0.4275 | AG122: 0.4275 | AH122: 0.4275 | AI122: 0.4275 | AJ122: 0.4275 | AK122: 0.4275 | AL122: 0.4275 | AM122: 0.4275 | AN122: 0.4275 | AO122: 0.4275 | AP122: 0.4275 | AQ122: 0.4275 | AR122: 0.4275 | AS122: 0.4275 | AT122: 0.4275 | AU122: 0.4275 | AV122: 0.4275 | AW122: 0.4275 | AX122: 0.4275 | AY122: 0.4275 | AZ122: 0.4275 | BA122: 0.4275 | BB122: 0.4275 | BC122: 0.4275 | BD122: 0.4275 | BE122: 0.4275 | BF122: 0.4275 | BG122: 0.4275 | BH122: 0.4275 | BI122: 0.4275 | BJ122: 0.4275
A123: 119 | B123: 0.425 | C123: 0.425 | D123: 0.425 | E123: 0.425 | F123: 0.425 | G123: 0.425 | H123: 0.425 | I123: 0.425 | J123: 0.425 | K123: 0.425 | L123: 0.425 | M123: 0.425 | N123: 0.425 | O123: 0.425 | P123: 0.425 | Q123: 0.425 | R123: 0.425 | S123: 0.425 | T123: 0.425 | U123: 0.425 | V123: 0.425 | W123: 0.425 | X123: 0.425 | Y123: 0.425 | Z123: 0.425 | AA123: 0.425 | AB123: 0.425 | AC123: 0.425 | AD123: 0.425 | AE123: 0.425 | AF123: 0.425 | AG123: 0.425 | AH123: 0.425 | AI123: 0.425 | AJ123: 0.425 | AK123: 0.425 | AL123: 0.425 | AM123: 0.425 | AN123: 0.425 | AO123: 0.425 | AP123: 0.425 | AQ123: 0.425 | AR123: 0.425 | AS123: 0.425 | AT123: 0.425 | AU123: 0.425 | AV123: 0.425 | AW123: 0.425 | AX123: 0.425 | AY123: 0.425 | AZ123: 0.425 | BA123: 0.425 | BB123: 0.425 | BC123: 0.425 | BD123: 0.425 | BE123: 0.425 | BF123: 0.425 | BG123: 0.425 | BH123: 0.425 | BI123: 0.425 | BJ123: 0.425
A124: 120 | B124: 0.4225 | C124: 0.4225 | D124: 0.4225 | E124: 0.4225 | F124: 0.4225 | G124: 0.4225 | H124: 0.4225 | I124: 0.4225 | J124: 0.4225 | K124: 0.4225 | L124: 0.4225 | M124: 0.4225 | N124: 0.4225 | O124: 0.4225 | P124: 0.4225 | Q124: 0.4225 | R124: 0.4225 | S124: 0.4225 | T124: 0.4225 | U124: 0.4225 | V124: 0.4225 | W124: 0.4225 | X124: 0.4225 | Y124: 0.4225 | Z124: 0.4225 | AA124: 0.4225 | AB124: 0.4225 | AC124: 0.4225 | AD124: 0.4225 | AE124: 0.4225 | AF124: 0.4225 | AG124: 0.4225 | AH124: 0.4225 | AI124: 0.4225 | AJ124: 0.4225 | AK124: 0.4225 | AL124: 0.4225 | AM124: 0.4225 | AN124: 0.4225 | AO124: 0.4225 | AP124: 0.4225 | AQ124: 0.4225 | AR124: 0.4225 | AS124: 0.4225 | AT124: 0.4225 | AU124: 0.4225 | AV124: 0.4225 | AW124: 0.4225 | AX124: 0.4225 | AY124: 0.4225 | AZ124: 0.4225 | BA124: 0.4225 | BB124: 0.4225 | BC124: 0.4225 | BD124: 0.4225 | BE124: 0.4225 | BF124: 0.4225 | BG124: 0.4225 | BH124: 0.4225 | BI124: 0.4225 | BJ124: 0.4225
A125: 121 | B125: 0.42 | C125: 0.42 | D125: 0.42 | E125: 0.42 | F125: 0.42 | G125: 0.42 | H125: 0.42 | I125: 0.42 | J125: 0.42 | K125: 0.42 | L125: 0.42 | M125: 0.42 | N125: 0.42 | O125: 0.42 | P125: 0.42 | Q125: 0.42 | R125: 0.42 | S125: 0.42 | T125: 0.42 | U125: 0.42 | V125: 0.42 | W125: 0.42 | X125: 0.42 | Y125: 0.42 | Z125: 0.42 | AA125: 0.42 | AB125: 0.42 | AC125: 0.42 | AD125: 0.42 | AE125: 0.42 | AF125: 0.42 | AG125: 0.42 | AH125: 0.42 | AI125: 0.42 | AJ125: 0.42 | AK125: 0.42 | AL125: 0.42 | AM125: 0.42 | AN125: 0.42 | AO125: 0.42 | AP125: 0.42 | AQ125: 0.42 | AR125: 0.42 | AS125: 0.42 | AT125: 0.42 | AU125: 0.42 | AV125: 0.42 | AW125: 0.42 | AX125: 0.42 | AY125: 0.42 | AZ125: 0.42 | BA125: 0.42 | BB125: 0.42 | BC125: 0.42 | BD125: 0.42 | BE125: 0.42 | BF125: 0.42 | BG125: 0.42 | BH125: 0.42 | BI125: 0.42 | BJ125: 0.42
A126: 122 | B126: 0.4175 | C126: 0.4175 | D126: 0.4175 | E126: 0.4175 | F126: 0.4175 | G126: 0.4175 | H126: 0.4175 | I126: 0.4175 | J126: 0.4175 | K126: 0.4175 | L126: 0.4175 | M126: 0.4175 | N126: 0.4175 | O126: 0.4175 | P126: 0.4175 | Q126: 0.4175 | R126: 0.4175 | S126: 0.4175 | T126: 0.4175 | U126: 0.4175 | V126: 0.4175 | W126: 0.4175 | X126: 0.4175 | Y126: 0.4175 | Z126: 0.4175 | AA126: 0.4175 | AB126: 0.4175 | AC126: 0.4175 | AD126: 0.4175 | AE126: 0.4175 | AF126: 0.4175 | AG126: 0.4175 | AH126: 0.4175 | AI126: 0.4175 | AJ126: 0.4175 | AK126: 0.4175 | AL126: 0.4175 | AM126: 0.4175 | AN126: 0.4175 | AO126: 0.4175 | AP126: 0.4175 | AQ126: 0.4175 | AR126: 0.4175 | AS126: 0.4175 | AT126: 0.4175 | AU126: 0.4175 | AV126: 0.4175 | AW126: 0.4175 | AX126: 0.4175 | AY126: 0.4175 | AZ126: 0.4175 | BA126: 0.4175 | BB126: 0.4175 | BC126: 0.4175 | BD126: 0.4175 | BE126: 0.4175 | BF126: 0.4175 | BG126: 0.4175 | BH126: 0.4175 | BI126: 0.4175 | BJ126: 0.4175
A127: 123 | B127: 0.415 | C127: 0.415 | D127: 0.415 | E127: 0.415 | F127: 0.415 | G127: 0.415 | H127: 0.415 | I127: 0.415 | J127: 0.415 | K127: 0.415 | L127: 0.415 | M127: 0.415 | N127: 0.415 | O127: 0.415 | P127: 0.415 | Q127: 0.415 | R127: 0.415 | S127: 0.415 | T127: 0.415 | U127: 0.415 | V127: 0.415 | W127: 0.415 | X127: 0.415 | Y127: 0.415 | Z127: 0.415 | AA127: 0.415 | AB127: 0.415 | AC127: 0.415 | AD127: 0.415 | AE127: 0.415 | AF127: 0.415 | AG127: 0.415 | AH127: 0.415 | AI127: 0.415 | AJ127: 0.415 | AK127: 0.415 | AL127: 0.415 | AM127: 0.415 | AN127: 0.415 | AO127: 0.415 | AP127: 0.415 | AQ127: 0.415 | AR127: 0.415 | AS127: 0.415 | AT127: 0.415 | AU127: 0.415 | AV127: 0.415 | AW127: 0.415 | AX127: 0.415 | AY127: 0.415 | AZ127: 0.415 | BA127: 0.415 | BB127: 0.415 | BC127: 0.415 | BD127: 0.415 | BE127: 0.415 | BF127: 0.415 | BG127: 0.415 | BH127: 0.415 | BI127: 0.415 | BJ127: 0.415
A128: 124 | B128: 0.4125 | C128: 0.4125 | D128: 0.4125 | E128: 0.4125 | F128: 0.4125 | G128: 0.4125 | H128: 0.4125 | I128: 0.4125 | J128: 0.4125 | K128: 0.4125 | L128: 0.4125 | M128: 0.4125 | N128: 0.4125 | O128: 0.4125 | P128: 0.4125 | Q128: 0.4125 | R128: 0.4125 | S128: 0.4125 | T128: 0.4125 | U128: 0.4125 | V128: 0.4125 | W128: 0.4125 | X128: 0.4125 | Y128: 0.4125 | Z128: 0.4125 | AA128: 0.4125 | AB128: 0.4125 | AC128: 0.4125 | AD128: 0.4125 | AE128: 0.4125 | AF128: 0.4125 | AG128: 0.4125 | AH128: 0.4125 | AI128: 0.4125 | AJ128: 0.4125 | AK128: 0.4125 | AL128: 0.4125 | AM128: 0.4125 | AN128: 0.4125 | AO128: 0.4125 | AP128: 0.4125 | AQ128: 0.4125 | AR128: 0.4125 | AS128: 0.4125 | AT128: 0.4125 | AU128: 0.4125 | AV128: 0.4125 | AW128: 0.4125 | AX128: 0.4125 | AY128: 0.4125 | AZ128: 0.4125 | BA128: 0.4125 | BB128: 0.4125 | BC128: 0.4125 | BD128: 0.4125 | BE128: 0.4125 | BF128: 0.4125 | BG128: 0.4125 | BH128: 0.4125 | BI128: 0.4125 | BJ128: 0.4125
A129: 125 | B129: 0.41 | C129: 0.41 | D129: 0.41 | E129: 0.41 | F129: 0.41 | G129: 0.41 | H129: 0.41 | I129: 0.41 | J129: 0.41 | K129: 0.41 | L129: 0.41 | M129: 0.41 | N129: 0.41 | O129: 0.41 | P129: 0.41 | Q129: 0.41 | R129: 0.41 | S129: 0.41 | T129: 0.41 | U129: 0.41 | V129: 0.41 | W129: 0.41 | X129: 0.41 | Y129: 0.41 | Z129: 0.41 | AA129: 0.41 | AB129: 0.41 | AC129: 0.41 | AD129: 0.41 | AE129: 0.41 | AF129: 0.41 | AG129: 0.41 | AH129: 0.41 | AI129: 0.41 | AJ129: 0.41 | AK129: 0.41 | AL129: 0.41 | AM129: 0.41 | AN129: 0.41 | AO129: 0.41 | AP129: 0.41 | AQ129: 0.41 | AR129: 0.41 | AS129: 0.41 | AT129: 0.41 | AU129: 0.41 | AV129: 0.41 | AW129: 0.41 | AX129: 0.41 | AY129: 0.41 | AZ129: 0.41 | BA129: 0.41 | BB129: 0.41 | BC129: 0.41 | BD129: 0.41 | BE129: 0.41 | BF129: 0.41 | BG129: 0.41 | BH129: 0.41 | BI129: 0.41 | BJ129: 0.41
A130: 126 | B130: 0.4075 | C130: 0.4075 | D130: 0.4075 | E130: 0.4075 | F130: 0.4075 | G130: 0.4075 | H130: 0.4075 | I130: 0.4075 | J130: 0.4075 | K130: 0.4075 | L130: 0.4075 | M130: 0.4075 | N130: 0.4075 | O130: 0.4075 | P130: 0.4075 | Q130: 0.4075 | R130: 0.4075 | S130: 0.4075 | T130: 0.4075 | U130: 0.4075 | V130: 0.4075 | W130: 0.4075 | X130: 0.4075 | Y130: 0.4075 | Z130: 0.4075 | AA130: 0.4075 | AB130: 0.4075 | AC130: 0.4075 | AD130: 0.4075 | AE130: 0.4075 | AF130: 0.4075 | AG130: 0.4075 | AH130: 0.4075 | AI130: 0.4075 | AJ130: 0.4075 | AK130: 0.4075 | AL130: 0.4075 | AM130: 0.4075 | AN130: 0.4075 | AO130: 0.4075 | AP130: 0.4075 | AQ130: 0.4075 | AR130: 0.4075 | AS130: 0.4075 | AT130: 0.4075 | AU130: 0.4075 | AV130: 0.4075 | AW130: 0.4075 | AX130: 0.4075 | AY130: 0.4075 | AZ130: 0.4075 | BA130: 0.4075 | BB130: 0.4075 | BC130: 0.4075 | BD130: 0.4075 | BE130: 0.4075 | BF130: 0.4075 | BG130: 0.4075 | BH130: 0.4075 | BI130: 0.4075 | BJ130: 0.4075
A131: 127 | B131: 0.405 | C131: 0.405 | D131: 0.405 | E131: 0.405 | F131: 0.405 | G131: 0.405 | H131: 0.405 | I131: 0.405 | J131: 0.405 | K131: 0.405 | L131: 0.405 | M131: 0.405 | N131: 0.405 | O131: 0.405 | P131: 0.405 | Q131: 0.405 | R131: 0.405 | S131: 0.405 | T131: 0.405 | U131: 0.405 | V131: 0.405 | W131: 0.405 | X131: 0.405 | Y131: 0.405 | Z131: 0.405 | AA131: 0.405 | AB131: 0.405 | AC131: 0.405 | AD131: 0.405 | AE131: 0.405 | AF131: 0.405 | AG131: 0.405 | AH131: =0.46+0.05*MIN(105-$A131,20)/20 -> 0.405 | AI131: 0.405 | AJ131: 0.405 | AK131: 0.405 | AL131: 0.405 | AM131: 0.405 | AN131: 0.405 | AO131: 0.405 | AP131: 0.405 | AQ131: 0.405 | AR131: 0.405 | AS131: 0.405 | AT131: 0.405 | AU131: 0.405 | AV131: 0.405 | AW131: 0.405 | AX131: 0.405 | AY131: 0.405 | AZ131: 0.405 | BA131: 0.405 | BB131: 0.405 | BC131: 0.405 | BD131: 0.405 | BE131: 0.405 | BF131: 0.405 | BG131: 0.405 | BH131: 0.405 | BI131: 0.405 | BJ131: 0.405
A132: 128 | B132: 0.4025 | C132: 0.4025 | D132: 0.4025 | E132: 0.4025 | F132: 0.4025 | G132: 0.4025 | H132: 0.4025 | I132: 0.4025 | J132: 0.4025 | K132: 0.4025 | L132: 0.4025 | M132: 0.4025 | N132: 0.4025 | O132: 0.4025 | P132: 0.4025 | Q132: =0.46+0.05*MIN(105-$A132,20)/20 -> 0.4025 | R132: 0.4025 | S132: 0.4025 | T132: 0.4025 | U132: 0.4025 | V132: 0.4025 | W132: 0.4025 | X132: 0.4025 | Y132: 0.4025 | Z132: 0.4025 | AA132: 0.4025 | AB132: 0.4025 | AC132: 0.4025 | AD132: 0.4025 | AE132: 0.4025 | AF132: 0.4025 | AG132: =0.46+0.05*MIN(105-$A132,20)/20 -> 0.4025 | AH132: 0.4025 | AI132: 0.4025 | AJ132: 0.4025 | AK132: 0.4025 | AL132: 0.4025 | AM132: 0.4025 | AN132: 0.4025 | AO132: 0.4025 | AP132: 0.4025 | AQ132: 0.4025 | AR132: 0.4025 | AS132: 0.4025 | AT132: 0.4025 | AU132: 0.4025 | AV132: 0.4025 | AW132: 0.4025 | AX132: =0.46+0.05*MIN(105-$A132,20)/20 -> 0.4025 | AY132: 0.4025 | AZ132: 0.4025 | BA132: 0.4025 | BB132: 0.4025 | BC132: 0.4025 | BD132: 0.4025 | BE132: 0.4025 | BF132: 0.4025 | BG132: 0.4025 | BH132: 0.4025 | BI132: 0.4025 | BJ132: 0.4025
A133: 129 | B133: =0.46+0.05*MIN(105-$A133,20)/20 -> 0.4 | C133: 0.4 | D133: 0.4 | E133: 0.4 | F133: 0.4 | G133: 0.4 | H133: 0.4 | I133: 0.4 | J133: 0.4 | K133: 0.4 | L133: 0.4 | M133: 0.4 | N133: 0.4 | O133: 0.4 | P133: 0.4 | Q133: 0.4 | R133: 0.4 | S133: 0.4 | T133: 0.4 | U133: 0.4 | V133: 0.4 | W133: 0.4 | X133: 0.4 | Y133: 0.4 | Z133: 0.4 | AA133: 0.4 | AB133: 0.4 | AC133: 0.4 | AD133: 0.4 | AE133: 0.4 | AF133: 0.4 | AG133: 0.4 | AH133: 0.4 | AI133: 0.4 | AJ133: 0.4 | AK133: 0.4 | AL133: 0.4 | AM133: 0.4 | AN133: 0.4 | AO133: 0.4 | AP133: 0.4 | AQ133: 0.4 | AR133: 0.4 | AS133: 0.4 | AT133: 0.4 | AU133: 0.4 | AV133: 0.4 | AW133: 0.4 | AX133: 0.4 | AY133: 0.4 | AZ133: 0.4 | BA133: 0.4 | BB133: 0.4 | BC133: 0.4 | BD133: 0.4 | BE133: 0.4 | BF133: 0.4 | BG133: 0.4 | BH133: 0.4 | BI133: 0.4 | BJ133: 0.4
A134: 130 | B134: 0.3975 | C134: 0.3975 | D134: 0.3975 | E134: 0.3975 | F134: 0.3975 | G134: 0.3975 | H134: 0.3975 | I134: 0.3975 | J134: 0.3975 | K134: 0.3975 | L134: 0.3975 | M134: 0.3975 | N134: 0.3975 | O134: 0.3975 | P134: 0.3975 | Q134: 0.3975 | R134: 0.3975 | S134: 0.3975 | T134: 0.3975 | U134: 0.3975 | V134: 0.3975 | W134: 0.3975 | X134: 0.3975 | Y134: 0.3975 | Z134: 0.3975 | AA134: 0.3975 | AB134: 0.3975 | AC134: 0.3975 | AD134: 0.3975 | AE134: 0.3975 | AF134: 0.3975 | AG134: 0.3975 | AH134: 0.3975 | AI134: 0.3975 | AJ134: 0.3975 | AK134: 0.3975 | AL134: 0.3975 | AM134: 0.3975 | AN134: 0.3975 | AO134: 0.3975 | AP134: 0.3975 | AQ134: 0.3975 | AR134: 0.3975 | AS134: 0.3975 | AT134: 0.3975 | AU134: 0.3975 | AV134: 0.3975 | AW134: 0.3975 | AX134: 0.3975 | AY134: 0.3975 | AZ134: 0.3975 | BA134: 0.3975 | BB134: 0.3975 | BC134: 0.3975 | BD134: 0.3975 | BE134: 0.3975 | BF134: 0.3975 | BG134: 0.3975 | BH134: 0.3975 | BI134: 0.3975 | BJ134: 0.3975
A135: 131 | B135: 0.395 | C135: 0.395 | D135: 0.395 | E135: 0.395 | F135: 0.395 | G135: 0.395 | H135: 0.395 | I135: 0.395 | J135: 0.395 | K135: 0.395 | L135: 0.395 | M135: 0.395 | N135: 0.395 | O135: 0.395 | P135: 0.395 | Q135: 0.395 | R135: 0.395 | S135: 0.395 | T135: 0.395 | U135: 0.395 | V135: 0.395 | W135: 0.395 | X135: 0.395 | Y135: 0.395 | Z135: 0.395 | AA135: 0.395 | AB135: 0.395 | AC135: 0.395 | AD135: 0.395 | AE135: 0.395 | AF135: 0.395 | AG135: 0.395 | AH135: 0.395 | AI135: 0.395 | AJ135: 0.395 | AK135: 0.395 | AL135: 0.395 | AM135: 0.395 | AN135: 0.395 | AO135: 0.395 | AP135: 0.395 | AQ135: 0.395 | AR135: 0.395 | AS135: 0.395 | AT135: 0.395 | AU135: 0.395 | AV135: 0.395 | AW135: 0.395 | AX135: 0.395 | AY135: 0.395 | AZ135: 0.395 | BA135: 0.395 | BB135: 0.395 | BC135: 0.395 | BD135: 0.395 | BE135: 0.395 | BF135: 0.395 | BG135: 0.395 | BH135: 0.395 | BI135: 0.395 | BJ135: 0.395
A136: 132 | B136: 0.3925 | C136: 0.3925 | D136: 0.3925 | E136: 0.3925 | F136: 0.3925 | G136: 0.3925 | H136: 0.3925 | I136: 0.3925 | J136: 0.3925 | K136: 0.3925 | L136: 0.3925 | M136: 0.3925 | N136: 0.3925 | O136: 0.3925 | P136: 0.3925 | Q136: 0.3925 | R136: 0.3925 | S136: 0.3925 | T136: 0.3925 | U136: 0.3925 | V136: 0.3925 | W136: 0.3925 | X136: 0.3925 | Y136: 0.3925 | Z136: 0.3925 | AA136: 0.3925 | AB136: 0.3925 | AC136: 0.3925 | AD136: 0.3925 | AE136: 0.3925 | AF136: 0.3925 | AG136: 0.3925 | AH136: 0.3925 | AI136: 0.3925 | AJ136: 0.3925 | AK136: 0.3925 | AL136: 0.3925 | AM136: 0.3925 | AN136: 0.3925 | AO136: 0.3925 | AP136: 0.3925 | AQ136: 0.3925 | AR136: 0.3925 | AS136: 0.3925 | AT136: 0.3925 | AU136: 0.3925 | AV136: 0.3925 | AW136: 0.3925 | AX136: 0.3925 | AY136: 0.3925 | AZ136: 0.3925 | BA136: 0.3925 | BB136: 0.3925 | BC136: 0.3925 | BD136: 0.3925 | BE136: 0.3925 | BF136: 0.3925 | BG136: 0.3925 | BH136: 0.3925 | BI136: 0.3925 | BJ136: 0.3925
A137: 133 | B137: 0.39 | C137: 0.39 | D137: 0.39 | E137: 0.39 | F137: 0.39 | G137: 0.39 | H137: 0.39 | I137: 0.39 | J137: 0.39 | K137: 0.39 | L137: 0.39 | M137: 0.39 | N137: 0.39 | O137: 0.39 | P137: 0.39 | Q137: 0.39 | R137: 0.39 | S137: 0.39 | T137: 0.39 | U137: 0.39 | V137: 0.39 | W137: 0.39 | X137: 0.39 | Y137: 0.39 | Z137: 0.39 | AA137: 0.39 | AB137: 0.39 | AC137: 0.39 | AD137: 0.39 | AE137: 0.39 | AF137: 0.39 | AG137: 0.39 | AH137: 0.39 | AI137: 0.39 | AJ137: 0.39 | AK137: 0.39 | AL137: 0.39 | AM137: 0.39 | AN137: 0.39 | AO137: 0.39 | AP137: 0.39 | AQ137: 0.39 | AR137: 0.39 | AS137: 0.39 | AT137: 0.39 | AU137: 0.39 | AV137: 0.39 | AW137: 0.39 | AX137: 0.39 | AY137: 0.39 | AZ137: 0.39 | BA137: 0.39 | BB137: 0.39 | BC137: 0.39 | BD137: 0.39 | BE137: 0.39 | BF137: 0.39 | BG137: 0.39 | BH137: 0.39 | BI137: 0.39 | BJ137: 0.39
A138: 134 | B138: 0.3875 | C138: 0.3875 | D138: 0.3875 | E138: 0.3875 | F138: 0.3875 | G138: 0.3875 | H138: 0.3875 | I138: 0.3875 | J138: 0.3875 | K138: 0.3875 | L138: 0.3875 | M138: 0.3875 | N138: 0.3875 | O138: 0.3875 | P138: 0.3875 | Q138: 0.3875 | R138: 0.3875 | S138: 0.3875 | T138: 0.3875 | U138: 0.3875 | V138: 0.3875 | W138: 0.3875 | X138: 0.3875 | Y138: 0.3875 | Z138: 0.3875 | AA138: 0.3875 | AB138: 0.3875 | AC138: 0.3875 | AD138: 0.3875 | AE138: 0.3875 | AF138: 0.3875 | AG138: 0.3875 | AH138: 0.3875 | AI138: 0.3875 | AJ138: 0.3875 | AK138: 0.3875 | AL138: 0.3875 | AM138: 0.3875 | AN138: 0.3875 | AO138: 0.3875 | AP138: 0.3875 | AQ138: 0.3875 | AR138: 0.3875 | AS138: 0.3875 | AT138: 0.3875 | AU138: 0.3875 | AV138: 0.3875 | AW138: 0.3875 | AX138: 0.3875 | AY138: 0.3875 | AZ138: 0.3875 | BA138: 0.3875 | BB138: 0.3875 | BC138: 0.3875 | BD138: 0.3875 | BE138: 0.3875 | BF138: 0.3875 | BG138: 0.3875 | BH138: 0.3875 | BI138: 0.3875 | BJ138: 0.3875
A139: 135 | B139: 0.385 | C139: 0.385 | D139: 0.385 | E139: 0.385 | F139: 0.385 | G139: 0.385 | H139: 0.385 | I139: 0.385 | J139: 0.385 | K139: 0.385 | L139: 0.385 | M139: 0.385 | N139: 0.385 | O139: 0.385 | P139: 0.385 | Q139: 0.385 | R139: 0.385 | S139: 0.385 | T139: 0.385 | U139: 0.385 | V139: 0.385 | W139: 0.385 | X139: 0.385 | Y139: 0.385 | Z139: 0.385 | AA139: 0.385 | AB139: 0.385 | AC139: 0.385 | AD139: 0.385 | AE139: 0.385 | AF139: 0.385 | AG139: 0.385 | AH139: 0.385 | AI139: 0.385 | AJ139: 0.385 | AK139: 0.385 | AL139: 0.385 | AM139: 0.385 | AN139: 0.385 | AO139: 0.385 | AP139: 0.385 | AQ139: 0.385 | AR139: 0.385 | AS139: 0.385 | AT139: 0.385 | AU139: 0.385 | AV139: 0.385 | AW139: 0.385 | AX139: 0.385 | AY139: 0.385 | AZ139: 0.385 | BA139: 0.385 | BB139: 0.385 | BC139: 0.385 | BD139: 0.385 | BE139: 0.385 | BF139: 0.385 | BG139: 0.385 | BH139: 0.385 | BI139: 0.385 | BJ139: 0.385
A140: 136 | B140: 0.3825 | C140: 0.3825 | D140: 0.3825 | E140: 0.3825 | F140: 0.3825 | G140: 0.3825 | H140: 0.3825 | I140: 0.3825 | J140: 0.3825 | K140: 0.3825 | L140: 0.3825 | M140: 0.3825 | N140: 0.3825 | O140: 0.3825 | P140: 0.3825 | Q140: 0.3825 | R140: 0.3825 | S140: 0.3825 | T140: 0.3825 | U140: 0.3825 | V140: 0.3825 | W140: 0.3825 | X140: 0.3825 | Y140: 0.3825 | Z140: 0.3825 | AA140: 0.3825 | AB140: 0.3825 | AC140: 0.3825 | AD140: 0.3825 | AE140: 0.3825 | AF140: 0.3825 | AG140: 0.3825 | AH140: 0.3825 | AI140: 0.3825 | AJ140: 0.3825 | AK140: 0.3825 | AL140: 0.3825 | AM140: 0.3825 | AN140: 0.3825 | AO140: 0.3825 | AP140: 0.3825 | AQ140: 0.3825 | AR140: 0.3825 | AS140: 0.3825 | AT140: 0.3825 | AU140: 0.3825 | AV140: 0.3825 | AW140: 0.3825 | AX140: 0.3825 | AY140: 0.3825 | AZ140: 0.3825 | BA140: 0.3825 | BB140: 0.3825 | BC140: 0.3825 | BD140: 0.3825 | BE140: 0.3825 | BF140: 0.3825 | BG140: 0.3825 | BH140: 0.3825 | BI140: 0.3825 | BJ140: 0.3825
A141: 137 | B141: 0.38 | C141: 0.38 | D141: 0.38 | E141: 0.38 | F141: 0.38 | G141: 0.38 | H141: 0.38 | I141: 0.38 | J141: 0.38 | K141: 0.38 | L141: 0.38 | M141: 0.38 | N141: 0.38 | O141: 0.38 | P141: 0.38 | Q141: 0.38 | R141: 0.38 | S141: 0.38 | T141: 0.38 | U141: 0.38 | V141: 0.38 | W141: 0.38 | X141: 0.38 | Y141: 0.38 | Z141: 0.38 | AA141: 0.38 | AB141: 0.38 | AC141: 0.38 | AD141: 0.38 | AE141: 0.38 | AF141: 0.38 | AG141: 0.38 | AH141: 0.38 | AI141: 0.38 | AJ141: 0.38 | AK141: 0.38 | AL141: 0.38 | AM141: 0.38 | AN141: 0.38 | AO141: 0.38 | AP141: 0.38 | AQ141: 0.38 | AR141: 0.38 | AS141: 0.38 | AT141: 0.38 | AU141: 0.38 | AV141: 0.38 | AW141: 0.38 | AX141: 0.38 | AY141: 0.38 | AZ141: 0.38 | BA141: 0.38 | BB141: 0.38 | BC141: 0.38 | BD141: 0.38 | BE141: 0.38 | BF141: 0.38 | BG141: 0.38 | BH141: 0.38 | BI141: 0.38 | BJ141: 0.38
A142: 138 | B142: 0.3775 | C142: 0.3775 | D142: 0.3775 | E142: 0.3775 | F142: 0.3775 | G142: 0.3775 | H142: 0.3775 | I142: 0.3775 | J142: 0.3775 | K142: 0.3775 | L142: 0.3775 | M142: 0.3775 | N142: 0.3775 | O142: 0.3775 | P142: 0.3775 | Q142: 0.3775 | R142: 0.3775 | S142: 0.3775 | T142: 0.3775 | U142: 0.3775 | V142: 0.3775 | W142: 0.3775 | X142: 0.3775 | Y142: 0.3775 | Z142: 0.3775 | AA142: 0.3775 | AB142: 0.3775 | AC142: 0.3775 | AD142: 0.3775 | AE142: 0.3775 | AF142: 0.3775 | AG142: 0.3775 | AH142: 0.3775 | AI142: 0.3775 | AJ142: 0.3775 | AK142: 0.3775 | AL142: 0.3775 | AM142: 0.3775 | AN142: 0.3775 | AO142: 0.3775 | AP142: 0.3775 | AQ142: 0.3775 | AR142: 0.3775 | AS142: 0.3775 | AT142: 0.3775 | AU142: 0.3775 | AV142: 0.3775 | AW142: 0.3775 | AX142: 0.3775 | AY142: 0.3775 | AZ142: 0.3775 | BA142: 0.3775 | BB142: 0.3775 | BC142: 0.3775 | BD142: 0.3775 | BE142: 0.3775 | BF142: 0.3775 | BG142: 0.3775 | BH142: 0.3775 | BI142: 0.3775 | BJ142: 0.3775
A143: 139 | B143: 0.375 | C143: 0.375 | D143: 0.375 | E143: 0.375 | F143: 0.375 | G143: 0.375 | H143: 0.375 | I143: 0.375 | J143: 0.375 | K143: 0.375 | L143: 0.375 | M143: 0.375 | N143: 0.375 | O143: 0.375 | P143: 0.375 | Q143: 0.375 | R143: 0.375 | S143: 0.375 | T143: 0.375 | U143: 0.375 | V143: 0.375 | W143: 0.375 | X143: 0.375 | Y143: 0.375 | Z143: 0.375 | AA143: 0.375 | AB143: 0.375 | AC143: 0.375 | AD143: 0.375 | AE143: 0.375 | AF143: 0.375 | AG143: 0.375 | AH143: 0.375 | AI143: 0.375 | AJ143: 0.375 | AK143: 0.375 | AL143: 0.375 | AM143: 0.375 | AN143: 0.375 | AO143: 0.375 | AP143: 0.375 | AQ143: 0.375 | AR143: 0.375 | AS143: 0.375 | AT143: 0.375 | AU143: 0.375 | AV143: 0.375 | AW143: 0.375 | AX143: 0.375 | AY143: 0.375 | AZ143: 0.375 | BA143: 0.375 | BB143: 0.375 | BC143: 0.375 | BD143: 0.375 | BE143: 0.375 | BF143: 0.375 | BG143: 0.375 | BH143: 0.375 | BI143: 0.375 | BJ143: 0.375
A144: 140 | B144: 0.3725 | C144: 0.3725 | D144: 0.3725 | E144: 0.3725 | F144: 0.3725 | G144: 0.3725 | H144: 0.3725 | I144: 0.3725 | J144: 0.3725 | K144: 0.3725 | L144: 0.3725 | M144: 0.3725 | N144: 0.3725 | O144: 0.3725 | P144: 0.3725 | Q144: 0.3725 | R144: 0.3725 | S144: 0.3725 | T144: 0.3725 | U144: 0.3725 | V144: 0.3725 | W144: 0.3725 | X144: 0.3725 | Y144: 0.3725 | Z144: 0.3725 | AA144: 0.3725 | AB144: 0.3725 | AC144: 0.3725 | AD144: 0.3725 | AE144: 0.3725 | AF144: 0.3725 | AG144: 0.3725 | AH144: 0.3725 | AI144: 0.3725 | AJ144: 0.3725 | AK144: 0.3725 | AL144: 0.3725 | AM144: 0.3725 | AN144: 0.3725 | AO144: 0.3725 | AP144: 0.3725 | AQ144: 0.3725 | AR144: 0.3725 | AS144: 0.3725 | AT144: 0.3725 | AU144: 0.3725 | AV144: 0.3725 | AW144: 0.3725 | AX144: 0.3725 | AY144: 0.3725 | AZ144: 0.3725 | BA144: 0.3725 | BB144: 0.3725 | BC144: 0.3725 | BD144: 0.3725 | BE144: 0.3725 | BF144: 0.3725 | BG144: 0.3725 | BH144: 0.3725 | BI144: 0.3725 | BJ144: 0.3725
A145: 141 | B145: 0.37 | C145: 0.37 | D145: 0.37 | E145: 0.37 | F145: 0.37 | G145: 0.37 | H145: 0.37 | I145: 0.37 | J145: 0.37 | K145: 0.37 | L145: 0.37 | M145: 0.37 | N145: 0.37 | O145: 0.37 | P145: 0.37 | Q145: 0.37 | R145: 0.37 | S145: 0.37 | T145: 0.37 | U145: 0.37 | V145: 0.37 | W145: 0.37 | X145: 0.37 | Y145: 0.37 | Z145: 0.37 | AA145: 0.37 | AB145: 0.37 | AC145: 0.37 | AD145: 0.37 | AE145: 0.37 | AF145: 0.37 | AG145: 0.37 | AH145: 0.37 | AI145: 0.37 | AJ145: 0.37 | AK145: 0.37 | AL145: 0.37 | AM145: 0.37 | AN145: 0.37 | AO145: 0.37 | AP145: 0.37 | AQ145: 0.37 | AR145: 0.37 | AS145: 0.37 | AT145: 0.37 | AU145: 0.37 | AV145: 0.37 | AW145: 0.37 | AX145: 0.37 | AY145: 0.37 | AZ145: 0.37 | BA145: 0.37 | BB145: 0.37 | BC145: 0.37 | BD145: 0.37 | BE145: 0.37 | BF145: 0.37 | BG145: 0.37 | BH145: 0.37 | BI145: 0.37 | BJ145: 0.37
A146: 142 | B146: 0.3675 | C146: 0.3675 | D146: 0.3675 | E146: 0.3675 | F146: 0.3675 | G146: 0.3675 | H146: 0.3675 | I146: 0.3675 | J146: 0.3675 | K146: 0.3675 | L146: 0.3675 | M146: 0.3675 | N146: 0.3675 | O146: 0.3675 | P146: 0.3675 | Q146: 0.3675 | R146: 0.3675 | S146: 0.3675 | T146: 0.3675 | U146: 0.3675 | V146: 0.3675 | W146: 0.3675 | X146: 0.3675 | Y146: 0.3675 | Z146: 0.3675 | AA146: 0.3675 | AB146: 0.3675 | AC146: 0.3675 | AD146: 0.3675 | AE146: 0.3675 | AF146: 0.3675 | AG146: 0.3675 | AH146: 0.3675 | AI146: 0.3675 | AJ146: 0.3675 | AK146: 0.3675 | AL146: 0.3675 | AM146: 0.3675 | AN146: 0.3675 | AO146: 0.3675 | AP146: 0.3675 | AQ146: 0.3675 | AR146: 0.3675 | AS146: 0.3675 | AT146: 0.3675 | AU146: 0.3675 | AV146: 0.3675 | AW146: 0.3675 | AX146: 0.3675 | AY146: 0.3675 | AZ146: 0.3675 | BA146: 0.3675 | BB146: 0.3675 | BC146: 0.3675 | BD146: 0.3675 | BE146: 0.3675 | BF146: 0.3675 | BG146: 0.3675 | BH146: 0.3675 | BI146: 0.3675 | BJ146: 0.3675
A147: 143 | B147: 0.365 | C147: 0.365 | D147: 0.365 | E147: 0.365 | F147: 0.365 | G147: 0.365 | H147: 0.365 | I147: 0.365 | J147: 0.365 | K147: 0.365 | L147: 0.365 | M147: 0.365 | N147: 0.365 | O147: 0.365 | P147: 0.365 | Q147: 0.365 | R147: 0.365 | S147: 0.365 | T147: 0.365 | U147: 0.365 | V147: 0.365 | W147: 0.365 | X147: 0.365 | Y147: 0.365 | Z147: 0.365 | AA147: 0.365 | AB147: 0.365 | AC147: 0.365 | AD147: 0.365 | AE147: 0.365 | AF147: =0.46+0.05*MIN(105-$A147,20)/20 -> 0.365 | AG147: 0.365 | AH147: 0.365 | AI147: 0.365 | AJ147: 0.365 | AK147: 0.365 | AL147: 0.365 | AM147: 0.365 | AN147: 0.365 | AO147: 0.365 | AP147: 0.365 | AQ147: 0.365 | AR147: 0.365 | AS147: 0.365 | AT147: 0.365 | AU147: 0.365 | AV147: 0.365 | AW147: =0.46+0.05*MIN(105-$A147,20)/20 -> 0.365 | AX147: 0.365 | AY147: 0.365 | AZ147: 0.365 | BA147: 0.365 | BB147: 0.365 | BC147: 0.365 | BD147: 0.365 | BE147: 0.365 | BF147: 0.365 | BG147: 0.365 | BH147: 0.365 | BI147: 0.365 | BJ147: 0.365
A148: 144 | B148: 0.3625 | C148: 0.3625 | D148: 0.3625 | E148: 0.3625 | F148: 0.3625 | G148: 0.3625 | H148: 0.3625 | I148: 0.3625 | J148: 0.3625 | K148: 0.3625 | L148: 0.3625 | M148: 0.3625 | N148: 0.3625 | O148: 0.3625 | P148: 0.3625 | Q148: 0.3625 | R148: =0.46+0.05*MIN(105-$A148,20)/20 -> 0.3625 | S148: 0.3625 | T148: 0.3625 | U148: 0.3625 | V148: 0.3625 | W148: 0.3625 | X148: 0.3625 | Y148: 0.3625 | Z148: 0.3625 | AA148: 0.3625 | AB148: 0.3625 | AC148: 0.3625 | AD148: 0.3625 | AE148: 0.3625 | AF148: 0.3625 | AG148: 0.3625 | AH148: 0.3625 | AI148: 0.3625 | AJ148: 0.3625 | AK148: 0.3625 | AL148: 0.3625 | AM148: 0.3625 | AN148: 0.3625 | AO148: 0.3625 | AP148: 0.3625 | AQ148: 0.3625 | AR148: 0.3625 | AS148: 0.3625 | AT148: 0.3625 | AU148: 0.3625 | AV148: =0.46+0.05*MIN(105-$A148,20)/20 -> 0.3625 | AW148: 0.3625 | AX148: 0.3625 | AY148: 0.3625 | AZ148: 0.3625 | BA148: 0.3625 | BB148: 0.3625 | BC148: 0.3625 | BD148: 0.3625 | BE148: 0.3625 | BF148: 0.3625 | BG148: 0.3625 | BH148: 0.3625 | BI148: 0.3625 | BJ148: 0.3625
A149: 145 | B149: =0.46+0.05*MIN(105-$A149,20)/20 -> 0.36 | C149: 0.36 | D149: 0.36 | E149: 0.36 | F149: 0.36 | G149: 0.36 | H149: 0.36 | I149: 0.36 | J149: 0.36 | K149: 0.36 | L149: 0.36 | M149: 0.36 | N149: 0.36 | O149: 0.36 | P149: 0.36 | Q149: 0.36 | R149: 0.36 | S149: 0.36 | T149: 0.36 | U149: 0.36 | V149: 0.36 | W149: 0.36 | X149: 0.36 | Y149: 0.36 | Z149: 0.36 | AA149: 0.36 | AB149: 0.36 | AC149: 0.36 | AD149: 0.36 | AE149: 0.36 | AF149: 0.36 | AG149: 0.36 | AH149: 0.36 | AI149: 0.36 | AJ149: 0.36 | AK149: 0.36 | AL149: 0.36 | AM149: 0.36 | AN149: 0.36 | AO149: 0.36 | AP149: 0.36 | AQ149: 0.36 | AR149: 0.36 | AS149: 0.36 | AT149: 0.36 | AU149: 0.36 | AV149: 0.36 | AW149: 0.36 | AX149: 0.36 | AY149: 0.36 | AZ149: 0.36 | BA149: 0.36 | BB149: 0.36 | BC149: 0.36 | BD149: 0.36 | BE149: 0.36 | BF149: 0.36 | BG149: 0.36 | BH149: 0.36 | BI149: 0.36 | BJ149: 0.36
A150: 146 | B150: 0.3575 | C150: 0.3575 | D150: 0.3575 | E150: 0.3575 | F150: 0.3575 | G150: 0.3575 | H150: 0.3575 | I150: 0.3575 | J150: 0.3575 | K150: 0.3575 | L150: 0.3575 | M150: 0.3575 | N150: 0.3575 | O150: 0.3575 | P150: 0.3575 | Q150: 0.3575 | R150: 0.3575 | S150: 0.3575 | T150: 0.3575 | U150: 0.3575 | V150: 0.3575 | W150: 0.3575 | X150: 0.3575 | Y150: 0.3575 | Z150: 0.3575 | AA150: 0.3575 | AB150: 0.3575 | AC150: 0.3575 | AD150: 0.3575 | AE150: 0.3575 | AF150: 0.3575 | AG150: 0.3575 | AH150: 0.3575 | AI150: 0.3575 | AJ150: 0.3575 | AK150: 0.3575 | AL150: 0.3575 | AM150: 0.3575 | AN150: 0.3575 | AO150: 0.3575 | AP150: 0.3575 | AQ150: 0.3575 | AR150: 0.3575 | AS150: 0.3575 | AT150: 0.3575 | AU150: 0.3575 | AV150: 0.3575 | AW150: 0.3575 | AX150: 0.3575 | AY150: 0.3575 | AZ150: 0.3575 | BA150: 0.3575 | BB150: 0.3575 | BC150: 0.3575 | BD150: 0.3575 | BE150: 0.3575 | BF150: 0.3575 | BG150: 0.3575 | BH150: 0.3575 | BI150: 0.3575 | BJ150: 0.3575
A151: 147 | B151: 0.355 | C151: 0.355 | D151: 0.355 | E151: 0.355 | F151: 0.355 | G151: 0.355 | H151: 0.355 | I151: 0.355 | J151: 0.355 | K151: 0.355 | L151: 0.355 | M151: 0.355 | N151: 0.355 | O151: 0.355 | P151: 0.355 | Q151: 0.355 | R151: 0.355 | S151: 0.355 | T151: 0.355 | U151: 0.355 | V151: 0.355 | W151: 0.355 | X151: 0.355 | Y151: 0.355 | Z151: 0.355 | AA151: 0.355 | AB151: 0.355 | AC151: 0.355 | AD151: 0.355 | AE151: 0.355 | AF151: 0.355 | AG151: 0.355 | AH151: 0.355 | AI151: 0.355 | AJ151: 0.355 | AK151: 0.355 | AL151: 0.355 | AM151: 0.355 | AN151: 0.355 | AO151: 0.355 | AP151: 0.355 | AQ151: 0.355 | AR151: 0.355 | AS151: 0.355 | AT151: 0.355 | AU151: 0.355 | AV151: 0.355 | AW151: 0.355 | AX151: 0.355 | AY151: 0.355 | AZ151: 0.355 | BA151: 0.355 | BB151: 0.355 | BC151: 0.355 | BD151: 0.355 | BE151: 0.355 | BF151: 0.355 | BG151: 0.355 | BH151: 0.355 | BI151: 0.355 | BJ151: 0.355
A152: 148 | B152: 0.3525 | C152: 0.3525 | D152: 0.3525 | E152: 0.3525 | F152: 0.3525 | G152: 0.3525 | H152: 0.3525 | I152: 0.3525 | J152: 0.3525 | K152: 0.3525 | L152: 0.3525 | M152: 0.3525 | N152: 0.3525 | O152: 0.3525 | P152: 0.3525 | Q152: 0.3525 | R152: 0.3525 | S152: 0.3525 | T152: 0.3525 | U152: 0.3525 | V152: 0.3525 | W152: 0.3525 | X152: 0.3525 | Y152: 0.3525 | Z152: 0.3525 | AA152: 0.3525 | AB152: 0.3525 | AC152: 0.3525 | AD152: 0.3525 | AE152: 0.3525 | AF152: 0.3525 | AG152: 0.3525 | AH152: 0.3525 | AI152: 0.3525 | AJ152: 0.3525 | AK152: 0.3525 | AL152: 0.3525 | AM152: 0.3525 | AN152: 0.3525 | AO152: 0.3525 | AP152: 0.3525 | AQ152: 0.3525 | AR152: 0.3525 | AS152: 0.3525 | AT152: 0.3525 | AU152: 0.3525 | AV152: 0.3525 | AW152: 0.3525 | AX152: 0.3525 | AY152: 0.3525 | AZ152: 0.3525 | BA152: 0.3525 | BB152: 0.3525 | BC152: 0.3525 | BD152: 0.3525 | BE152: 0.3525 | BF152: 0.3525 | BG152: 0.3525 | BH152: 0.3525 | BI152: 0.3525 | BJ152: 0.3525
A153: 149 | B153: 0.35 | C153: 0.35 | D153: 0.35 | E153: 0.35 | F153: 0.35 | G153: 0.35 | H153: 0.35 | I153: 0.35 | J153: 0.35 | K153: 0.35 | L153: 0.35 | M153: 0.35 | N153: 0.35 | O153: 0.35 | P153: 0.35 | Q153: 0.35 | R153: 0.35 | S153: 0.35 | T153: 0.35 | U153: 0.35 | V153: 0.35 | W153: 0.35 | X153: 0.35 | Y153: 0.35 | Z153: 0.35 | AA153: 0.35 | AB153: 0.35 | AC153: 0.35 | AD153: 0.35 | AE153: 0.35 | AF153: 0.35 | AG153: 0.35 | AH153: 0.35 | AI153: 0.35 | AJ153: 0.35 | AK153: 0.35 | AL153: 0.35 | AM153: 0.35 | AN153: 0.35 | AO153: 0.35 | AP153: 0.35 | AQ153: 0.35 | AR153: 0.35 | AS153: 0.35 | AT153: 0.35 | AU153: 0.35 | AV153: 0.35 | AW153: 0.35 | AX153: 0.35 | AY153: 0.35 | AZ153: 0.35 | BA153: 0.35 | BB153: 0.35 | BC153: 0.35 | BD153: 0.35 | BE153: 0.35 | BF153: 0.35 | BG153: 0.35 | BH153: 0.35 | BI153: 0.35 | BJ153: 0.35
A154: 150 | B154: 0.3475 | C154: 0.3475 | D154: 0.3475 | E154: 0.3475 | F154: 0.3475 | G154: 0.3475 | H154: 0.3475 | I154: 0.3475 | J154: 0.3475 | K154: 0.3475 | L154: 0.3475 | M154: 0.3475 | N154: 0.3475 | O154: 0.3475 | P154: 0.3475 | Q154: 0.3475 | R154: 0.3475 | S154: 0.3475 | T154: 0.3475 | U154: 0.3475 | V154: 0.3475 | W154: 0.3475 | X154: 0.3475 | Y154: 0.3475 | Z154: 0.3475 | AA154: 0.3475 | AB154: 0.3475 | AC154: 0.3475 | AD154: 0.3475 | AE154: 0.3475 | AF154: 0.3475 | AG154: 0.3475 | AH154: 0.3475 | AI154: 0.3475 | AJ154: 0.3475 | AK154: 0.3475 | AL154: 0.3475 | AM154: 0.3475 | AN154: 0.3475 | AO154: 0.3475 | AP154: 0.3475 | AQ154: 0.3475 | AR154: 0.3475 | AS154: 0.3475 | AT154: 0.3475 | AU154: 0.3475 | AV154: 0.3475 | AW154: 0.3475 | AX154: 0.3475 | AY154: 0.3475 | AZ154: 0.3475 | BA154: 0.3475 | BB154: 0.3475 | BC154: 0.3475 | BD154: 0.3475 | BE154: 0.3475 | BF154: 0.3475 | BG154: 0.3475 | BH154: 0.3475 | BI154: 0.3475 | BJ154: 0.3475

Sheet T&C
A1: Copyright and reproduction
A8: © Crown copyright 2021
A10: You may re-use this document/publication (not including logos) free of charge in any format or medium, under the terms of the Open Government Licence v3.0. To view this licence visit http://www.nationalarchives.gov.uk/doc/open-government-licence;
A11: or write to the Information Policy Team, The National Archives, Kew, Richmond, Surrey, TW9 4DU; or email: psi@nationalarchives.gov.uk.
A13: Where we have identified any third party copyright information you will need to obtain permission from the copyright holders concerned.
A15: This document/publication is also available on our website at www.ons.gov.uk
A16: Any enquiries regarding this document/publication should be sent to us at pop.info@ons.gov.uk

Sheet Info
A1: SPREADSHEET INFORMATION
A2: Summary description | B2: File containing:
B3: Number of death registrations by single year of age and sex for England & Wales 1961-2020
B4: Mid-year population estimates by single year of age and sex for England & Wales 1961-2020
A7: Purpose | B7: File updated to include 2020 data and 90-105+ SYOA
B8: Retained for general issue
A9: SPREADSHEET PAGES
B10: Name | C10: Description
A11: Sheet 1 | B11: EW male deaths | C11: Male deaths registrations England & Wales 1961-2020 0-105+
A12: Sheet 2 | B12: EW female deaths | C12: Female deaths registrations England & Wales 1961-2020 0-105+
A13: Sheet 3 | B13: EW male pop | C13: Male population estimates England & Wales 1961-2020 0-105+
A14: Sheet 4 | B14: EW female pop | C14: Female population estimates England & Wales 1961-2020 0-105+
A15: Notes:
A16: 1 | B16: The population estimates for 90 and over were calculated using the Kannisto-Thatcher survival ratio method constrained to the official estimate for 90+ estimates.
A17: 2 | B17: Male & female population estimates in the years 1961-1970 for 85 and over are based on rounded data only.
A18: 3 | B18: The KT estimates for years 1974 to 1980 for the UK and 1961 to 1980 have been calculated in pre-existing files used to calculate the estimates of the very old 1993-2020.
A19: 4 | B19: Where possible published sources for population and deaths have been used as the data source or for quality assurance purposes.
A20: 5 | B20: Data for the years 1961-1973/4, have been sourced from pre-existing files but unpublished sources, this is because the data is unavailable by single year of age, however where possible totals have been matched to published totals.
A21: 6 | B21: There were some very small differences in the 90 to 105+ estimates by single year of age, for 1971-1973, these have been manually adjusted so that the total population estimate matches published totals for 90+ estimates.
A22: 7 | B22: Some differences remain in the number of deaths registered 1961-1979. Numbers of deaths by single year of age are not available for all of the UK constituent countries for these years, therefore it is difficult to find where the differences
B23: occur exactly. They have not been adjusted to match published totals, caution is advised when using these numbers, they are suitable for research/modelling purposes.
A24: 8 | B24: The mid-year population estimates are the latest available, 2002-2010 have been revised following the 2011 Census.
A25: 9 | B25: Death registrations for the years 1961 and 1962 are not published on the ONS website, but are available on request from the Vital Statistics Outputs Branch, health.data@ons.gov.uk
A26: 10 | B26: Where the age at registered death was not stated these deaths have been allocated to the modal age at death in that calendar year.
A27: 11 | B27: For more information on the accuracy of ONS mid-year population estimates, please see:
B28: ONS Mid-year Population Estimates QMI.
B29: The data in these spreadsheets are not National Statistics and are for research and modelling purposes only.

Sheet EW Male deaths
A1: England and Wales Male Deaths
A2: age | B2: 1961 | C2: 1962 | D2: 1963 | E2: 1964 | F2: 1965 | G2: 1966 | H2: 1967 | I2: 1968 | J2: 1969 | K2: 1970 | L2: 1971 | M2: 1972 | N2: 1973 | O2: 1974 | P2: 1975 | Q2: 1976 | R2: 1977 | S2: 1978 | T2: 1979 | U2: 1980 | V2: 1981 | W2: 1982 | X2: 1983 | Y2: 1984 | Z2: 1985 | AA2: 1986 | AB2: 1987 | AC2: 1988 | AD2: 1989 | AE2: 1990 | AF2: 1991 | AG2: 1992 | AH2: 1993 | AI2: 1994 | AJ2: 1995 | AK2: 1996 | AL2: 1997 | AM2: 1998 | AN2: 1999 | AO2: 2000 | AP2: 2001 | AQ2: 2002 | AR2: 2003 | AS2: 2004 | AT2: 2005 | AU2: 2006 | AV2: 2007 | AW2: 2008 | AX2: 2009 | AY2: 2010 | AZ2: 2011 | BA2: 2012 | BB2: 2013 | BC2: 2014 | BD2: 2015 | BE2: 2016 | BF2: 2017 | BG2: 2018 | BH2: 2019 | BI2: 2020
A3: 0 | B3: 9987 | C3: 10575 | D3: 10401 | E3: 10011 | F3: 9518 | G3: 9357 | H3: 8673 | I3: 8705 | J3: 8331 | K3: 8269 | L3: 7974 | M3: 7210 | N3: 6599 | O3: 6137 | P3: 5430 | Q3: 4879 | R3: 4519 | S3: 4513 | T3: 4731 | U3: 4471 | V3: 4119 | W3: 3914 | X3: 3654 | Y3: 3443 | Z3: 3510 | AA3: 3724 | AB3: 3637 | AC3: 3649 | AD3: 3368 | AE3: 3207 | AF3: 2966 | AG3: 2606 | AH3: 2418 | AI3: 2351 | AJ3: 2285 | AK3: 2285 | AL3: 2160 | AM3: 2058 | AN3: 2080 | AO3: 1902 | AP3: 1818 | AQ3: 1831 | AR3: 1827 | AS3: 1809 | AT3: 1877 | AU3: 1863 | AV3: 1889 | AW3: 1920 | AX3: 1856 | AY3: 1720 | AZ3: 1845 | BA3: 1730 | BB3: 1579 | BC3: 1460 | BD3: 1583 | BE3: 1506 | BF3: 1517 | BG3: 1440 | BH3: 1435 | BI3: 1333
A4: 1 | B4: 665 | C4: 597 | D4: 665 | E4: 588 | F4: 571 | G4: 616 | H4: 549 | I4: 552 | J4: 567 | K4: 508 | L4: 450 | M4: 470 | N4: 448 | O4: 410 | P4: 356 | Q4: 328 | R4: 262 | S4: 293 | T4: 224 | U4: 270 | V4: 271 | W4: 287 | X4: 230 | Y4: 259 | Z4: 250 | AA4: 224 | AB4: 234 | AC4: 250 | AD4: 245 | AE4: 239 | AF4: 231 | AG4: 191 | AH4: 204 | AI4: 178 | AJ4: 154 | AK4: 174 | AL4: 178 | AM4: 168 | AN4: 172 | AO4: 143 | AP4: 136 | AQ4: 143 | AR4: 116 | AS4: 131 | AT4: 131 | AU4: 133 | AV4: 141 | AW4: 124 | AX4: 112 | AY4: 118 | AZ4: 127 | BA4: 126 | BB4: 125 | BC4: 132 | BD4: 108 | BE4: 99 | BF4: 89 | BG4: 91 | BH4: 79 | BI4: 72
A5: 2 | B5: 398 | C5: 353 | D5: 378 | E5: 354 | F5: 354 | G5: 389 | H5: 374 | I5: 381 | J5: 381 | K5: 329 | L5: 324 | M5: 304 | N5: 303 | O5: 258 | P5: 231 | Q5: 203 | R5: 193 | S5: 165 | T5: 159 | U5: 166 | V5: 166 | W5: 149 | X5: 154 | Y5: 140 | Z5: 166 | AA5: 144 | AB5: 154 | AC5: 146 | AD5: 156 | AE5: 153 | AF5: 132 | AG5: 118 | AH5: 131 | AI5: 112 | AJ5: 101 | AK5: 104 | AL5: 103 | AM5: 106 | AN5: 110 | AO5: 89 | AP5: 84 | AQ5: 84 | AR5: 78 | AS5: 70 | AT5: 73 | AU5: 72 | AV5: 95 | AW5: 62 | AX5: 65 | AY5: 66 | AZ5: 73 | BA5: 67 | BB5: 67 | BC5: 61 | BD5: 59 | BE5: 48 | BF5: 51 | BG5: 44 | BH5: 49 | BI5: 44
A6: 3 | B6: 248 | C6: 259 | D6: 261 | E6: 254 | F6: 292 | G6: 301 | H6: 281 | I6: 316 | J6: 275 | K6: 270 | L6: 235 | M6: 254 | N6: 239 | O6: 252 | P6: 224 | Q6: 180 | R6: 156 | S6: 151 | T6: 128 | U6: 107 | V6: 106 | W6: 121 | X6: 118 | Y6: 135 | Z6: 126 | AA6: 121 | AB6: 98 | AC6: 113 | AD6: 118 | AE6: 113 | AF6: 116 | AG6: 90 | AH6: 96 | AI6: 76 | AJ6: 87 | AK6: 81 | AL6: 72 | AM6: 77 | AN6: 71 | AO6: 61 | AP6: 56 | AQ6: 48 | AR6: 64 | AS6: 64 | AT6: 57 | AU6: 48 | AV6: 56 | AW6: 56 | AX6: 37 | AY6: 51 | AZ6: 41 | BA6: 40 | BB6: 40 | BC6: 51 | BD6: 47 | BE6: 50 | BF6: 43 | BG6: 39 | BH6: 33 | BI6: 40
A7: 4 | B7: 224 | C7: 225 | D7: 244 | E7: 218 | F7: 235 | G7: 257 | H7: 223 | I7: 243 | J7: 261 | K7: 208 | L7: 219 | M7: 207 | N7: 213 | O7: 175 | P7: 172 | Q7: 165 | R7: 158 | S7: 130 | T7: 130 | U7: 125 | V7: 108 | W7: 95 | X7: 102 | Y7: 76 | Z7: 96 | AA7: 84 | AB7: 92 | AC7: 78 | AD7: 87 | AE7: 88 | AF7: 75 | AG7: 88 | AH7: 77 | AI7: 74 | AJ7: 56 | AK7: 77 | AL7: 68 | AM7: 64 | AN7: 55 | AO7: 52 | AP7: 53 | AQ7: 54 | AR7: 52 | AS7: 38 | AT7: 36 | AU7: 39 | AV7: 47 | AW7: 42 | AX7: 31 | AY7: 36 | AZ7: 37 | BA7: 40 | BB7: 36 | BC7: 27 | BD7: 43 | BE7: 31 | BF7: 37 | BG7: 41 | BH7: 27 | BI7: 29
A8: 5 | B8: 184 | C8: 184 | D8: 198 | E8: 212 | F8: 215 | G8: 208 | H8: 215 | I8: 220 | J8: 212 | K8: 182 | L8: 214 | M8: 183 | N8: 198 | O8: 176 | P8: 153 | Q8: 162 | R8: 140 | S8: 130 | T8: 113 | U8: 110 | V8: 87 | W8: 77 | X8: 79 | Y8: 80 | Z8: 83 | AA8: 79 | AB8: 77 | AC8: 73 | AD8: 89 | AE8: 77 | AF8: 80 | AG8: 72 | AH8: 65 | AI8: 43 | AJ8: 59 | AK8: 54 | AL8: 61 | AM8: 52 | AN8: 46 | AO8: 36 | AP8: 42 | AQ8: 41 | AR8: 45 | AS8: 27 | AT8: 36 | AU8: 39 | AV8: 37 | AW8: 46 | AX8: 39 | AY8: 35 | AZ8: 40 | BA8: 37 | BB8: 36 | BC8: 32 | BD8: 28 | BE8: 40 | BF8: 38 | BG8: 31 | BH8: 30 | BI8: 24
A9: 6 | B9: 180 | C9: 159 | D9: 181 | E9: 157 | F9: 187 | G9: 166 | H9: 172 | I9: 195 | J9: 173 | K9: 203 | L9: 191 | M9: 195 | N9: 188 | O9: 157 | P9: 142 | Q9: 142 | R9: 153 | S9: 134 | T9: 119 | U9: 97 | V9: 99 | W9: 75 | X9: 78 | Y9: 70 | Z9: 56 | AA9: 66 | AB9: 73 | AC9: 71 | AD9: 72 | AE9: 77 | AF9: 64 | AG9: 60 | AH9: 61 | AI9: 59 | AJ9: 59 | AK9: 45 | AL9: 57 | AM9: 52 | AN9: 41 | AO9: 62 | AP9: 44 | AQ9: 41 | AR9: 47 | AS9: 37 | AT9: 46 | AU9: 29 | AV9: 37 | AW9: 31 | AX9: 28 | AY9: 31 | AZ9: 30 | BA9: 31 | BB9: 26 | BC9: 39 | BD9: 31 | BE9: 23 | BF9: 28 | BG9: 33 | BH9: 40 | BI9: 24
A10: 7 | B10: 158 | C10: 162 | D10: 167 | E10: 160 | F10: 166 | G10: 144 | H10: 160 | I10: 163 | J10: 184 | K10: 168 | L10: 178 | M10: 173 | N10: 150 | O10: 149 | P10: 136 | Q10: 131 | R10: 116 | S10: 124 | T10: 110 | U10: 112 | V10: 89 | W10: 77 | X10: 77 | Y10: 60 | Z10: 79 | AA10: 74 | AB10: 49 | AC10: 74 | AD10: 85 | AE10: 51 | AF10: 67 | AG10: 68 | AH10: 49 | AI10: 55 | AJ10: 50 | AK10: 38 | AL10: 41 | AM10: 61 | AN10: 47 | AO10: 44 | AP10: 43 | AQ10: 39 | AR10: 33 | AS10: 34 | AT10: 29 | AU10: 30 | AV10: 30 | AW10: 33 | AX10: 22 | AY10: 21 | AZ10: 27 | BA10: 24 | BB10: 40 | BC10: 30 | BD10: 35 | BE10: 26 | BF10: 31 | BG10: 30 | BH10: 21 | BI10: 29
A11: 8 | B11: 130 | C11: 122 | D11: 154 | E11: 144 | F11: 158 | G11: 162 | H11: 164 | I11: 135 | J11: 144 | K11: 127 | L11: 168 | M11: 161 | N11: 144 | O11: 123 | P11: 127 | Q11: 117 | R11: 117 | S11: 103 | T11: 137 | U11: 99 | V11: 86 | W11: 85 | X11: 76 | Y11: 71 | Z11: 56 | AA11: 59 | AB11: 61 | AC11: 90 | AD11: 64 | AE11: 66 | AF11: 64 | AG11: 50 | AH11: 54 | AI11: 66 | AJ11: 54 | AK11: 44 | AL11: 62 | AM11: 46 | AN11: 41 | AO11: 44 | AP11: 37 | AQ11: 32 | AR11: 37 | AS11: 39 | AT11: 28 | AU11: 42 | AV11: 41 | AW11: 37 | AX11: 33 | AY11: 34 | AZ11: 31 | BA11: 32 | BB11: 25 | BC11: 24 | BD11: 24 | BE11: 21 | BF11: 29 | BG11: 26 | BH11: 19 | BI11: 31
A12: 9 | B12: 149 | C12: 124 | D12: 143 | E12: 135 | F12: 146 | G12: 143 | H12: 140 | I12: 155 | J12: 126 | K12: 136 | L12: 165 | M12: 135 | N12: 137 | O12: 115 | P12: 119 | Q12: 124 | R12: 109 | S12: 137 | T12: 123 | U12: 99 | V12: 86 | W12: 77 | X12: 81 | Y12: 67 | Z12: 54 | AA12: 47 | AB12: 49 | AC12: 66 | AD12: 61 | AE12: 62 | AF12: 66 | AG12: 52 | AH12: 45 | AI12: 51 | AJ12: 56 | AK12: 56 | AL12: 47 | AM12: 43 | AN12: 46 | AO12: 41 | AP12: 26 | AQ12: 45 | AR12: 41 | AS12: 37 | AT12: 27 | AU12: 47 | AV12: 37 | AW12: 33 | AX12: 25 | AY12: 36 | AZ12: 34 | BA12: 24 | BB12: 24 | BC12: 37 | BD12: 29 | BE12: 27 | BF12: 33 | BG12: 17 | BH12: 19 | BI12: 34
A13: 10 | B13: 113 | C13: 123 | D13: 136 | E13: 122 | F13: 129 | G13: 117 | H13: 156 | I13: 111 | J13: 135 | K13: 135 | L13: 137 | M13: 124 | N13: 109 | O13: 121 | P13: 132 | Q13: 116 | R13: 102 | S13: 129 | T13: 95 | U13: 94 | V13: 89 | W13: 82 | X13: 72 | Y13: 84 | Z13: 67 | AA13: 56 | AB13: 45 | AC13: 64 | AD13: 64 | AE13: 62 | AF13: 62 | AG13: 55 | AH13: 54 | AI13: 39 | AJ13: 67 | AK13: 42 | AL13: 57 | AM13: 49 | AN13: 46 | AO13: 49 | AP13: 51 | AQ13: 35 | AR13: 31 | AS13: 43 | AT13: 37 | AU13: 42 | AV13: 20 | AW13: 38 | AX13: 28 | AY13: 28 | AZ13: 29 | BA13: 27 | BB13: 27 | BC13: 34 | BD13: 35 | BE13: 25 | BF13: 21 | BG13: 35 | BH13: 27 | BI13: 24
A14: 11 | B14: 137 | C14: 136 | D14: 111 | E14: 123 | F14: 122 | G14: 131 | H14: 111 | I14: 140 | J14: 111 | K14: 122 | L14: 125 | M14: 137 | N14: 136 | O14: 119 | P14: 128 | Q14: 105 | R14: 110 | S14: 123 | T14: 109 | U14: 102 | V14: 95 | W14: 101 | X14: 91 | Y14: 83 | Z14: 99 | AA14: 63 | AB14: 65 | AC14: 68 | AD14: 56 | AE14: 62 | AF14: 63 | AG14: 54 | AH14: 59 | AI14: 54 | AJ14: 47 | AK14: 54 | AL14: 58 | AM14: 55 | AN14: 52 | AO14: 36 | AP14: 48 | AQ14: 56 | AR14: 43 | AS14: 32 | AT14: 47 | AU14: 46 | AV14: 37 | AW14: 31 | AX14: 33 | AY14: 34 | AZ14: 24 | BA14: 35 | BB14: 19 | BC14: 28 | BD14: 37 | BE14: 30 | BF14: 25 | BG14: 36 | BH14: 30 | BI14: 19
A15: 12 | B15: 145 | C15: 126 | D15: 126 | E15: 135 | F15: 140 | G15: 138 | H15: 128 | I15: 132 | J15: 115 | K15: 124 | L15: 117 | M15: 127 | N15: 128 | O15: 129 | P15: 131 | Q15: 129 | R15: 113 | S15: 106 | T15: 107 | U15: 92 | V15: 106 | W15: 97 | X15: 108 | Y15: 97 | Z15: 84 | AA15: 63 | AB15: 74 | AC15: 57 | AD15: 67 | AE15: 50 | AF15: 60 | AG15: 75 | AH15: 66 | AI15: 74 | AJ15: 61 | AK15: 55 | AL15: 64 | AM15: 55 | AN15: 59 | AO15: 54 | AP15: 65 | AQ15: 41 | AR15: 53 | AS15: 53 | AT15: 60 | AU15: 43 | AV15: 43 | AW15: 31 | AX15: 36 | AY15: 38 | AZ15: 35 | BA15: 35 | BB15: 34 | BC15: 34 | BD15: 29 | BE15: 34 | BF15: 35 | BG15: 36 | BH15: 43 | BI15: 34
A16: 13 | B16: 154 | C16: 170 | D16: 142 | E16: 143 | F16: 153 | G16: 153 | H16: 145 | I16: 115 | J16: 145 | K16: 127 | L16: 149 | M16: 135 | N16: 138 | O16: 144 | P16: 147 | Q16: 136 | R16: 134 | S16: 122 | T16: 119 | U16: 104 | V16: 136 | W16: 119 | X16: 103 | Y16: 97 | Z16: 114 | AA16: 87 | AB16: 103 | AC16: 106 | AD16: 62 | AE16: 71 | AF16: 79 | AG16: 62 | AH16: 73 | AI16: 65 | AJ16: 72 | AK16: 71 | AL16: 64 | AM16: 67 | AN16: 53 | AO16: 57 | AP16: 72 | AQ16: 77 | AR16: 63 | AS16: 54 | AT16: 59 | AU16: 63 | AV16: 59 | AW16: 40 | AX16: 48 | AY16: 35 | AZ16: 29 | BA16: 36 | BB16: 38 | BC16: 35 | BD16: 33 | BE16: 28 | BF16: 38 | BG16: 41 | BH16: 51 | BI16: 33
A17: 14 | B17: 196 | C17: 204 | D17: 170 | E17: 164 | F17: 159 | G17: 167 | H17: 168 | I17: 179 | J17: 156 | K17: 141 | L17: 162 | M17: 170 | N17: 166 | O17: 136 | P17: 154 | Q17: 153 | R17: 139 | S17: 139 | T17: 175 | U17: 154 | V17: 147 | W17: 147 | X17: 140 | Y17: 140 | Z17: 139 | AA17: 111 | AB17: 117 | AC17: 107 | AD17: 88 | AE17: 93 | AF17: 90 | AG17: 76 | AH17: 90 | AI17: 92 | AJ17: 85 | AK17: 86 | AL17: 84 | AM17: 83 | AN17: 79 | AO17: 67 | AP17: 84 | AQ17: 77 | AR17: 73 | AS17: 70 | AT17: 69 | AU17: 67 | AV17: 67 | AW17: 50 | AX17: 50 | AY17: 45 | AZ17: 46 | BA17: 39 | BB17: 44 | BC17: 42 | BD17: 32 | BE17: 45 | BF17: 34 | BG17: 46 | BH17: 36 | BI17: 47
A18: 15 | B18: 189 | C18: 238 | D18: 208 | E18: 197 | F18: 204 | G18: 186 | H18: 200 | I18: 190 | J18: 175 | K18: 181 | L18: 175 | M18: 180 | N18: 186 | O18: 177 | P18: 155 | Q18: 146 | R18: 186 | S18: 172 | T18: 183 | U18: 165 | V18: 171 | W18: 163 | X18: 179 | Y18: 169 | Z18: 145 | AA18: 173 | AB18: 144 | AC18: 125 | AD18: 130 | AE18: 136 | AF18: 133 | AG18: 97 | AH18: 104 | AI18: 105 | AJ18: 90 | AK18: 111 | AL18: 99 | AM18: 87 | AN18: 80 | AO18: 79 | AP18: 83 | AQ18: 96 | AR18: 85 | AS18: 102 | AT18: 76 | AU18: 79 | AV18: 96 | AW18: 72 | AX18: 92 | AY18: 57 | AZ18: 60 | BA18: 49 | BB18: 52 | BC18: 49 | BD18: 59 | BE18: 50 | BF18: 56 | BG18: 68 | BH18: 45 | BI18: 56
A19: 16 | B19: 267 | C19: 271 | D19: 328 | E19: 355 | F19: 337 | G19: 381 | H19: 307 | I19: 288 | J19: 291 | K19: 304 | L19: 294 | M19: 239 | N19: 222 | O19: 216 | P19: 248 | Q19: 266 | R19: 236 | S19: 263 | T19: 247 | U19: 222 | V19: 227 | W19: 228 | X19: 243 | Y19: 216 | Z19: 211 | AA19: 197 | AB19: 199 | AC19: 188 | AD19: 187 | AE19: 190 | AF19: 178 | AG19: 128 | AH19: 118 | AI19: 119 | AJ19: 109 | AK19: 134 | AL19: 157 | AM19: 153 | AN19: 129 | AO19: 135 | AP19: 112 | AQ19: 138 | AR19: 121 | AS19: 112 | AT19: 115 | AU19: 129 | AV19: 116 | AW19: 122 | AX19: 95 | AY19: 76 | AZ19: 84 | BA19: 61 | BB19: 75 | BC19: 78 | BD19: 64 | BE19: 71 | BF19: 77 | BG19: 69 | BH19: 66 | BI19: 53
A20: 17 | B20: 372 | C20: 351 | D20: 329 | E20: 467 | F20: 464 | G20: 428 | H20: 375 | I20: 353 | J20: 363 | K20: 367 | L20: 347 | M20: 344 | N20: 354 | O20: 374 | P20: 398 | Q20: 426 | R20: 415 | S20: 450 | T20: 411 | U20: 462 | V20: 452 | W20: 423 | X20: 348 | Y20: 337 | Z20: 316 | AA20: 310 | AB20: 309 | AC20: 314 | AD20: 319 | AE20: 308 | AF20: 245 | AG20: 205 | AH20: 205 | AI20: 190 | AJ20: 192 | AK20: 208 | AL20: 211 | AM20: 178 | AN20: 198 | AO20: 176 | AP20: 189 | AQ20: 192 | AR20: 175 | AS20: 177 | AT20: 193 | AU20: 193 | AV20: 173 | AW20: 174 | AX20: 165 | AY20: 129 | AZ20: 115 | BA20: 114 | BB20: 99 | BC20: 98 | BD20: 100 | BE20: 97 | BF20: 108 | BG20: 110 | BH20: 83 | BI20: 83
A21: 18 | B21: 354 | C21: 398 | D21: 387 | E21: 416 | F21: 511 | G21: 480 | H21: 423 | I21: 364 | J21: 391 | K21: 359 | L21: 346 | M21: 344 | N21: 387 | O21: 398 | P21: 404 | Q21: 420 | R21: 388 | S21: 482 | T21: 453 | U21: 471 | V21: 438 | W21: 452 | X21: 397 | Y21: 353 | Z21: 358 | AA21: 385 | AB21: 354 | AC21: 330 | AD21: 344 | AE21: 336 | AF21: 329 | AG21: 257 | AH21: 244 | AI21: 193 | AJ21: 247 | AK21: 230 | AL21: 261 | AM21: 273 | AN21: 234 | AO21: 258 | AP21: 263 | AQ21: 251 | AR21: 251 | AS21: 224 | AT21: 226 | AU21: 212 | AV21: 193 | AW21: 198 | AX21: 206 | AY21: 182 | AZ21: 139 | BA21: 181 | BB21: 137 | BC21: 151 | BD21: 142 | BE21: 130 | BF21: 129 | BG21: 152 | BH21: 117 | BI21: 110
A22: 19 | B22: 335 | C22: 390 | D22: 410 | E22: 424 | F22: 387 | G22: 526 | H22: 444 | I22: 349 | J22: 354 | K22: 340 | L22: 376 | M22: 375 | N22: 361 | O22: 417 | P22: 379 | Q22: 402 | R22: 395 | S22: 409 | T22: 433 | U22: 425 | V22: 446 | W22: 403 | X22: 413 | Y22: 409 | Z22: 344 | AA22: 364 | AB22: 383 | AC22: 322 | AD22: 345 | AE22: 325 | AF22: 323 | AG22: 282 | AH22: 260 | AI22: 227 | AJ22: 252 | AK22: 225 | AL22: 242 | AM22: 271 | AN22: 264 | AO22: 250 | AP22: 280 | AQ22: 235 | AR22: 220 | AS22: 218 | AT22: 246 | AU22: 231 | AV22: 219 | AW22: 213 | AX22: 220 | AY22: 157 | AZ22: 159 | BA22: 159 | BB22: 169 | BC22: 160 | BD22: 169 | BE22: 149 | BF22: 144 | BG22: 162 | BH22: 147 | BI22: 136
A23: 20 | B23: 340 | C23: 345 | D23: 385 | E23: 389 | F23: 373 | G23: 383 | H23: 450 | I23: 374 | J23: 325 | K23: 411 | L23: 344 | M23: 338 | N23: 381 | O23: 381 | P23: 382 | Q23: 369 | R23: 341 | S23: 399 | T23: 369 | U23: 389 | V23: 371 | W23: 405 | X23: 416 | Y23: 402 | Z23: 404 | AA23: 357 | AB23: 361 | AC23: 378 | AD23: 343 | AE23: 372 | AF23: 322 | AG23: 285 | AH23: 318 | AI23: 292 | AJ23: 278 | AK23: 241 | AL23: 281 | AM23: 241 | AN23: 239 | AO23: 258 | AP23: 256 | AQ23: 277 | AR23: 275 | AS23: 257 | AT23: 231 | AU23: 243 | AV23: 229 | AW23: 266 | AX23: 210 | AY23: 198 | AZ23: 193 | BA23: 173 | BB23: 160 | BC23: 166 | BD23: 167 | BE23: 181 | BF23: 168 | BG23: 182 | BH23: 202 | BI23: 183
A24: 21 | B24: 306 | C24: 295 | D24: 345 | E24: 369 | F24: 348 | G24: 345 | H24: 357 | I24: 422 | J24: 397 | K24: 382 | L24: 378 | M24: 359 | N24: 363 | O24: 327 | P24: 380 | Q24: 327 | R24: 338 | S24: 356 | T24: 376 | U24: 351 | V24: 303 | W24: 330 | X24: 353 | Y24: 360 | Z24: 386 | AA24: 368 | AB24: 407 | AC24: 360 | AD24: 346 | AE24: 362 | AF24: 335 | AG24: 333 | AH24: 318 | AI24: 276 | AJ24: 324 | AK24: 267 | AL24: 310 | AM24: 251 | AN24: 240 | AO24: 256 | AP24: 250 | AQ24: 252 | AR24: 253 | AS24: 212 | AT24: 248 | AU24: 229 | AV24: 252 | AW24: 222 | AX24: 241 | AY24: 229 | AZ24: 196 | BA24: 173 | BB24: 170 | BC24: 180 | BD24: 181 | BE24: 185 | BF24: 167 | BG24: 199 | BH24: 196 | BI24: 142
A25: 22 | B25: 338 | C25: 339 | D25: 302 | E25: 313 | F25: 326 | G25: 374 | H25: 316 | I25: 316 | J25: 394 | K25: 379 | L25: 346 | M25: 371 | N25: 378 | O25: 315 | P25: 360 | Q25: 354 | R25: 342 | S25: 341 | T25: 332 | U25: 307 | V25: 314 | W25: 319 | X25: 341 | Y25: 343 | Z25: 348 | AA25: 368 | AB25: 362 | AC25: 364 | AD25: 356 | AE25: 388 | AF25: 348 | AG25: 337 | AH25: 333 | AI25: 318 | AJ25: 290 | AK25: 284 | AL25: 271 | AM25: 284 | AN25: 246 | AO25: 259 | AP25: 248 | AQ25: 278 | AR25: 279 | AS25: 262 | AT25: 242 | AU25: 262 | AV25: 241 | AW25: 245 | AX25: 208 | AY25: 211 | AZ25: 208 | BA25: 183 | BB25: 162 | BC25: 181 | BD25: 191 | BE25: 195 | BF25: 173 | BG25: 189 | BH25: 192 | BI25: 155
A26: 23 | B26: 305 | C26: 322 | D26: 302 | E26: 317 | F26: 303 | G26: 329 | H26: 306 | I26: 310 | J26: 295 | K26: 382 | L26: 377 | M26: 354 | N26: 348 | O26: 327 | P26: 294 | Q26: 305 | R26: 305 | S26: 325 | T26: 285 | U26: 281 | V26: 298 | W26: 322 | X26: 260 | Y26: 323 | Z26: 313 | AA26: 343 | AB26: 344 | AC26: 370 | AD26: 347 | AE26: 400 | AF26: 389 | AG26: 316 | AH26: 307 | AI26: 314 | AJ26: 330 | AK26: 295 | AL26: 290 | AM26: 302 | AN26: 266 | AO26: 279 | AP26: 229 | AQ26: 249 | AR26: 286 | AS26: 274 | AT26: 260 | AU26: 241 | AV26: 243 | AW26: 264 | AX26: 230 | AY26: 237 | AZ26: 180 | BA26: 212 | BB26: 202 | BC26: 224 | BD26: 209 | BE26: 209 | BF26: 173 | BG26: 196 | BH26: 182 | BI26: 187
A27: 24 | B27: 300 | C27: 314 | D27: 322 | E27: 303 | F27: 316 | G27: 294 | H27: 289 | I27: 293 | J27: 316 | K27: 282 | L27: 326 | M27: 335 | N27: 366 | O27: 316 | P27: 281 | Q27: 308 | R27: 273 | S27: 340 | T27: 287 | U27: 285 | V27: 290 | W27: 292 | X27: 265 | Y27: 300 | Z27: 287 | AA27: 310 | AB27: 337 | AC27: 330 | AD27: 390 | AE27: 367 | AF27: 366 | AG27: 350 | AH27: 321 | AI27: 331 | AJ27: 333 | AK27: 318 | AL27: 316 | AM27: 326 | AN27: 274 | AO27: 276 | AP27: 293 | AQ27: 254 | AR27: 255 | AS27: 252 | AT27: 236 | AU27: 237 | AV27: 253 | AW27: 258 | AX27: 232 | AY27: 227 | AZ27: 181 | BA27: 192 | BB27: 203 | BC27: 208 | BD27: 222 | BE27: 220 | BF27: 185 | BG27: 215 | BH27: 207 | BI27: 184
A28: 25 | B28: 295 | C28: 291 | D28: 278 | E28: 321 | F28: 306 | G28: 252 | H28: 320 | I28: 262 | J28: 321 | K28: 292 | L28: 298 | M28: 366 | N28: 361 | O28: 315 | P28: 319 | Q28: 285 | R28: 282 | S28: 322 | T28: 307 | U28: 283 | V28: 260 | W28: 276 | X28: 288 | Y28: 280 | Z28: 281 | AA28: 296 | AB28: 316 | AC28: 334 | AD28: 371 | AE28: 385 | AF28: 367 | AG28: 316 | AH28: 345 | AI28: 329 | AJ28: 337 | AK28: 348 | AL28: 375 | AM28: 322 | AN28: 297 | AO28: 286 | AP28: 288 | AQ28: 276 | AR28: 266 | AS28: 268 | AT28: 281 | AU28: 276 | AV28: 255 | AW28: 236 | AX28: 248 | AY28: 223 | AZ28: 224 | BA28: 196 | BB28: 227 | BC28: 182 | BD28: 255 | BE28: 242 | BF28: 222 | BG28: 211 | BH28: 223 | BI28: 214
A29: 26 | B29: 318 | C29: 254 | D29: 313 | E29: 282 | F29: 293 | G29: 288 | H29: 295 | I29: 269 | J29: 296 | K29: 300 | L29: 307 | M29: 328 | N29: 381 | O29: 333 | P29: 307 | Q29: 306 | R29: 311 | S29: 303 | T29: 313 | U29: 288 | V29: 265 | W29: 307 | X29: 287 | Y29: 287 | Z29: 279 | AA29: 305 | AB29: 330 | AC29: 319 | AD29: 324 | AE29: 402 | AF29: 388 | AG29: 355 | AH29: 342 | AI29: 376 | AJ29: 350 | AK29: 313 | AL29: 346 | AM29: 371 | AN29: 334 | AO29: 287 | AP29: 281 | AQ29: 282 | AR29: 257 | AS29: 268 | AT29: 248 | AU29: 253 | AV29: 280 | AW29: 287 | AX29: 277 | AY29: 221 | AZ29: 214 | BA29: 214 | BB29: 226 | BC29: 267 | BD29: 205 | BE29: 250 | BF29: 212 | BG29: 232 | BH29: 229 | BI29: 234
A30: 27 | B30: 299 | C30: 256 | D30: 296 | E30: 286 | F30: 302 | G30: 287 | H30: 272 | I30: 248 | J30: 270 | K30: 317 | L30: 298 | M30: 298 | N30: 329 | O30: 350 | P30: 331 | Q30: 345 | R30: 317 | S30: 288 | T30: 314 | U30: 293 | V30: 296 | W30: 254 | X30: 292 | Y30: 292 | Z30: 272 | AA30: 309 | AB30: 312 | AC30: 317 | AD30: 333 | AE30: 377 | AF30: 348 | AG30: 365 | AH30: 381 | AI30: 349 | AJ30: 391 | AK30: 339 | AL30: 318 | AM30: 380 | AN30: 364 | AO30: 368 | AP30: 324 | AQ30: 298 | AR30: 242 | AS30: 263 | AT30: 248 | AU30: 288 | AV30: 269 | AW30: 277 | AX30: 252 | AY30: 237 | AZ30: 213 | BA30: 207 | BB30: 241 | BC30: 242 | BD30: 230 | BE30: 234 | BF30: 230 | BG30: 243 | BH30: 255 | BI30: 233
A31: 28 | B31: 306 | C31: 275 | D31: 291 | E31: 308 | F31: 292 | G31: 284 | H31: 281 | I31: 268 | J31: 251 | K31: 258 | L31: 288 | M31: 282 | N31: 334 | O31: 285 | P31: 355 | Q31: 335 | R31: 315 | S31: 321 | T31: 287 | U31: 288 | V31: 296 | W31: 285 | X31: 284 | Y31: 323 | Z31: 301 | AA31: 306 | AB31: 286 | AC31: 335 | AD31: 336 | AE31: 376 | AF31: 346 | AG31: 388 | AH31: 360 | AI31: 373 | AJ31: 398 | AK31: 392 | AL31: 344 | AM31: 386 | AN31: 384 | AO31: 360 | AP31: 320 | AQ31: 330 | AR31: 307 | AS31: 275 | AT31: 212 | AU31: 238 | AV31: 294 | AW31: 303 | AX31: 302 | AY31: 239 | AZ31: 258 | BA31: 233 | BB31: 214 | BC31: 241 | BD31: 244 | BE31: 261 | BF31: 255 | BG31: 270 | BH31: 274 | BI31: 240
A32: 29 | B32: 301 | C32: 316 | D32: 299 | E32: 312 | F32: 316 | G32: 334 | H32: 240 | I32: 298 | J32: 292 | K32: 268 | L32: 254 | M32: 286 | N32: 323 | O32: 319 | P32: 287 | Q32: 340 | R32: 360 | S32: 306 | T32: 337 | U32: 284 | V32: 310 | W32: 287 | X32: 273 | Y32: 273 | Z32: 272 | AA32: 284 | AB32: 262 | AC32: 309 | AD32: 328 | AE32: 387 | AF32: 365 | AG32: 377 | AH32: 416 | AI32: 358 | AJ32: 415 | AK32: 400 | AL32: 406 | AM32: 393 | AN32: 400 | AO32: 399 | AP32: 394 | AQ32: 349 | AR32: 335 | AS32: 299 | AT32: 280 | AU32: 283 | AV32: 262 | AW32: 287 | AX32: 292 | AY32: 288 | AZ32: 256 | BA32: 247 | BB32: 253 | BC32: 264 | BD32: 237 | BE32: 267 | BF32: 255 | BG32: 286 | BH32: 288 | BI32: 245
A33: 30 | B33: 373 | C33: 315 | D33: 311 | E33: 313 | F33: 332 | G33: 316 | H33: 315 | I33: 260 | J33: 316 | K33: 300 | L33: 273 | M33: 291 | N33: 324 | O33: 354 | P33: 301 | Q33: 320 | R33: 342 | S33: 352 | T33: 336 | U33: 295 | V33: 304 | W33: 315 | X33: 286 | Y33: 264 | Z33: 289 | AA33: 294 | AB33: 330 | AC33: 323 | AD33: 321 | AE33: 346 | AF33: 373 | AG33: 382 | AH33: 374 | AI33: 399 | AJ33: 413 | AK33: 429 | AL33: 380 | AM33: 429 | AN33: 409 | AO33: 394 | AP33: 361 | AQ33: 406 | AR33: 363 | AS33: 299 | AT33: 329 | AU33: 303 | AV33: 298 | AW33: 289 | AX33: 325 | AY33: 311 | AZ33: 275 | BA33: 274 | BB33: 254 | BC33: 299 | BD33: 248 | BE33: 295 | BF33: 254 | BG33: 297 | BH33: 313 | BI33: 281
A34: 31 | B34: 332 | C34: 325 | D34: 338 | E34: 333 | F34: 295 | G34: 336 | H34: 313 | I34: 306 | J34: 300 | K34: 336 | L34: 294 | M34: 297 | N34: 263 | O34: 274 | P34: 337 | Q34: 311 | R34: 315 | S34: 395 | T34: 355 | U34: 322 | V34: 331 | W34: 310 | X34: 302 | Y34: 285 | Z34: 284 | AA34: 287 | AB34: 337 | AC34: 315 | AD34: 336 | AE34: 365 | AF34: 379 | AG34: 400 | AH34: 426 | AI34: 436 | AJ34: 448 | AK34: 469 | AL34: 428 | AM34: 423 | AN34: 396 | AO34: 401 | AP34: 418 | AQ34: 396 | AR34: 399 | AS34: 360 | AT34: 311 | AU34: 323 | AV34: 322 | AW34: 307 | AX34: 273 | AY34: 305 | AZ34: 292 | BA34: 286 | BB34: 298 | BC34: 276 | BD34: 258 | BE34: 306 | BF34: 285 | BG34: 341 | BH34: 316 | BI34: 298
A35: 32 | B35: 364 | C35: 353 | D35: 386 | E35: 344 | F35: 345 | G35: 322 | H35: 303 | I35: 328 | J35: 318 | K35: 339 | L35: 329 | M35: 293 | N35: 300 | O35: 305 | P35: 340 | Q35: 352 | R35: 347 | S35: 329 | T35: 402 | U35: 367 | V35: 342 | W35: 348 | X35: 340 | Y35: 320 | Z35: 321 | AA35: 342 | AB35: 322 | AC35: 351 | AD35: 326 | AE35: 381 | AF35: 374 | AG35: 373 | AH35: 357 | AI35: 409 | AJ35: 443 | AK35: 458 | AL35: 414 | AM35: 470 | AN35: 458 | AO35: 456 | AP35: 418 | AQ35: 435 | AR35: 426 | AS35: 428 | AT35: 365 | AU35: 382 | AV35: 370 | AW35: 300 | AX35: 313 | AY35: 315 | AZ35: 278 | BA35: 273 | BB35: 313 | BC35: 279 | BD35: 358 | BE35: 344 | BF35: 305 | BG35: 291 | BH35: 319 | BI35: 335
A36: 33 | B36: 381 | C36: 370 | D36: 385 | E36: 393 | F36: 355 | G36: 363 | H36: 313 | I36: 293 | J36: 332 | K36: 331 | L36: 341 | M36: 317 | N36: 320 | O36: 319 | P36: 332 | Q36: 326 | R36: 343 | S36: 338 | T36: 382 | U36: 402 | V36: 380 | W36: 340 | X36: 347 | Y36: 344 | Z36: 322 | AA36: 318 | AB36: 355 | AC36: 382 | AD36: 368 | AE36: 344 | AF36: 366 | AG36: 385 | AH36: 427 | AI36: 464 | AJ36: 449 | AK36: 433 | AL36: 444 | AM36: 493 | AN36: 463 | AO36: 442 | AP36: 491 | AQ36: 434 | AR36: 428 | AS36: 414 | AT36: 433 | AU36: 378 | AV36: 382 | AW36: 378 | AX36: 323 | AY36: 299 | AZ36: 285 | BA36: 314 | BB36: 316 | BC36: 312 | BD36: 328 | BE36: 337 | BF36: 321 | BG36: 367 | BH36: 354 | BI36: 342
A37: 34 | B37: 412 | C37: 428 | D37: 407 | E37: 417 | F37: 413 | G37: 411 | H37: 351 | I37: 365 | J37: 387 | K37: 348 | L37: 364 | M37: 345 | N37: 401 | O37: 387 | P37: 320 | Q37: 325 | R37: 338 | S37: 371 | T37: 393 | U37: 381 | V37: 397 | W37: 400 | X37: 372 | Y37: 365 | Z37: 332 | AA37: 363 | AB37: 368 | AC37: 382 | AD37: 337 | AE37: 351 | AF37: 381 | AG37: 410 | AH37: 411 | AI37: 455 | AJ37: 455 | AK37: 446 | AL37: 460 | AM37: 444 | AN37: 473 | AO37: 456 | AP37: 535 | AQ37: 459 | AR37: 455 | AS37: 407 | AT37: 439 | AU37: 408 | AV37: 406 | AW37: 424 | AX37: 369 | AY37: 354 | AZ37: 323 | BA37: 281 | BB37: 333 | BC37: 357 | BD37: 365 | BE37: 353 | BF37: 345 | BG37: 362 | BH37: 344 | BI37: 389
A38: 35 | B38: 516 | C38: 462 | D38: 454 | E38: 444 | F38: 465 | G38: 471 | H38: 395 | I38: 350 | J38: 387 | K38: 387 | L38: 418 | M38: 402 | N38: 416 | O38: 367 | P38: 380 | Q38: 346 | R38: 319 | S38: 425 | T38: 409 | U38: 423 | V38: 356 | W38: 468 | X38: 448 | Y38: 411 | Z38: 398 | AA38: 346 | AB38: 377 | AC38: 381 | AD38: 400 | AE38: 386 | AF38: 400 | AG38: 432 | AH38: 437 | AI38: 426 | AJ38: 437 | AK38: 482 | AL38: 415 | AM38: 492 | AN38: 513 | AO38: 499 | AP38: 493 | AQ38: 474 | AR38: 483 | AS38: 490 | AT38: 450 | AU38: 467 | AV38: 461 | AW38: 496 | AX38: 447 | AY38: 343 | AZ38: 336 | BA38: 323 | BB38: 334 | BC38: 373 | BD38: 372 | BE38: 380 | BF38: 376 | BG38: 399 | BH38: 380 | BI38: 412
A39: 36 | B39: 512 | C39: 508 | D39: 476 | E39: 502 | F39: 516 | G39: 495 | H39: 467 | I39: 436 | J39: 397 | K39: 412 | L39: 448 | M39: 436 | N39: 452 | O39: 386 | P39: 429 | Q39: 409 | R39: 363 | S39: 390 | T39: 418 | U39: 394 | V39: 416 | W39: 363 | X39: 486 | Y39: 425 | Z39: 459 | AA39: 425 | AB39: 417 | AC39: 406 | AD39: 454 | AE39: 433 | AF39: 425 | AG39: 433 | AH39: 443 | AI39: 456 | AJ39: 476 | AK39: 457 | AL39: 408 | AM39: 492 | AN39: 490 | AO39: 552 | AP39: 505 | AQ39: 536 | AR39: 510 | AS39: 532 | AT39: 515 | AU39: 494 | AV39: 487 | AW39: 468 | AX39: 449 | AY39: 384 | AZ39: 399 | BA39: 327 | BB39: 355 | BC39: 339 | BD39: 415 | BE39: 428 | BF39: 449 | BG39: 410 | BH39: 383 | BI39: 425
A40: 37 | B40: 580 | C40: 557 | D40: 586 | E40: 550 | F40: 545 | G40: 490 | H40: 476 | I40: 485 | J40: 452 | K40: 447 | L40: 445 | M40: 444 | N40: 442 | O40: 439 | P40: 445 | Q40: 445 | R40: 432 | S40: 420 | T40: 435 | U40: 454 | V40: 427 | W40: 459 | X40: 417 | Y40: 540 | Z40: 492 | AA40: 500 | AB40: 431 | AC40: 408 | AD40: 466 | AE40: 474 | AF40: 489 | AG40: 436 | AH40: 436 | AI40: 461 | AJ40: 484 | AK40: 470 | AL40: 485 | AM40: 515 | AN40: 495 | AO40: 595 | AP40: 520 | AQ40: 577 | AR40: 555 | AS40: 541 | AT40: 562 | AU40: 520 | AV40: 498 | AW40: 498 | AX40: 512 | AY40: 456 | AZ40: 455 | BA40: 395 | BB40: 424 | BC40: 361 | BD40: 383 | BE40: 395 | BF40: 469 | BG40: 492 | BH40: 478 | BI40: 512
A41: 38 | B41: 647 | C41: 652 | D41: 613 | E41: 647 | F41: 627 | G41: 592 | H41: 567 | I41: 569 | J41: 552 | K41: 488 | L41: 453 | M41: 496 | N41: 462 | O41: 501 | P41: 412 | Q41: 469 | R41: 505 | S41: 498 | T41: 426 | U41: 455 | V41: 498 | W41: 455 | X41: 454 | Y41: 463 | Z41: 511 | AA41: 543 | AB41: 485 | AC41: 464 | AD41: 492 | AE41: 489 | AF41: 488 | AG41: 559 | AH41: 510 | AI41: 468 | AJ41: 516 | AK41: 488 | AL41: 513 | AM41: 497 | AN41: 544 | AO41: 534 | AP41: 581 | AQ41: 541 | AR41: 556 | AS41: 550 | AT41: 534 | AU41: 550 | AV41: 526 | AW41: 600 | AX41: 578 | AY41: 546 | AZ41: 487 | BA41: 429 | BB41: 463 | BC41: 468 | BD41: 434 | BE41: 419 | BF41: 423 | BG41: 469 | BH41: 482 | BI41: 487
A42: 39 | B42: 743 | C42: 727 | D42: 679 | E42: 716 | F42: 654 | G42: 675 | H42: 633 | I42: 604 | J42: 592 | K42: 563 | L42: 572 | M42: 558 | N42: 524 | O42: 512 | P42: 505 | Q42: 559 | R42: 521 | S42: 581 | T42: 528 | U42: 471 | V42: 446 | W42: 501 | X42: 537 | Y42: 500 | Z42: 558 | AA42: 593 | AB42: 565 | AC42: 560 | AD42: 531 | AE42: 528 | AF42: 579 | AG42: 553 | AH42: 534 | AI42: 527 | AJ42: 526 | AK42: 586 | AL42: 557 | AM42: 556 | AN42: 559 | AO42: 586 | AP42: 623 | AQ42: 604 | AR42: 614 | AS42: 625 | AT42: 581 | AU42: 595 | AV42: 607 | AW42: 581 | AX42: 600 | AY42: 589 | AZ42: 520 | BA42: 488 | BB42: 516 | BC42: 476 | BD42: 456 | BE42: 457 | BF42: 462 | BG42: 490 | BH42: 516 | BI42: 593
A43: 40 | B43: 880 | C43: 844 | D43: 834 | E43: 792 | F43: 755 | G43: 762 | H43: 695 | I43: 679 | J43: 745 | K43: 692 | L43: 678 | M43: 591 | N43: 616 | O43: 589 | P43: 582 | Q43: 558 | R43: 553 | S43: 579 | T43: 609 | U43: 555 | V43: 568 | W43: 520 | X43: 549 | Y43: 544 | Z43: 637 | AA43: 602 | AB43: 624 | AC43: 631 | AD43: 599 | AE43: 549 | AF43: 559 | AG43: 554 | AH43: 580 | AI43: 548 | AJ43: 560 | AK43: 613 | AL43: 570 | AM43: 550 | AN43: 592 | AO43: 620 | AP43: 663 | AQ43: 644 | AR43: 674 | AS43: 652 | AT43: 643 | AU43: 619 | AV43: 646 | AW43: 659 | AX43: 693 | AY43: 615 | AZ43: 589 | BA43: 602 | BB43: 541 | BC43: 559 | BD43: 518 | BE43: 495 | BF43: 485 | BG43: 525 | BH43: 556 | BI43: 613
A44: 41 | B44: 953 | C44: 949 | D44: 872 | E44: 870 | F44: 911 | G44: 823 | H44: 787 | I44: 763 | J44: 816 | K44: 718 | L44: 774 | M44: 731 | N44: 729 | O44: 675 | P44: 598 | Q44: 662 | R44: 601 | S44: 637 | T44: 644 | U44: 645 | V44: 593 | W44: 602 | X44: 588 | Y44: 589 | Z44: 631 | AA44: 609 | AB44: 645 | AC44: 759 | AD44: 663 | AE44: 701 | AF44: 630 | AG44: 636 | AH44: 621 | AI44: 618 | AJ44: 646 | AK44: 602 | AL44: 607 | AM44: 629 | AN44: 653 | AO44: 669 | AP44: 621 | AQ44: 671 | AR44: 706 | AS44: 610 | AT44: 724 | AU44: 704 | AV44: 656 | AW44: 742 | AX44: 717 | AY44: 665 | AZ44: 626 | BA44: 598 | BB44: 636 | BC44: 628 | BD44: 571 | BE44: 580 | BF44: 587 | BG44: 537 | BH44: 503 | BI44: 663
A45: 42 | B45: 826 | C45: 1125 | D45: 1189 | E45: 1026 | F45: 994 | G45: 1002 | H45: 931 | I45: 961 | J45: 839 | K45: 897 | L45: 841 | M45: 835 | N45: 850 | O45: 783 | P45: 763 | Q45: 745 | R45: 696 | S45: 700 | T45: 714 | U45: 606 | V45: 684 | W45: 648 | X45: 615 | Y45: 612 | Z45: 670 | AA45: 675 | AB45: 721 | AC45: 648 | AD45: 787 | AE45: 810 | AF45: 771 | AG45: 659 | AH45: 666 | AI45: 652 | AJ45: 683 | AK45: 656 | AL45: 663 | AM45: 629 | AN45: 651 | AO45: 653 | AP45: 700 | AQ45: 687 | AR45: 734 | AS45: 729 | AT45: 728 | AU45: 736 | AV45: 804 | AW45: 727 | AX45: 776 | AY45: 693 | AZ45: 741 | BA45: 622 | BB45: 711 | BC45: 609 | BD45: 664 | BE45: 598 | BF45: 605 | BG45: 650 | BH45: 538 | BI45: 639
A46: 43 | B46: 855 | C46: 839 | D46: 1227 | E46: 1174 | F46: 1159 | G46: 1082 | H46: 1024 | I46: 1092 | J46: 1006 | K46: 1005 | L46: 947 | M46: 963 | N46: 935 | O46: 932 | P46: 823 | Q46: 818 | R46: 779 | S46: 746 | T46: 772 | U46: 784 | V46: 739 | W46: 683 | X46: 714 | Y46: 643 | Z46: 709 | AA46: 736 | AB46: 741 | AC46: 765 | AD46: 716 | AE46: 915 | AF46: 855 | AG46: 773 | AH46: 709 | AI46: 727 | AJ46: 763 | AK46: 741 | AL46: 721 | AM46: 719 | AN46: 676 | AO46: 677 | AP46: 728 | AQ46: 776 | AR46: 813 | AS46: 810 | AT46: 822 | AU46: 774 | AV46: 773 | AW46: 823 | AX46: 819 | AY46: 754 | AZ46: 720 | BA46: 734 | BB46: 717 | BC46: 716 | BD46: 691 | BE46: 757 | BF46: 702 | BG46: 717 | BH46: 597 | BI46: 692
